Workbook

Sheet MARCO GENERAL
A1: MARCO GENERAL
A2: (Aspectos estratégicos generales)
A5: 1. Nombre de la institución. | D5: COMITÉ CANTONAL DE DEPORTES Y RECREACIÓN DE MORAVIA
A7: 2. Año del POA. | D7: 2014
A9: 3. Marco filosófico institucional.
A11: 3.1 Misión: | D11: Promover el deporte y la recreación como parte del desarrollo integral de las y los habitantes del cantón de Moravia.
A13: 3.2 Visión: | D13: Destacar a nivel nacional como el órgano cantonal líder en materia de deporte y recreación, gestionando políticas públicas que fomenten la salud y el bienestar de la comunidad.}
A15: 3.3 Políticas institucionales: | C15: 1 | D15: Facilitar a los habitantes del cantón de Moravia, el acceso en igualdad de oportunidades, a la educación física, el deporte, y la recreación.
C16: 2 | D16: Contribuir por medio del deporte y la recreación a la formación de ciudadanos sanos, en las dimensiones física, psicológica y espiritual.
C17: 3 | D17: Promover una filosofía de trabajo en equipo con el objetivo de mejorar la coordinación y obtener los mejores resultados del esfuerzo de las organizaciones deportivas y recreativas involucradas.
C18: 4 | D18: Velar por la expansión, el adecuado uso, mantenimiento y explotación de la infraestructura deportiva y recreativa del cantón.
C19: 5 | D19: Promover mecanismos de información de manera transparente, veraz y oportuna para mantener informada a la población de Moravia, acerca del accionar del Comité de Deportes.
C20: 6 | D20: Valorar el desempeño organizacional desde la perspectiva de la satisfacción de los habitantes, los procesos desarrollados y los productos alcanzados
C21: 7 | D21: Propiciar una filosofía de salud integral en todas las actividades y proyectos desarrollados por el Comité o sus organizaciones afiliadas.
C22: 8
C23: 9
C24: 10
A26: 4. Plan de Desarrollo Municipal.
D28: Nombre del Área estratégica | E28: Objetivo (s) Estratégico (s) del Área
C29: 1 | D29: Gestión Deportiva | E29: Crear condiciones de desarrollo para la elaboración de programas, actividades y proyectos que fomenten una cultura deportiva en el cantón.
C30: 2 | D30: Gestión Recreativa | E30: Fomentar el desarrollo de actividades y proyectos recreativos que fomenten el esparcimiento de los habitantes.
C31: 3 | D31: Gestión de Inversión y Obras | E31: Realizar las gestiones de recuperación, mantenimiento, remodelación y contrucción de infraestructura deportiva de calidad.
C32: 4 | D32: Gestión de Capacitación y Becas | E32: Mantener un plan anual de capacitaciones, talleres, cursos y conversatorios que permitan mejorar los conocimientos sobre temas deportivos, recreativos, promoción de la salud y administrativos.
C33: 5 | D33: Gestión Comunitaria | E33: Impulsar la participación activa de las comunidades en la formulación de proyectos deportivos y recreativos. Así mismo, brindar apoyo logístico, financiero y en especie a las comunidades para los procesos de inversión conjunta.
C34: 6 | D34: Gestión Administrativa | E34: Desarrollar una estructura administrativa eficiente que garantice el fiel cumplimiento de metas, objetivos, misión, visión, valores y funciones que corresponden al Comité.
C35: 7 | D35: Gestión de Inclusión Social | E35: Implementar políticas de inclusión social para la participación activa de poblaciones con capacidades especiales, adulto mayor y de género.
C36: 8 | D36: No aplica
C37: 9 | D37: No aplica
C38: 10 | D38: No aplica
C39: 11 | D39: No aplica
C40: 12 | D40: No aplica
C41: 13 | D41: No aplica
C42: 14 | D42: No aplica
C43: 15 | D43: No aplica
C44: 16 | D44: No aplica
C45: 17 | D45: No aplica
C46: 18 | D46: No aplica
C47: 19 | D47: No aplica
C48: 20 | D48: No aplica
A51: 5. Observaciones.
A55: Elaborado por: | B55: Giancarlo Casasola Chaves
A57: Fecha: | B57: 2014-07-03

Sheet MARCO GENERAL PLAZAS
A3: Estructura organizacional (Recursos Humanos)
A5: ='[1]MARCO GENERAL'!A5:B5 -> 1. Nombre de la institución. | C5: ='MARCO GENERAL'!D5 -> COMITÉ CANTONAL DE DEPORTES Y RECREACIÓN DE MORAVIA
A7: 2. Año | C7: ='MARCO GENERAL'!D7 -> 2014
B9: Procesos sustantivos | E9: Por programa | J9: Apoyo | N9: Por programa
A10: Nivel | B10: Sueldos para cargos fijos | C10: Servicios especiales | D10: Diferencia | E10: I | F10: II | G10: III | H10: IV | J10: Sueldos para cargos fijos | K10: Servicios especiales | M10: Diferencia | N10: I | O10: II | P10: III | Q10: IV
K11: Puestos de confianza | L11: Otros
A13: Nivel superior ejecutivo | D13: =(B13+C13)-(E13+F13+G13+H13) -> 0 | M13: =(J13+K13+L13)-(N13+O13+P13+Q13) -> 0
A15: Profesional | B15: 1 | D15: =(B15+C15)-(E15+F15+G15+H15) -> 0 | F15: 1 | M15: =(J15+K15+L15)-(N15+O15+P15+Q15) -> 0
A17: Técnico | C17: 10 | D17: =(B17+C17)-(E17+F17+G17+H17) -> 0 | F17: 10 | M17: =(J17+K17+L17)-(N17+O17+P17+Q17) -> 0
A19: Administrativo | D19: =(B19+C19)-(E19+F19+G19+H19) -> 0 | J19: 2 | M19: =(J19+K19+L19)-(N19+O19+P19+Q19) -> 0 | N19: 2
A21: De servicio | D21: =(B21+C21)-(E21+F21+G21+H21) -> 0 | J21: 5 | L21: 1 | M21: =(J21+K21+L21)-(N21+O21+P21+Q21) -> 0 | P21: 6
A23: Total | B23: =SUM(B13:B22) -> 1 | C23: =SUM(C13:C21) -> 10 | D23: =(B23+C23)-(E23+F23+G23+H23) -> 0 | E23: =SUM(E13:E21) -> 0 | F23: =SUM(F13:F21) -> 11 | G23: =SUM(G13:G21) -> 0 | H23: =SUM(H13:H21) -> 0 | J23: =SUM(J13:J21) -> 7 | K23: =SUM(K13:K21) -> 0 | L23: =SUM(L13:L21) -> 1 | M23: =(J23+K23+L23)-(N23+O23+P23+Q23) -> 0 | N23: =SUM(N13:N21) -> 2 | O23: =SUM(O13:O21) -> 0 | P23: =SUM(P13:P21) -> 6 | Q23: =SUM(Q13:Q21) -> 0
A26: RESUMEN: | F26: RESUMEN POR PROGRAMA:
A27: Plazas en sueldos para cargos fijos | C27: =B23+J23 -> 8 | F27: Programa I: Dirección y Administración General | N27: =E23+N23 -> 2
A28: Plazas en servicios especiales | C28: =C23+K23+L23 -> 11 | F28: Programa II: Servicios Comunitarios | N28: =F23+O23 -> 11
A29: Plazas en procesos sustantivos | C29: =B23+C23 -> 11 | F29: Programa III: Inversiones | N29: =G23+P23 -> 6
A30: Plazas en procesos de apoyo | C30: =J23+K23+L23 -> 8 | F30: Programa IV: Partidas específicas | N30: =H23+Q23 -> 0
A31: Total de plazas | C31: =B23+C23+J23+K23+L23 -> 19 | F31: Total de plazas | N31: =SUM(N27:N30) -> 19
A52: 3. Observaciones.
A57: Elaborado por: | B57: Giancarlo Casasola Chaves
A59: Fecha: | B59: 2014-07-03

Sheet PROGRAMA I
A1: PLAN OPERATIVO ANUAL
A2: ='MARCO GENERAL'!D5 -> COMITÉ CANTONAL DE DEPORTES Y RECREACIÓN DE MORAVIA
A3: ='MARCO GENERAL'!D7 -> 2014
A4: MATRIZ DE DESEMPEÑO PROGRAMÁTICO
A5: PROGRAMA I: DIRECCIÓN Y ADMINISTRACIÓN GENERAL
A7: MISIÓN: Desarrollar las políticas y acciones administrativas de apoyo a la gestión municipal, asi como la vigilancia, dirección y administración de los recursos de la manera más eficiente a efecto de que los programas de servicios e inversión puedan cumplir con sus cometidos.
A8: Producción relevante: Acciones Administrativas
A10: PLANIFICACIÓN ESTRATÉGICA | D10: PLANIFICACIÓN OPERATIVA ANUAL | R10: EVALUACIÓN
A11: PLAN DE DESARROLLO MUNICIPAL | B11: PROGRAMA | C11: PROYECTO | D11: OBJETIVOS DE MEJORA Y/O OPERATIVOS | E11: META | H11: INDICADOR | I11: PROGRAMACIÓN DE LA META | N11: FUNCIONARIO RESPONSABLE | O11: ACTIVIDAD | P11: ASIGNACIÓN PRESUPUESTARIA POR META | R11: GASTO REAL POR META | T11: Resultado anual del indicador de eficiencia en la ejecución de los recursos por meta | U11: Resultado anual del indicador de eficiencia en la ejecución de los recursos por meta | V11: EJECUCIÓN DE LA META | Z11: Resultado del indicador de eficacia en el cumplimiento de la metas programadas
I12: I semestre | J12: % | K12: II semestre | L12: % | M12: % de la meta a alcanzar | P12: I SEMESTRE | Q12: II SEMESTRE | R12: I SEMESTRE | S12: II SEMESTRE | V12: I Semestre | W12: % | X12: II Semestre | Y12: %
A13: AREA ESTRATÉGICA | E13: Código | F13: No. | G13: Descripción | K13: Sem | V13: Sem | X13: Sem
A14: Gestión Administrativa | D14: Pago de salarios del recurso humano necesario para el adecuado y eficiente funcionamiento del Comité. | E14: Operativo | F14: 1 | G14: Que se lleve a cabo el pago de salarios de personal administrativo, técnico y operativo que ayude a cumplir en un 100% con las actividades del Comité Cantonal de Deportes y Recreación. | H14: Contratación de empleados para el área administrativa. | I14: 0.5 | J14: =IF(OR(I14=0),0,(I14/(I14+K14))) -> 0.5 | K14: 0.5 | L14: =IF(OR(K14=0),0,(K14/(I14+K14))) -> 0.5 | M14: =J14+L14 -> 1 | N14: Junta Directiva | O14: Administración General | P14: =11861900.54/2 -> 5930950.27 | Q14: =P14 -> 5930950.27 | T14: =IF((R14+S14)=0,0,((R14+S14)/(P14+Q14))) -> 0 | U14: =IF(T14>=100%,100%,T14) -> 0 | V14: 50 | W14: =IF(V14=0,0,IF((V14/(I14+K14))>J14,J14,(V14/(I14+K14)))) -> 0.5 | Y14: =IF(X14=0,0,IF((X14/(I14+K14))>L14,L14,(X14/(I14+K14)))) -> 0 | Z14: =IF(V14+X14=0,0,IF((V14+X14)/(I14+K14)>100%,100%,(V14+X14)/(I14+K14))) -> 1
A15: Gestión Administrativa | D15: Cancelación del servicio mensual de telecomunicaciones. | E15: Operativo | F15: 2 | G15: Que se cancele mensualmente el monto correspondiente al pago por el servicio de telecomunicaciones. | H15: Recibo de pago 12 meses. | I15: 50 | J15: =IF(OR(I15=0),0,(I15/(I15+K15))) -> 0.5 | K15: 50 | L15: =IF(OR(K15=0),0,(K15/(I15+K15))) -> 0.5 | M15: =J15+L15 -> 1 | N15: Proceso Administrativo | O15: Administración General | P15: =424000/2 -> 212000 | Q15: =P15 -> 212000 | T15: =IF((R15+S15)=0,0,((R15+S15)/(P15+Q15))) -> 0 | U15: =IF(T15>=100%,100%,T15) -> 0 | V15: 50 | W15: 0.5 | Y15: 0 | Z15: 0.5
A16: Gestión Administrativa | D16: Contratación por servicios profesionales de contaduría privada para apoyar las labores de la Junta Directiva en materia financiera. | E16: Operativo | F16: 3 | G16: Contratación por servicios especiales de un profesional en contaduría privada para apoyar las labores de la Junta Directiva para facilitar los procesos técnicos en materia presupuestaria, financiera y contable. | H16: Adquisición y contratación de los servicios. | I16: 50 | J16: =IF(OR(#REF!=0),0,(#REF!/(#REF!+#REF!))) ->  | K16: 50 | L16: =IF(OR(#REF!=0),0,(#REF!/(#REF!+#REF!))) ->  | N16: Junta Directiva y Proceso Administrativo | O16: Auditoría Interna | P16: =911523.11/2 -> 455761.555 | Q16: =P16 -> 455761.555 | T16: 0 | U16: 0 | V16: 50 | W16: =IF(V16=0,0,IF((V16/(#REF!+#REF!))>J16,J16,(V16/(#REF!+#REF!)))) ->  | Y16: =IF(X16=0,0,IF((X16/(#REF!+#REF!))>L16,L16,(X16/(#REF!+#REF!)))) -> 0 | Z16: =IF(V16+X16=0,0,IF((V16+X16)/(#REF!+#REF!)>100%,100%,(V16+X16)/(#REF!+#REF!))) -> 
A17: Gestión Administrativa | D17: Publicación de la información necesaria en diarios de circulación nacional para garantizar el funcionamiento de la institución y su efectividad cuando así se requiera. | E17: Operativo | F17: 4 | G17: Publicaciones acerca de plazas vacacntes, contratación administrativa y demás actividades que la administración ocupe de su divulgación, ya sea por normativa o por necesidad para garantizar su cumplimiento efectivo y eficiente. | H17: Publicaciones en periódicos de circulación nacional. | I17: 50 | J17: =IF(OR(I16=0),0,(I16/(I16+K16))) -> 0.5 | K17: 50 | L17: =IF(OR(K16=0),0,(K16/(I16+K16))) -> 0.5 | M17: 1 | N17: Junta Directiva y Proceso Administrativo | O17: Administración General | P17: =103419.19/2 -> 51709.595 | Q17: =P17 -> 51709.595 | T17: 0 | U17: 0 | V17: 50 | W17: =IF(V17=0,0,IF((V17/(I16+K16))>J17,J17,(V17/(I16+K16)))) -> 0.5 | Y17: =IF(X17=0,0,IF((X17/(I16+K16))>L17,L17,(X17/(I16+K16)))) -> 0 | Z17: =IF(V17+X17=0,0,IF((V17+X17)/(I16+K16)>100%,100%,(V17+X17)/(I16+K16))) -> 0.5
A18: Gestión Administrativa | D18: Asegurar a los funcionarios del proceso administrativo | E18: Operativo | F18: 5 | G18: Asegurar contra los riesgos del trabajo a los funcionarios administrativos | H18: Informe de planilla mensual del INS. Recibos de pago. | J18: =IF(OR(I17=0),0,(I17/(I17+K17))) -> 0.5 | L18: =IF(OR(K17=0),0,(K17/(I17+K17))) -> 0.5 | M18: 1 | N18: Junta Directiva y Proceso Administrativo | O18: Administración General | P18: =175560/2 -> 87780 | Q18: =P18 -> 87780 | T18: 0 | U18: 0 | V18: 50 | W18: =IF(V18=0,0,IF((V18/(I17+K17))>J18,J18,(V18/(I17+K17)))) -> 0.5 | Y18: =IF(X18=0,0,IF((X18/(I17+K17))>L18,L18,(X18/(I17+K17)))) -> 0 | Z18: =IF(V18+X18=0,0,IF((V18+X18)/(I17+K17)>100%,100%,(V18+X18)/(I17+K17))) -> 0.5
J19: 0 | L19: 0 | M19: 0 | P19: 0 | Q19: 0 | T19: 0 | U19: 0 | V19: 50 | Y19: 0
J20: 0 | L20: 0 | M20: 0 | T20: 0 | U20: 0 | V20: 0 | W20: 0 | Y20: 0 | Z20: 0
J21: 0 | L21: 0 | M21: 0 | T21: 0 | U21: 0 | V21: 0 | W21: 0 | Y21: 0 | Z21: 0
J22: 0 | L22: 0 | M22: 0 | T22: 0 | U22: 0 | V22: 50 | Y22: 0
J23: 0 | L23: 0 | M23: 0 | Q23: 0 | T23: 0 | U23: 0 | V23: 0 | W23: 0 | Y23: 0 | Z23: 0
J24: 0 | L24: 0 | M24: 0 | T24: 0 | U24: 0 | W24: 0 | Y24: 0 | Z24: 0
J25: 0 | L25: 0 | M25: 0 | T25: 0 | U25: 0 | W25: 0 | Y25: 0 | Z25: 0
J26: 0 | L26: 0 | M26: 0 | T26: 0 | U26: 0 | W26: 0 | Y26: 0 | Z26: 0
J27: 0 | L27: 0 | M27: 0 | T27: 0 | U27: 0 | W27: 0 | Y27: 0 | Z27: 0
J28: 0 | L28: 0 | M28: 0 | T28: 0 | U28: 0 | W28: 0 | Y28: 0 | Z28: 0
J29: 0 | L29: 0 | M29: 0 | T29: 0 | U29: 0 | W29: 0 | Y29: 0 | Z29: 0
J30: 0 | L30: 0 | M30: 0 | T30: 0 | U30: 0 | W30: 0 | Y30: 0 | Z30: 0
J31: 0 | L31: 0 | M31: 0 | T31: 0 | U31: 0 | W31: 0 | Y31: 0 | Z31: 0
J32: 0 | L32: 0 | M32: 0 | T32: 0 | U32: 0 | W32: 0 | Y32: 0 | Z32: 0
J33: 0 | L33: 0 | M33: 0 | T33: 0 | U33: 0 | W33: 0 | Y33: 0 | Z33: 0
J34: 0 | L34: 0 | M34: 0 | T34: 0 | U34: 0 | W34: 0 | Y34: 0 | Z34: 0
J35: 0 | L35: 0 | M35: 0 | T35: 0 | U35: 0 | W35: 0 | Y35: 0 | Z35: 0
J36: 0 | L36: 0 | M36: 0 | T36: 0 | U36: 0 | W36: 0 | Y36: 0 | Z36: 0
J37: 0 | L37: 0 | M37: 0 | T37: 0 | U37: 0 | W37: 0 | Y37: 0 | Z37: 0
J38: 0 | L38: 0 | M38: 0 | T38: 0 | U38: 0 | W38: 0 | Y38: 0 | Z38: 0
J39: 0 | L39: 0 | M39: 0 | T39: 0 | U39: 0 | W39: 0 | Y39: 0 | Z39: 0
J40: 0 | L40: 0 | M40: 0 | T40: 0 | U40: 0 | W40: 0 | Y40: 0 | Z40: 0
J41: 0 | L41: 0 | M41: 0 | T41: 0 | U41: 0 | W41: 0 | Y41: 0 | Z41: 0
J42: 0 | L42: 0 | M42: 0 | T42: 0 | U42: 0 | W42: 0 | Y42: 0 | Z42: 0
J43: 0 | L43: 0 | M43: 0 | T43: 0 | U43: 0 | W43: 0 | Y43: 0 | Z43: 0
J44: 0 | L44: 0 | M44: 0 | T44: 0 | U44: 0 | W44: 0 | Y44: 0 | Z44: 0
J45: 0 | L45: 0 | M45: 0 | T45: 0 | U45: 0 | W45: 0 | Y45: 0 | Z45: 0
J46: 0 | L46: 0 | M46: 0 | T46: 0 | U46: 0 | W46: =IF(V46=0,0,IF((V46/(I46+K46))>J46,J46,(V46/(I46+K46)))) -> 0 | Y46: =IF(X46=0,0,IF((X46/(I46+K46))>L46,L46,(X46/(I46+K46)))) -> 0 | Z46: =IF(V46+X46=0,0,IF((V46+X46)/(I46+K46)>100%,100%,(V46+X46)/(I46+K46))) -> 0
J47: 0 | L47: 0 | M47: 0 | T47: 0 | U47: 0 | W47: 0 | Y47: 0 | Z47: 0
J48: 0 | L48: 0 | M48: 0 | T48: 0 | U48: 0 | W48: 0 | Y48: 0 | Z48: 0
J49: 0 | L49: 0 | M49: 0 | T49: 0 | U49: 0 | W49: 0 | Y49: 0 | Z49: 0
J50: 0 | L50: 0 | M50: 0 | T50: 0 | U50: 0 | W50: 0 | Y50: 0 | Z50: 0
J51: 0 | L51: 0 | M51: 0 | T51: 0 | U51: 0 | W51: 0 | Y51: 0 | Z51: 0
J52: 0 | L52: 0 | M52: 0 | T52: 0 | U52: 0 | W52: 0 | Y52: 0 | Z52: 0
J53: 0 | L53: 0 | M53: 0 | T53: 0 | U53: 0 | W53: 0 | Y53: 0 | Z53: 0
J54: 0 | L54: 0 | M54: 0 | T54: 0 | U54: 0 | W54: 0 | Y54: 0 | Z54: 0
J55: 0 | L55: 0 | M55: 0 | T55: 0 | U55: 0 | W55: 0 | Y55: 0 | Z55: 0
J56: 0 | L56: 0 | M56: 0 | T56: 0 | U56: 0 | W56: 0 | Y56: 0 | Z56: 0
J57: 0 | L57: 0 | M57: 0 | T57: 0 | U57: 0 | W57: 0 | Y57: 0 | Z57: 0
J58: 0 | L58: 0 | M58: 0 | T58: 0 | U58: 0 | W58: 0 | Y58: 0 | Z58: 0
J59: 0 | L59: 0 | M59: 0 | T59: 0 | U59: 0 | W59: 0 | Y59: 0 | Z59: 0
J60: 0 | L60: 0 | M60: 0 | T60: 0 | U60: 0 | W60: 0 | Y60: 0 | Z60: 0
J61: 0 | L61: 0 | M61: 0 | T61: 0 | U61: 0 | W61: 0 | Y61: 0 | Z61: 0
J62: 0 | L62: 0 | M62: 0 | T62: 0 | U62: 0 | W62: 0 | Y62: 0 | Z62: 0
J63: 0 | L63: 0 | M63: 0 | T63: 0 | U63: 0 | W63: 0 | Y63: 0 | Z63: 0
J64: 0 | L64: 0 | M64: 0 | T64: 0 | U64: 0 | W64: 0 | Y64: 0 | Z64: 0
J65: 0 | L65: 0 | M65: 0 | T65: 0 | U65: 0 | W65: 0 | Y65: 0 | Z65: 0
J66: 0 | L66: 0 | M66: 0 | T66: 0 | U66: 0 | W66: 0 | Y66: 0 | Z66: 0
J67: 0 | L67: 0 | M67: 0 | T67: 0 | U67: 0 | W67: 0 | Y67: 0 | Z67: 0
J68: 0 | L68: 0 | M68: 0 | T68: 0 | U68: 0 | W68: 0 | Y68: 0 | Z68: 0
J69: 0 | L69: 0 | M69: 0 | T69: 0 | U69: 0 | W69: 0 | Y69: 0 | Z69: 0
J70: 0 | L70: 0 | M70: 0 | T70: 0 | U70: 0 | W70: 0 | Y70: 0 | Z70: 0
J71: 0 | L71: 0 | M71: 0 | T71: 0 | U71: 0 | W71: 0 | Y71: 0 | Z71: 0
J72: 0 | L72: 0 | M72: 0 | T72: 0 | U72: 0 | W72: 0 | Y72: 0 | Z72: 0
J73: 0 | L73: 0 | M73: 0 | T73: 0 | U73: 0 | W73: 0 | Y73: 0 | Z73: 0
J74: 0 | L74: 0 | M74: 0 | T74: 0 | U74: 0 | W74: 0 | Y74: 0 | Z74: 0
J75: 0 | L75: 0 | M75: 0 | T75: 0 | U75: 0 | W75: 0 | Y75: 0 | Z75: 0
J76: 0 | L76: 0 | M76: 0 | T76: 0 | U76: 0 | W76: 0 | Y76: 0 | Z76: 0
J77: 0 | L77: 0 | M77: 0 | T77: 0 | U77: 0 | W77: 0 | Y77: 0 | Z77: 0
J78: 0 | L78: 0 | M78: 0 | T78: 0 | U78: 0 | W78: =IF(V78=0,0,IF((V78/(I78+K78))>J78,J78,(V78/(I78+K78)))) -> 0 | Y78: =IF(X78=0,0,IF((X78/(I78+K78))>L78,L78,(X78/(I78+K78)))) -> 0 | Z78: =IF(V78+X78=0,0,IF((V78+X78)/(I78+K78)>100%,100%,(V78+X78)/(I78+K78))) -> 0
J79: =IF(OR(I79=0),0,(I79/(I79+K79))) -> 0 | L79: =IF(OR(K79=0),0,(K79/(I79+K79))) -> 0 | M79: =J79+L79 -> 0 | T79: =IF((R79+S79)=0,0,((R79+S79)/(P79+Q79))) -> 0 | U79: =IF(T79>=100%,100%,T79) -> 0 | W79: 0 | Y79: 0 | Z79: 0
J80: 0 | L80: 0 | M80: 0 | T80: 0 | U80: 0 | W80: 0 | Y80: 0 | Z80: 0
J81: 0 | L81: 0 | M81: 0 | T81: 0 | U81: 0 | W81: 0 | Y81: 0 | Z81: 0
J82: 0 | L82: 0 | M82: 0 | T82: 0 | U82: 0 | W82: 0 | Y82: 0 | Z82: 0
J83: 0 | L83: 0 | M83: 0 | T83: 0 | U83: 0 | W83: 0 | Y83: 0 | Z83: 0
J84: 0 | L84: 0 | M84: 0 | T84: 0 | U84: 0 | W84: 0 | Y84: 0 | Z84: 0
M85: =J85+L85 -> 0 | T85: =IF((R85+S85)=0,0,((R85+S85)/(P85+Q85))) -> 0 | U85: =IF(T85>=100%,100%,T85) -> 0 | Z85: =(W85+Y85)/(J85+L85) -> 
D86: SUBTOTALES | J86: =SUM(J14:J85) ->  | L86: =SUM(L14:L85) ->  | M86: =SUM(M14:M85) ->  | P86: =SUM(P14:P85) -> 6738201.42 | Q86: =SUM(Q14:Q85) -> 6738201.42 | R86: =SUM(R14:R85) -> 0 | S86: =SUM(S14:S85) -> 0 | T86: =IF(R86=0,0,(R86/Q86)) -> 0 | U86: =IF(S86=0,0,(S86/R86)) -> 0 | W86: =SUM(W14:W85) ->  | Y86: =SUM(Y14:Y85) -> 0
A87: TOTAL POR PROGRAMA | J87: =IF(OR(J86=0),0,J86/M86) ->  | L87: =IF(OR(L86=0),0,L86/M86) ->  | M87: =SUM(M14:M85)/M86 ->  | W87: =IF(OR(W86=0),0,W86/M86) ->  | Y87: =IF(OR(Y86=0),0,Y86/M86) -> 0 | Z87: =W87+Y87 -> 
D88: =IF(OR(RESTRINGIDOP1!B9=0),0,RESTRINGIDOP1!B9/RESTRINGIDOP1!B8) -> 0 | E88: Metas de Objetivos de Mejora | J88: =IF(OR(D88=0),0,(RESTRINGIDOP1!C5/RESTRINGIDOP1!B9)) -> 0 | L88: =IF(OR(D88=0),0,(RESTRINGIDOP1!D5/RESTRINGIDOP1!B9)) -> 0 | M88: =(J88+L88) -> 0 | W88: =IF(OR(D88=0),0,(RESTRINGIDOP1!I5/RESTRINGIDOP1!E5)) -> 0 | Y88: =IF(OR(D88=0),0,(RESTRINGIDOP1!J5/RESTRINGIDOP1!E5)) -> 0 | Z88: =W88+Y88 -> 0
D89: =IF(OR(RESTRINGIDOP1!B10=0),0,RESTRINGIDOP1!B10/RESTRINGIDOP1!B8) ->  | E89: Metas de Objetivos Operativos | J89: =IF(OR(D89=0),0,(RESTRINGIDOP1!F5/RESTRINGIDOP1!B10)) ->  | L89: =IF(OR(D89=0),0,(RESTRINGIDOP1!G5/RESTRINGIDOP1!B10)) ->  | M89: =J89+L89 ->  | W89: =IF(OR(D89=0),0,(RESTRINGIDOP1!L5/RESTRINGIDOP1!B10)) ->  | Y89: =IF(OR(D89=0),0,(RESTRINGIDOP1!M5/RESTRINGIDOP1!B10)) ->  | Z89: =W89+Y89 -> 
D90: =M86 ->  | E90: Metas formuladas para el programa
A92: Mejora
A93: Operativo
A94: Administración General
A95: Auditoría Interna
A96: Administración de Inversiones Propias
A97: Registro de deuda, fondos y aportes
A98: ='MARCO GENERAL'!D29 -> Gestión Deportiva
A99: ='MARCO GENERAL'!D30 -> Gestión Recreativa
A100: ='MARCO GENERAL'!D31 -> Gestión de Inversión y Obras
A101: ='MARCO GENERAL'!D32 -> Gestión de Capacitación y Becas
A102: ='MARCO GENERAL'!D33 -> Gestión Comunitaria
A103: ='MARCO GENERAL'!D34 -> Gestión Administrativa
A104: ='MARCO GENERAL'!D35 -> Gestión de Inclusión Social
A105: ='MARCO GENERAL'!D36 -> No aplica
A106: ='MARCO GENERAL'!D37 -> No aplica
A107: ='MARCO GENERAL'!D38 -> No aplica
A108: ='MARCO GENERAL'!D39 -> No aplica
A109: ='MARCO GENERAL'!D40 -> No aplica
A110: ='MARCO GENERAL'!D41 -> No aplica
A111: ='MARCO GENERAL'!D42 -> No aplica
A112: ='MARCO GENERAL'!D43 -> No aplica
A113: ='MARCO GENERAL'!D44 -> No aplica
A114: ='MARCO GENERAL'!D45 -> No aplica
A115: ='MARCO GENERAL'!D46 -> No aplica
A116: ='MARCO GENERAL'!D47 -> No aplica
A117: ='MARCO GENERAL'!D48 -> No aplica

Sheet PROGRAMA II
A1: ='PROGRAMA I'!A1 -> PLAN OPERATIVO ANUAL
A2: ='PROGRAMA I'!A2 -> COMITÉ CANTONAL DE DEPORTES Y RECREACIÓN DE MORAVIA
A3: ='PROGRAMA I'!A3 -> 2014
A4: MATRIZ DE DESEMPEÑO PROGRAMÁTICO
A5: PROGRAMA II: SERVICIOS COMUNITARIOS
A7: MISIÓN: Brindar servicios a la comunidad con el fin de satisfacer sus necesidades.
A9: Producción final: Servicios comunitarios
A11: PLANIFICACIÓN ESTRATÉGICA | D11: PLANIFICACIÓN OPERATIVA | S11: EVALUACIÓN
A12: PLAN DE DESARROLLO MUNICIPAL | B12: PROGRAMA | C12: PROYECTO | D12: OBJETIVOS DE MEJORA Y/O OPERATIVOS | E12: META | H12: INDICADOR | I12: PROGRAMACIÓN DE LA META | N12: FUNCIONARIO RESPONSABLE | O12: SERVICIOS | Q12: ASIGNACIÓN PRESUPUESTARIA POR META | S12: GASTO REAL POR META | U12: Resultado del indicador de eficiencia en la ejecución de los recursos por meta | V12: Resultado anual del indicador de eficiencia en la ejecución de los recursos por meta | W12: EJECUCIÓN DE LA META | AA12: Resultado del indicador de eficacia en el cumplimiento de la metas programadas
I13: I Semestre | J13: % | K13: II Semestre | L13: % | M13: % de la meta a alcanzar | P13: División de servicios | Q13: I SEMESTRE | R13: II SEMESTRE | S13: I SEMESTRE | T13: II SEMESTRE | W13: I semestre | X13: % | Y13: II semestre | Z13: %
A14: AREA ESTRATÉGICA | E14: Código | F14: No. | G14: Descripción | I14: Sem | K14: Sem | P14: 09 - 31 | W14: Sem | Y14: Sem
A15: Gestión Administrativa | D15: Contratar el recurso humano necesario para el adecuado y eficiente funcionamiento del Comité. | E15: Mejora | F15: 1 | G15: Que se lleve a cabo la contratación de personal técnico y profesional que ayude a cumplir en un 100% con las actividades del Comité Cantonal de Deportes y Recreación en materia deportiva. | H15: Contratación de funcionarios. | I15: 50 | J15: =IF(OR(I15=0),0,(I15/(I15+K15))) -> 0.5 | K15: 50 | L15: =IF(OR(K15=0),0,(K15/(I15+K15))) -> 0.5 | M15: =J15+L15 -> 1 | N15: Junta Directiva | O15: 09 Educativos, culturales y deportivos | P15: Deportivos | Q15: =35715388.57/2 -> 17857694.29 | R15: =Q15 -> 17857694.29 | U15: =IF((S15+T15)=0,0,((S15+T15)/(Q15+R15))) -> 0 | V15: =IF(U15>=100%,100%,U15) -> 0 | W15: 50 | X15: =IF(W15=0,0,IF((W15/(I15+K15))>J15,J15,(W15/(I15+K15)))) -> 0.5 | Z15: =IF(Y15=0,0,IF((Y15/(I15+K15))>L15,L15,(Y15/(I15+K15)))) -> 0 | AA15: =IF(W15+Y15=0,0,IF((W15+Y15)/(I15+K15)>100%,100%,(W15+Y15)/(I15+K15))) -> 0.5
A16: Gestión Administrativa | D16: Crear campañas publicitarias e informativas sobre los procesos deportivos y recreativos que desarrolla el Comité. | E16: Mejora | F16: 2 | G16: Desarrollo de banners, rótulos, afiches, entre otros que ayuden a orientar al público hacia los programas que desarrolla el Comité en materia deportiva y recreativa. | H16: 2 campañas publicitarias, compra de rótulos y elaboración de afiches o banner. | I16: 50 | J16: =IF(OR(I16=0),0,(I16/(I16+K16))) -> 0.5 | K16: 50 | L16: =IF(OR(K16=0),0,(K16/(I16+K16))) -> 0.5 | M16: =J16+L16 -> 1 | N16: Junta Directiva, Proceso Administrativo, Comisión de Relaciones Públicas y Capacitación. | O16: 09 Educativos, culturales y deportivos | P16: Deportivos | Q16: =1969960.3/2 -> 984980.15 | R16: =Q16 -> 984980.15 | U16: =IF((S16+T16)=0,0,((S16+T16)/(Q16+R16))) -> 0 | V16: =IF(U16>=100%,100%,U16) -> 0 | W16: 50 | X16: 0.5 | Z16: 0 | AA16: 0.5
A17: Gestión Deportiva | D17: Creación de Escuelas Deportivas. | E17: Mejora | F17: 3 | G17: Formación de escuelas deportivas que incluya distintas disciplinas. | H17: Al menos 5 escuelas deportivas. | I17: 50 | J17: 0.5 | K17: 50 | L17: 0.5 | M17: 1 | N17: Coordinador Deportivo | O17: 09 Educativos, culturales y deportivos | P17: Deportivos | Q17: =3500000/2 -> 1750000 | R17: =Q17 -> 1750000 | U17: 0 | V17: 0 | W17: 50 | X17: 0.5 | Z17: 0 | AA17: 0.5
A18: Gestión Deportiva | D18: Mejorar la participación en Juegos Deportivos Nacionales. | E18: Mejora | F18: 4 | G18: Diseño de planes estratégicos para el mejoramiento de la participación moraviana en Juegos Deportivos Nacionales | H18: Planeamiento Estratégico JDN: Plan de Participación en justas nacionales. | I18: 50 | J18: 0.5 | K18: 50 | L18: 0.5 | M18: 1 | N18: Junta Directiva, Proceso Deportivo y Comisión de Juegos Deportivos Nacionales | O18: 09 Educativos, culturales y deportivos | P18: Deportivos | Q18: =1500000/2 -> 750000 | R18: =Q18 -> 750000 | U18: 0 | V18: 0 | W18: 50 | X18: 0.5 | Z18: 0 | AA18: 0.5
A19: Gestión Deportiva | D19: Contratación de los servicios profesionales en el área de salud para el apoyo a los atletas. | E19: Mejora | F19: 5 | G19: Contratar un fisioterapeuta y un nutricionista para la atención de atletas de alta competición. | H19: Contratación de dos profesionales. | I19: 50 | J19: 0.5 | K19: 50 | L19: 0.5 | M19: 1 | N19: Junta Directiva, Proceso Administrativo y Proceso Deportivo | O19: 09 Educativos, culturales y deportivos | P19: Deportivos | Q19: =500000/2 -> 250000 | R19: =Q19 -> 250000 | U19: 0 | V19: 0 | W19: 0 | X19: 0 | Z19: 0 | AA19: 0
A20: Gestión Administrativa | D20: Compra de medicamentos para atletas | E20: Mejora | F20: 6 | G20: compra d emediacemntos para atletas (botiquines portátiles con todos los farmaceúticos básicos en caso de algún inconveniente) | H20: Liquidación de los servicios brindados. | I20: 50 | J20: 0.5 | K20: 50 | L20: 0.5 | M20: 1 | N20: Proceso Deportivo | O20: 09 Educativos, culturales y deportivos | P20: Deportivos | Q20: =400000/2 -> 200000 | R20: =Q20 -> 200000 | U20: 0 | V20: 0 | W20: 0 | X20: 0 | Z20: 0 | AA20: 0
A21: Gestión Comunitaria | D21: Colaborar con los Comités Comunales, Agrupaciones Deportivas y Asociaciones inscritas en sus gestiones administrativas. | E21: Mejora | F21: 7 | G21: Servir de apoyo a las gestiones administrativas de los Comités Comunales, Agrupaciones Deportivas y Asociaciones inscritas en la medida de las posibilidades del Comité. | H21: Capacitación a comunidades organizadas. | I21: 50 | J21: 0.5 | K21: 50 | L21: 0.5 | M21: 1 | N21: Junta Directiva, Proceso Administrativo, Proceso Operativo y Proceso Deportivo. | O21: 09 Educativos, culturales y deportivos | P21: Otros | Q21: =600000/2 -> 300000 | R21: 300000 | U21: 0 | V21: 0 | X21: 0 | Z21: 0 | AA21: 0
A22: Gestión Comunitaria | D22: Formular programas de salud comunitaria en coordinación con entes del ramo. | E22: Mejora | F22: 8 | G22: Crear programas y ferias de promoción de la salud en las comunidades, en coordinación con la CCSS, Ministerio de Salud, EBAIS, hospitales y demás. | H22: Programas de salud. | I22: 50 | J22: 0.5 | K22: 50 | L22: 0.5 | M22: 1 | N22: Proceso Deportivo | O22: 09 Educativos, culturales y deportivos | P22: Centros y programas de salud | Q22: =100000/2 -> 50000 | R22: 50000 | U22: =IF((S22+T22)=0,0,((S22+T22)/(#REF!+#REF!))) -> 0 | V22: 0 | W22: 50 | X22: 0.5 | Z22: 0 | AA22: 0.5
A23: Gestión Recreativa | D23: Realizar caminatas y carreras moravianas. | E23: Operativo | F23: 9 | G23: Realización de caminatas y carreras moravianas con motivos que promuevan el deporte, la salud y la recreación. | H23: Proceso Recreativo. | I23: 50 | J23: 0.5 | K23: 50 | L23: 0.5 | M23: 1 | N23: Proceso Deportivo | O23: 09 Educativos, culturales y deportivos | P23: Deportivos | Q23: 50000 | R23: 50000 | U23: =IF((S23+T23)=0,0,((S23+T23)/(Q22+R22))) -> 0 | V23: 0 | W23: 0 | X23: 0 | Z23: 0 | AA23: 0
A24: Gestión de Inclusión Social | D24: Desarrollar programas y actividades inclusivas. | E24: Operativo | F24: 10 | G24: Desarrollo de programas recreativos de estimulación temprana para niños de 0 a 5 años. | H24: Programas Recreativos. | I24: 50 | J24: 0.5 | K24: 50 | L24: 0.5 | M24: 1 | N24: Proceso Deportivo | O24: 09 Educativos, culturales y deportivos | P24: Deportivos | Q24: 15000 | R24: 15000 | U24: =IF((S24+T24)=0,0,((S24+T24)/(Q23+R23))) -> 0 | V24: 0 | W24: 50 | X24: 0.5 | Z24: 0 | AA24: 0.5
A25: Gestión de Inclusión Social | D25: Proyectos infantiles. | E25: Operativo | F25: 11 | G25: Desarrollo de programas recreativos de estímulo de destrezas para niños de 6 a 12 años. | H25: Programas Recreativos. | I25: 50 | J25: 0.5 | K25: 50 | L25: 0.5 | M25: 1 | N25: Proceso Deportivo | O25: 09 Educativos, culturales y deportivos | P25: Deportivos | Q25: =66666.66/2 -> 33333.33 | R25: =Q25 -> 33333.33 | U25: =IF((S25+T25)=0,0,((S25+T25)/(Q24+R24))) -> 0 | V25: 0 | W25: 50 | X25: 0.5 | Z25: 0 | AA25: 0.5
A26: Gestión de Inclusión Social | D26: Proyectos para el adulto mayor. | E26: Operativo | F26: 12 | G26: Impulso de actividades recreativas para el adulto mayor. | H26: Población Adulta Mayor. | I26: 50 | J26: 0.5 | K26: 50 | L26: 0.5 | M26: 1 | N26: Proceso Deportivo | O26: 09 Educativos, culturales y deportivos | P26: Deportivos | Q26: =66666.66/2 -> 33333.33 | R26: =Q26 -> 33333.33 | U26: =IF((S26+T26)=0,0,((S26+T26)/(Q25+R25))) -> 0 | V26: 0 | W26: 50 | X26: 0.5 | Z26: 0 | AA26: 0.5
A27: Gestión de Inclusión Social | D27: Proyectos para personas discapacitadas. | E27: Operativo | F27: 13 | G27: Creación de programas de recreación para personas con capacidades especiales. | H27: Población con Capacidades Especiales. | I27: 50 | J27: 0.5 | K27: 50 | L27: 0.5 | M27: 1 | N27: Proceso Deportivo y Olimpiadas Especiales | O27: 09 Educativos, culturales y deportivos | P27: Deportivos | Q27: 33333.33 | R27: 33333.33 | U27: =IF((S27+T27)=0,0,((S27+T27)/(Q26+R26))) -> 0 | V27: 0 | W27: 50 | X27: 0.5 | Z27: 0 | AA27: 0.5
A28: Gestión Comunitaria | D28: Recuperar las áreas verdes, deportivas y recreativas desde una perspectiva integral del dominio público, de conformidad con el Plan de Desarrollo Municipal | E28: Operativo | F28: 14 | G28: Que se lleve a cabo un diagnóstico de las áreas deportivas y recreativas de los tres distritos del cantón de Moravia para ver sus debilidades y requerimientos. | H28: Diagnóstico escrito. | I28: 50 | J28: 0.5 | K28: 50 | L28: 0.5 | M28: 1 | N28: Proceso Deportivo | O28: 09 Educativos, culturales y deportivos | P28: Deportivos | Q28: =200000/2 -> 100000 | R28: =Q28 -> 100000 | U28: =IF((S28+T28)=0,0,((S28+T28)/(Q27+R27))) -> 0 | V28: 0 | W28: 50 | X28: 0.5 | Z28: 0 | AA28: 0.5
A29: Gestión de Capacitación y Becas | D29: Fomular un plan de capacitación a fin de desarrollar capacidades en las áreas deportiva, recreativa, administrativa y de promoción de la salud. | E29: Mejora | F29: 15 | G29: Que se formulen talleres, capacitaciones, cursos, tertulias, conversatorios y demás para la creación de un plan anual de capacitación. | H29: Al menos 2 talleres, 5 capacitaciones y 1 seminario. | I29: 50 | J29: 0.5 | K29: 50 | L29: 0.5 | M29: 1 | N29: Comisión de Relaciones Públicas y Capacitación | O29: 09 Educativos, culturales y deportivos | P29: Deportivos | Q29: =800000/2 -> 400000 | R29: =Q29 -> 400000 | U29: =IF((S29+T29)=0,0,((S29+T29)/(Q28+R28))) -> 0 | V29: 0 | W29: 0 | X29: 0 | Z29: 0 | AA29: 0
A30: Gestión de Capacitación y Becas | D30: Desarrollar un proceso de participación ciudadana inclusiva. | E30: Operativo | F30: 16 | G30: Otorgamiento de becas y estímulos en especie o efectivo a deportivas destacados del cantón o personas que demuestren capacidad y compromiso con los objetivos del Comité. | H30: Otorgamiento de al menos 25 becas anuales. | I30: 50 | J30: 0.5 | K30: 50 | L30: 0.5 | M30: 1 | N30: Junta Directiva, Proceso Deportivo y Comisión Especial de Becas | O30: 09 Educativos, culturales y deportivos | P30: Deportivos | Q30: =1250000/2 -> 625000 | R30: =Q30 -> 625000 | U30: =IF((S30+T30)=0,0,((S30+T30)/(Q29+R29))) -> 0 | V30: 0 | W30: 0 | X30: 0 | Z30: 0 | AA30: 0
A31: Gestión Deportiva | D31: Adquisición de equipo deportivo y recreativo. | E31: Mejora | F31: 17 | G31: Compra de materiales y bienes deportivos y recreativos que fomenten las capacidades de los habitantes del cantón. | H31: Adquisición de bienes y consecusión de actividades de capacitación, al menos 6 anuales. | I31: 50 | J31: 0.5 | K31: 50 | L31: 0.5 | M31: 1 | N31: Junta Directiva, Proceso Administrativo y Proceso Deportivo | O31: 09 Educativos, culturales y deportivos | P31: Deportivos | Q31: =2500000/2 -> 1250000 | R31: =Q31 -> 1250000 | U31: =IF((S31+T31)=0,0,((S31+T31)/(Q30+R30))) -> 0 | V31: 0 | W31: 1 | X31: 0.01 | Z31: 0 | AA31: 0.01
A32: Gestión Deportiva | D32: Brindar facilidades de transporte, viáticos y apoyo logístico a las distintas delegaciones de atletas. | E32: Operativo | F32: 18 | G32: Apoyar las labores logísiticas de participación de atletas en competencias nacionales deportivas y recreativas. | H32: Servicio brindado. | I32: 50 | J32: 0.5 | K32: 50 | L32: 0.5 | M32: 1 | N32: Proceso Deportivo y Proceso Administrativo | O32: 09 Educativos, culturales y deportivos | P32: Deportivos | Q32: =4000000/2 -> 2000000 | R32: =Q32 -> 2000000 | U32: =IF((S32+T32)=0,0,((S32+T32)/(Q31+R31))) -> 0 | V32: 0 | W32: 0 | X32: 0 | Z32: 0 | AA32: 0
A33: Gestión Deportiva | D33: Aquisición de uniformes deportivos. | E33: Operativo | F33: 19 | G33: Compra de textiles y vestuario para la participación e identificación de atletas. | H33: Acuerdo de Junta Directiva, Proceso de contratación administrativa y uniformes para los atletas. | I33: 50 | J33: =IF(OR(#REF!=0),0,(#REF!/(#REF!+#REF!))) ->  | K33: 50 | L33: =IF(OR(#REF!=0),0,(#REF!/(#REF!+#REF!))) ->  | N33: Junta directiva, proceso deportivo y proceso adminsitrativo | O33: 09 Educativos, culturales y deportivos | P33: Deportivos | Q33: =8000000/2 -> 4000000 | R33: =Q33 -> 4000000 | U33: =IF((S33+T33)=0,0,((S33+T33)/(Q32+R32))) -> 0 | V33: 0 | W33: 50 | X33: =IF(W33=0,0,IF((W33/(#REF!+#REF!))>J33,J33,(W33/(#REF!+#REF!)))) ->  | Z33: =IF(Y33=0,0,IF((Y33/(#REF!+#REF!))>L33,L33,(Y33/(#REF!+#REF!)))) -> 0 | AA33: =IF(W33+Y33=0,0,IF((W33+Y33)/(#REF!+#REF!)>100%,100%,(W33+Y33)/(#REF!+#REF!))) -> 
A34: Gestión Deportiva | D34: Cubrir con seguro contra riegos del trabajo a funcionarios del proceso deportivo. | E34: Mejora | F34: 20 | G34: Cobertura de seguros contra riesgos del trabajo a funcionarios | H34: informe de planilla del INS. Recibo d epago. | I34: 50 | J34: =IF(OR(#REF!=0),0,(#REF!/(#REF!+#REF!))) ->  | K34: 50 | L34: =IF(OR(#REF!=0),0,(#REF!/(#REF!+#REF!))) ->  | N34: Junta Directiva, Proceso Administrativo y Proceso Deportivo | O34: 09 Educativos, culturales y deportivos | P34: Deportivos | Q34: =965580/2 -> 482790 | R34: =Q34 -> 482790 | U34: =IF((S34+T34)=0,0,((S34+T34)/(Q33+R33))) -> 0 | V34: 0 | W34: 50 | X34: =IF(W34=0,0,IF((W34/(#REF!+#REF!))>J34,J34,(W34/(#REF!+#REF!)))) ->  | Z34: =IF(Y34=0,0,IF((Y34/(#REF!+#REF!))>L34,L34,(Y34/(#REF!+#REF!)))) -> 0 | AA34: =IF(W34+Y34=0,0,IF((W34+Y34)/(#REF!+#REF!)>100%,100%,(W34+Y34)/(#REF!+#REF!))) -> 
A35: Gestión de Capacitación y Becas | D35: Brindar becas a funcionarios en materia deportiva | E35: Mejora | F35: 21 | G35: Brindar becas a funcionaros del proceso deportivo en su disciplina | H35: transferencia. | I35: 50 | J35: =IF(OR(#REF!=0),0,(#REF!/(#REF!+#REF!))) ->  | K35: 50 | L35: =IF(OR(#REF!=0),0,(#REF!/(#REF!+#REF!))) ->  | N35: Junta Directiva, Proceso Administrativo y Proceso Deportivo | O35: 09 Educativos, culturales y deportivos | P35: Deportivos | Q35: =200000/2 -> 100000 | R35: =Q35 -> 100000 | U35: =IF((S35+T35)=0,0,((S35+T35)/(Q34+R34))) -> 0 | V35: 0 | W35: 50 | X35: =IF(W35=0,0,IF((W35/(#REF!+#REF!))>J35,J35,(W35/(#REF!+#REF!)))) ->  | Z35: =IF(Y35=0,0,IF((Y35/(#REF!+#REF!))>L35,L35,(Y35/(#REF!+#REF!)))) -> 0 | AA35: =IF(W35+Y35=0,0,IF((W35+Y35)/(#REF!+#REF!)>100%,100%,(W35+Y35)/(#REF!+#REF!))) -> 
J36: 0 | L36: 0 | M36: 0 | U36: 0 | V36: 0 | W36: 0 | X36: 0 | Z36: 0 | AA36: 0
J37: 0 | L37: 0 | M37: 0 | U37: 0 | V37: 0 | W37: 100 | Z37: 0
J38: 0 | L38: 0 | M38: 0 | U38: 0 | V38: 0 | X38: 0 | Z38: 0 | AA38: 0
J39: 0 | L39: 0 | M39: 0 | U39: 0 | V39: 0 | X39: 0 | Z39: 0 | AA39: 0
J40: 0 | L40: 0 | M40: 0 | U40: 0 | V40: 0 | X40: 0 | Z40: 0 | AA40: 0
J41: 0 | L41: 0 | M41: 0 | U41: 0 | V41: 0 | X41: 0 | Z41: 0 | AA41: 0
J42: 0 | L42: 0 | M42: 0 | U42: 0 | V42: 0 | X42: 0 | Z42: 0 | AA42: 0
J43: 0 | L43: 0 | M43: 0 | U43: 0 | V43: 0 | X43: 0 | Z43: 0 | AA43: 0
J44: 0 | L44: 0 | M44: 0 | U44: 0 | V44: 0 | X44: 0 | Z44: 0 | AA44: 0
J45: 0 | L45: 0 | M45: 0 | U45: 0 | V45: 0 | X45: 0 | Z45: 0 | AA45: 0
J46: 0 | L46: 0 | M46: 0 | U46: 0 | V46: 0 | X46: 0 | Z46: 0 | AA46: 0
J47: 0 | L47: 0 | M47: 0 | U47: 0 | V47: 0 | X47: =IF(W47=0,0,IF((W47/(I47+K47))>J47,J47,(W47/(I47+K47)))) -> 0 | Z47: =IF(Y47=0,0,IF((Y47/(I47+K47))>L47,L47,(Y47/(I47+K47)))) -> 0 | AA47: =IF(W47+Y47=0,0,IF((W47+Y47)/(I47+K47)>100%,100%,(W47+Y47)/(I47+K47))) -> 0
J48: 0 | L48: 0 | M48: 0 | U48: 0 | V48: 0 | X48: 0 | Z48: 0 | AA48: 0
J49: 0 | L49: 0 | M49: 0 | U49: 0 | V49: 0 | X49: 0 | Z49: 0 | AA49: 0
J50: 0 | L50: 0 | M50: 0 | U50: 0 | V50: 0 | X50: 0 | Z50: 0 | AA50: 0
J51: 0 | L51: 0 | M51: 0 | U51: 0 | V51: 0 | X51: 0 | Z51: 0 | AA51: 0
J52: 0 | L52: 0 | M52: 0 | U52: 0 | V52: 0 | X52: 0 | Z52: 0 | AA52: 0
J53: 0 | L53: 0 | M53: 0 | U53: 0 | V53: 0 | X53: 0 | Z53: 0 | AA53: 0
J54: 0 | L54: 0 | M54: 0 | U54: 0 | V54: 0 | X54: 0 | Z54: 0 | AA54: 0
J55: 0 | L55: 0 | M55: 0 | U55: 0 | V55: 0 | X55: 0 | Z55: 0 | AA55: 0
J56: 0 | L56: 0 | M56: 0 | U56: 0 | V56: 0 | X56: 0 | Z56: 0 | AA56: 0
J57: 0 | L57: 0 | M57: 0 | U57: 0 | V57: 0 | X57: 0 | Z57: 0 | AA57: 0
J58: 0 | L58: 0 | M58: 0 | U58: 0 | V58: 0 | X58: 0 | Z58: 0 | AA58: 0
J59: 0 | L59: 0 | M59: 0 | U59: 0 | V59: 0 | X59: 0 | Z59: 0 | AA59: 0
J60: 0 | L60: 0 | M60: 0 | U60: 0 | V60: 0 | X60: 0 | Z60: 0 | AA60: 0
J61: 0 | L61: 0 | M61: 0 | U61: 0 | V61: 0 | X61: 0 | Z61: 0 | AA61: 0
J62: 0 | L62: 0 | M62: 0 | U62: 0 | V62: 0 | X62: 0 | Z62: 0 | AA62: 0
J63: 0 | L63: 0 | M63: 0 | U63: 0 | V63: 0 | X63: 0 | Z63: 0 | AA63: 0
J64: 0 | L64: 0 | M64: 0 | U64: 0 | V64: 0 | X64: 0 | Z64: 0 | AA64: 0
J65: 0 | L65: 0 | M65: 0 | U65: 0 | V65: 0 | X65: 0 | Z65: 0 | AA65: 0
J66: 0 | L66: 0 | M66: 0 | U66: 0 | V66: 0 | X66: 0 | Z66: 0 | AA66: 0
J67: 0 | L67: 0 | M67: 0 | U67: 0 | V67: 0 | X67: 0 | Z67: 0 | AA67: 0
J68: 0 | L68: 0 | M68: 0 | U68: 0 | V68: 0 | X68: 0 | Z68: 0 | AA68: 0
J69: 0 | L69: 0 | M69: 0 | U69: 0 | V69: 0 | X69: 0 | Z69: 0 | AA69: 0
J70: 0 | L70: 0 | M70: 0 | U70: 0 | V70: 0 | X70: 0 | Z70: 0 | AA70: 0
J71: 0 | L71: 0 | M71: 0 | U71: 0 | V71: 0 | X71: 0 | Z71: 0 | AA71: 0
J72: 0 | L72: 0 | M72: 0 | U72: 0 | V72: 0 | X72: 0 | Z72: 0 | AA72: 0
J73: 0 | L73: 0 | M73: 0 | U73: 0 | V73: 0 | X73: 0 | Z73: 0 | AA73: 0
J74: 0 | L74: 0 | M74: 0 | U74: 0 | V74: 0 | X74: 0 | Z74: 0 | AA74: 0
J75: 0 | L75: 0 | M75: 0 | U75: 0 | V75: 0 | X75: 0 | Z75: 0 | AA75: 0
J76: 0 | L76: 0 | M76: 0 | U76: 0 | V76: 0 | X76: 0 | Z76: 0 | AA76: 0
J77: 0 | L77: 0 | M77: 0 | U77: 0 | V77: 0 | X77: 0 | Z77: 0 | AA77: 0
J78: 0 | L78: 0 | M78: 0 | U78: 0 | V78: 0 | X78: 0 | Z78: 0 | AA78: 0
J79: 0 | L79: 0 | M79: 0 | U79: 0 | V79: 0 | X79: =IF(W79=0,0,IF((W79/(I79+K79))>J79,J79,(W79/(I79+K79)))) -> 0 | Z79: =IF(Y79=0,0,IF((Y79/(I79+K79))>L79,L79,(Y79/(I79+K79)))) -> 0 | AA79: =IF(W79+Y79=0,0,IF((W79+Y79)/(I79+K79)>100%,100%,(W79+Y79)/(I79+K79))) -> 0
J80: =IF(OR(I80=0),0,(I80/(I80+K80))) -> 0 | L80: =IF(OR(K80=0),0,(K80/(I80+K80))) -> 0 | M80: =J80+L80 -> 0 | U80: =IF((S80+T80)=0,0,((S80+T80)/(Q80+R80))) -> 0 | V80: =IF(U80>=100%,100%,U80) -> 0 | X80: 0 | Z80: 0 | AA80: 0
J81: 0 | L81: 0 | M81: 0 | U81: 0 | V81: 0 | X81: 0 | Z81: 0 | AA81: 0
J82: 0 | L82: 0 | M82: 0 | U82: 0 | V82: 0 | X82: 0 | Z82: 0 | AA82: 0
J83: 0 | L83: 0 | M83: 0 | U83: 0 | V83: 0 | X83: 0 | Z83: 0 | AA83: 0
J84: 0 | L84: 0 | M84: 0 | U84: 0 | V84: 0 | X84: 0 | Z84: 0 | AA84: 0
J85: 0 | L85: 0 | M85: 0 | U85: 0 | V85: 0 | X85: 0 | Z85: 0 | AA85: 0
J86: 0 | L86: 0 | M86: 0 | U86: 0 | V86: 0 | X86: 0 | Z86: 0 | AA86: 0
J87: 0 | L87: 0 | M87: 0 | U87: 0 | V87: 0 | X87: 0 | Z87: 0 | AA87: 0
J88: 0 | L88: 0 | M88: 0 | U88: 0 | V88: 0 | X88: 0 | Z88: 0 | AA88: 0
J89: 0 | L89: 0 | M89: 0 | U89: 0 | V89: 0 | X89: 0 | Z89: 0 | AA89: 0
J90: 0 | L90: 0 | M90: 0 | U90: 0 | V90: 0 | X90: 0 | Z90: 0 | AA90: 0
J91: 0 | L91: 0 | M91: 0 | U91: 0 | V91: 0 | X91: 0 | Z91: 0 | AA91: 0
J92: 0 | L92: 0 | M92: 0 | U92: 0 | V92: 0 | X92: 0 | Z92: 0 | AA92: 0
J93: 0 | L93: 0 | M93: 0 | U93: 0 | V93: 0 | X93: 0 | Z93: 0 | AA93: 0
J94: 0 | L94: 0 | M94: 0 | U94: 0 | V94: 0 | X94: 0 | Z94: 0 | AA94: 0
J95: 0 | L95: 0 | M95: 0 | U95: 0 | V95: 0 | X95: 0 | Z95: 0 | AA95: 0
J96: 0 | L96: 0 | M96: 0 | U96: 0 | V96: 0 | X96: 0 | Z96: 0 | AA96: 0
J97: 0 | L97: 0 | M97: 0 | U97: 0 | V97: 0 | X97: 0 | Z97: 0 | AA97: 0
J98: 0 | L98: 0 | M98: 0 | U98: 0 | V98: 0 | X98: 0 | Z98: 0 | AA98: 0
J99: 0 | L99: 0 | M99: 0 | U99: 0 | V99: 0 | X99: 0 | Z99: 0 | AA99: 0
J100: 0 | L100: 0 | M100: 0 | U100: 0 | V100: 0 | X100: 0 | Z100: 0 | AA100: 0
J101: =IF(OR(I101=0),0,(I101/(I101+K101))) -> 0 | L101: =IF(OR(K101=0),0,(K101/(I101+K101))) -> 0 | M101: =J101+L101 -> 0 | U101: 0 | V101: 0 | X101: 0 | Z101: 0 | AA101: 0
J102: 0 | L102: 0 | M102: 0 | U102: 0 | V102: 0 | X102: 0 | Z102: 0 | AA102: 0
J103: 0 | L103: 0 | M103: 0 | U103: 0 | V103: 0 | X103: 0 | Z103: 0 | AA103: 0
J104: 0 | L104: 0 | M104: 0 | U104: 0 | V104: 0 | X104: 0 | Z104: 0 | AA104: 0
J105: 0 | L105: 0 | M105: 0 | U105: 0 | V105: 0 | X105: 0 | Z105: 0 | AA105: 0
J106: 0 | L106: 0 | M106: 0 | U106: 0 | V106: 0 | X106: 0 | Z106: 0 | AA106: 0
J107: 0 | L107: 0 | M107: 0 | U107: 0 | V107: 0 | X107: 0 | Z107: 0 | AA107: 0
J108: 0 | L108: 0 | M108: 0 | U108: 0 | V108: 0 | X108: 0 | Z108: 0 | AA108: 0
J109: 0 | L109: 0 | M109: 0 | U109: 0 | V109: 0 | X109: 0 | Z109: 0 | AA109: 0
J110: 0 | L110: 0 | M110: 0 | U110: 0 | V110: 0 | X110: 0 | Z110: 0 | AA110: 0
J111: 0 | L111: 0 | M111: 0 | U111: 0 | V111: 0 | X111: =IF(W111=0,0,IF((W111/(I111+K111))>J111,J111,(W111/(I111+K111)))) -> 0 | Z111: =IF(Y111=0,0,IF((Y111/(I111+K111))>L111,L111,(Y111/(I111+K111)))) -> 0 | AA111: =IF(W111+Y111=0,0,IF((W111+Y111)/(I111+K111)>100%,100%,(W111+Y111)/(I111+K111))) -> 0
J112: 0 | L112: 0 | M112: 0 | U112: 0 | V112: 0 | X112: 0 | Z112: 0 | AA112: 0
J113: 0 | L113: 0 | M113: 0 | U113: 0 | V113: 0 | X113: 0 | Z113: 0 | AA113: 0
J114: 0 | L114: 0 | M114: 0 | U114: 0 | V114: 0 | X114: 0 | Z114: 0 | AA114: 0
J115: 0 | L115: 0 | M115: 0 | U115: 0 | V115: 0 | X115: 0 | Z115: 0 | AA115: 0
J116: 0 | L116: 0 | M116: 0 | U116: 0 | V116: 0 | X116: 0 | Z116: 0 | AA116: 0
J117: 0 | L117: 0 | M117: 0 | U117: 0 | V117: 0 | X117: 0 | Z117: 0 | AA117: 0
J118: 0 | L118: 0 | M118: 0 | U118: 0 | V118: 0 | X118: 0 | Z118: 0 | AA118: 0
J119: 0 | L119: 0 | M119: 0 | U119: 0 | V119: 0 | X119: 0 | Z119: 0 | AA119: 0
J120: 0 | L120: 0 | M120: 0 | U120: 0 | V120: 0 | X120: 0 | Z120: 0 | AA120: 0
J121: 0 | L121: 0 | M121: 0 | U121: 0 | V121: 0 | X121: 0 | Z121: 0 | AA121: 0
J122: 0 | L122: 0 | M122: 0 | U122: 0 | V122: 0 | X122: 0 | Z122: 0 | AA122: 0
J123: 0 | L123: 0 | M123: 0 | U123: 0 | V123: 0 | X123: 0 | Z123: 0 | AA123: 0
J124: 0 | L124: 0 | M124: 0 | U124: 0 | V124: 0 | X124: 0 | Z124: 0 | AA124: 0
J125: 0 | L125: 0 | M125: 0 | U125: 0 | V125: 0 | X125: 0 | Z125: 0 | AA125: 0
J126: 0 | L126: 0 | M126: 0 | U126: 0 | V126: 0 | X126: 0 | Z126: 0 | AA126: 0
J127: 0 | L127: 0 | M127: 0 | U127: 0 | V127: 0 | X127: 0 | Z127: 0 | AA127: 0
J128: 0 | L128: 0 | M128: 0 | U128: 0 | V128: 0 | X128: 0 | Z128: 0 | AA128: 0
J129: 0 | L129: 0 | M129: 0 | U129: 0 | V129: 0 | X129: 0 | Z129: 0 | AA129: 0
J130: 0 | L130: 0 | M130: 0 | U130: 0 | V130: 0 | X130: 0 | Z130: 0 | AA130: 0
J131: 0 | L131: 0 | M131: 0 | U131: 0 | V131: 0 | X131: 0 | Z131: 0 | AA131: 0
J132: 0 | L132: 0 | M132: 0 | U132: 0 | V132: 0 | X132: 0 | Z132: 0 | AA132: 0
J133: 0 | L133: 0 | M133: 0 | U133: 0 | V133: 0 | X133: 0 | Z133: 0 | AA133: 0
J134: 0 | L134: 0 | M134: 0 | U134: 0 | V134: 0 | X134: 0 | Z134: 0 | AA134: 0
J135: 0 | L135: 0 | M135: 0 | U135: 0 | V135: 0 | X135: 0 | Z135: 0 | AA135: 0
J136: 0 | L136: 0 | M136: 0 | U136: 0 | V136: 0 | X136: 0 | Z136: 0 | AA136: 0
J137: 0 | L137: 0 | M137: 0 | U137: 0 | V137: 0 | X137: 0 | Z137: 0 | AA137: 0
J138: 0 | L138: 0 | M138: 0 | U138: 0 | V138: 0 | X138: 0 | Z138: 0 | AA138: 0
J139: 0 | L139: 0 | M139: 0 | U139: 0 | V139: 0 | X139: 0 | Z139: 0 | AA139: 0
J140: 0 | L140: 0 | M140: 0 | U140: 0 | V140: 0 | X140: 0 | Z140: 0 | AA140: 0
J141: 0 | L141: 0 | M141: 0 | U141: 0 | V141: 0 | X141: 0 | Z141: 0 | AA141: 0
J142: 0 | L142: 0 | M142: 0 | U142: 0 | V142: 0 | X142: 0 | Z142: 0 | AA142: 0
J143: 0 | L143: 0 | M143: 0 | U143: 0 | V143: 0 | X143: =IF(W143=0,0,IF((W143/(I143+K143))>J143,J143,(W143/(I143+K143)))) -> 0 | Z143: =IF(Y143=0,0,IF((Y143/(I143+K143))>L143,L143,(Y143/(I143+K143)))) -> 0 | AA143: =IF(W143+Y143=0,0,IF((W143+Y143)/(I143+K143)>100%,100%,(W143+Y143)/(I143+K143))) -> 0
J144: 0 | L144: 0 | M144: 0 | U144: =IF((S144+T144)=0,0,((S144+T144)/(Q144+R144))) -> 0 | V144: =IF(U144>=100%,100%,U144) -> 0 | X144: 0 | Z144: 0 | AA144: 0
J145: 0 | L145: 0 | M145: 0 | U145: 0 | V145: 0 | X145: 0 | Z145: 0 | AA145: 0
J146: 0 | L146: 0 | M146: 0 | U146: 0 | V146: 0 | X146: 0 | Z146: 0 | AA146: 0
J147: 0 | L147: 0 | M147: 0 | U147: 0 | V147: 0 | X147: 0 | Z147: 0 | AA147: 0
J148: 0 | L148: 0 | M148: 0 | U148: 0 | V148: 0 | X148: 0 | Z148: 0 | AA148: 0
J149: 0 | L149: 0 | M149: 0 | U149: 0 | V149: 0 | X149: 0 | Z149: 0 | AA149: 0
J150: 0 | L150: 0 | M150: 0 | U150: 0 | V150: 0 | X150: 0 | Z150: 0 | AA150: 0
J151: 0 | L151: 0 | M151: 0 | U151: 0 | V151: 0 | X151: 0 | Z151: 0 | AA151: 0
J152: 0 | L152: 0 | M152: 0 | U152: 0 | V152: 0 | X152: 0 | Z152: 0 | AA152: 0
M153: =J153+L153 -> 0 | AA153: 0
D154: SUBTOTALES | J154: =SUM(J15:J153) ->  | L154: =SUM(L15:L153) ->  | M154: =SUM(M15:M153) ->  | Q154: =SUM(Q15:Q153) -> 31265464.42 | R154: =SUM(R15:R153) -> 31265464.42 | S154: =SUM(S15:S153) -> 0 | T154: =SUM(T15:T153) -> 0 | U154: =IF(S154=0,0,(S154/R154)) -> 0 | V154: =IF(T154=0,0,(T154/S154)) -> 0 | X154: =SUM(X15:X153) ->  | Z154: =SUM(Z15:Z153) -> 0
A155: TOTAL POR PROGRAMA | J155: =IF(OR(J154=0),0,J154/M154) ->  | L155: =IF(OR(L154=0),0,L154/M154) ->  | M155: =SUM(M15:M153)/M154 ->  | X155: =IF(OR(X154=0),0,X154/M154) ->  | Z155: =IF(OR(Z154=0),0,Z154/M154) -> 0 | AA155: =X155+Z155 -> 
D156: =IF(OR(RESTRINGIDOP2!B9=0),0,RESTRINGIDOP2!B9/RESTRINGIDOP2!B8) ->  | E156: Metas de Objetivos de Mejora | J156: =IF(OR(D156=0),0,(RESTRINGIDOP2!C5/RESTRINGIDOP2!B9)) ->  | L156: =IF(OR(D156=0),0,(RESTRINGIDOP2!D5/RESTRINGIDOP2!B9)) ->  | M156: =(J156+L156) ->  | X156: =IF(OR(D156=0),0,(RESTRINGIDOP2!I5/RESTRINGIDOP2!E5)) ->  | Z156: =IF(OR(D156=0),0,(RESTRINGIDOP2!J5/RESTRINGIDOP2!E5)) ->  | AA156: =X156+Z156 -> 
D157: =IF(OR(RESTRINGIDOP2!B10=0),0,RESTRINGIDOP2!B10/RESTRINGIDOP2!B8) ->  | E157: Metas de Objetivos Operativos | J157: =IF(OR(D157=0),0,(RESTRINGIDOP2!F5/RESTRINGIDOP2!B10)) ->  | L157: =IF(OR(D157=0),0,(RESTRINGIDOP2!G5/RESTRINGIDOP2!B10)) ->  | M157: =J157+L157 ->  | X157: =IF(OR(D157=0),0,(RESTRINGIDOP2!L5/RESTRINGIDOP2!B10)) ->  | Z157: =IF(OR(D157=0),0,(RESTRINGIDOP2!M5/RESTRINGIDOP2!B10)) ->  | AA157: =X157+Z157 -> 
D158: =M154 ->  | E158: Metas formuladas para el programa
A160: Mejora
A161: Operativo
A162: 01 Aseo de vías y sitios públicos.
A163: 02 Recolección de basura
A164: 03 Mantenimiento de caminos y calles
A165: 04 Cementerios
A166: 05 Parques y obras de ornato
A167: 06 Acueductos
A168: 07 Mercados, plazas y ferias
A169: 08 Mataderos
A170: 09 Educativos, culturales y deportivos
A171: 10 Servicios Sociales y complementarios.
A172: 11 Estacionamientos y terminales
A173: 12 Alumbrado público
A174: 13 Alcantarillado sanitarios
A175: 14 Complejos turísticos
A176: 15 Mejoramiento en la zona marítimo terrestre
A177: 16 Depósito y tratamiento de basura
A178: 17 Mantenimiento de edificios
A179: 18 Reparaciones menores de maquinaria y equipo
A180: 19 Explotación de tajos y canteras
A181: 20 Zona Portuaria
A182: 21 Inspección sanitaria
A183: 22 Seguridad Vial
A184: 23 Seguridad y vigilancia en la comunidad
A185: 24 Obras de hidrología
A186: 25 Protección del medio ambiente
A187: 26 Desarrollo Urbano
A188: 27 Dirección de servicios y mantenimiento
A189: 28 Atención de emergencias cantonales
A190: 29 Por incumplimiento de deberes a los propietarios de bienes inmuebles
A191: 30 Alcantarillado pluvial
A192: 31 Aportes en especie para servicios y proyectos comunitarios.
A193: ='MARCO GENERAL'!D29 -> Gestión Deportiva
A194: ='MARCO GENERAL'!D30 -> Gestión Recreativa
A195: ='MARCO GENERAL'!D31 -> Gestión de Inversión y Obras
A196: ='MARCO GENERAL'!D32 -> Gestión de Capacitación y Becas
A197: ='MARCO GENERAL'!D33 -> Gestión Comunitaria
A198: ='MARCO GENERAL'!D34 -> Gestión Administrativa
A199: ='MARCO GENERAL'!D35 -> Gestión de Inclusión Social
A200: ='MARCO GENERAL'!D36 -> No aplica
A201: ='MARCO GENERAL'!D37 -> No aplica
A202: ='MARCO GENERAL'!D38 -> No aplica
A203: ='MARCO GENERAL'!D39 -> No aplica
A204: ='MARCO GENERAL'!D40 -> No aplica
... 16 more rows

Sheet PROGRAMA III
A1: ='PROGRAMA II'!A1 -> PLAN OPERATIVO ANUAL
A2: ='PROGRAMA I'!A2 -> COMITÉ CANTONAL DE DEPORTES Y RECREACIÓN DE MORAVIA
A3: ='PROGRAMA I'!A3:H3 -> 2014
A4: MATRIZ DE DESEMPEÑO PROGRAMÁTICO
A5: PROGRAMA III: INVERSIONES
A7: MISIÓN: Desarrollar proyectos de inversión a favor de la comunidad con el fin de satisfacer sus necesidades.
A9: Producción final: Proyectos de inversión
A11: PLANIFICACIÓN ESTRATÉGICA | D11: PLANIFICACIÓN OPERATIVA | S11: EVALUACIÓN
A12: PLAN DE DESARROLLO MUNICIPAL | B12: PROGRAMA | C12: PROYECTO | D12: OBJETIVOS DE MEJORA Y/O OPERATIVOS | E12: META | H12: INDICADOR | I12: PROGRAMACIÓN DE LA META | N12: FUNCIONARIO RESPONSABLE | O12: GRUPOS | P12: SUBGRUPOS | Q12: ASIGNACIÓN PRESUPUESTARIA POR META | S12: GASTO REAL POR META | U12: Resultado del indicador de eficiencia en la ejecución de los recursos por meta | V12: Resultado anual del indicador de eficiencia en la ejecución de los recursos por meta | W12: EJECUCIÓN DE LA META | AA12: Resultado del indicador de eficacia en el cumplimiento de la metas programadas
I13: I Semestre | J13: % | K13: II Semestre | L13: % | M13: % de la meta a alcanzar | P13: SUBGRUPOS | Q13: I SEMESTRE | R13: II SEMESTRE | S13: I SEMESTRE | T13: II SEMESTRE | W13: I Semestre | X13: % | Y13: II Semestre | Z13: %
A14: AREA ESTRATÉGICA | E14: Código | F14: No. | G14: Descripción | I14: Sem | K14: Sem | W14: Sem | Y14: Sem
A15: Gestión Administrativa | D15: Contratar el recurso humano necesario para el adecuado y eficiente funcionamiento del Comité. | E15: Operativo | F15: 1 | G15: Que se lleve a cabo la contratación de personal técnico que ayude a cumplir en un 100% con las actividades del Comité Cantonal de Deportes y Recreación en materia de obras, mantenimiento e inversiones. | H15: Contratación de funcionarios. | I15: 50 | J15: =IF(OR(I15=0),0,(I15/(I15+K15))) -> 0.5 | K15: 50 | L15: =IF(OR(K15=0),0,(K15/(I15+K15))) -> 0.5 | M15: =J15+L15 -> 1 | N15: Junta Directiva | O15: 01 Edificios | P15: Centros deportivos y de recreación | Q15: =30651858.4/2 -> 15325929.2 | R15: =Q15 -> 15325929.2 | U15: =IF((S15+T15)=0,0,((S15+T15)/(Q15+R15))) -> 0 | V15: =IF(U15>=100%,100%,U15) -> 0 | W15: 50 | X15: =IF(W15=0,0,IF((W15/(I15+K15))>J15,J15,(W15/(I15+K15)))) -> 0.5 | Z15: =IF(Y15=0,0,IF((Y15/(I15+K15))>L15,L15,(Y15/(I15+K15)))) -> 0 | AA15: =IF(W15+Y15=0,0,IF((W15+Y15)/(I15+K15)>100%,100%,(W15+Y15)/(I15+K15))) -> 0.5
A16: Gestión Administrativa | D16: Cancelación de servicios públicos | E16: Operativo | F16: 2 | G16: Que se cancele mensualmente el monto correspondiente al pago por el servicio de agua y electricidad. | H16: Recibo de pago 12 meses. | I16: 50 | J16: =IF(OR(I16=0),0,(I16/(I16+K16))) -> 0.5 | K16: 50 | L16: =IF(OR(K16=0),0,(K16/(I16+K16))) -> 0.5 | M16: =J16+L16 -> 1 | N16: Proceso Administrativo | O16: 01 Edificios | P16: Centros deportivos y de recreación | Q16: =1575000/2 -> 787500 | R16: =Q16 -> 787500 | U16: =IF((S16+T16)=0,0,((S16+T16)/(Q16+R16))) -> 0 | V16: =IF(U16>=100%,100%,U16) -> 0 | W16: 40 | X16: 0.4 | Z16: 0 | AA16: =IF(W16+Y16=0,0,IF((W16+Y16)/(I16+K16)>100%,100%,(W16+Y16)/(I16+K16))) -> 0.4
A17: Gestión Administrativa | D17: Cubrir con seguro contra riesgos del trabajo a funcionarios del proceso operativo | E17: Operativo | F17: 3 | G17: Asegurar a funcionarios operativcos contra los riegos del trabajo | H17: informe de palnilla mensual del INS | I17: 50 | J17: 0.5 | K17: 50 | L17: 0.5 | M17: 1 | N17: Proceso Administrativo | O17: 01 Edificios | P17: Centros deportivos y de recreación | Q17: =1334554/2 -> 667277 | R17: =Q17 -> 667277 | U17: 0 | V17: 0 | W17: 100 | X17: 0.5 | Z17: 0 | AA17: 1
A18: Gestión de Inversión y Obras | D18: Brindar mantenimiento adecuado y reparación en caso de ser necesario a equipo de transporte del comité | E18: Operativo | F18: 4 | G18: Brindar mantenimiento adecuado y reparación en caso de ser necesario a equipo de transporte del comité | H18: servicios de mantenimiento. Recibo d epago | I18: 50 | J18: 0.5 | K18: 50 | L18: 0.5 | M18: 1 | N18: Junta Directiva y Proceso Administrativo | O18: 01 Edificios | P18: Centros deportivos y de recreación | Q18: =300000/2 -> 150000 | R18: =Q18 -> 150000 | U18: 0 | V18: 0 | W18: 0 | X18: 0 | Z18: 0 | AA18: 0
A19: Gestión de Inversión y Obras | D19: Brindar mantenimiento y reparación a los edificios bajo administración. | E19: Mejora | F19: 5 | G19: Realizar labores de mantenimiento y reparación de infraestructura deportiva y recreativa. | H19: Obras realizadas. | I19: 50 | J19: 0.5 | K19: 50 | L19: 0.5 | M19: 1 | N19: Proceso Operativo | O19: 01 Edificios | P19: Centros deportivos y de recreación | Q19: =10180432/4 -> 2545108 | R19: =Q19 -> 2545108 | U19: 0 | V19: 0 | W19: 50 | X19: 0.5 | Z19: 0 | AA19: 0.5
A20: Gestión de Inversión y Obras | D20: Procurar el mantenimiento adecuado, eficiente y oportuno de las instalaciones deportivas. | E20: Mejora | F20: 6 | G20: Brindar un mantenimiento permanente y ordinario de la infraestructura deportiva | H20: Informes de labores Proceso Operativo. | I20: 50 | J20: 0.5 | K20: 50 | L20: 0.5 | M20: 1 | N20: Proceso Operativo | O20: 01 Edificios | P20: Centros deportivos y de recreación | Q20: =Q19 -> 2545108 | R20: =R19 -> 2545108 | U20: 0 | V20: 0 | W20: 50 | X20: 0.5 | Z20: 0 | AA20: 0.5
A21: Gestión de Inversión y Obras | D21: Incentivar el deporte y la recreación en áreas verdes del cantón | E21: Mejora | F21: 7 | G21: Intalar gimnasios al aire libre en parques de Moravia | H21: Acuerdo junta directiva, proceso de contratación administrativa, gimnasios instalados | I21: 50 | J21: 0.5 | K21: 50 | L21: 0.5 | M21: 1 | N21: Junta Directiva, Proceso operativo y proceso Administrativo | O21: 01 Edificios | P21: Centros deportivos y de recreación | Q21: =9717674.64/2 -> 4858837.32 | R21: =Q21 -> 4858837.32 | U21: 0 | V21: 0 | W21: 100 | X21: 0.5 | Z21: 0 | AA21: 1
A22: Gestión de Inversión y Obras | D22: Mantener un equilibrio presupuestario adecuado. | E22: Mejora | F22: 8 | G22: Se contemplan sumas libres sin asignación presupuestaria para mantener el adecuado equilibrio presupuestario y en virtud de proyectos aún por diseñar. | H22: Traslado de recursos a partidas insuficientes o por proyecto presentado. | I22: 50 | J22: 0.5 | K22: 50 | L22: 0.5 | M22: 1 | N22: Junta Directiva | O22: 07 Otros fondos e inversiones | P22: Centros deportivos y de recreación | Q22: =4997177.67/2 -> 2498588.835 | R22: =Q22 -> 2498588.835 | U22: 0 | V22: 0 | W22: 50 | X22: 0.5 | Z22: 0 | AA22: 0.5
J23: 0 | L23: 0 | M23: 0 | U23: 0 | V23: 0 | X23: 0 | Z23: 0 | AA23: 0
J24: 0 | L24: 0 | M24: 0 | U24: 0 | V24: 0 | X24: 0 | Z24: 0 | AA24: 0
J25: 0 | L25: 0 | M25: 0 | U25: 0 | V25: 0 | X25: 0 | Z25: 0 | AA25: 0
J26: 0 | L26: 0 | M26: 0 | U26: 0 | V26: 0 | X26: 0 | Z26: 0 | AA26: 0
J27: 0 | L27: 0 | M27: 0 | U27: 0 | V27: 0 | X27: 0 | Z27: 0 | AA27: 0
J28: 0 | L28: 0 | M28: 0 | U28: 0 | V28: 0 | X28: 0 | Z28: 0 | AA28: 0
J29: 0 | L29: 0 | M29: 0 | U29: 0 | V29: 0 | X29: 0 | Z29: 0 | AA29: 0
J30: 0 | L30: 0 | M30: 0 | U30: 0 | V30: 0 | X30: 0 | Z30: 0 | AA30: 0
J31: 0 | L31: 0 | M31: 0 | U31: 0 | V31: 0 | X31: 0 | Z31: 0 | AA31: 0
J32: 0 | L32: 0 | M32: 0 | U32: 0 | V32: 0 | X32: 0 | Z32: 0 | AA32: 0
J33: 0 | L33: 0 | M33: 0 | U33: 0 | V33: 0 | X33: 0 | Z33: 0 | AA33: 0
J34: 0 | L34: 0 | M34: 0 | U34: 0 | V34: 0 | X34: 0 | Z34: 0 | AA34: 0
J35: 0 | L35: 0 | M35: 0 | U35: 0 | V35: 0 | X35: 0 | Z35: 0 | AA35: 0
J36: 0 | L36: 0 | M36: 0 | U36: 0 | V36: 0 | X36: 0 | Z36: 0 | AA36: 0
J37: 0 | L37: 0 | M37: 0 | U37: 0 | V37: 0 | X37: 0 | Z37: 0 | AA37: 0
J38: 0 | L38: 0 | M38: 0 | U38: 0 | V38: 0 | X38: 0 | Z38: 0 | AA38: 0
J39: 0 | L39: 0 | M39: 0 | U39: 0 | V39: 0 | X39: 0 | Z39: 0 | AA39: 0
J40: 0 | L40: 0 | M40: 0 | U40: 0 | V40: 0 | X40: 0 | Z40: 0 | AA40: 0
J41: 0 | L41: 0 | M41: 0 | U41: 0 | V41: 0 | X41: 0 | Z41: 0 | AA41: 0
J42: 0 | L42: 0 | M42: 0 | U42: 0 | V42: 0 | X42: 0 | Z42: 0 | AA42: 0
J43: 0 | L43: 0 | M43: 0 | U43: 0 | V43: 0 | X43: 0 | Z43: 0 | AA43: 0
J44: 0 | L44: 0 | M44: 0 | U44: 0 | V44: 0 | X44: 0 | Z44: 0 | AA44: 0
J45: 0 | L45: 0 | M45: 0 | U45: 0 | V45: 0 | X45: 0 | Z45: 0 | AA45: 0
J46: 0 | L46: 0 | M46: 0 | U46: 0 | V46: 0 | X46: 0 | Z46: 0 | AA46: 0
J47: 0 | L47: 0 | M47: 0 | U47: 0 | V47: 0 | X47: =IF(W47=0,0,IF((W47/(I47+K47))>J47,J47,(W47/(I47+K47)))) -> 0 | Z47: =IF(Y47=0,0,IF((Y47/(I47+K47))>L47,L47,(Y47/(I47+K47)))) -> 0 | AA47: 0
J48: 0 | L48: 0 | M48: 0 | U48: 0 | V48: 0 | X48: 0 | Z48: 0 | AA48: 0
J49: 0 | L49: 0 | M49: 0 | U49: 0 | V49: 0 | X49: 0 | Z49: 0 | AA49: 0
J50: 0 | L50: 0 | M50: 0 | U50: 0 | V50: 0 | X50: 0 | Z50: 0 | AA50: 0
J51: 0 | L51: 0 | M51: 0 | U51: 0 | V51: 0 | X51: 0 | Z51: 0 | AA51: 0
J52: 0 | L52: 0 | M52: 0 | U52: 0 | V52: 0 | X52: 0 | Z52: 0 | AA52: 0
J53: 0 | L53: 0 | M53: 0 | U53: 0 | V53: 0 | X53: 0 | Z53: 0 | AA53: 0
J54: 0 | L54: 0 | M54: 0 | U54: 0 | V54: 0 | X54: 0 | Z54: 0 | AA54: 0
J55: 0 | L55: 0 | M55: 0 | U55: 0 | V55: 0 | X55: 0 | Z55: 0 | AA55: 0
J56: 0 | L56: 0 | M56: 0 | U56: 0 | V56: 0 | X56: 0 | Z56: 0 | AA56: 0
J57: 0 | L57: 0 | M57: 0 | U57: 0 | V57: 0 | X57: 0 | Z57: 0 | AA57: 0
J58: 0 | L58: 0 | M58: 0 | U58: 0 | V58: 0 | X58: 0 | Z58: 0 | AA58: 0
J59: 0 | L59: 0 | M59: 0 | U59: 0 | V59: 0 | X59: 0 | Z59: 0 | AA59: 0
J60: 0 | L60: 0 | M60: 0 | U60: 0 | V60: 0 | X60: 0 | Z60: 0 | AA60: 0
J61: 0 | L61: 0 | M61: 0 | U61: 0 | V61: 0 | X61: 0 | Z61: 0 | AA61: 0
J62: 0 | L62: 0 | M62: 0 | U62: 0 | V62: 0 | X62: 0 | Z62: 0 | AA62: 0
J63: 0 | L63: 0 | M63: 0 | U63: 0 | V63: 0 | X63: 0 | Z63: 0 | AA63: 0
J64: 0 | L64: 0 | M64: 0 | U64: 0 | V64: 0 | X64: 0 | Z64: 0 | AA64: 0
J65: 0 | L65: 0 | M65: 0 | U65: 0 | V65: 0 | X65: 0 | Z65: 0 | AA65: 0
J66: 0 | L66: 0 | M66: 0 | U66: 0 | V66: 0 | X66: 0 | Z66: 0 | AA66: 0
J67: 0 | L67: 0 | M67: 0 | U67: 0 | V67: 0 | X67: 0 | Z67: 0 | AA67: 0
J68: 0 | L68: 0 | M68: 0 | U68: 0 | V68: 0 | X68: 0 | Z68: 0 | AA68: 0
J69: 0 | L69: 0 | M69: 0 | U69: 0 | V69: 0 | X69: 0 | Z69: 0 | AA69: 0
J70: 0 | L70: 0 | M70: 0 | U70: 0 | V70: 0 | X70: 0 | Z70: 0 | AA70: 0
J71: 0 | L71: 0 | M71: 0 | U71: 0 | V71: 0 | X71: 0 | Z71: 0 | AA71: 0
J72: 0 | L72: 0 | M72: 0 | U72: 0 | V72: 0 | X72: 0 | Z72: 0 | AA72: 0
J73: 0 | L73: 0 | M73: 0 | U73: 0 | V73: 0 | X73: 0 | Z73: 0 | AA73: 0
J74: 0 | L74: 0 | M74: 0 | U74: 0 | V74: 0 | X74: 0 | Z74: 0 | AA74: 0
J75: 0 | L75: 0 | M75: 0 | U75: 0 | V75: 0 | X75: 0 | Z75: 0 | AA75: 0
J76: 0 | L76: 0 | M76: 0 | U76: 0 | V76: 0 | X76: 0 | Z76: 0 | AA76: 0
J77: 0 | L77: 0 | M77: 0 | U77: 0 | V77: 0 | X77: 0 | Z77: 0 | AA77: 0
J78: 0 | L78: 0 | M78: 0 | U78: 0 | V78: 0 | X78: 0 | Z78: 0 | AA78: 0
J79: 0 | L79: 0 | M79: 0 | U79: 0 | V79: 0 | X79: =IF(W79=0,0,IF((W79/(I79+K79))>J79,J79,(W79/(I79+K79)))) -> 0 | Z79: =IF(Y79=0,0,IF((Y79/(I79+K79))>L79,L79,(Y79/(I79+K79)))) -> 0 | AA79: 0
J80: =IF(OR(I80=0),0,(I80/(I80+K80))) -> 0 | L80: =IF(OR(K80=0),0,(K80/(I80+K80))) -> 0 | M80: =J80+L80 -> 0 | U80: =IF((S80+T80)=0,0,((S80+T80)/(Q80+R80))) -> 0 | V80: =IF(U80>=100%,100%,U80) -> 0 | X80: 0 | Z80: 0 | AA80: =IF(W80+Y80=0,0,IF((W80+Y80)/(I80+K80)>100%,100%,(W80+Y80)/(I80+K80))) -> 0
J81: 0 | L81: 0 | M81: 0 | U81: 0 | V81: 0 | X81: 0 | Z81: 0 | AA81: 0
J82: 0 | L82: 0 | M82: 0 | U82: 0 | V82: 0 | X82: 0 | Z82: 0 | AA82: 0
J83: 0 | L83: 0 | M83: 0 | U83: 0 | V83: 0 | X83: 0 | Z83: 0 | AA83: 0
J84: 0 | L84: 0 | M84: 0 | U84: 0 | V84: 0 | X84: 0 | Z84: 0 | AA84: 0
J85: 0 | L85: 0 | M85: 0 | U85: 0 | V85: 0 | X85: 0 | Z85: 0 | AA85: 0
J86: 0 | L86: 0 | M86: 0 | U86: 0 | V86: 0 | X86: 0 | Z86: 0 | AA86: 0
J87: 0 | L87: 0 | M87: 0 | U87: 0 | V87: 0 | X87: 0 | Z87: 0 | AA87: 0
J88: 0 | L88: 0 | M88: 0 | U88: 0 | V88: 0 | X88: 0 | Z88: 0 | AA88: 0
J89: 0 | L89: 0 | M89: 0 | U89: 0 | V89: 0 | X89: 0 | Z89: 0 | AA89: 0
J90: 0 | L90: 0 | M90: 0 | U90: 0 | V90: 0 | X90: 0 | Z90: 0 | AA90: 0
J91: 0 | L91: 0 | M91: 0 | U91: 0 | V91: 0 | X91: 0 | Z91: 0 | AA91: 0
J92: 0 | L92: 0 | M92: 0 | U92: 0 | V92: 0 | X92: 0 | Z92: 0 | AA92: 0
J93: 0 | L93: 0 | M93: 0 | U93: 0 | V93: 0 | X93: 0 | Z93: 0 | AA93: 0
J94: 0 | L94: 0 | M94: 0 | U94: 0 | V94: 0 | X94: 0 | Z94: 0 | AA94: 0
J95: 0 | L95: 0 | M95: 0 | U95: 0 | V95: 0 | X95: 0 | Z95: 0 | AA95: 0
J96: 0 | L96: 0 | M96: 0 | U96: 0 | V96: 0 | X96: 0 | Z96: 0 | AA96: 0
J97: 0 | L97: 0 | M97: 0 | U97: 0 | V97: 0 | X97: 0 | Z97: 0 | AA97: 0
J98: =IF(OR(I98=0),0,(I98/(I98+K98))) -> 0 | L98: =IF(OR(K98=0),0,(K98/(I98+K98))) -> 0 | M98: =J98+L98 -> 0 | U98: 0 | V98: 0 | X98: =IF(W98=0,0,IF((W98/(I98+K98))>J98,J98,(W98/(I98+K98)))) -> 0 | Z98: =IF(Y98=0,0,IF((Y98/(I98+K98))>L98,L98,(Y98/(I98+K98)))) -> 0 | AA98: 0
J99: 0 | L99: 0 | M99: 0 | U99: 0 | V99: 0 | X99: 0 | Z99: 0 | AA99: 0
J100: 0 | L100: 0 | M100: 0 | U100: 0 | V100: 0 | X100: 0 | Z100: 0 | AA100: 0
J101: 0 | L101: 0 | M101: 0 | U101: 0 | V101: 0 | X101: 0 | Z101: 0 | AA101: 0
J102: 0 | L102: 0 | M102: 0 | U102: 0 | V102: 0 | X102: 0 | Z102: 0 | AA102: 0
J103: 0 | L103: 0 | M103: 0 | U103: 0 | V103: 0 | X103: 0 | Z103: 0 | AA103: 0
J104: 0 | L104: 0 | M104: 0 | U104: 0 | V104: 0 | X104: 0 | Z104: 0 | AA104: 0
J105: 0 | L105: 0 | M105: 0 | U105: 0 | V105: 0 | X105: 0 | Z105: 0 | AA105: 0
J106: 0 | L106: 0 | M106: 0 | U106: 0 | V106: 0 | X106: 0 | Z106: 0 | AA106: 0
J107: 0 | L107: 0 | M107: 0 | U107: 0 | V107: 0 | X107: 0 | Z107: 0 | AA107: 0
J108: 0 | L108: 0 | M108: 0 | U108: 0 | V108: 0 | X108: 0 | Z108: 0 | AA108: 0
J109: 0 | L109: 0 | M109: 0 | U109: 0 | V109: 0 | X109: 0 | Z109: 0 | AA109: 0
J110: 0 | L110: 0 | M110: 0 | U110: 0 | V110: 0 | X110: 0 | Z110: 0 | AA110: 0
J111: 0 | L111: 0 | M111: 0 | U111: 0 | V111: 0 | X111: 0 | Z111: 0 | AA111: 0
J112: 0 | L112: 0 | M112: 0 | U112: 0 | V112: 0 | X112: 0 | Z112: 0 | AA112: 0
J113: 0 | L113: 0 | M113: 0 | U113: 0 | V113: 0 | X113: 0 | Z113: 0 | AA113: 0
J114: 0 | L114: 0 | M114: 0 | U114: 0 | V114: 0 | X114: 0 | Z114: 0 | AA114: 0
J115: 0 | L115: 0 | M115: 0 | U115: 0 | V115: 0 | X115: 0 | Z115: 0 | AA115: 0
J116: 0 | L116: 0 | M116: 0 | U116: 0 | V116: 0 | X116: 0 | Z116: 0 | AA116: 0
J117: 0 | L117: 0 | M117: 0 | U117: 0 | V117: 0 | X117: 0 | Z117: 0 | AA117: 0
J118: 0 | L118: 0 | M118: 0 | U118: 0 | V118: 0 | X118: 0 | Z118: 0 | AA118: 0
J119: 0 | L119: 0 | M119: 0 | U119: 0 | V119: 0 | X119: 0 | Z119: 0 | AA119: 0
J120: 0 | L120: 0 | M120: 0 | U120: 0 | V120: 0 | X120: 0 | Z120: 0 | AA120: 0
J121: 0 | L121: 0 | M121: 0 | U121: 0 | V121: 0 | X121: 0 | Z121: 0 | AA121: 0
J122: 0 | L122: 0 | M122: 0 | U122: 0 | V122: 0 | X122: 0 | Z122: 0 | AA122: 0
J123: 0 | L123: 0 | M123: 0 | U123: 0 | V123: 0 | X123: 0 | Z123: 0 | AA123: 0
J124: 0 | L124: 0 | M124: 0 | U124: 0 | V124: 0 | X124: 0 | Z124: 0 | AA124: 0
J125: 0 | L125: 0 | M125: 0 | U125: 0 | V125: 0 | X125: 0 | Z125: 0 | AA125: 0
J126: 0 | L126: 0 | M126: 0 | U126: 0 | V126: 0 | X126: 0 | Z126: 0 | AA126: 0
J127: 0 | L127: 0 | M127: 0 | U127: 0 | V127: 0 | X127: 0 | Z127: 0 | AA127: 0
J128: 0 | L128: 0 | M128: 0 | U128: 0 | V128: 0 | X128: 0 | Z128: 0 | AA128: 0
J129: 0 | L129: 0 | M129: 0 | U129: 0 | V129: 0 | X129: 0 | Z129: 0 | AA129: 0
J130: 0 | L130: 0 | M130: 0 | U130: 0 | V130: 0 | X130: 0 | Z130: 0 | AA130: 0
J131: 0 | L131: 0 | M131: 0 | U131: 0 | V131: 0 | X131: 0 | Z131: 0 | AA131: 0
J132: 0 | L132: 0 | M132: 0 | U132: 0 | V132: 0 | X132: 0 | Z132: 0 | AA132: 0
J133: 0 | L133: 0 | M133: 0 | U133: 0 | V133: 0 | X133: 0 | Z133: 0 | AA133: 0
J134: 0 | L134: 0 | M134: 0 | U134: 0 | V134: 0 | X134: 0 | Z134: 0 | AA134: 0
J135: 0 | L135: 0 | M135: 0 | U135: 0 | V135: 0 | X135: 0 | Z135: 0 | AA135: 0
J136: 0 | L136: 0 | M136: 0 | U136: 0 | V136: 0 | X136: 0 | Z136: 0 | AA136: 0
J137: 0 | L137: 0 | M137: 0 | U137: 0 | V137: 0 | X137: 0 | Z137: 0 | AA137: 0
J138: 0 | L138: 0 | M138: 0 | U138: 0 | V138: 0 | X138: 0 | Z138: 0 | AA138: 0
J139: 0 | L139: 0 | M139: 0 | U139: 0 | V139: 0 | X139: 0 | Z139: 0 | AA139: 0
J140: 0 | L140: 0 | M140: 0 | U140: 0 | V140: 0 | X140: 0 | Z140: 0 | AA140: 0
J141: 0 | L141: 0 | M141: 0 | U141: 0 | V141: 0 | X141: 0 | Z141: 0 | AA141: 0
J142: 0 | L142: 0 | M142: 0 | U142: 0 | V142: 0 | X142: 0 | Z142: 0 | AA142: 0
J143: 0 | L143: 0 | M143: 0 | U143: 0 | V143: 0 | X143: 0 | Z143: 0 | AA143: 0
J144: 0 | L144: 0 | M144: 0 | U144: =IF((S144+T144)=0,0,((S144+T144)/(Q144+R144))) -> 0 | V144: =IF(U144>=100%,100%,U144) -> 0 | X144: 0 | Z144: 0 | AA144: =IF(W144+Y144=0,0,IF((W144+Y144)/(I144+K144)>100%,100%,(W144+Y144)/(I144+K144))) -> 0
J145: 0 | L145: 0 | M145: 0 | U145: 0 | V145: 0 | X145: 0 | Z145: 0 | AA145: 0
J146: 0 | L146: 0 | M146: 0 | U146: 0 | V146: 0 | X146: 0 | Z146: 0 | AA146: 0
J147: 0 | L147: 0 | M147: 0 | U147: 0 | V147: 0 | X147: 0 | Z147: 0 | AA147: 0
J148: 0 | L148: 0 | M148: 0 | U148: 0 | V148: 0 | X148: 0 | Z148: 0 | AA148: 0
J149: 0 | L149: 0 | M149: 0 | U149: 0 | V149: 0 | X149: 0 | Z149: 0 | AA149: 0
J150: 0 | L150: 0 | M150: 0 | U150: 0 | V150: 0 | X150: 0 | Z150: 0 | AA150: 0
J151: 0 | L151: 0 | M151: 0 | U151: 0 | V151: 0 | X151: 0 | Z151: 0 | AA151: 0
J152: 0 | L152: 0 | M152: 0 | U152: 0 | V152: 0 | X152: 0 | Z152: 0 | AA152: 0
J153: 0 | L153: 0 | M153: 0 | U153: 0 | V153: 0 | X153: 0 | Z153: 0 | AA153: 0
J154: 0 | L154: 0 | M154: 0 | U154: 0 | V154: 0 | X154: 0 | Z154: 0 | AA154: 0
J155: 0 | L155: 0 | M155: 0 | U155: 0 | V155: 0 | X155: 0 | Z155: 0 | AA155: 0
J156: 0 | L156: 0 | M156: 0 | U156: 0 | V156: 0 | X156: 0 | Z156: 0 | AA156: 0
J157: 0 | L157: 0 | M157: 0 | U157: 0 | V157: 0 | X157: 0 | Z157: 0 | AA157: 0
J158: 0 | L158: 0 | M158: 0 | U158: 0 | V158: 0 | X158: 0 | Z158: 0 | AA158: 0
J159: 0 | L159: 0 | M159: 0 | U159: 0 | V159: 0 | X159: 0 | Z159: 0 | AA159: 0
J160: 0 | L160: 0 | M160: 0 | U160: 0 | V160: 0 | X160: 0 | Z160: 0 | AA160: 0
J161: 0 | L161: 0 | M161: 0 | U161: 0 | V161: 0 | X161: 0 | Z161: 0 | AA161: 0
J162: =IF(OR(I162=0),0,(I162/(I162+K162))) -> 0 | L162: =IF(OR(K162=0),0,(K162/(I162+K162))) -> 0 | M162: =J162+L162 -> 0 | U162: 0 | V162: 0 | X162: =IF(W162=0,0,IF((W162/(I162+K162))>J162,J162,(W162/(I162+K162)))) -> 0 | Z162: =IF(Y162=0,0,IF((Y162/(I162+K162))>L162,L162,(Y162/(I162+K162)))) -> 0 | AA162: 0
J163: 0 | L163: 0 | M163: 0 | U163: 0 | V163: 0 | X163: 0 | Z163: 0 | AA163: 0
J164: 0 | L164: 0 | M164: 0 | U164: 0 | V164: 0 | X164: 0 | Z164: 0 | AA164: 0
J165: 0 | L165: 0 | M165: 0 | U165: 0 | V165: 0 | X165: 0 | Z165: 0 | AA165: 0
J166: 0 | L166: 0 | M166: 0 | U166: 0 | V166: 0 | X166: 0 | Z166: 0 | AA166: 0
J167: 0 | L167: 0 | M167: 0 | U167: 0 | V167: 0 | X167: 0 | Z167: 0 | AA167: 0
J168: 0 | L168: 0 | M168: 0 | U168: 0 | V168: 0 | X168: 0 | Z168: 0 | AA168: 0
J169: 0 | L169: 0 | M169: 0 | U169: 0 | V169: 0 | X169: 0 | Z169: 0 | AA169: 0
J170: 0 | L170: 0 | M170: 0 | U170: 0 | V170: 0 | X170: 0 | Z170: 0 | AA170: 0
J171: 0 | L171: 0 | M171: 0 | U171: 0 | V171: 0 | X171: 0 | Z171: 0 | AA171: 0
J172: 0 | L172: 0 | M172: 0 | U172: 0 | V172: 0 | X172: 0 | Z172: 0 | AA172: 0
J173: 0 | L173: 0 | M173: 0 | U173: 0 | V173: 0 | X173: 0 | Z173: 0 | AA173: 0
J174: 0 | L174: 0 | M174: 0 | U174: 0 | V174: 0 | X174: 0 | Z174: 0 | AA174: 0
J175: 0 | L175: 0 | M175: 0 | U175: 0 | V175: 0 | X175: 0 | Z175: 0 | AA175: 0
J176: 0 | L176: 0 | M176: 0 | U176: 0 | V176: 0 | X176: 0 | Z176: 0 | AA176: 0
J177: 0 | L177: 0 | M177: 0 | U177: 0 | V177: 0 | X177: 0 | Z177: 0 | AA177: 0
J178: 0 | L178: 0 | M178: 0 | U178: 0 | V178: 0 | X178: 0 | Z178: 0 | AA178: 0
J179: 0 | L179: 0 | M179: 0 | U179: 0 | V179: 0 | X179: 0 | Z179: 0 | AA179: 0
J180: 0 | L180: 0 | M180: 0 | U180: 0 | V180: 0 | X180: 0 | Z180: 0 | AA180: 0
J181: 0 | L181: 0 | M181: 0 | U181: 0 | V181: 0 | X181: 0 | Z181: 0 | AA181: 0
J182: 0 | L182: 0 | M182: 0 | U182: 0 | V182: 0 | X182: 0 | Z182: 0 | AA182: 0
J183: 0 | L183: 0 | M183: 0 | U183: 0 | V183: 0 | X183: 0 | Z183: 0 | AA183: 0
J184: 0 | L184: 0 | M184: 0 | U184: 0 | V184: 0 | X184: 0 | Z184: 0 | AA184: 0
J185: 0 | L185: 0 | M185: 0 | U185: 0 | V185: 0 | X185: 0 | Z185: 0 | AA185: 0
J186: 0 | L186: 0 | M186: 0 | U186: 0 | V186: 0 | X186: 0 | Z186: 0 | AA186: 0
J187: 0 | L187: 0 | M187: 0 | U187: 0 | V187: 0 | X187: 0 | Z187: 0 | AA187: 0
J188: 0 | L188: 0 | M188: 0 | U188: 0 | V188: 0 | X188: 0 | Z188: 0 | AA188: 0
J189: 0 | L189: 0 | M189: 0 | U189: 0 | V189: 0 | X189: 0 | Z189: 0 | AA189: 0
J190: 0 | L190: 0 | M190: 0 | U190: 0 | V190: 0 | X190: 0 | Z190: 0 | AA190: 0
U191: =S191/Q191 ->  | V191: =T191/R191 -> 
D192: SUBTOTALES | J192: =SUM(J15:J191) -> 4 | L192: =SUM(L15:L191) -> 4 | M192: =SUM(M15:M191) -> 8 | Q192: =SUM(Q15:Q191) -> 29378348.36 | R192: =SUM(R15:R191) -> 29378348.36 | S192: =SUM(S15:S191) -> 0 | T192: =SUM(T15:T191) -> 0 | U192: =IF(S192=0,0,(S192/Q192)) -> 0 | V192: =IF(T192=0,0,(T192/R192)) -> 0 | X192: =SUM(X15:X191) -> 3.4 | Z192: =SUM(Z15:Z191) -> 0
A193: TOTAL POR PROGRAMA | J193: =IF(OR(J192=0),0,J192/M192) -> 0.5 | L193: =IF(OR(L192=0),0,L192/M192) -> 0.5 | M193: =SUM(M15:M191)/M192 -> 1 | X193: =IF(OR(X192=0),0,X192/M192) -> 0.425 | Z193: =IF(OR(Z192=0),0,Z192/M192) -> 0 | AA193: =X193+Z193 -> 0.425
D194: =IF(OR(RESTRINGIDOP3!B9=0),0,RESTRINGIDOP3!B9/RESTRINGIDOP3!B8) -> 0.5 | E194: Metas de Objetivos de Mejora | J194: =IF(OR(D194=0),0,(RESTRINGIDOP3!C5/RESTRINGIDOP3!B9)) -> 0.5 | L194: =IF(OR(D194=0),0,(RESTRINGIDOP3!D5/RESTRINGIDOP3!B9)) -> 0.5 | M194: =(J194+L194) -> 1 | X194: =IF(OR(D194=0),0,(RESTRINGIDOP3!I5/RESTRINGIDOP3!E5)) -> 0.5 | Z194: =IF(OR(D194=0),0,(RESTRINGIDOP3!J5/RESTRINGIDOP3!E5)) -> 0 | AA194: =X194+Z194 -> 0.5
D195: =IF(OR(RESTRINGIDOP3!B10=0),0,RESTRINGIDOP3!B10/RESTRINGIDOP3!B8) -> 0.5 | E195: Metas de Objetivos Operativos | J195: =IF(OR(D195=0),0,(RESTRINGIDOP3!F5/RESTRINGIDOP3!B10)) -> 0.5 | L195: =IF(OR(D195=0),0,(RESTRINGIDOP3!G5/RESTRINGIDOP3!B10)) -> 0.5 | M195: =(J195+L195) -> 1 | X195: =IF(OR(D195=0),0,(RESTRINGIDOP3!L5/RESTRINGIDOP3!B10)) -> 0.35 | Z195: =IF(OR(D195=0),0,(RESTRINGIDOP3!M5/RESTRINGIDOP3!B10)) -> 0 | AA195: =X195+Z195 -> 0.35
D196: =M192 -> 8 | E196: Metas formuladas para el programa
A198: Mejora
A199: Operativo
A201: 01 Edificios
A202: 02 Vías de comunicación terrestre
A203: 03 Obras marítimas y fluviales
A204: 04 Obras urbanísticas
A205: 05 Instalaciones
... 55 more rows

Sheet PROGRAMA IV
A1: ='PROGRAMA III'!A1 -> PLAN OPERATIVO ANUAL
A2: ='PROGRAMA I'!A2 -> COMITÉ CANTONAL DE DEPORTES Y RECREACIÓN DE MORAVIA
A3: ='PROGRAMA I'!A3:H3 -> 2014
A4: MATRIZ DE DESEMPEÑO PROGRAMÁTICO
A5: PROGRAMA IV: PARTIDAS ESPECÍFICAS
A7: MISIÓN: Desarrollar proyectos de inversión a través de los recursos provenientes de las partidas específicas, en favor de la comunidad con el fin de satisfacer sus necesidades .
A9: Producción final: Proyectos de inversión
A11: PLANIFICACIÓN ESTRATÉGICA | D11: PLANIFICACIÓN OPERATIVA | S11: EVALUACIÓN
A12: PLAN DE DESARROLLO MUNICIPAL | B12: PROGRAMA | C12: PROYECTO | D12: OBJETIVOS DE MEJORA Y/O OPERATIVOS | E12: META | H12: INDICADOR | I12: PROGRAMACIÓN DE LA META | N12: FUNCIONARIO RESPONSABLE | O12: GRUPOS | P12: SUBGRUPO | Q12: ASIGNACIÓN PRESUPUESTARIA POR META | S12: GASTO REAL POR META | U12: Resultado del indicador de eficiencia en la ejecución de los recursos por meta | V12: Resultado anual del indicador de eficiencia en la ejecución de los recursos por meta | W12: EJECUCIÓN DE LA META | AA12: Resultado del indicador de eficacia en el cumplimiento de la metas programadas
I13: I Semestre | J13: % | K13: II Semestre | L13: % | M13: % de la meta a alcanzar | Q13: I SEMESTRE | R13: II SEMESTRE | S13: I SEMESTRE | T13: II SEMESTRE | W13: I Semestre | X13: % | Y13: II Semestre | Z13: %
A14: AREA ESTRATÉGICA | E14: Código | F14: No. | G14: Descripción | I14: Sem | K14: Sem | W14: Sem | Y14: Sem
J15: =IF(OR(I15=0),0,(I15/(I15+K15))) -> 0 | L15: =IF(OR(K15=0),0,(K15/(I15+K15))) -> 0 | M15: =J15+L15 -> 0 | U15: =IF((S15+T15)=0,0,((S15+T15)/(Q15+R15))) -> 0 | V15: =IF(U15>=100%,100%,U15) -> 0 | X15: =IF(W15=0,0,IF((W15/(I15+K15))>J15,J15,(W15/(I15+K15)))) -> 0 | Z15: =IF(Y15=0,0,IF((Y15/(I15+K15))>L15,L15,(Y15/(I15+K15)))) -> 0 | AA15: =IF(W15+Y15=0,0,IF((W15+Y15)/(I15+K15)>100%,100%,(W15+Y15)/(I15+K15))) -> 0
J16: 0 | L16: 0 | M16: 0 | U16: =IF((S16+T16)=0,0,((S16+T16)/(Q16+R16))) -> 0 | V16: =IF(U16>=100%,100%,U16) -> 0 | X16: 0 | Z16: 0 | AA16: =IF(W16+Y16=0,0,IF((W16+Y16)/(I16+K16)>100%,100%,(W16+Y16)/(I16+K16))) -> 0
J17: 0 | L17: 0 | M17: 0 | U17: 0 | V17: 0 | X17: 0 | Z17: 0 | AA17: 0
J18: 0 | L18: 0 | M18: 0 | U18: 0 | V18: 0 | X18: 0 | Z18: 0 | AA18: 0
J19: 0 | L19: 0 | M19: 0 | U19: 0 | V19: 0 | X19: 0 | Z19: 0 | AA19: 0
J20: 0 | L20: 0 | M20: 0 | U20: 0 | V20: 0 | X20: 0 | Z20: 0 | AA20: 0
J21: 0 | L21: 0 | M21: 0 | U21: 0 | V21: 0 | X21: 0 | Z21: 0 | AA21: 0
J22: 0 | L22: 0 | M22: 0 | U22: 0 | V22: 0 | X22: 0 | Z22: 0 | AA22: 0
J23: 0 | L23: 0 | M23: 0 | U23: 0 | V23: 0 | X23: 0 | Z23: 0 | AA23: 0
J24: 0 | L24: 0 | M24: 0 | U24: 0 | V24: 0 | X24: 0 | Z24: 0 | AA24: 0
J25: =IF(OR(I25=0),0,(I25/(I25+K25))) -> 0 | L25: =IF(OR(K25=0),0,(K25/(I25+K25))) -> 0 | M25: =J25+L25 -> 0 | U25: 0 | V25: 0 | X25: =IF(W25=0,0,IF((W25/(I25+K25))>J25,J25,(W25/(I25+K25)))) -> 0 | Z25: =IF(Y25=0,0,IF((Y25/(I25+K25))>L25,L25,(Y25/(I25+K25)))) -> 0 | AA25: 0
J26: 0 | L26: 0 | M26: 0 | U26: 0 | V26: 0 | X26: 0 | Z26: 0 | AA26: 0
J27: 0 | L27: 0 | M27: 0 | U27: 0 | V27: 0 | X27: 0 | Z27: 0 | AA27: 0
J28: 0 | L28: 0 | M28: 0 | U28: 0 | V28: 0 | X28: 0 | Z28: 0 | AA28: 0
J29: 0 | L29: 0 | M29: 0 | U29: 0 | V29: 0 | X29: 0 | Z29: 0 | AA29: 0
J30: 0 | L30: 0 | M30: 0 | U30: 0 | V30: 0 | X30: 0 | Z30: 0 | AA30: 0
J31: 0 | L31: 0 | M31: 0 | U31: 0 | V31: 0 | X31: 0 | Z31: 0 | AA31: 0
J32: 0 | L32: 0 | M32: 0 | U32: 0 | V32: 0 | X32: 0 | Z32: 0 | AA32: 0
J33: 0 | L33: 0 | M33: 0 | U33: 0 | V33: 0 | X33: 0 | Z33: 0 | AA33: 0
J34: 0 | L34: 0 | M34: 0 | U34: 0 | V34: 0 | X34: 0 | Z34: 0 | AA34: 0
J35: 0 | L35: 0 | M35: 0 | U35: 0 | V35: 0 | X35: 0 | Z35: 0 | AA35: 0
J36: 0 | L36: 0 | M36: 0 | U36: 0 | V36: 0 | X36: 0 | Z36: 0 | AA36: 0
J37: 0 | L37: 0 | M37: 0 | U37: 0 | V37: 0 | X37: 0 | Z37: 0 | AA37: 0
J38: 0 | L38: 0 | M38: 0 | U38: 0 | V38: 0 | X38: 0 | Z38: 0 | AA38: 0
J39: 0 | L39: 0 | M39: 0 | U39: 0 | V39: 0 | X39: 0 | Z39: 0 | AA39: 0
J40: 0 | L40: 0 | M40: 0 | U40: 0 | V40: 0 | X40: 0 | Z40: 0 | AA40: 0
J41: 0 | L41: 0 | M41: 0 | U41: 0 | V41: 0 | X41: 0 | Z41: 0 | AA41: 0
J42: 0 | L42: 0 | M42: 0 | U42: 0 | V42: 0 | X42: 0 | Z42: 0 | AA42: 0
J43: 0 | L43: 0 | M43: 0 | U43: 0 | V43: 0 | X43: 0 | Z43: 0 | AA43: 0
J44: 0 | L44: 0 | M44: 0 | U44: 0 | V44: 0 | X44: 0 | Z44: 0 | AA44: 0
J45: 0 | L45: 0 | M45: 0 | U45: 0 | V45: 0 | X45: 0 | Z45: 0 | AA45: 0
J46: 0 | L46: 0 | M46: 0 | U46: 0 | V46: 0 | X46: 0 | Z46: 0 | AA46: 0
J47: 0 | L47: 0 | M47: 0 | U47: 0 | V47: 0 | X47: 0 | Z47: 0 | AA47: 0
J48: 0 | L48: 0 | M48: 0 | U48: 0 | V48: 0 | X48: 0 | Z48: 0 | AA48: 0
J49: 0 | L49: 0 | M49: 0 | U49: 0 | V49: 0 | X49: 0 | Z49: 0 | AA49: 0
J50: 0 | L50: 0 | M50: 0 | U50: 0 | V50: 0 | X50: 0 | Z50: 0 | AA50: 0
J51: 0 | L51: 0 | M51: 0 | U51: 0 | V51: 0 | X51: 0 | Z51: 0 | AA51: 0
J52: 0 | L52: 0 | M52: 0 | U52: 0 | V52: 0 | X52: 0 | Z52: 0 | AA52: 0
J53: 0 | L53: 0 | M53: 0 | U53: 0 | V53: 0 | X53: 0 | Z53: 0 | AA53: 0
J54: 0 | L54: 0 | M54: 0 | U54: 0 | V54: 0 | X54: 0 | Z54: 0 | AA54: 0
J55: 0 | L55: 0 | M55: 0 | U55: 0 | V55: 0 | X55: 0 | Z55: 0 | AA55: 0
J56: 0 | L56: 0 | M56: 0 | U56: 0 | V56: 0 | X56: 0 | Z56: 0 | AA56: 0
J57: 0 | L57: 0 | M57: 0 | U57: 0 | V57: 0 | X57: 0 | Z57: 0 | AA57: 0
J58: 0 | L58: 0 | M58: 0 | U58: 0 | V58: 0 | X58: 0 | Z58: 0 | AA58: 0
J59: 0 | L59: 0 | M59: 0 | U59: 0 | V59: 0 | X59: 0 | Z59: 0 | AA59: 0
J60: 0 | L60: 0 | M60: 0 | U60: 0 | V60: 0 | X60: 0 | Z60: 0 | AA60: 0
J61: 0 | L61: 0 | M61: 0 | U61: 0 | V61: 0 | X61: 0 | Z61: 0 | AA61: 0
J62: 0 | L62: 0 | M62: 0 | U62: 0 | V62: 0 | X62: 0 | Z62: 0 | AA62: 0
J63: 0 | L63: 0 | M63: 0 | U63: 0 | V63: 0 | X63: 0 | Z63: 0 | AA63: 0
J64: 0 | L64: 0 | M64: 0 | U64: 0 | V64: 0 | X64: 0 | Z64: 0 | AA64: 0
J65: 0 | L65: 0 | M65: 0 | U65: 0 | V65: 0 | X65: 0 | Z65: 0 | AA65: 0
J66: 0 | L66: 0 | M66: 0 | U66: 0 | V66: 0 | X66: 0 | Z66: 0 | AA66: 0
J67: 0 | L67: 0 | M67: 0 | U67: 0 | V67: 0 | X67: 0 | Z67: 0 | AA67: 0
J68: 0 | L68: 0 | M68: 0 | U68: 0 | V68: 0 | X68: 0 | Z68: 0 | AA68: 0
J69: 0 | L69: 0 | M69: 0 | U69: 0 | V69: 0 | X69: 0 | Z69: 0 | AA69: 0
J70: 0 | L70: 0 | M70: 0 | U70: 0 | V70: 0 | X70: 0 | Z70: 0 | AA70: 0
J71: 0 | L71: 0 | M71: 0 | U71: 0 | V71: 0 | X71: 0 | Z71: 0 | AA71: 0
J72: 0 | L72: 0 | M72: 0 | U72: 0 | V72: 0 | X72: 0 | Z72: 0 | AA72: 0
J73: 0 | L73: 0 | M73: 0 | U73: 0 | V73: 0 | X73: 0 | Z73: 0 | AA73: 0
J74: 0 | L74: 0 | M74: 0 | U74: 0 | V74: 0 | X74: 0 | Z74: 0 | AA74: 0
J75: 0 | L75: 0 | M75: 0 | U75: 0 | V75: 0 | X75: 0 | Z75: 0 | AA75: 0
J76: 0 | L76: 0 | M76: 0 | U76: 0 | V76: 0 | X76: 0 | Z76: 0 | AA76: 0
J77: 0 | L77: 0 | M77: 0 | U77: 0 | V77: 0 | X77: 0 | Z77: 0 | AA77: 0
J78: 0 | L78: 0 | M78: 0 | U78: 0 | V78: 0 | X78: 0 | Z78: 0 | AA78: 0
J79: 0 | L79: 0 | M79: 0 | U79: 0 | V79: 0 | X79: 0 | Z79: 0 | AA79: 0
J80: 0 | L80: 0 | M80: 0 | U80: =IF((S80+T80)=0,0,((S80+T80)/(Q80+R80))) -> 0 | V80: =IF(U80>=100%,100%,U80) -> 0 | X80: 0 | Z80: 0 | AA80: =IF(W80+Y80=0,0,IF((W80+Y80)/(I80+K80)>100%,100%,(W80+Y80)/(I80+K80))) -> 0
J81: 0 | L81: 0 | M81: 0 | U81: 0 | V81: 0 | X81: 0 | Z81: 0 | AA81: 0
J82: 0 | L82: 0 | M82: 0 | U82: 0 | V82: 0 | X82: 0 | Z82: 0 | AA82: 0
J83: 0 | L83: 0 | M83: 0 | U83: 0 | V83: 0 | X83: 0 | Z83: 0 | AA83: 0
J84: 0 | L84: 0 | M84: 0 | U84: 0 | V84: 0 | X84: 0 | Z84: 0 | AA84: 0
J85: 0 | L85: 0 | M85: 0 | U85: 0 | V85: 0 | X85: 0 | Z85: 0 | AA85: 0
J86: 0 | L86: 0 | M86: 0 | U86: 0 | V86: 0 | X86: 0 | Z86: 0 | AA86: 0
J87: =IF(OR(I87=0),0,(I87/(I87+K87))) -> 0 | L87: =IF(OR(K87=0),0,(K87/(I87+K87))) -> 0 | M87: =J87+L87 -> 0 | U87: =S87/Q87 ->  | X87: =IF(OR(W87=0),0,(W87/(I87+K87))) -> 0 | Z87: =IF(OR(Y87=0),0,(Y87/(I87+K87))) -> 0 | AA87: 0
J88: =IF(OR(I88=0),0,(I88/(I88+K88))) -> 0 | L88: =IF(OR(K88=0),0,(K88/(I88+K88))) -> 0 | M88: =J88+L88 -> 0 | X88: =IF(OR(W88=0),0,(W88/(I88+K88))) -> 0 | Z88: =IF(OR(Y88=0),0,(Y88/(I88+K88))) -> 0 | AA88: 0
D90: SUBTOTALES | J90: =SUM(J15:J89) -> 0 | L90: =SUM(L15:L89) -> 0 | M90: =SUM(M15:M89) -> 0 | Q90: =SUM(Q15:Q89) -> 0 | R90: =SUM(R15:R89) -> 0 | S90: =SUM(S15:S89) -> 0 | T90: =SUM(T15:T89) -> 0 | U90: =IF(S90=0,0,(S90/Q90)) -> 0 | V90: =IF(T90=0,0,(T90/R90)) -> 0 | X90: =SUM(X15:X89) -> 0 | Z90: =SUM(Z15:Z89) -> 0
A91: TOTAL POR PROGRAMA | J91: =IF(OR(J90=0),0,(J90/M90)) -> 0 | L91: =IF(OR(L90=0),0,(L90/M90)) -> 0 | M91: =SUM(M15:M89)/M90 ->  | X91: =IF(OR(X90=0),0,(X90/M90)) -> 0 | Z91: =IF(OR(Z90=0),0,(Z90/M90)) -> 0 | AA91: =X91+Z91 -> 0
D92: =IF(OR(RESTRINGIDOP4!B9=0),0,(RESTRINGIDOP4!B9/RESTRINGIDOP4!B8)) -> 0 | E92: Metas de Objetivos de Mejora | J92: =IF(OR(D92=0),0,(RESTRINGIDOP4!C5/RESTRINGIDOP4!B9)) -> 0 | L92: =IF(OR(D92=0),0,(RESTRINGIDOP4!D5/RESTRINGIDOP4!B9)) -> 0 | M92: =(J92+L92) -> 0 | X92: =IF(OR(D92=0),0,(RESTRINGIDOP4!I5/RESTRINGIDOP4!E5)) -> 0 | Z92: =IF(OR(D92=0),0,(RESTRINGIDOP4!J5/RESTRINGIDOP4!E5)) -> 0 | AA92: =X92+Z92 -> 0
D93: =IF(OR(RESTRINGIDOP4!B10=0),0,RESTRINGIDOP4!B10/RESTRINGIDOP4!B8) -> 0 | E93: Metas de Objetivos Operativos | J93: =IF(OR(D93=0),0,(RESTRINGIDOP4!F5/RESTRINGIDOP4!B10)) -> 0 | L93: =IF(OR(D93=0),0,(RESTRINGIDOP4!G5/RESTRINGIDOP4!B10)) -> 0 | M93: =J93+L93 -> 0 | X93: =IF(OR(D93=0),0,(RESTRINGIDOP4!L5/RESTRINGIDOP4!B10)) -> 0 | Z93: =IF(OR(D93=0),0,(RESTRINGIDOP4!M5/RESTRINGIDOP4!B10)) -> 0 | AA93: =X93+Z93 -> 0
D94: =M90 -> 0 | E94: Metas formuladas para el programa
A96: Mejora
A97: Operativo
A99: 01 Edificios
A100: 02 Vías de comunicación terrestre
A101: 03 Obras marítimas y fluviales
A102: 04 Obras urbanísticas
A103: 05 Instalaciones
A104: 06 Otros proyectos
A105: 07 Otros fondos e inversiones
A107: ='MARCO GENERAL'!D29 -> Gestión Deportiva
A108: ='MARCO GENERAL'!D30 -> Gestión Recreativa
A109: ='MARCO GENERAL'!D31 -> Gestión de Inversión y Obras
A110: ='MARCO GENERAL'!D32 -> Gestión de Capacitación y Becas
A111: ='MARCO GENERAL'!D33 -> Gestión Comunitaria
A112: ='MARCO GENERAL'!D34 -> Gestión Administrativa
A113: ='MARCO GENERAL'!D35 -> Gestión de Inclusión Social
A114: ='MARCO GENERAL'!D36 -> No aplica
A115: ='MARCO GENERAL'!D37 -> No aplica
A116: ='MARCO GENERAL'!D38 -> No aplica
A117: ='MARCO GENERAL'!D39 -> No aplica
A118: ='MARCO GENERAL'!D40 -> No aplica
A119: ='MARCO GENERAL'!D41 -> No aplica
A120: ='MARCO GENERAL'!D42 -> No aplica
A121: ='MARCO GENERAL'!D43 -> No aplica
A122: ='MARCO GENERAL'!D44 -> No aplica
A123: ='MARCO GENERAL'!D45 -> No aplica
A124: ='MARCO GENERAL'!D46 -> No aplica
A125: ='MARCO GENERAL'!D47 -> No aplica
A126: ='MARCO GENERAL'!D48 -> No aplica
A128: Acueductos
A129: Alcantarillado pluvial
A130: Alcantarillado sanitario
A131: Alumbrado público
A132: Cementerios
A133: Centros culturales
A134: Centros de enseñanza
A135: Centros de salud
A136: Centros deportivos y de recreación
A137: Diques
A138: Disposición de desechos sólidos
A139: Fraccionamiento y habilitación de terrenos
A140: Mantenimiento periódico red vial
A141: Mantenimiento rutinario red vial
A142: Marinas
A143: Mejoramiento red vial
A144: Muelles
A145: Obras de defensa y protección
A146: Obras nuevas red vial
A147: Otras instalaciones
A148: Otras obras marítimas y fluviales
A149: Otras obras urbanísticas
A150: Otros Edificios
A151: Otros fondos e inversiones
A152: Otros proyectos
A153: Parques y zonas verdes
A154: Reconstrucción red vial
A155: Rehabilitación red vial
A156: Rompeolas
A157: Salones Comunales
A158: Tajos y canteras

Sheet GRAFICOS
A1: ='MARCO GENERAL'!D5 -> COMITÉ CANTONAL DE DEPORTES Y RECREACIÓN DE MORAVIA
A2: DISTRIBUCIÓN DE RECURSOS
A3: ='MARCO GENERAL'!D7 -> 2014
A5: AREAS ESTRATÉGICAS | B5: ='CALCULO POR AREAS'!A3 -> PROG I | C5: ='CALCULO POR AREAS'!B3 -> PROG II | D5: ='CALCULO POR AREAS'!C3 -> PROG III | E5: ='CALCULO POR AREAS'!D3 -> PROG IV | F5: TOTAL | G5: %
A6: ='MARCO GENERAL'!D29 -> Gestión Deportiva | B6: ='CALCULO POR AREAS'!A4 -> 0 | C6: ='CALCULO POR AREAS'!B4 -> 21250000 | D6: ='CALCULO POR AREAS'!C4 -> 0 | E6: ='CALCULO POR AREAS'!D4 -> 0 | F6: =SUM(B6:E6) -> 21250000 | G6: =F6/$F$26 -> 
A7: ='MARCO GENERAL'!D30 -> Gestión Recreativa | B7: ='CALCULO POR AREAS'!E4 -> 0 | C7: ='CALCULO POR AREAS'!F4 -> 100000 | D7: ='CALCULO POR AREAS'!G4 -> 0 | E7: ='CALCULO POR AREAS'!H4 -> 0 | F7: =SUM(B7:E7) -> 100000 | G7: =F7/$F$26 -> 
A8: ='MARCO GENERAL'!D31 -> Gestión de Inversión y Obras | B8: ='CALCULO POR AREAS'!I4 -> 0 | C8: ='CALCULO POR AREAS'!J4 -> 0 | D8: ='CALCULO POR AREAS'!K4 -> 25195284.31 | E8: ='CALCULO POR AREAS'!L4 -> 0 | F8: 25195284.31
A9: ='MARCO GENERAL'!D32 -> Gestión de Capacitación y Becas | B9: ='CALCULO POR AREAS'!M4 -> 0 | C9: ='CALCULO POR AREAS'!N4 -> 1965580 | D9: ='CALCULO POR AREAS'!O4 -> 0 | E9: ='CALCULO POR AREAS'!P4 -> 0 | F9: 1965580
A10: ='MARCO GENERAL'!D33 -> Gestión Comunitaria | B10: ='CALCULO POR AREAS'!Q4 -> 0 | C10: ='CALCULO POR AREAS'!R4 ->  | D10: ='CALCULO POR AREAS'!S4 -> 0 | E10: ='CALCULO POR AREAS'!T4 -> 0
A11: ='MARCO GENERAL'!D34 -> Gestión Administrativa | B11: ='CALCULO POR AREAS'!U4 -> 13476402.84 | C11: ='CALCULO POR AREAS'!V4 -> 38085348.87 | D11: ='CALCULO POR AREAS'!W4 -> 33561412.4 | E11: ='CALCULO POR AREAS'!X4 -> 0 | F11: 85123164.11
A12: ='MARCO GENERAL'!D35 -> Gestión de Inclusión Social | B12: ='CALCULO POR AREAS'!Y4 -> 0 | C12: ='CALCULO POR AREAS'!Z4 -> 263333.32 | D12: ='CALCULO POR AREAS'!AA4 -> 0 | E12: ='CALCULO POR AREAS'!AB4 -> 0 | F12: 263333.32
A13: ='MARCO GENERAL'!D36 -> No aplica | B13: ='CALCULO POR AREAS'!AC4 -> 0 | C13: ='CALCULO POR AREAS'!AD4 -> 0 | D13: ='CALCULO POR AREAS'!AE4 -> 0 | E13: ='CALCULO POR AREAS'!AF4 -> 0 | F13: 0
A14: ='MARCO GENERAL'!D37 -> No aplica | B14: ='CALCULO POR AREAS'!AG4 -> 0 | C14: ='CALCULO POR AREAS'!AH4 -> 0 | D14: ='CALCULO POR AREAS'!AI4 -> 0 | E14: ='CALCULO POR AREAS'!AJ4 -> 0 | F14: 0
A15: ='MARCO GENERAL'!D38 -> No aplica | B15: ='CALCULO POR AREAS'!AK4 -> 0 | C15: ='CALCULO POR AREAS'!AL4 -> 0 | D15: ='CALCULO POR AREAS'!AM4 -> 0 | E15: ='CALCULO POR AREAS'!AN4 -> 0 | F15: 0
A16: ='MARCO GENERAL'!D39 -> No aplica | B16: ='CALCULO POR AREAS'!AO4 -> 0 | C16: ='CALCULO POR AREAS'!AP4 -> 0 | D16: ='CALCULO POR AREAS'!AQ4 -> 0 | E16: ='CALCULO POR AREAS'!AR4 -> 0 | F16: 0
A17: ='MARCO GENERAL'!D40 -> No aplica | B17: ='CALCULO POR AREAS'!AS4 -> 0 | C17: ='CALCULO POR AREAS'!AT4 -> 0 | D17: ='CALCULO POR AREAS'!AU4 -> 0 | E17: ='CALCULO POR AREAS'!AV4 -> 0 | F17: 0
A18: ='MARCO GENERAL'!D41 -> No aplica | B18: ='CALCULO POR AREAS'!AW4 -> 0 | C18: ='CALCULO POR AREAS'!AX4 -> 0 | D18: ='CALCULO POR AREAS'!AY4 -> 0 | E18: ='CALCULO POR AREAS'!AZ4 -> 0 | F18: 0
A19: ='MARCO GENERAL'!D42 -> No aplica | B19: ='CALCULO POR AREAS'!BA4 -> 0 | C19: ='CALCULO POR AREAS'!BB4 -> 0 | D19: ='CALCULO POR AREAS'!BC4 -> 0 | E19: ='CALCULO POR AREAS'!BD4 -> 0 | F19: 0
A20: ='MARCO GENERAL'!D43 -> No aplica | B20: ='CALCULO POR AREAS'!BE4 -> 0 | C20: ='CALCULO POR AREAS'!BF4 -> 0 | D20: ='CALCULO POR AREAS'!BG4 -> 0 | E20: ='CALCULO POR AREAS'!BH4 -> 0 | F20: 0
A21: ='MARCO GENERAL'!D44 -> No aplica | B21: ='CALCULO POR AREAS'!BI4 -> 0 | C21: ='CALCULO POR AREAS'!BJ4 -> 0 | D21: ='CALCULO POR AREAS'!BK4 -> 0 | E21: ='CALCULO POR AREAS'!BL4 -> 0 | F21: 0
A22: ='MARCO GENERAL'!D45 -> No aplica | B22: ='CALCULO POR AREAS'!BM4 -> 0 | C22: ='CALCULO POR AREAS'!BN4 -> 0 | D22: ='CALCULO POR AREAS'!BO4 -> 0 | E22: ='CALCULO POR AREAS'!BP4 -> 0 | F22: 0
A23: ='MARCO GENERAL'!D46 -> No aplica | B23: ='CALCULO POR AREAS'!BQ4 -> 0 | C23: ='CALCULO POR AREAS'!BR4 -> 0 | D23: ='CALCULO POR AREAS'!BS4 -> 0 | E23: ='CALCULO POR AREAS'!BT4 -> 0 | F23: =SUM(B23:E23) -> 0
A24: ='MARCO GENERAL'!D47 -> No aplica | B24: ='CALCULO POR AREAS'!BU4 -> 0 | C24: ='CALCULO POR AREAS'!BV4 -> 0 | D24: ='CALCULO POR AREAS'!BW4 -> 0 | E24: ='CALCULO POR AREAS'!BX4 -> 0 | F24: =SUM(B24:E24) -> 0
A25: ='MARCO GENERAL'!D48 -> No aplica | B25: ='CALCULO POR AREAS'!BY4 -> 0 | C25: ='CALCULO POR AREAS'!BZ4 -> 0 | D25: ='CALCULO POR AREAS'!CA4 -> 0 | E25: ='CALCULO POR AREAS'!CB4 -> 0 | F25: =SUM(B25:E25) -> 0
A26: TOTAL | B26: =SUM(B6:B25) -> 13476402.84 | C26: =SUM(C6:C25) ->  | D26: =SUM(D6:D25) -> 58756696.71 | E26: =SUM(E6:E25) -> 0 | F26: =SUM(F6:F25) -> 
A27: % | B27: =B26/$F$26 ->  | C27: =C26/$F$26 ->  | D27: =D26/$F$26 ->  | E27: =E26/$F$26 -> 

Sheet EVALUACIÓN POA
A1: ='MARCO GENERAL'!D5 -> COMITÉ CANTONAL DE DEPORTES Y RECREACIÓN DE MORAVIA
A2: MATRIZ PARA EVALUAR EL POA
A3: PLAN OPERATIVO ANUAL
A4: ='MARCO GENERAL'!D7 -> 2014
A6: INDICADORES GENERALES
A7: INDICADORES | C7: NOMBRE DEL INDICADOR | D7: FÓRMULA DEL INDICADOR | E7: INDICADOR META | F7: METAS PROPUESTAS | H7: METAS ALCANZADAS | J7: RESULTADO DEL INDICADOR
F8: I Semestre | G8: II Semestre | H8: I Semestre | I8: II Semestre | J8: I Semestre | K8: II Semestre | L8: ANUAL
A9: INSTITUCIONALES | B9: 1.1 | C9: Grado de cumplimiento de metas | D9: Sumatoria de los % de avance de las metas / Número total de metas programadas | E9: 1 | F9: =IF('PROGRAMA IV'!J91<>0,SUM('PROGRAMA I'!J87+'PROGRAMA II'!J155+'PROGRAMA III'!J193+'PROGRAMA IV'!J91)/4,SUM('PROGRAMA I'!J87+'PROGRAMA II'!J155+'PROGRAMA III'!J193+'PROGRAMA IV'!J91)/3) ->  | G9: =IF('PROGRAMA IV'!L91<>0,SUM('PROGRAMA I'!L87+'PROGRAMA II'!L155+'PROGRAMA III'!L193+'PROGRAMA IV'!L91)/4,SUM('PROGRAMA I'!L87+'PROGRAMA II'!L155+'PROGRAMA III'!L193+'PROGRAMA IV'!L91)/3) ->  | H9: =IF('PROGRAMA IV'!X91<>0,SUM('PROGRAMA I'!W87+'PROGRAMA II'!X155+'PROGRAMA III'!X193+'PROGRAMA IV'!X91)/4,SUM('PROGRAMA I'!W87+'PROGRAMA II'!X155+'PROGRAMA III'!X193+'PROGRAMA IV'!X91)/3) ->  | I9: =IF('PROGRAMA IV'!Z91<>0,SUM('PROGRAMA I'!Y87+'PROGRAMA II'!Z155+'PROGRAMA III'!Z193+'PROGRAMA IV'!Z91)/4,SUM('PROGRAMA I'!Y87+'PROGRAMA II'!Z155+'PROGRAMA III'!Z193+'PROGRAMA IV'!Z91)/3) -> 0 | J9: =IF((H9/F9)/(F9+G9)>100%,100%,(H9/F9)/(F9+G9)) ->  | K9: =IF((I9/G9)/(F9+G9)>100%,100%,(I9/G9)/(F9+G9)) ->  | L9: =IF((H9+I9)/(F9+G9)>100%,100%,(H9+I9)/(F9+G9)) -> 
B10: a) | C10: Grado de cumplimiento de metas de los objetivos de mejora | D10: Sumatoria de los % de avance de las metas de los objetivos de mejora / Número total de metas de los objetivos de mejora programadas | E10: 1 | F10: =IF('PROGRAMA IV'!J92<>0,SUM('PROGRAMA I'!J88+'PROGRAMA II'!J156+'PROGRAMA III'!J194+'PROGRAMA IV'!J92)/4,SUM('PROGRAMA I'!J88+'PROGRAMA II'!J156+'PROGRAMA III'!J194+'PROGRAMA IV'!J92)/3) ->  | G10: =IF('PROGRAMA IV'!L92<>0,SUM('PROGRAMA I'!L88+'PROGRAMA II'!L156+'PROGRAMA III'!L194+'PROGRAMA IV'!L92)/4,SUM('PROGRAMA I'!L88+'PROGRAMA II'!L156+'PROGRAMA III'!L194+'PROGRAMA IV'!L92)/3) ->  | H10: =IF('PROGRAMA IV'!X92<>0,SUM('PROGRAMA I'!W88+'PROGRAMA II'!X156+'PROGRAMA III'!X194+'PROGRAMA IV'!X92)/4,SUM('PROGRAMA I'!W88+'PROGRAMA II'!X156+'PROGRAMA III'!X194+'PROGRAMA IV'!X92)/3) ->  | I10: =IF('PROGRAMA IV'!Z92<>0,SUM('PROGRAMA I'!Y88+'PROGRAMA II'!Z156+'PROGRAMA III'!Z194+'PROGRAMA IV'!Z92)/4,SUM('PROGRAMA I'!Y88+'PROGRAMA II'!Z156+'PROGRAMA III'!Z194+'PROGRAMA IV'!Z92)/3) ->  | J10: =IF((H10/F10)/(F10+G10)>100%,100%,(H10/F10)/(F10+G10)) ->  | K10: =IF((I10/G10)/(F10+G10)>100%,100%,(I10/G10)/(F10+G10)) ->  | L10: =IF((H10+I10)/(F10+G10)>100%,100%,(H10+I10)/(F10+G10)) -> 
B11: b) | C11: Grado de cumplimiento de metas de los objetivos operativos | D11: Sumatoria de los % de avance de las metas de los objetivos operativos / Número total de metas de los objetivos operativos programadas | E11: 1 | F11: =IF('PROGRAMA IV'!J93<>0,SUM('PROGRAMA I'!J89+'PROGRAMA II'!J157+'PROGRAMA III'!J195+'PROGRAMA IV'!J93)/4,SUM('PROGRAMA I'!J89+'PROGRAMA II'!J157+'PROGRAMA III'!J195+'PROGRAMA IV'!J93)/3) ->  | G11: =IF('PROGRAMA IV'!L93<>0,SUM('PROGRAMA I'!L89+'PROGRAMA II'!L157+'PROGRAMA III'!L195+'PROGRAMA IV'!L93)/4,SUM('PROGRAMA I'!L89+'PROGRAMA II'!L157+'PROGRAMA III'!L195+'PROGRAMA IV'!L93)/3) ->  | H11: =IF('PROGRAMA IV'!X93<>0,SUM('PROGRAMA I'!W89+'PROGRAMA II'!X157+'PROGRAMA III'!X195+'PROGRAMA IV'!X93)/4,SUM('PROGRAMA I'!W89+'PROGRAMA II'!X157+'PROGRAMA III'!X195+'PROGRAMA IV'!X93)/3) ->  | I11: =IF('PROGRAMA IV'!Z93<>0,SUM('PROGRAMA I'!Y89+'PROGRAMA II'!Z157+'PROGRAMA III'!Z195+'PROGRAMA IV'!Z93)/4,SUM('PROGRAMA I'!Y89+'PROGRAMA II'!Z157+'PROGRAMA III'!Z195+'PROGRAMA IV'!Z93)/3) ->  | J11: =IF((H11/F11)/(F11+G11)>100%,100%,(H11/F11)/(F11+G11)) ->  | K11: =IF((I11/G11)/(F11+G11)>100%,100%,(I11/G11)/(F11+G11)) ->  | L11: =IF((H11+I11)/(F11+G11)>100%,100%,(H11+I11)/(F11+G11)) -> 
B12: 1.2 | C12: Ejecución del presupuesto | D12: (Egresos ejecutados / Egresos presupuestados ) * 100 | E12: 1 | F12: ='PROGRAMA I'!P86+'PROGRAMA II'!Q154+'PROGRAMA III'!Q192+'PROGRAMA IV'!Q90 -> 67382014.2 | G12: ='PROGRAMA I'!Q86+'PROGRAMA II'!R154+'PROGRAMA III'!R192+'PROGRAMA IV'!R90 -> 67382014.2 | H12: ='PROGRAMA I'!R86+'PROGRAMA II'!S154+'PROGRAMA III'!S192+'PROGRAMA IV'!S90 -> 0 | I12: ='PROGRAMA I'!S86+'PROGRAMA II'!T154+'PROGRAMA III'!T192+'PROGRAMA IV'!T90 -> 0 | J12: =IF((H12/F12)>=100%,100%,(H12/F12)) -> 0 | K12: =IF((I12/G12)>=100%,100%,(I12/G12)) -> 0 | L12: =IF((H12+I12)/(F12+G12)>=100%,100%,(H12+I12)/(F12+G12)) -> 0
A13: RECURSOS LEY 8114 | B13: 1.3 | C13: Grado de cumplimiento de metas programadas con los recursos de la Ley 8114 | D13: Sumatoria de los % de avance de las metas programadas con los recursos de la Ley 8114 / Número total de metas programadas con recursos de la Ley 8114 | E13: 1 | J13: =IF(OR(F13=0),0,(H13/F13)/(F13+G13)) -> 0 | K13: =IF(OR(I13=0),0,(I13/G13)/(F13+G13)) -> 0 | L13: =IF(OR(H13=0),0,(H13+I13)/(F13+G13)) -> 0
B14: 1.4 | C14: Ejecución del gasto presupuestado con recursos de la Ley 8114 | D14: (Gasto ejecutado de la Ley 8114 / Gasto presupuestado de la Ley 8114)*100 | E14: 1 | J14: =IF(OR(H14=0),0,H14/F14) -> 0 | K14: =IF(OR(I14=0),0,I14/G14) -> 0 | L14: =IF(OR(H14=0),0,(H14+I14)/(F14+G14)) -> 0
A16: RESUMEN: | F16: RESUMEN: | I16: RESUMEN:
A17: ANUAL | F17: I SEMESTRE | I17: II SEMESTRE
C18: % Cumplimiento Metas | D18: % ejecución recursos | G18: % Cumplimiento Metas | J18: % Cumplimiento Metas
A19: Programa 1 | C19: ='PROGRAMA I'!Z87 ->  | D19: ='PROGRAMA I'!R86/'PROGRAMA I'!Q86 -> 0 | F19: Programa 1 | G19: ='PROGRAMA I'!W87/'PROGRAMA I'!J87 ->  | I19: Programa 1 | J19: ='PROGRAMA I'!Y87/'PROGRAMA I'!L87 -> 
A20: Programa 2 | C20: ='PROGRAMA II'!AA155 ->  | D20: ='PROGRAMA II'!S154/'PROGRAMA II'!R154 -> 0 | F20: Programa 2 | G20: ='PROGRAMA II'!X155/'PROGRAMA II'!J155 ->  | I20: Programa 2 | J20: ='PROGRAMA II'!Z155/'PROGRAMA II'!L155 -> 
A21: Programa 3 | C21: ='PROGRAMA III'!AA193 -> 0.425 | D21: ='PROGRAMA III'!S192/'PROGRAMA III'!Q192 -> 0 | F21: Programa 3 | G21: ='PROGRAMA III'!X193/'PROGRAMA III'!J193 -> 0.85 | I21: Programa 3 | J21: ='PROGRAMA III'!Z193/'PROGRAMA III'!L193 -> 0
A22: Programa 4 | C22: ='PROGRAMA IV'!AA91 -> 0 | D22: ='PROGRAMA IV'!S90/'PROGRAMA IV'!Q90 ->  | F22: Programa 4 | G22: ='PROGRAMA IV'!X91/'PROGRAMA IV'!J91 ->  | I22: Programa 4 | J22: ='PROGRAMA IV'!Z91/'PROGRAMA IV'!L91 -> 

Sheet CALCULO POR AREAS (hidden)
A1: AREAS ESTRATÉGICAS
A2: ='MARCO GENERAL'!D29 -> Gestión Deportiva | E2: ='MARCO GENERAL'!D30 -> Gestión Recreativa | I2: ='MARCO GENERAL'!D31 -> Gestión de Inversión y Obras | M2: ='MARCO GENERAL'!D32 -> Gestión de Capacitación y Becas | Q2: ='MARCO GENERAL'!D33 -> Gestión Comunitaria | U2: ='MARCO GENERAL'!D34 -> Gestión Administrativa | Y2: ='MARCO GENERAL'!D35 -> Gestión de Inclusión Social | AC2: ='MARCO GENERAL'!D36 -> No aplica | AG2: ='MARCO GENERAL'!D37 -> No aplica | AK2: ='MARCO GENERAL'!D38 -> No aplica | AO2: ='MARCO GENERAL'!D39 -> No aplica | AS2: ='MARCO GENERAL'!D40 -> No aplica | AW2: ='MARCO GENERAL'!D41 -> No aplica | BA2: ='MARCO GENERAL'!D42 -> No aplica | BE2: ='MARCO GENERAL'!D43 -> No aplica | BI2: ='MARCO GENERAL'!D44 -> No aplica | BM2: ='MARCO GENERAL'!D45 -> No aplica | BQ2: ='MARCO GENERAL'!D46 -> No aplica | BU2: ='MARCO GENERAL'!D47 -> No aplica | BY2: ='MARCO GENERAL'!D48 -> No aplica
A3: PROG I | B3: PROG II | C3: PROG III | D3: PROG IV | E3: PROG I | F3: PROG II | G3: PROG III | H3: PROG IV | I3: PROG I | J3: PROG II | K3: PROG III | L3: PROG IV | M3: PROG I | N3: PROG II | O3: PROG III | P3: PROG IV | Q3: PROG I | R3: PROG II | S3: PROG III | T3: PROG IV | U3: PROG I | V3: PROG II | W3: PROG III | X3: PROG IV | Y3: PROG I | Z3: PROG II | AA3: PROG III | AB3: PROG IV | AC3: PROG I | AD3: PROG II | AE3: PROG III | AF3: PROG IV | AG3: PROG I | AH3: PROG II | AI3: PROG III | AJ3: PROG IV | AK3: PROG I | AL3: PROG II | AM3: PROG III | AN3: PROG IV | AO3: PROG I | AP3: PROG II | AQ3: PROG III | AR3: PROG IV | AS3: PROG I | AT3: PROG II | AU3: PROG III | AV3: PROG IV | AW3: PROG I | AX3: PROG II | AY3: PROG III | AZ3: PROG IV | BA3: PROG I | BB3: PROG II | BC3: PROG III | BD3: PROG IV | BE3: PROG I | BF3: PROG II | BG3: PROG III | BH3: PROG IV | BI3: PROG I | BJ3: PROG II | BK3: PROG III | BL3: PROG IV | BM3: PROG I | BN3: PROG II | BO3: PROG III | BP3: PROG IV | BQ3: PROG I | BR3: PROG II | BS3: PROG III | BT3: PROG IV | BU3: PROG I | BV3: PROG II | BW3: PROG III | BX3: PROG IV | BY3: PROG I | BZ3: PROG II | CA3: PROG III | CB3: PROG IV
A4: =SUM(A5:A185) -> 0 | B4: 21250000 | C4: 0 | D4: 0 | E4: 0 | F4: 100000 | G4: 0 | H4: 0 | I4: 0 | J4: 0 | K4: 25195284.31 | L4: 0 | M4: 0 | N4: 1965580 | O4: 0 | P4: 0 | Q4: 0 | S4: 0 | T4: 0 | U4: 13476402.84 | V4: 38085348.87 | W4: 33561412.4 | X4: 0 | Y4: 0 | Z4: 263333.32 | AA4: 0 | AB4: 0 | AC4: 0 | AD4: 0 | AE4: 0 | AF4: 0 | AG4: =SUM(AG5:AG185) -> 0 | AH4: 0 | AI4: 0 | AJ4: 0 | AK4: 0 | AL4: 0 | AM4: 0 | AN4: 0 | AO4: 0 | AP4: 0 | AQ4: 0 | AR4: 0 | AS4: 0 | AT4: 0 | AU4: 0 | AV4: 0 | AW4: 0 | AX4: 0 | AY4: 0 | AZ4: 0 | BA4: 0 | BB4: 0 | BC4: 0 | BD4: 0 | BE4: 0 | BF4: 0 | BG4: 0 | BH4: 0 | BI4: 0 | BJ4: 0 | BK4: 0 | BL4: 0 | BM4: =SUM(BM5:BM185) -> 0 | BN4: 0 | BO4: 0 | BP4: 0 | BQ4: 0 | BR4: 0 | BS4: 0 | BT4: 0 | BU4: 0 | BV4: 0 | BW4: 0 | BX4: 0 | BY4: 0 | BZ4: 0 | CA4: 0 | CB4: 0
A5: =IF('PROGRAMA I'!A14='CALCULO POR AREAS'!$A$2,('PROGRAMA I'!P14+'PROGRAMA I'!Q14),0) -> 0 | B5: =IF('PROGRAMA II'!A15='CALCULO POR AREAS'!$A$2,'PROGRAMA II'!Q15+'PROGRAMA II'!R15,0) -> 0 | C5: =IF('PROGRAMA III'!A15='CALCULO POR AREAS'!$A$2,'PROGRAMA III'!Q15+'PROGRAMA III'!R15,0) -> 0 | D5: =IF('PROGRAMA IV'!A15='CALCULO POR AREAS'!$A$2,'PROGRAMA IV'!Q15+'PROGRAMA IV'!R15,0) -> 0 | E5: =IF('PROGRAMA I'!A14='CALCULO POR AREAS'!$E$2,('PROGRAMA I'!P14+'PROGRAMA I'!Q14),0) -> 0 | F5: =IF('PROGRAMA II'!A15='CALCULO POR AREAS'!$E$2,'PROGRAMA II'!Q15+'PROGRAMA II'!R15,0) -> 0 | G5: =IF('PROGRAMA III'!A15='CALCULO POR AREAS'!$E$2,'PROGRAMA III'!Q15+'PROGRAMA III'!R15,0) -> 0 | H5: =IF('PROGRAMA IV'!A15='CALCULO POR AREAS'!$E$2,'PROGRAMA IV'!Q15+'PROGRAMA IV'!R15,0) -> 0 | I5: =IF('PROGRAMA I'!A14='CALCULO POR AREAS'!$I$2,('PROGRAMA I'!P14+'PROGRAMA I'!Q14),0) -> 0 | J5: =IF('PROGRAMA II'!A15='CALCULO POR AREAS'!$I$2,'PROGRAMA II'!Q15+'PROGRAMA II'!R15,0) -> 0 | K5: =IF('PROGRAMA III'!A15='CALCULO POR AREAS'!$I$2,'PROGRAMA III'!Q15+'PROGRAMA III'!R15,0) -> 0 | L5: =IF('PROGRAMA IV'!A15='CALCULO POR AREAS'!$I$2,'PROGRAMA IV'!Q15+'PROGRAMA IV'!R15,0) -> 0 | M5: =IF('PROGRAMA I'!A14='CALCULO POR AREAS'!$M$2,('PROGRAMA I'!P14+'PROGRAMA I'!Q14),0) -> 0 | N5: =IF('PROGRAMA II'!A15='CALCULO POR AREAS'!$M$2,'PROGRAMA II'!Q15+'PROGRAMA II'!R15,0) -> 0 | O5: =IF('PROGRAMA III'!A15='CALCULO POR AREAS'!$M$2,'PROGRAMA III'!Q15+'PROGRAMA III'!R15,0) -> 0 | P5: =IF('PROGRAMA IV'!A15='CALCULO POR AREAS'!$M$2,'PROGRAMA IV'!Q15+'PROGRAMA IV'!R15,0) -> 0 | Q5: =IF('PROGRAMA I'!A14='CALCULO POR AREAS'!$Q$2,('PROGRAMA I'!P14+'PROGRAMA I'!Q14),0) -> 0 | R5: =IF('PROGRAMA II'!A15='CALCULO POR AREAS'!$Q$2,'PROGRAMA II'!Q15+'PROGRAMA II'!R15,0) -> 0 | S5: =IF('PROGRAMA III'!A15='CALCULO POR AREAS'!$Q$2,'PROGRAMA III'!Q15+'PROGRAMA III'!R15,0) -> 0 | T5: =IF('PROGRAMA IV'!A15='CALCULO POR AREAS'!$Q$2,'PROGRAMA IV'!Q15+'PROGRAMA IV'!R15,0) -> 0 | U5: =IF('PROGRAMA I'!A14='CALCULO POR AREAS'!$U$2,('PROGRAMA I'!P14+'PROGRAMA I'!Q14),0) -> 11861900.54 | V5: =IF('PROGRAMA II'!A15='CALCULO POR AREAS'!$U$2,'PROGRAMA II'!Q15+'PROGRAMA II'!R15,0) -> 35715388.57 | W5: =IF('PROGRAMA III'!A15='CALCULO POR AREAS'!$U$2,'PROGRAMA III'!Q15+'PROGRAMA III'!R15,0) -> 30651858.4 | X5: =IF('PROGRAMA IV'!A15='CALCULO POR AREAS'!$U$2,'PROGRAMA IV'!Q15+'PROGRAMA IV'!R15,0) -> 0 | Y5: =IF('PROGRAMA I'!A14='CALCULO POR AREAS'!$Y$2,('PROGRAMA I'!P14+'PROGRAMA I'!Q14),0) -> 0 | Z5: =IF('PROGRAMA II'!A15='CALCULO POR AREAS'!$Y$2,'PROGRAMA II'!Q15+'PROGRAMA II'!R15,0) -> 0 | AA5: =IF('PROGRAMA III'!A15='CALCULO POR AREAS'!$Y$2,'PROGRAMA III'!Q15+'PROGRAMA III'!R15,0) -> 0 | AB5: =IF('PROGRAMA IV'!A15='CALCULO POR AREAS'!$Y$2,'PROGRAMA IV'!Q15+'PROGRAMA IV'!R15,0) -> 0 | AC5: =IF('PROGRAMA I'!A14='CALCULO POR AREAS'!$AC$2,('PROGRAMA I'!P14+'PROGRAMA I'!Q14),0) -> 0 | AD5: =IF('PROGRAMA II'!A15='CALCULO POR AREAS'!$AC$2,'PROGRAMA II'!Q15+'PROGRAMA II'!R15,0) -> 0 | AE5: =IF('PROGRAMA III'!A15='CALCULO POR AREAS'!$AC$2,'PROGRAMA III'!Q15+'PROGRAMA III'!R15,0) -> 0 | AF5: =IF('PROGRAMA IV'!A15='CALCULO POR AREAS'!$AC$2,'PROGRAMA IV'!Q15+'PROGRAMA IV'!R15,0) -> 0 | AG5: =IF('PROGRAMA I'!A14='CALCULO POR AREAS'!$AG$2,('PROGRAMA I'!P14+'PROGRAMA I'!Q14),0) -> 0 | AH5: =IF('PROGRAMA II'!A15='CALCULO POR AREAS'!$AG$2,'PROGRAMA II'!Q15+'PROGRAMA II'!R15,0) -> 0 | AI5: =IF('PROGRAMA III'!A15='CALCULO POR AREAS'!$AG$2,'PROGRAMA III'!Q15+'PROGRAMA III'!R15,0) -> 0 | AJ5: =IF('PROGRAMA IV'!A15='CALCULO POR AREAS'!$AG$2,'PROGRAMA IV'!Q15+'PROGRAMA IV'!R15,0) -> 0 | AK5: =IF('PROGRAMA I'!A14='CALCULO POR AREAS'!$AK$2,('PROGRAMA I'!P14+'PROGRAMA I'!Q14),0) -> 0 | AL5: =IF('PROGRAMA II'!A15='CALCULO POR AREAS'!$AK$2,'PROGRAMA II'!Q15+'PROGRAMA II'!R15,0) -> 0 | AM5: =IF('PROGRAMA III'!A15='CALCULO POR AREAS'!$AK$2,'PROGRAMA III'!Q15+'PROGRAMA III'!R15,0) -> 0 | AN5: =IF('PROGRAMA IV'!A15='CALCULO POR AREAS'!$AK$2,'PROGRAMA IV'!Q15+'PROGRAMA IV'!R15,0) -> 0 | AO5: =IF('PROGRAMA I'!A14='CALCULO POR AREAS'!$AO$2,('PROGRAMA I'!P14+'PROGRAMA I'!Q14),0) -> 0 | AP5: =IF('PROGRAMA II'!A15='CALCULO POR AREAS'!$AO$2,'PROGRAMA II'!Q15+'PROGRAMA II'!R15,0) -> 0 | AQ5: =IF('PROGRAMA III'!A15='CALCULO POR AREAS'!$AO$2,'PROGRAMA III'!Q15+'PROGRAMA III'!R15,0) -> 0 | AR5: =IF('PROGRAMA IV'!A15='CALCULO POR AREAS'!$AO$2,'PROGRAMA IV'!Q15+'PROGRAMA IV'!R15,0) -> 0 | AS5: =IF('PROGRAMA I'!A14='CALCULO POR AREAS'!$AS$2,('PROGRAMA I'!P14+'PROGRAMA I'!Q14),0) -> 0 | AT5: =IF('PROGRAMA II'!A15='CALCULO POR AREAS'!$AS$2,'PROGRAMA II'!Q15+'PROGRAMA II'!R15,0) -> 0 | AU5: =IF('PROGRAMA III'!A15='CALCULO POR AREAS'!$AS$2,'PROGRAMA III'!Q15+'PROGRAMA III'!R15,0) -> 0 | AV5: =IF('PROGRAMA IV'!A15='CALCULO POR AREAS'!$AS$2,'PROGRAMA IV'!Q15+'PROGRAMA IV'!R15,0) -> 0 | AW5: =IF('PROGRAMA I'!A14='CALCULO POR AREAS'!$AW$2,('PROGRAMA I'!P14+'PROGRAMA I'!Q14),0) -> 0 | AX5: =IF('PROGRAMA II'!A15='CALCULO POR AREAS'!$AW$2,'PROGRAMA II'!Q15+'PROGRAMA II'!R15,0) -> 0 | AY5: =IF('PROGRAMA III'!A15='CALCULO POR AREAS'!$AW$2,'PROGRAMA III'!Q15+'PROGRAMA III'!R15,0) -> 0 | AZ5: =IF('PROGRAMA IV'!A15='CALCULO POR AREAS'!$AW$2,'PROGRAMA IV'!Q15+'PROGRAMA IV'!R15,0) -> 0 | BA5: =IF('PROGRAMA I'!A14='CALCULO POR AREAS'!$BA$2,('PROGRAMA I'!P14+'PROGRAMA I'!Q14),0) -> 0 | BB5: =IF('PROGRAMA II'!A15='CALCULO POR AREAS'!$BA$2,'PROGRAMA II'!Q15+'PROGRAMA II'!R15,0) -> 0 | BC5: =IF('PROGRAMA III'!A15='CALCULO POR AREAS'!$BA$2,'PROGRAMA III'!Q15+'PROGRAMA III'!R15,0) -> 0 | BD5: =IF('PROGRAMA IV'!A15='CALCULO POR AREAS'!$BA$2,'PROGRAMA IV'!Q15+'PROGRAMA IV'!R15,0) -> 0 | BE5: =IF('PROGRAMA I'!A14='CALCULO POR AREAS'!$BE$2,('PROGRAMA I'!P14+'PROGRAMA I'!Q14),0) -> 0 | BF5: =IF('PROGRAMA II'!A15='CALCULO POR AREAS'!$BE$2,'PROGRAMA II'!Q15+'PROGRAMA II'!R15,0) -> 0 | BG5: =IF('PROGRAMA III'!A15='CALCULO POR AREAS'!$BE$2,'PROGRAMA III'!Q15+'PROGRAMA III'!R15,0) -> 0 | BH5: =IF('PROGRAMA IV'!A15='CALCULO POR AREAS'!$BE$2,'PROGRAMA IV'!Q15+'PROGRAMA IV'!R15,0) -> 0 | BI5: =IF('PROGRAMA I'!A14='CALCULO POR AREAS'!$BI$2,('PROGRAMA I'!P14+'PROGRAMA I'!Q14),0) -> 0 | BJ5: =IF('PROGRAMA II'!A15='CALCULO POR AREAS'!$BI$2,'PROGRAMA II'!Q15+'PROGRAMA II'!R15,0) -> 0 | BK5: =IF('PROGRAMA III'!A15='CALCULO POR AREAS'!$BI$2,'PROGRAMA III'!Q15+'PROGRAMA III'!R15,0) -> 0 | BL5: =IF('PROGRAMA IV'!A15='CALCULO POR AREAS'!$BI$2,'PROGRAMA IV'!Q15+'PROGRAMA IV'!R15,0) -> 0 | BM5: =IF('PROGRAMA I'!A14='CALCULO POR AREAS'!$BM$2,('PROGRAMA I'!P14+'PROGRAMA I'!Q14),0) -> 0 | BN5: =IF('PROGRAMA II'!A15='CALCULO POR AREAS'!$BM$2,'PROGRAMA II'!Q15+'PROGRAMA II'!R15,0) -> 0 | BO5: =IF('PROGRAMA III'!A15='CALCULO POR AREAS'!$BM$2,'PROGRAMA III'!Q15+'PROGRAMA III'!R15,0) -> 0 | BP5: =IF('PROGRAMA IV'!A15='CALCULO POR AREAS'!$BM$2,'PROGRAMA IV'!Q15+'PROGRAMA IV'!R15,0) -> 0 | BQ5: =IF('PROGRAMA I'!A14='CALCULO POR AREAS'!$BQ$2,('PROGRAMA I'!P14+'PROGRAMA I'!Q14),0) -> 0 | BR5: =IF('PROGRAMA II'!A15='CALCULO POR AREAS'!$BQ$2,'PROGRAMA II'!Q15+'PROGRAMA II'!R15,0) -> 0 | BS5: =IF('PROGRAMA III'!A15='CALCULO POR AREAS'!$BQ$2,'PROGRAMA III'!Q15+'PROGRAMA III'!R15,0) -> 0 | BT5: =IF('PROGRAMA IV'!A15='CALCULO POR AREAS'!$BQ$2,'PROGRAMA IV'!Q15+'PROGRAMA IV'!R15,0) -> 0 | BU5: =IF('PROGRAMA I'!A14='CALCULO POR AREAS'!$BU$2,('PROGRAMA I'!P14+'PROGRAMA I'!Q14),0) -> 0 | BV5: =IF('PROGRAMA II'!A15='CALCULO POR AREAS'!$BU$2,'PROGRAMA II'!Q15+'PROGRAMA II'!R15,0) -> 0 | BW5: =IF('PROGRAMA III'!A15='CALCULO POR AREAS'!$BU$2,'PROGRAMA III'!Q15+'PROGRAMA III'!R15,0) -> 0 | BX5: =IF('PROGRAMA IV'!A15='CALCULO POR AREAS'!$BU$2,'PROGRAMA IV'!Q15+'PROGRAMA IV'!R15,0) -> 0 | BY5: =IF('PROGRAMA I'!A14='CALCULO POR AREAS'!$BY$2,('PROGRAMA I'!P14+'PROGRAMA I'!Q14),0) -> 0 | BZ5: =IF('PROGRAMA II'!A15='CALCULO POR AREAS'!$BY$2,'PROGRAMA II'!Q15+'PROGRAMA II'!R15,0) -> 0 | CA5: =IF('PROGRAMA III'!A15='CALCULO POR AREAS'!$BY$2,'PROGRAMA III'!Q15+'PROGRAMA III'!R15,0) -> 0 | CB5: =IF('PROGRAMA IV'!A15='CALCULO POR AREAS'!$BY$2,'PROGRAMA IV'!Q15+'PROGRAMA IV'!R15,0) -> 0
A6: =IF('PROGRAMA I'!A15='CALCULO POR AREAS'!$A$2,('PROGRAMA I'!P15+'PROGRAMA I'!Q15),0) -> 0 | B6: =IF('PROGRAMA II'!A16='CALCULO POR AREAS'!$A$2,'PROGRAMA II'!Q16+'PROGRAMA II'!R16,0) -> 0 | C6: =IF('PROGRAMA III'!A16='CALCULO POR AREAS'!$A$2,'PROGRAMA III'!Q16+'PROGRAMA III'!R16,0) -> 0 | D6: =IF('PROGRAMA IV'!A16='CALCULO POR AREAS'!$A$2,'PROGRAMA IV'!Q16+'PROGRAMA IV'!R16,0) -> 0 | E6: =IF('PROGRAMA I'!A15='CALCULO POR AREAS'!$E$2,('PROGRAMA I'!P15+'PROGRAMA I'!Q15),0) -> 0 | F6: =IF('PROGRAMA II'!A16='CALCULO POR AREAS'!$E$2,'PROGRAMA II'!Q16+'PROGRAMA II'!R16,0) -> 0 | G6: =IF('PROGRAMA III'!A16='CALCULO POR AREAS'!$E$2,'PROGRAMA III'!Q16+'PROGRAMA III'!R16,0) -> 0 | H6: =IF('PROGRAMA IV'!A16='CALCULO POR AREAS'!$E$2,'PROGRAMA IV'!Q16+'PROGRAMA IV'!R16,0) -> 0 | I6: =IF('PROGRAMA I'!A15='CALCULO POR AREAS'!$I$2,('PROGRAMA I'!P15+'PROGRAMA I'!Q15),0) -> 0 | J6: =IF('PROGRAMA II'!A16='CALCULO POR AREAS'!$I$2,'PROGRAMA II'!Q16+'PROGRAMA II'!R16,0) -> 0 | K6: =IF('PROGRAMA III'!A16='CALCULO POR AREAS'!$I$2,'PROGRAMA III'!Q16+'PROGRAMA III'!R16,0) -> 0 | L6: =IF('PROGRAMA IV'!A16='CALCULO POR AREAS'!$I$2,'PROGRAMA IV'!Q16+'PROGRAMA IV'!R16,0) -> 0 | M6: =IF('PROGRAMA I'!A15='CALCULO POR AREAS'!$M$2,('PROGRAMA I'!P15+'PROGRAMA I'!Q15),0) -> 0 | N6: =IF('PROGRAMA II'!A16='CALCULO POR AREAS'!$M$2,'PROGRAMA II'!Q16+'PROGRAMA II'!R16,0) -> 0 | O6: =IF('PROGRAMA III'!A16='CALCULO POR AREAS'!$M$2,'PROGRAMA III'!Q16+'PROGRAMA III'!R16,0) -> 0 | P6: =IF('PROGRAMA IV'!A16='CALCULO POR AREAS'!$M$2,'PROGRAMA IV'!Q16+'PROGRAMA IV'!R16,0) -> 0 | Q6: =IF('PROGRAMA I'!A15='CALCULO POR AREAS'!$Q$2,('PROGRAMA I'!P15+'PROGRAMA I'!Q15),0) -> 0 | R6: =IF('PROGRAMA II'!A16='CALCULO POR AREAS'!$Q$2,'PROGRAMA II'!Q16+'PROGRAMA II'!R16,0) -> 0 | S6: =IF('PROGRAMA III'!A16='CALCULO POR AREAS'!$Q$2,'PROGRAMA III'!Q16+'PROGRAMA III'!R16,0) -> 0 | T6: =IF('PROGRAMA IV'!A16='CALCULO POR AREAS'!$Q$2,'PROGRAMA IV'!Q16+'PROGRAMA IV'!R16,0) -> 0 | U6: =IF('PROGRAMA I'!A15='CALCULO POR AREAS'!$U$2,('PROGRAMA I'!P15+'PROGRAMA I'!Q15),0) -> 424000 | V6: =IF('PROGRAMA II'!A16='CALCULO POR AREAS'!$U$2,'PROGRAMA II'!Q16+'PROGRAMA II'!R16,0) -> 1969960.3 | W6: =IF('PROGRAMA III'!A16='CALCULO POR AREAS'!$U$2,'PROGRAMA III'!Q16+'PROGRAMA III'!R16,0) -> 1575000 | X6: =IF('PROGRAMA IV'!A16='CALCULO POR AREAS'!$U$2,'PROGRAMA IV'!Q16+'PROGRAMA IV'!R16,0) -> 0 | Y6: =IF('PROGRAMA I'!A15='CALCULO POR AREAS'!$Y$2,('PROGRAMA I'!P15+'PROGRAMA I'!Q15),0) -> 0 | Z6: =IF('PROGRAMA II'!A16='CALCULO POR AREAS'!$Y$2,'PROGRAMA II'!Q16+'PROGRAMA II'!R16,0) -> 0 | AA6: =IF('PROGRAMA III'!A16='CALCULO POR AREAS'!$Y$2,'PROGRAMA III'!Q16+'PROGRAMA III'!R16,0) -> 0 | AB6: =IF('PROGRAMA IV'!A16='CALCULO POR AREAS'!$Y$2,'PROGRAMA IV'!Q16+'PROGRAMA IV'!R16,0) -> 0 | AC6: =IF('PROGRAMA I'!A15='CALCULO POR AREAS'!$AC$2,('PROGRAMA I'!P15+'PROGRAMA I'!Q15),0) -> 0 | AD6: =IF('PROGRAMA II'!A16='CALCULO POR AREAS'!$AC$2,'PROGRAMA II'!Q16+'PROGRAMA II'!R16,0) -> 0 | AE6: =IF('PROGRAMA III'!A16='CALCULO POR AREAS'!$AC$2,'PROGRAMA III'!Q16+'PROGRAMA III'!R16,0) -> 0 | AF6: =IF('PROGRAMA IV'!A16='CALCULO POR AREAS'!$AC$2,'PROGRAMA IV'!Q16+'PROGRAMA IV'!R16,0) -> 0 | AG6: =IF('PROGRAMA I'!A15='CALCULO POR AREAS'!$AG$2,('PROGRAMA I'!P15+'PROGRAMA I'!Q15),0) -> 0 | AH6: =IF('PROGRAMA II'!A16='CALCULO POR AREAS'!$AG$2,'PROGRAMA II'!Q16+'PROGRAMA II'!R16,0) -> 0 | AI6: =IF('PROGRAMA III'!A16='CALCULO POR AREAS'!$AG$2,'PROGRAMA III'!Q16+'PROGRAMA III'!R16,0) -> 0 | AJ6: =IF('PROGRAMA IV'!A16='CALCULO POR AREAS'!$AG$2,'PROGRAMA IV'!Q16+'PROGRAMA IV'!R16,0) -> 0 | AK6: =IF('PROGRAMA I'!A15='CALCULO POR AREAS'!$AK$2,('PROGRAMA I'!P15+'PROGRAMA I'!Q15),0) -> 0 | AL6: =IF('PROGRAMA II'!A16='CALCULO POR AREAS'!$AK$2,'PROGRAMA II'!Q16+'PROGRAMA II'!R16,0) -> 0 | AM6: =IF('PROGRAMA III'!A16='CALCULO POR AREAS'!$AK$2,'PROGRAMA III'!Q16+'PROGRAMA III'!R16,0) -> 0 | AN6: =IF('PROGRAMA IV'!A16='CALCULO POR AREAS'!$AK$2,'PROGRAMA IV'!Q16+'PROGRAMA IV'!R16,0) -> 0 | AO6: =IF('PROGRAMA I'!A15='CALCULO POR AREAS'!$AO$2,('PROGRAMA I'!P15+'PROGRAMA I'!Q15),0) -> 0 | AP6: =IF('PROGRAMA II'!A16='CALCULO POR AREAS'!$AO$2,'PROGRAMA II'!Q16+'PROGRAMA II'!R16,0) -> 0 | AQ6: =IF('PROGRAMA III'!A16='CALCULO POR AREAS'!$AO$2,'PROGRAMA III'!Q16+'PROGRAMA III'!R16,0) -> 0 | AR6: =IF('PROGRAMA IV'!A16='CALCULO POR AREAS'!$AO$2,'PROGRAMA IV'!Q16+'PROGRAMA IV'!R16,0) -> 0 | AS6: =IF('PROGRAMA I'!A15='CALCULO POR AREAS'!$AS$2,('PROGRAMA I'!P15+'PROGRAMA I'!Q15),0) -> 0 | AT6: =IF('PROGRAMA II'!A16='CALCULO POR AREAS'!$AS$2,'PROGRAMA II'!Q16+'PROGRAMA II'!R16,0) -> 0 | AU6: =IF('PROGRAMA III'!A16='CALCULO POR AREAS'!$AS$2,'PROGRAMA III'!Q16+'PROGRAMA III'!R16,0) -> 0 | AV6: =IF('PROGRAMA IV'!A16='CALCULO POR AREAS'!$AS$2,'PROGRAMA IV'!Q16+'PROGRAMA IV'!R16,0) -> 0 | AW6: =IF('PROGRAMA I'!A15='CALCULO POR AREAS'!$AW$2,('PROGRAMA I'!P15+'PROGRAMA I'!Q15),0) -> 0 | AX6: =IF('PROGRAMA II'!A16='CALCULO POR AREAS'!$AW$2,'PROGRAMA II'!Q16+'PROGRAMA II'!R16,0) -> 0 | AY6: =IF('PROGRAMA III'!A16='CALCULO POR AREAS'!$AW$2,'PROGRAMA III'!Q16+'PROGRAMA III'!R16,0) -> 0 | AZ6: =IF('PROGRAMA IV'!A16='CALCULO POR AREAS'!$AW$2,'PROGRAMA IV'!Q16+'PROGRAMA IV'!R16,0) -> 0 | BA6: =IF('PROGRAMA I'!A15='CALCULO POR AREAS'!$BA$2,('PROGRAMA I'!P15+'PROGRAMA I'!Q15),0) -> 0 | BB6: =IF('PROGRAMA II'!A16='CALCULO POR AREAS'!$BA$2,'PROGRAMA II'!Q16+'PROGRAMA II'!R16,0) -> 0 | BC6: =IF('PROGRAMA III'!A16='CALCULO POR AREAS'!$BA$2,'PROGRAMA III'!Q16+'PROGRAMA III'!R16,0) -> 0 | BD6: =IF('PROGRAMA IV'!A16='CALCULO POR AREAS'!$BA$2,'PROGRAMA IV'!Q16+'PROGRAMA IV'!R16,0) -> 0 | BE6: =IF('PROGRAMA I'!A15='CALCULO POR AREAS'!$BE$2,('PROGRAMA I'!P15+'PROGRAMA I'!Q15),0) -> 0 | BF6: =IF('PROGRAMA II'!A16='CALCULO POR AREAS'!$BE$2,'PROGRAMA II'!Q16+'PROGRAMA II'!R16,0) -> 0 | BG6: =IF('PROGRAMA III'!A16='CALCULO POR AREAS'!$BE$2,'PROGRAMA III'!Q16+'PROGRAMA III'!R16,0) -> 0 | BH6: =IF('PROGRAMA IV'!A16='CALCULO POR AREAS'!$BE$2,'PROGRAMA IV'!Q16+'PROGRAMA IV'!R16,0) -> 0 | BI6: =IF('PROGRAMA I'!A15='CALCULO POR AREAS'!$BI$2,('PROGRAMA I'!P15+'PROGRAMA I'!Q15),0) -> 0 | BJ6: =IF('PROGRAMA II'!A16='CALCULO POR AREAS'!$BI$2,'PROGRAMA II'!Q16+'PROGRAMA II'!R16,0) -> 0 | BK6: =IF('PROGRAMA III'!A16='CALCULO POR AREAS'!$BI$2,'PROGRAMA III'!Q16+'PROGRAMA III'!R16,0) -> 0 | BL6: =IF('PROGRAMA IV'!A16='CALCULO POR AREAS'!$BI$2,'PROGRAMA IV'!Q16+'PROGRAMA IV'!R16,0) -> 0 | BM6: =IF('PROGRAMA I'!A15='CALCULO POR AREAS'!$BM$2,('PROGRAMA I'!P15+'PROGRAMA I'!Q15),0) -> 0 | BN6: =IF('PROGRAMA II'!A16='CALCULO POR AREAS'!$BM$2,'PROGRAMA II'!Q16+'PROGRAMA II'!R16,0) -> 0 | BO6: =IF('PROGRAMA III'!A16='CALCULO POR AREAS'!$BM$2,'PROGRAMA III'!Q16+'PROGRAMA III'!R16,0) -> 0 | BP6: =IF('PROGRAMA IV'!A16='CALCULO POR AREAS'!$BM$2,'PROGRAMA IV'!Q16+'PROGRAMA IV'!R16,0) -> 0 | BQ6: =IF('PROGRAMA I'!A15='CALCULO POR AREAS'!$BQ$2,('PROGRAMA I'!P15+'PROGRAMA I'!Q15),0) -> 0 | BR6: =IF('PROGRAMA II'!A16='CALCULO POR AREAS'!$BQ$2,'PROGRAMA II'!Q16+'PROGRAMA II'!R16,0) -> 0 | BS6: =IF('PROGRAMA III'!A16='CALCULO POR AREAS'!$BQ$2,'PROGRAMA III'!Q16+'PROGRAMA III'!R16,0) -> 0 | BT6: =IF('PROGRAMA IV'!A16='CALCULO POR AREAS'!$BQ$2,'PROGRAMA IV'!Q16+'PROGRAMA IV'!R16,0) -> 0 | BU6: =IF('PROGRAMA I'!A15='CALCULO POR AREAS'!$BU$2,('PROGRAMA I'!P15+'PROGRAMA I'!Q15),0) -> 0 | BV6: =IF('PROGRAMA II'!A16='CALCULO POR AREAS'!$BU$2,'PROGRAMA II'!Q16+'PROGRAMA II'!R16,0) -> 0 | BW6: =IF('PROGRAMA III'!A16='CALCULO POR AREAS'!$BU$2,'PROGRAMA III'!Q16+'PROGRAMA III'!R16,0) -> 0 | BX6: =IF('PROGRAMA IV'!A16='CALCULO POR AREAS'!$BU$2,'PROGRAMA IV'!Q16+'PROGRAMA IV'!R16,0) -> 0 | BY6: =IF('PROGRAMA I'!A15='CALCULO POR AREAS'!$BY$2,('PROGRAMA I'!P15+'PROGRAMA I'!Q15),0) -> 0 | BZ6: =IF('PROGRAMA II'!A16='CALCULO POR AREAS'!$BY$2,'PROGRAMA II'!Q16+'PROGRAMA II'!R16,0) -> 0 | CA6: =IF('PROGRAMA III'!A16='CALCULO POR AREAS'!$BY$2,'PROGRAMA III'!Q16+'PROGRAMA III'!R16,0) -> 0 | CB6: =IF('PROGRAMA IV'!A16='CALCULO POR AREAS'!$BY$2,'PROGRAMA IV'!Q16+'PROGRAMA IV'!R16,0) -> 0
A7: =IF('PROGRAMA I'!A16='CALCULO POR AREAS'!$A$2,('PROGRAMA I'!P16+'PROGRAMA I'!Q16),0) -> 0 | B7: =IF('PROGRAMA II'!A17='CALCULO POR AREAS'!$A$2,'PROGRAMA II'!Q17+'PROGRAMA II'!R17,0) -> 3500000 | C7: =IF('PROGRAMA III'!A17='CALCULO POR AREAS'!$A$2,'PROGRAMA III'!Q17+'PROGRAMA III'!R17,0) -> 0 | D7: =IF('PROGRAMA IV'!A17='CALCULO POR AREAS'!$A$2,'PROGRAMA IV'!Q17+'PROGRAMA IV'!R17,0) -> 0 | E7: =IF('PROGRAMA I'!A16='CALCULO POR AREAS'!$E$2,('PROGRAMA I'!P16+'PROGRAMA I'!Q16),0) -> 0 | F7: =IF('PROGRAMA II'!A17='CALCULO POR AREAS'!$E$2,'PROGRAMA II'!Q17+'PROGRAMA II'!R17,0) -> 0 | G7: =IF('PROGRAMA III'!A17='CALCULO POR AREAS'!$E$2,'PROGRAMA III'!Q17+'PROGRAMA III'!R17,0) -> 0 | H7: =IF('PROGRAMA IV'!A17='CALCULO POR AREAS'!$E$2,'PROGRAMA IV'!Q17+'PROGRAMA IV'!R17,0) -> 0 | I7: =IF('PROGRAMA I'!A16='CALCULO POR AREAS'!$I$2,('PROGRAMA I'!P16+'PROGRAMA I'!Q16),0) -> 0 | J7: =IF('PROGRAMA II'!A17='CALCULO POR AREAS'!$I$2,'PROGRAMA II'!Q17+'PROGRAMA II'!R17,0) -> 0 | K7: =IF('PROGRAMA III'!A17='CALCULO POR AREAS'!$I$2,'PROGRAMA III'!Q17+'PROGRAMA III'!R17,0) -> 0 | L7: =IF('PROGRAMA IV'!A17='CALCULO POR AREAS'!$I$2,'PROGRAMA IV'!Q17+'PROGRAMA IV'!R17,0) -> 0 | M7: =IF('PROGRAMA I'!A16='CALCULO POR AREAS'!$M$2,('PROGRAMA I'!P16+'PROGRAMA I'!Q16),0) -> 0 | N7: =IF('PROGRAMA II'!A17='CALCULO POR AREAS'!$M$2,'PROGRAMA II'!Q17+'PROGRAMA II'!R17,0) -> 0 | O7: =IF('PROGRAMA III'!A17='CALCULO POR AREAS'!$M$2,'PROGRAMA III'!Q17+'PROGRAMA III'!R17,0) -> 0 | P7: =IF('PROGRAMA IV'!A17='CALCULO POR AREAS'!$M$2,'PROGRAMA IV'!Q17+'PROGRAMA IV'!R17,0) -> 0 | Q7: =IF('PROGRAMA I'!A16='CALCULO POR AREAS'!$Q$2,('PROGRAMA I'!P16+'PROGRAMA I'!Q16),0) -> 0 | R7: =IF('PROGRAMA II'!A17='CALCULO POR AREAS'!$Q$2,'PROGRAMA II'!Q17+'PROGRAMA II'!R17,0) -> 0 | S7: =IF('PROGRAMA III'!A17='CALCULO POR AREAS'!$Q$2,'PROGRAMA III'!Q17+'PROGRAMA III'!R17,0) -> 0 | T7: =IF('PROGRAMA IV'!A17='CALCULO POR AREAS'!$Q$2,'PROGRAMA IV'!Q17+'PROGRAMA IV'!R17,0) -> 0 | U7: =IF('PROGRAMA I'!A16='CALCULO POR AREAS'!$U$2,('PROGRAMA I'!P16+'PROGRAMA I'!Q16),0) -> 911523.11 | V7: =IF('PROGRAMA II'!A17='CALCULO POR AREAS'!$U$2,'PROGRAMA II'!Q17+'PROGRAMA II'!R17,0) -> 0 | W7: =IF('PROGRAMA III'!A17='CALCULO POR AREAS'!$U$2,'PROGRAMA III'!Q17+'PROGRAMA III'!R17,0) -> 1334554 | X7: =IF('PROGRAMA IV'!A17='CALCULO POR AREAS'!$U$2,'PROGRAMA IV'!Q17+'PROGRAMA IV'!R17,0) -> 0 | Y7: =IF('PROGRAMA I'!A16='CALCULO POR AREAS'!$Y$2,('PROGRAMA I'!P16+'PROGRAMA I'!Q16),0) -> 0 | Z7: =IF('PROGRAMA II'!A17='CALCULO POR AREAS'!$Y$2,'PROGRAMA II'!Q17+'PROGRAMA II'!R17,0) -> 0 | AA7: =IF('PROGRAMA III'!A17='CALCULO POR AREAS'!$Y$2,'PROGRAMA III'!Q17+'PROGRAMA III'!R17,0) -> 0 | AB7: =IF('PROGRAMA IV'!A17='CALCULO POR AREAS'!$Y$2,'PROGRAMA IV'!Q17+'PROGRAMA IV'!R17,0) -> 0 | AC7: =IF('PROGRAMA I'!A16='CALCULO POR AREAS'!$AC$2,('PROGRAMA I'!P16+'PROGRAMA I'!Q16),0) -> 0 | AD7: =IF('PROGRAMA II'!A17='CALCULO POR AREAS'!$AC$2,'PROGRAMA II'!Q17+'PROGRAMA II'!R17,0) -> 0 | AE7: =IF('PROGRAMA III'!A17='CALCULO POR AREAS'!$AC$2,'PROGRAMA III'!Q17+'PROGRAMA III'!R17,0) -> 0 | AF7: =IF('PROGRAMA IV'!A17='CALCULO POR AREAS'!$AC$2,'PROGRAMA IV'!Q17+'PROGRAMA IV'!R17,0) -> 0 | AG7: =IF('PROGRAMA I'!A16='CALCULO POR AREAS'!$AG$2,('PROGRAMA I'!P16+'PROGRAMA I'!Q16),0) -> 0 | AH7: =IF('PROGRAMA II'!A17='CALCULO POR AREAS'!$AG$2,'PROGRAMA II'!Q17+'PROGRAMA II'!R17,0) -> 0 | AI7: =IF('PROGRAMA III'!A17='CALCULO POR AREAS'!$AG$2,'PROGRAMA III'!Q17+'PROGRAMA III'!R17,0) -> 0 | AJ7: =IF('PROGRAMA IV'!A17='CALCULO POR AREAS'!$AG$2,'PROGRAMA IV'!Q17+'PROGRAMA IV'!R17,0) -> 0 | AK7: =IF('PROGRAMA I'!A16='CALCULO POR AREAS'!$AK$2,('PROGRAMA I'!P16+'PROGRAMA I'!Q16),0) -> 0 | AL7: =IF('PROGRAMA II'!A17='CALCULO POR AREAS'!$AK$2,'PROGRAMA II'!Q17+'PROGRAMA II'!R17,0) -> 0 | AM7: =IF('PROGRAMA III'!A17='CALCULO POR AREAS'!$AK$2,'PROGRAMA III'!Q17+'PROGRAMA III'!R17,0) -> 0 | AN7: =IF('PROGRAMA IV'!A17='CALCULO POR AREAS'!$AK$2,'PROGRAMA IV'!Q17+'PROGRAMA IV'!R17,0) -> 0 | AO7: =IF('PROGRAMA I'!A16='CALCULO POR AREAS'!$AO$2,('PROGRAMA I'!P16+'PROGRAMA I'!Q16),0) -> 0 | AP7: =IF('PROGRAMA II'!A17='CALCULO POR AREAS'!$AO$2,'PROGRAMA II'!Q17+'PROGRAMA II'!R17,0) -> 0 | AQ7: =IF('PROGRAMA III'!A17='CALCULO POR AREAS'!$AO$2,'PROGRAMA III'!Q17+'PROGRAMA III'!R17,0) -> 0 | AR7: =IF('PROGRAMA IV'!A17='CALCULO POR AREAS'!$AO$2,'PROGRAMA IV'!Q17+'PROGRAMA IV'!R17,0) -> 0 | AS7: =IF('PROGRAMA I'!A16='CALCULO POR AREAS'!$AS$2,('PROGRAMA I'!P16+'PROGRAMA I'!Q16),0) -> 0 | AT7: =IF('PROGRAMA II'!A17='CALCULO POR AREAS'!$AS$2,'PROGRAMA II'!Q17+'PROGRAMA II'!R17,0) -> 0 | AU7: =IF('PROGRAMA III'!A17='CALCULO POR AREAS'!$AS$2,'PROGRAMA III'!Q17+'PROGRAMA III'!R17,0) -> 0 | AV7: =IF('PROGRAMA IV'!A17='CALCULO POR AREAS'!$AS$2,'PROGRAMA IV'!Q17+'PROGRAMA IV'!R17,0) -> 0 | AW7: =IF('PROGRAMA I'!A16='CALCULO POR AREAS'!$AW$2,('PROGRAMA I'!P16+'PROGRAMA I'!Q16),0) -> 0 | AX7: =IF('PROGRAMA II'!A17='CALCULO POR AREAS'!$AW$2,'PROGRAMA II'!Q17+'PROGRAMA II'!R17,0) -> 0 | AY7: =IF('PROGRAMA III'!A17='CALCULO POR AREAS'!$AW$2,'PROGRAMA III'!Q17+'PROGRAMA III'!R17,0) -> 0 | AZ7: =IF('PROGRAMA IV'!A17='CALCULO POR AREAS'!$AW$2,'PROGRAMA IV'!Q17+'PROGRAMA IV'!R17,0) -> 0 | BA7: =IF('PROGRAMA I'!A16='CALCULO POR AREAS'!$BA$2,('PROGRAMA I'!P16+'PROGRAMA I'!Q16),0) -> 0 | BB7: =IF('PROGRAMA II'!A17='CALCULO POR AREAS'!$BA$2,'PROGRAMA II'!Q17+'PROGRAMA II'!R17,0) -> 0 | BC7: =IF('PROGRAMA III'!A17='CALCULO POR AREAS'!$BA$2,'PROGRAMA III'!Q17+'PROGRAMA III'!R17,0) -> 0 | BD7: =IF('PROGRAMA IV'!A17='CALCULO POR AREAS'!$BA$2,'PROGRAMA IV'!Q17+'PROGRAMA IV'!R17,0) -> 0 | BE7: =IF('PROGRAMA I'!A16='CALCULO POR AREAS'!$BE$2,('PROGRAMA I'!P16+'PROGRAMA I'!Q16),0) -> 0 | BF7: =IF('PROGRAMA II'!A17='CALCULO POR AREAS'!$BE$2,'PROGRAMA II'!Q17+'PROGRAMA II'!R17,0) -> 0 | BG7: =IF('PROGRAMA III'!A17='CALCULO POR AREAS'!$BE$2,'PROGRAMA III'!Q17+'PROGRAMA III'!R17,0) -> 0 | BH7: =IF('PROGRAMA IV'!A17='CALCULO POR AREAS'!$BE$2,'PROGRAMA IV'!Q17+'PROGRAMA IV'!R17,0) -> 0 | BI7: =IF('PROGRAMA I'!A16='CALCULO POR AREAS'!$BI$2,('PROGRAMA I'!P16+'PROGRAMA I'!Q16),0) -> 0 | BJ7: =IF('PROGRAMA II'!A17='CALCULO POR AREAS'!$BI$2,'PROGRAMA II'!Q17+'PROGRAMA II'!R17,0) -> 0 | BK7: =IF('PROGRAMA III'!A17='CALCULO POR AREAS'!$BI$2,'PROGRAMA III'!Q17+'PROGRAMA III'!R17,0) -> 0 | BL7: =IF('PROGRAMA IV'!A17='CALCULO POR AREAS'!$BI$2,'PROGRAMA IV'!Q17+'PROGRAMA IV'!R17,0) -> 0 | BM7: =IF('PROGRAMA I'!A16='CALCULO POR AREAS'!$BM$2,('PROGRAMA I'!P16+'PROGRAMA I'!Q16),0) -> 0 | BN7: =IF('PROGRAMA II'!A17='CALCULO POR AREAS'!$BM$2,'PROGRAMA II'!Q17+'PROGRAMA II'!R17,0) -> 0 | BO7: =IF('PROGRAMA III'!A17='CALCULO POR AREAS'!$BM$2,'PROGRAMA III'!Q17+'PROGRAMA III'!R17,0) -> 0 | BP7: =IF('PROGRAMA IV'!A17='CALCULO POR AREAS'!$BM$2,'PROGRAMA IV'!Q17+'PROGRAMA IV'!R17,0) -> 0 | BQ7: =IF('PROGRAMA I'!A16='CALCULO POR AREAS'!$BQ$2,('PROGRAMA I'!P16+'PROGRAMA I'!Q16),0) -> 0 | BR7: =IF('PROGRAMA II'!A17='CALCULO POR AREAS'!$BQ$2,'PROGRAMA II'!Q17+'PROGRAMA II'!R17,0) -> 0 | BS7: =IF('PROGRAMA III'!A17='CALCULO POR AREAS'!$BQ$2,'PROGRAMA III'!Q17+'PROGRAMA III'!R17,0) -> 0 | BT7: =IF('PROGRAMA IV'!A17='CALCULO POR AREAS'!$BQ$2,'PROGRAMA IV'!Q17+'PROGRAMA IV'!R17,0) -> 0 | BU7: =IF('PROGRAMA I'!A16='CALCULO POR AREAS'!$BU$2,('PROGRAMA I'!P16+'PROGRAMA I'!Q16),0) -> 0 | BV7: =IF('PROGRAMA II'!A17='CALCULO POR AREAS'!$BU$2,'PROGRAMA II'!Q17+'PROGRAMA II'!R17,0) -> 0 | BW7: =IF('PROGRAMA III'!A17='CALCULO POR AREAS'!$BU$2,'PROGRAMA III'!Q17+'PROGRAMA III'!R17,0) -> 0 | BX7: =IF('PROGRAMA IV'!A17='CALCULO POR AREAS'!$BU$2,'PROGRAMA IV'!Q17+'PROGRAMA IV'!R17,0) -> 0 | BY7: =IF('PROGRAMA I'!A16='CALCULO POR AREAS'!$BY$2,('PROGRAMA I'!P16+'PROGRAMA I'!Q16),0) -> 0 | BZ7: =IF('PROGRAMA II'!A17='CALCULO POR AREAS'!$BY$2,'PROGRAMA II'!Q17+'PROGRAMA II'!R17,0) -> 0 | CA7: =IF('PROGRAMA III'!A17='CALCULO POR AREAS'!$BY$2,'PROGRAMA III'!Q17+'PROGRAMA III'!R17,0) -> 0 | CB7: =IF('PROGRAMA IV'!A17='CALCULO POR AREAS'!$BY$2,'PROGRAMA IV'!Q17+'PROGRAMA IV'!R17,0) -> 0
A8: =IF('PROGRAMA I'!A17='CALCULO POR AREAS'!$A$2,('PROGRAMA I'!P17+'PROGRAMA I'!Q17),0) -> 0 | B8: =IF('PROGRAMA II'!A18='CALCULO POR AREAS'!$A$2,'PROGRAMA II'!Q18+'PROGRAMA II'!R18,0) -> 1500000 | C8: =IF('PROGRAMA III'!A18='CALCULO POR AREAS'!$A$2,'PROGRAMA III'!Q18+'PROGRAMA III'!R18,0) -> 0 | D8: =IF('PROGRAMA IV'!A18='CALCULO POR AREAS'!$A$2,'PROGRAMA IV'!Q18+'PROGRAMA IV'!R18,0) -> 0 | E8: =IF('PROGRAMA I'!A17='CALCULO POR AREAS'!$E$2,('PROGRAMA I'!P17+'PROGRAMA I'!Q17),0) -> 0 | F8: =IF('PROGRAMA II'!A18='CALCULO POR AREAS'!$E$2,'PROGRAMA II'!Q18+'PROGRAMA II'!R18,0) -> 0 | G8: =IF('PROGRAMA III'!A18='CALCULO POR AREAS'!$E$2,'PROGRAMA III'!Q18+'PROGRAMA III'!R18,0) -> 0 | H8: =IF('PROGRAMA IV'!A18='CALCULO POR AREAS'!$E$2,'PROGRAMA IV'!Q18+'PROGRAMA IV'!R18,0) -> 0 | I8: =IF('PROGRAMA I'!A17='CALCULO POR AREAS'!$I$2,('PROGRAMA I'!P17+'PROGRAMA I'!Q17),0) -> 0 | J8: =IF('PROGRAMA II'!A18='CALCULO POR AREAS'!$I$2,'PROGRAMA II'!Q18+'PROGRAMA II'!R18,0) -> 0 | K8: =IF('PROGRAMA III'!A18='CALCULO POR AREAS'!$I$2,'PROGRAMA III'!Q18+'PROGRAMA III'!R18,0) -> 300000 | L8: =IF('PROGRAMA IV'!A18='CALCULO POR AREAS'!$I$2,'PROGRAMA IV'!Q18+'PROGRAMA IV'!R18,0) -> 0 | M8: =IF('PROGRAMA I'!A17='CALCULO POR AREAS'!$M$2,('PROGRAMA I'!P17+'PROGRAMA I'!Q17),0) -> 0 | N8: =IF('PROGRAMA II'!A18='CALCULO POR AREAS'!$M$2,'PROGRAMA II'!Q18+'PROGRAMA II'!R18,0) -> 0 | O8: =IF('PROGRAMA III'!A18='CALCULO POR AREAS'!$M$2,'PROGRAMA III'!Q18+'PROGRAMA III'!R18,0) -> 0 | P8: =IF('PROGRAMA IV'!A18='CALCULO POR AREAS'!$M$2,'PROGRAMA IV'!Q18+'PROGRAMA IV'!R18,0) -> 0 | Q8: =IF('PROGRAMA I'!A17='CALCULO POR AREAS'!$Q$2,('PROGRAMA I'!P17+'PROGRAMA I'!Q17),0) -> 0 | R8: =IF('PROGRAMA II'!A18='CALCULO POR AREAS'!$Q$2,'PROGRAMA II'!Q18+'PROGRAMA II'!R18,0) -> 0 | S8: =IF('PROGRAMA III'!A18='CALCULO POR AREAS'!$Q$2,'PROGRAMA III'!Q18+'PROGRAMA III'!R18,0) -> 0 | T8: =IF('PROGRAMA IV'!A18='CALCULO POR AREAS'!$Q$2,'PROGRAMA IV'!Q18+'PROGRAMA IV'!R18,0) -> 0 | U8: =IF('PROGRAMA I'!A17='CALCULO POR AREAS'!$U$2,('PROGRAMA I'!P17+'PROGRAMA I'!Q17),0) -> 103419.19 | V8: =IF('PROGRAMA II'!A18='CALCULO POR AREAS'!$U$2,'PROGRAMA II'!Q18+'PROGRAMA II'!R18,0) -> 0 | W8: =IF('PROGRAMA III'!A18='CALCULO POR AREAS'!$U$2,'PROGRAMA III'!Q18+'PROGRAMA III'!R18,0) -> 0 | X8: =IF('PROGRAMA IV'!A18='CALCULO POR AREAS'!$U$2,'PROGRAMA IV'!Q18+'PROGRAMA IV'!R18,0) -> 0 | Y8: =IF('PROGRAMA I'!A17='CALCULO POR AREAS'!$Y$2,('PROGRAMA I'!P17+'PROGRAMA I'!Q17),0) -> 0 | Z8: =IF('PROGRAMA II'!A18='CALCULO POR AREAS'!$Y$2,'PROGRAMA II'!Q18+'PROGRAMA II'!R18,0) -> 0 | AA8: =IF('PROGRAMA III'!A18='CALCULO POR AREAS'!$Y$2,'PROGRAMA III'!Q18+'PROGRAMA III'!R18,0) -> 0 | AB8: =IF('PROGRAMA IV'!A18='CALCULO POR AREAS'!$Y$2,'PROGRAMA IV'!Q18+'PROGRAMA IV'!R18,0) -> 0 | AC8: =IF('PROGRAMA I'!A17='CALCULO POR AREAS'!$AC$2,('PROGRAMA I'!P17+'PROGRAMA I'!Q17),0) -> 0 | AD8: =IF('PROGRAMA II'!A18='CALCULO POR AREAS'!$AC$2,'PROGRAMA II'!Q18+'PROGRAMA II'!R18,0) -> 0 | AE8: =IF('PROGRAMA III'!A18='CALCULO POR AREAS'!$AC$2,'PROGRAMA III'!Q18+'PROGRAMA III'!R18,0) -> 0 | AF8: =IF('PROGRAMA IV'!A18='CALCULO POR AREAS'!$AC$2,'PROGRAMA IV'!Q18+'PROGRAMA IV'!R18,0) -> 0 | AG8: =IF('PROGRAMA I'!A17='CALCULO POR AREAS'!$AG$2,('PROGRAMA I'!P17+'PROGRAMA I'!Q17),0) -> 0 | AH8: =IF('PROGRAMA II'!A18='CALCULO POR AREAS'!$AG$2,'PROGRAMA II'!Q18+'PROGRAMA II'!R18,0) -> 0 | AI8: =IF('PROGRAMA III'!A18='CALCULO POR AREAS'!$AG$2,'PROGRAMA III'!Q18+'PROGRAMA III'!R18,0) -> 0 | AJ8: =IF('PROGRAMA IV'!A18='CALCULO POR AREAS'!$AG$2,'PROGRAMA IV'!Q18+'PROGRAMA IV'!R18,0) -> 0 | AK8: =IF('PROGRAMA I'!A17='CALCULO POR AREAS'!$AK$2,('PROGRAMA I'!P17+'PROGRAMA I'!Q17),0) -> 0 | AL8: =IF('PROGRAMA II'!A18='CALCULO POR AREAS'!$AK$2,'PROGRAMA II'!Q18+'PROGRAMA II'!R18,0) -> 0 | AM8: =IF('PROGRAMA III'!A18='CALCULO POR AREAS'!$AK$2,'PROGRAMA III'!Q18+'PROGRAMA III'!R18,0) -> 0 | AN8: =IF('PROGRAMA IV'!A18='CALCULO POR AREAS'!$AK$2,'PROGRAMA IV'!Q18+'PROGRAMA IV'!R18,0) -> 0 | AO8: =IF('PROGRAMA I'!A17='CALCULO POR AREAS'!$AO$2,('PROGRAMA I'!P17+'PROGRAMA I'!Q17),0) -> 0 | AP8: =IF('PROGRAMA II'!A18='CALCULO POR AREAS'!$AO$2,'PROGRAMA II'!Q18+'PROGRAMA II'!R18,0) -> 0 | AQ8: =IF('PROGRAMA III'!A18='CALCULO POR AREAS'!$AO$2,'PROGRAMA III'!Q18+'PROGRAMA III'!R18,0) -> 0 | AR8: =IF('PROGRAMA IV'!A18='CALCULO POR AREAS'!$AO$2,'PROGRAMA IV'!Q18+'PROGRAMA IV'!R18,0) -> 0 | AS8: =IF('PROGRAMA I'!A17='CALCULO POR AREAS'!$AS$2,('PROGRAMA I'!P17+'PROGRAMA I'!Q17),0) -> 0 | AT8: =IF('PROGRAMA II'!A18='CALCULO POR AREAS'!$AS$2,'PROGRAMA II'!Q18+'PROGRAMA II'!R18,0) -> 0 | AU8: =IF('PROGRAMA III'!A18='CALCULO POR AREAS'!$AS$2,'PROGRAMA III'!Q18+'PROGRAMA III'!R18,0) -> 0 | AV8: =IF('PROGRAMA IV'!A18='CALCULO POR AREAS'!$AS$2,'PROGRAMA IV'!Q18+'PROGRAMA IV'!R18,0) -> 0 | AW8: =IF('PROGRAMA I'!A17='CALCULO POR AREAS'!$AW$2,('PROGRAMA I'!P17+'PROGRAMA I'!Q17),0) -> 0 | AX8: =IF('PROGRAMA II'!A18='CALCULO POR AREAS'!$AW$2,'PROGRAMA II'!Q18+'PROGRAMA II'!R18,0) -> 0 | AY8: =IF('PROGRAMA III'!A18='CALCULO POR AREAS'!$AW$2,'PROGRAMA III'!Q18+'PROGRAMA III'!R18,0) -> 0 | AZ8: =IF('PROGRAMA IV'!A18='CALCULO POR AREAS'!$AW$2,'PROGRAMA IV'!Q18+'PROGRAMA IV'!R18,0) -> 0 | BA8: =IF('PROGRAMA I'!A17='CALCULO POR AREAS'!$BA$2,('PROGRAMA I'!P17+'PROGRAMA I'!Q17),0) -> 0 | BB8: =IF('PROGRAMA II'!A18='CALCULO POR AREAS'!$BA$2,'PROGRAMA II'!Q18+'PROGRAMA II'!R18,0) -> 0 | BC8: =IF('PROGRAMA III'!A18='CALCULO POR AREAS'!$BA$2,'PROGRAMA III'!Q18+'PROGRAMA III'!R18,0) -> 0 | BD8: =IF('PROGRAMA IV'!A18='CALCULO POR AREAS'!$BA$2,'PROGRAMA IV'!Q18+'PROGRAMA IV'!R18,0) -> 0 | BE8: =IF('PROGRAMA I'!A17='CALCULO POR AREAS'!$BE$2,('PROGRAMA I'!P17+'PROGRAMA I'!Q17),0) -> 0 | BF8: =IF('PROGRAMA II'!A18='CALCULO POR AREAS'!$BE$2,'PROGRAMA II'!Q18+'PROGRAMA II'!R18,0) -> 0 | BG8: =IF('PROGRAMA III'!A18='CALCULO POR AREAS'!$BE$2,'PROGRAMA III'!Q18+'PROGRAMA III'!R18,0) -> 0 | BH8: =IF('PROGRAMA IV'!A18='CALCULO POR AREAS'!$BE$2,'PROGRAMA IV'!Q18+'PROGRAMA IV'!R18,0) -> 0 | BI8: =IF('PROGRAMA I'!A17='CALCULO POR AREAS'!$BI$2,('PROGRAMA I'!P17+'PROGRAMA I'!Q17),0) -> 0 | BJ8: =IF('PROGRAMA II'!A18='CALCULO POR AREAS'!$BI$2,'PROGRAMA II'!Q18+'PROGRAMA II'!R18,0) -> 0 | BK8: =IF('PROGRAMA III'!A18='CALCULO POR AREAS'!$BI$2,'PROGRAMA III'!Q18+'PROGRAMA III'!R18,0) -> 0 | BL8: =IF('PROGRAMA IV'!A18='CALCULO POR AREAS'!$BI$2,'PROGRAMA IV'!Q18+'PROGRAMA IV'!R18,0) -> 0 | BM8: =IF('PROGRAMA I'!A17='CALCULO POR AREAS'!$BM$2,('PROGRAMA I'!P17+'PROGRAMA I'!Q17),0) -> 0 | BN8: =IF('PROGRAMA II'!A18='CALCULO POR AREAS'!$BM$2,'PROGRAMA II'!Q18+'PROGRAMA II'!R18,0) -> 0 | BO8: =IF('PROGRAMA III'!A18='CALCULO POR AREAS'!$BM$2,'PROGRAMA III'!Q18+'PROGRAMA III'!R18,0) -> 0 | BP8: =IF('PROGRAMA IV'!A18='CALCULO POR AREAS'!$BM$2,'PROGRAMA IV'!Q18+'PROGRAMA IV'!R18,0) -> 0 | BQ8: =IF('PROGRAMA I'!A17='CALCULO POR AREAS'!$BQ$2,('PROGRAMA I'!P17+'PROGRAMA I'!Q17),0) -> 0 | BR8: =IF('PROGRAMA II'!A18='CALCULO POR AREAS'!$BQ$2,'PROGRAMA II'!Q18+'PROGRAMA II'!R18,0) -> 0 | BS8: =IF('PROGRAMA III'!A18='CALCULO POR AREAS'!$BQ$2,'PROGRAMA III'!Q18+'PROGRAMA III'!R18,0) -> 0 | BT8: =IF('PROGRAMA IV'!A18='CALCULO POR AREAS'!$BQ$2,'PROGRAMA IV'!Q18+'PROGRAMA IV'!R18,0) -> 0 | BU8: =IF('PROGRAMA I'!A17='CALCULO POR AREAS'!$BU$2,('PROGRAMA I'!P17+'PROGRAMA I'!Q17),0) -> 0 | BV8: =IF('PROGRAMA II'!A18='CALCULO POR AREAS'!$BU$2,'PROGRAMA II'!Q18+'PROGRAMA II'!R18,0) -> 0 | BW8: =IF('PROGRAMA III'!A18='CALCULO POR AREAS'!$BU$2,'PROGRAMA III'!Q18+'PROGRAMA III'!R18,0) -> 0 | BX8: =IF('PROGRAMA IV'!A18='CALCULO POR AREAS'!$BU$2,'PROGRAMA IV'!Q18+'PROGRAMA IV'!R18,0) -> 0 | BY8: =IF('PROGRAMA I'!A17='CALCULO POR AREAS'!$BY$2,('PROGRAMA I'!P17+'PROGRAMA I'!Q17),0) -> 0 | BZ8: =IF('PROGRAMA II'!A18='CALCULO POR AREAS'!$BY$2,'PROGRAMA II'!Q18+'PROGRAMA II'!R18,0) -> 0 | CA8: =IF('PROGRAMA III'!A18='CALCULO POR AREAS'!$BY$2,'PROGRAMA III'!Q18+'PROGRAMA III'!R18,0) -> 0 | CB8: =IF('PROGRAMA IV'!A18='CALCULO POR AREAS'!$BY$2,'PROGRAMA IV'!Q18+'PROGRAMA IV'!R18,0) -> 0
A9: =IF('PROGRAMA I'!A18='CALCULO POR AREAS'!$A$2,('PROGRAMA I'!P18+'PROGRAMA I'!Q18),0) -> 0 | B9: =IF('PROGRAMA II'!A19='CALCULO POR AREAS'!$A$2,'PROGRAMA II'!Q19+'PROGRAMA II'!R19,0) -> 500000 | C9: =IF('PROGRAMA III'!A19='CALCULO POR AREAS'!$A$2,'PROGRAMA III'!Q19+'PROGRAMA III'!R19,0) -> 0 | D9: =IF('PROGRAMA IV'!A19='CALCULO POR AREAS'!$A$2,'PROGRAMA IV'!Q19+'PROGRAMA IV'!R19,0) -> 0 | E9: =IF('PROGRAMA I'!A18='CALCULO POR AREAS'!$E$2,('PROGRAMA I'!P18+'PROGRAMA I'!Q18),0) -> 0 | F9: =IF('PROGRAMA II'!A19='CALCULO POR AREAS'!$E$2,'PROGRAMA II'!Q19+'PROGRAMA II'!R19,0) -> 0 | G9: =IF('PROGRAMA III'!A19='CALCULO POR AREAS'!$E$2,'PROGRAMA III'!Q19+'PROGRAMA III'!R19,0) -> 0 | H9: =IF('PROGRAMA IV'!A19='CALCULO POR AREAS'!$E$2,'PROGRAMA IV'!Q19+'PROGRAMA IV'!R19,0) -> 0 | I9: =IF('PROGRAMA I'!A18='CALCULO POR AREAS'!$I$2,('PROGRAMA I'!P18+'PROGRAMA I'!Q18),0) -> 0 | J9: =IF('PROGRAMA II'!A19='CALCULO POR AREAS'!$I$2,'PROGRAMA II'!Q19+'PROGRAMA II'!R19,0) -> 0 | K9: =IF('PROGRAMA III'!A19='CALCULO POR AREAS'!$I$2,'PROGRAMA III'!Q19+'PROGRAMA III'!R19,0) -> 5090216 | L9: =IF('PROGRAMA IV'!A19='CALCULO POR AREAS'!$I$2,'PROGRAMA IV'!Q19+'PROGRAMA IV'!R19,0) -> 0 | M9: =IF('PROGRAMA I'!A18='CALCULO POR AREAS'!$M$2,('PROGRAMA I'!P18+'PROGRAMA I'!Q18),0) -> 0 | N9: =IF('PROGRAMA II'!A19='CALCULO POR AREAS'!$M$2,'PROGRAMA II'!Q19+'PROGRAMA II'!R19,0) -> 0 | O9: =IF('PROGRAMA III'!A19='CALCULO POR AREAS'!$M$2,'PROGRAMA III'!Q19+'PROGRAMA III'!R19,0) -> 0 | P9: =IF('PROGRAMA IV'!A19='CALCULO POR AREAS'!$M$2,'PROGRAMA IV'!Q19+'PROGRAMA IV'!R19,0) -> 0 | Q9: =IF('PROGRAMA I'!A18='CALCULO POR AREAS'!$Q$2,('PROGRAMA I'!P18+'PROGRAMA I'!Q18),0) -> 0 | R9: =IF('PROGRAMA II'!A19='CALCULO POR AREAS'!$Q$2,'PROGRAMA II'!Q19+'PROGRAMA II'!R19,0) -> 0 | S9: =IF('PROGRAMA III'!A19='CALCULO POR AREAS'!$Q$2,'PROGRAMA III'!Q19+'PROGRAMA III'!R19,0) -> 0 | T9: =IF('PROGRAMA IV'!A19='CALCULO POR AREAS'!$Q$2,'PROGRAMA IV'!Q19+'PROGRAMA IV'!R19,0) -> 0 | U9: =IF('PROGRAMA I'!A18='CALCULO POR AREAS'!$U$2,('PROGRAMA I'!P18+'PROGRAMA I'!Q18),0) -> 175560 | V9: =IF('PROGRAMA II'!A19='CALCULO POR AREAS'!$U$2,'PROGRAMA II'!Q19+'PROGRAMA II'!R19,0) -> 0 | W9: =IF('PROGRAMA III'!A19='CALCULO POR AREAS'!$U$2,'PROGRAMA III'!Q19+'PROGRAMA III'!R19,0) -> 0 | X9: =IF('PROGRAMA IV'!A19='CALCULO POR AREAS'!$U$2,'PROGRAMA IV'!Q19+'PROGRAMA IV'!R19,0) -> 0 | Y9: =IF('PROGRAMA I'!A18='CALCULO POR AREAS'!$Y$2,('PROGRAMA I'!P18+'PROGRAMA I'!Q18),0) -> 0 | Z9: =IF('PROGRAMA II'!A19='CALCULO POR AREAS'!$Y$2,'PROGRAMA II'!Q19+'PROGRAMA II'!R19,0) -> 0 | AA9: =IF('PROGRAMA III'!A19='CALCULO POR AREAS'!$Y$2,'PROGRAMA III'!Q19+'PROGRAMA III'!R19,0) -> 0 | AB9: =IF('PROGRAMA IV'!A19='CALCULO POR AREAS'!$Y$2,'PROGRAMA IV'!Q19+'PROGRAMA IV'!R19,0) -> 0 | AC9: =IF('PROGRAMA I'!A18='CALCULO POR AREAS'!$AC$2,('PROGRAMA I'!P18+'PROGRAMA I'!Q18),0) -> 0 | AD9: =IF('PROGRAMA II'!A19='CALCULO POR AREAS'!$AC$2,'PROGRAMA II'!Q19+'PROGRAMA II'!R19,0) -> 0 | AE9: =IF('PROGRAMA III'!A19='CALCULO POR AREAS'!$AC$2,'PROGRAMA III'!Q19+'PROGRAMA III'!R19,0) -> 0 | AF9: =IF('PROGRAMA IV'!A19='CALCULO POR AREAS'!$AC$2,'PROGRAMA IV'!Q19+'PROGRAMA IV'!R19,0) -> 0 | AG9: =IF('PROGRAMA I'!A18='CALCULO POR AREAS'!$AG$2,('PROGRAMA I'!P18+'PROGRAMA I'!Q18),0) -> 0 | AH9: =IF('PROGRAMA II'!A19='CALCULO POR AREAS'!$AG$2,'PROGRAMA II'!Q19+'PROGRAMA II'!R19,0) -> 0 | AI9: =IF('PROGRAMA III'!A19='CALCULO POR AREAS'!$AG$2,'PROGRAMA III'!Q19+'PROGRAMA III'!R19,0) -> 0 | AJ9: =IF('PROGRAMA IV'!A19='CALCULO POR AREAS'!$AG$2,'PROGRAMA IV'!Q19+'PROGRAMA IV'!R19,0) -> 0 | AK9: =IF('PROGRAMA I'!A18='CALCULO POR AREAS'!$AK$2,('PROGRAMA I'!P18+'PROGRAMA I'!Q18),0) -> 0 | AL9: =IF('PROGRAMA II'!A19='CALCULO POR AREAS'!$AK$2,'PROGRAMA II'!Q19+'PROGRAMA II'!R19,0) -> 0 | AM9: =IF('PROGRAMA III'!A19='CALCULO POR AREAS'!$AK$2,'PROGRAMA III'!Q19+'PROGRAMA III'!R19,0) -> 0 | AN9: =IF('PROGRAMA IV'!A19='CALCULO POR AREAS'!$AK$2,'PROGRAMA IV'!Q19+'PROGRAMA IV'!R19,0) -> 0 | AO9: =IF('PROGRAMA I'!A18='CALCULO POR AREAS'!$AO$2,('PROGRAMA I'!P18+'PROGRAMA I'!Q18),0) -> 0 | AP9: =IF('PROGRAMA II'!A19='CALCULO POR AREAS'!$AO$2,'PROGRAMA II'!Q19+'PROGRAMA II'!R19,0) -> 0 | AQ9: =IF('PROGRAMA III'!A19='CALCULO POR AREAS'!$AO$2,'PROGRAMA III'!Q19+'PROGRAMA III'!R19,0) -> 0 | AR9: =IF('PROGRAMA IV'!A19='CALCULO POR AREAS'!$AO$2,'PROGRAMA IV'!Q19+'PROGRAMA IV'!R19,0) -> 0 | AS9: =IF('PROGRAMA I'!A18='CALCULO POR AREAS'!$AS$2,('PROGRAMA I'!P18+'PROGRAMA I'!Q18),0) -> 0 | AT9: =IF('PROGRAMA II'!A19='CALCULO POR AREAS'!$AS$2,'PROGRAMA II'!Q19+'PROGRAMA II'!R19,0) -> 0 | AU9: =IF('PROGRAMA III'!A19='CALCULO POR AREAS'!$AS$2,'PROGRAMA III'!Q19+'PROGRAMA III'!R19,0) -> 0 | AV9: =IF('PROGRAMA IV'!A19='CALCULO POR AREAS'!$AS$2,'PROGRAMA IV'!Q19+'PROGRAMA IV'!R19,0) -> 0 | AW9: =IF('PROGRAMA I'!A18='CALCULO POR AREAS'!$AW$2,('PROGRAMA I'!P18+'PROGRAMA I'!Q18),0) -> 0 | AX9: =IF('PROGRAMA II'!A19='CALCULO POR AREAS'!$AW$2,'PROGRAMA II'!Q19+'PROGRAMA II'!R19,0) -> 0 | AY9: =IF('PROGRAMA III'!A19='CALCULO POR AREAS'!$AW$2,'PROGRAMA III'!Q19+'PROGRAMA III'!R19,0) -> 0 | AZ9: =IF('PROGRAMA IV'!A19='CALCULO POR AREAS'!$AW$2,'PROGRAMA IV'!Q19+'PROGRAMA IV'!R19,0) -> 0 | BA9: =IF('PROGRAMA I'!A18='CALCULO POR AREAS'!$BA$2,('PROGRAMA I'!P18+'PROGRAMA I'!Q18),0) -> 0 | BB9: =IF('PROGRAMA II'!A19='CALCULO POR AREAS'!$BA$2,'PROGRAMA II'!Q19+'PROGRAMA II'!R19,0) -> 0 | BC9: =IF('PROGRAMA III'!A19='CALCULO POR AREAS'!$BA$2,'PROGRAMA III'!Q19+'PROGRAMA III'!R19,0) -> 0 | BD9: =IF('PROGRAMA IV'!A19='CALCULO POR AREAS'!$BA$2,'PROGRAMA IV'!Q19+'PROGRAMA IV'!R19,0) -> 0 | BE9: =IF('PROGRAMA I'!A18='CALCULO POR AREAS'!$BE$2,('PROGRAMA I'!P18+'PROGRAMA I'!Q18),0) -> 0 | BF9: =IF('PROGRAMA II'!A19='CALCULO POR AREAS'!$BE$2,'PROGRAMA II'!Q19+'PROGRAMA II'!R19,0) -> 0 | BG9: =IF('PROGRAMA III'!A19='CALCULO POR AREAS'!$BE$2,'PROGRAMA III'!Q19+'PROGRAMA III'!R19,0) -> 0 | BH9: =IF('PROGRAMA IV'!A19='CALCULO POR AREAS'!$BE$2,'PROGRAMA IV'!Q19+'PROGRAMA IV'!R19,0) -> 0 | BI9: =IF('PROGRAMA I'!A18='CALCULO POR AREAS'!$BI$2,('PROGRAMA I'!P18+'PROGRAMA I'!Q18),0) -> 0 | BJ9: =IF('PROGRAMA II'!A19='CALCULO POR AREAS'!$BI$2,'PROGRAMA II'!Q19+'PROGRAMA II'!R19,0) -> 0 | BK9: =IF('PROGRAMA III'!A19='CALCULO POR AREAS'!$BI$2,'PROGRAMA III'!Q19+'PROGRAMA III'!R19,0) -> 0 | BL9: =IF('PROGRAMA IV'!A19='CALCULO POR AREAS'!$BI$2,'PROGRAMA IV'!Q19+'PROGRAMA IV'!R19,0) -> 0 | BM9: =IF('PROGRAMA I'!A18='CALCULO POR AREAS'!$BM$2,('PROGRAMA I'!P18+'PROGRAMA I'!Q18),0) -> 0 | BN9: =IF('PROGRAMA II'!A19='CALCULO POR AREAS'!$BM$2,'PROGRAMA II'!Q19+'PROGRAMA II'!R19,0) -> 0 | BO9: =IF('PROGRAMA III'!A19='CALCULO POR AREAS'!$BM$2,'PROGRAMA III'!Q19+'PROGRAMA III'!R19,0) -> 0 | BP9: =IF('PROGRAMA IV'!A19='CALCULO POR AREAS'!$BM$2,'PROGRAMA IV'!Q19+'PROGRAMA IV'!R19,0) -> 0 | BQ9: =IF('PROGRAMA I'!A18='CALCULO POR AREAS'!$BQ$2,('PROGRAMA I'!P18+'PROGRAMA I'!Q18),0) -> 0 | BR9: =IF('PROGRAMA II'!A19='CALCULO POR AREAS'!$BQ$2,'PROGRAMA II'!Q19+'PROGRAMA II'!R19,0) -> 0 | BS9: =IF('PROGRAMA III'!A19='CALCULO POR AREAS'!$BQ$2,'PROGRAMA III'!Q19+'PROGRAMA III'!R19,0) -> 0 | BT9: =IF('PROGRAMA IV'!A19='CALCULO POR AREAS'!$BQ$2,'PROGRAMA IV'!Q19+'PROGRAMA IV'!R19,0) -> 0 | BU9: =IF('PROGRAMA I'!A18='CALCULO POR AREAS'!$BU$2,('PROGRAMA I'!P18+'PROGRAMA I'!Q18),0) -> 0 | BV9: =IF('PROGRAMA II'!A19='CALCULO POR AREAS'!$BU$2,'PROGRAMA II'!Q19+'PROGRAMA II'!R19,0) -> 0 | BW9: =IF('PROGRAMA III'!A19='CALCULO POR AREAS'!$BU$2,'PROGRAMA III'!Q19+'PROGRAMA III'!R19,0) -> 0 | BX9: =IF('PROGRAMA IV'!A19='CALCULO POR AREAS'!$BU$2,'PROGRAMA IV'!Q19+'PROGRAMA IV'!R19,0) -> 0 | BY9: =IF('PROGRAMA I'!A18='CALCULO POR AREAS'!$BY$2,('PROGRAMA I'!P18+'PROGRAMA I'!Q18),0) -> 0 | BZ9: =IF('PROGRAMA II'!A19='CALCULO POR AREAS'!$BY$2,'PROGRAMA II'!Q19+'PROGRAMA II'!R19,0) -> 0 | CA9: =IF('PROGRAMA III'!A19='CALCULO POR AREAS'!$BY$2,'PROGRAMA III'!Q19+'PROGRAMA III'!R19,0) -> 0 | CB9: =IF('PROGRAMA IV'!A19='CALCULO POR AREAS'!$BY$2,'PROGRAMA IV'!Q19+'PROGRAMA IV'!R19,0) -> 0
A10: =IF('PROGRAMA I'!A19='CALCULO POR AREAS'!$A$2,('PROGRAMA I'!P19+'PROGRAMA I'!Q19),0) -> 0 | B10: =IF('PROGRAMA II'!A20='CALCULO POR AREAS'!$A$2,'PROGRAMA II'!Q20+'PROGRAMA II'!R20,0) -> 0 | C10: =IF('PROGRAMA III'!A20='CALCULO POR AREAS'!$A$2,'PROGRAMA III'!Q20+'PROGRAMA III'!R20,0) -> 0 | D10: =IF('PROGRAMA IV'!A20='CALCULO POR AREAS'!$A$2,'PROGRAMA IV'!Q20+'PROGRAMA IV'!R20,0) -> 0 | E10: =IF('PROGRAMA I'!A19='CALCULO POR AREAS'!$E$2,('PROGRAMA I'!P19+'PROGRAMA I'!Q19),0) -> 0 | F10: =IF('PROGRAMA II'!A20='CALCULO POR AREAS'!$E$2,'PROGRAMA II'!Q20+'PROGRAMA II'!R20,0) -> 0 | G10: =IF('PROGRAMA III'!A20='CALCULO POR AREAS'!$E$2,'PROGRAMA III'!Q20+'PROGRAMA III'!R20,0) -> 0 | H10: =IF('PROGRAMA IV'!A20='CALCULO POR AREAS'!$E$2,'PROGRAMA IV'!Q20+'PROGRAMA IV'!R20,0) -> 0 | I10: =IF('PROGRAMA I'!A19='CALCULO POR AREAS'!$I$2,('PROGRAMA I'!P19+'PROGRAMA I'!Q19),0) -> 0 | J10: =IF('PROGRAMA II'!A20='CALCULO POR AREAS'!$I$2,'PROGRAMA II'!Q20+'PROGRAMA II'!R20,0) -> 0 | K10: =IF('PROGRAMA III'!A20='CALCULO POR AREAS'!$I$2,'PROGRAMA III'!Q20+'PROGRAMA III'!R20,0) -> 5090216 | L10: =IF('PROGRAMA IV'!A20='CALCULO POR AREAS'!$I$2,'PROGRAMA IV'!Q20+'PROGRAMA IV'!R20,0) -> 0 | M10: =IF('PROGRAMA I'!A19='CALCULO POR AREAS'!$M$2,('PROGRAMA I'!P19+'PROGRAMA I'!Q19),0) -> 0 | N10: =IF('PROGRAMA II'!A20='CALCULO POR AREAS'!$M$2,'PROGRAMA II'!Q20+'PROGRAMA II'!R20,0) -> 0 | O10: =IF('PROGRAMA III'!A20='CALCULO POR AREAS'!$M$2,'PROGRAMA III'!Q20+'PROGRAMA III'!R20,0) -> 0 | P10: =IF('PROGRAMA IV'!A20='CALCULO POR AREAS'!$M$2,'PROGRAMA IV'!Q20+'PROGRAMA IV'!R20,0) -> 0 | Q10: =IF('PROGRAMA I'!A19='CALCULO POR AREAS'!$Q$2,('PROGRAMA I'!P19+'PROGRAMA I'!Q19),0) -> 0 | R10: =IF('PROGRAMA II'!A20='CALCULO POR AREAS'!$Q$2,'PROGRAMA II'!Q20+'PROGRAMA II'!R20,0) -> 0 | S10: =IF('PROGRAMA III'!A20='CALCULO POR AREAS'!$Q$2,'PROGRAMA III'!Q20+'PROGRAMA III'!R20,0) -> 0 | T10: =IF('PROGRAMA IV'!A20='CALCULO POR AREAS'!$Q$2,'PROGRAMA IV'!Q20+'PROGRAMA IV'!R20,0) -> 0 | U10: =IF('PROGRAMA I'!A19='CALCULO POR AREAS'!$U$2,('PROGRAMA I'!P19+'PROGRAMA I'!Q19),0) -> 0 | V10: =IF('PROGRAMA II'!A20='CALCULO POR AREAS'!$U$2,'PROGRAMA II'!Q20+'PROGRAMA II'!R20,0) -> 400000 | W10: =IF('PROGRAMA III'!A20='CALCULO POR AREAS'!$U$2,'PROGRAMA III'!Q20+'PROGRAMA III'!R20,0) -> 0 | X10: =IF('PROGRAMA IV'!A20='CALCULO POR AREAS'!$U$2,'PROGRAMA IV'!Q20+'PROGRAMA IV'!R20,0) -> 0 | Y10: =IF('PROGRAMA I'!A19='CALCULO POR AREAS'!$Y$2,('PROGRAMA I'!P19+'PROGRAMA I'!Q19),0) -> 0 | Z10: =IF('PROGRAMA II'!A20='CALCULO POR AREAS'!$Y$2,'PROGRAMA II'!Q20+'PROGRAMA II'!R20,0) -> 0 | AA10: =IF('PROGRAMA III'!A20='CALCULO POR AREAS'!$Y$2,'PROGRAMA III'!Q20+'PROGRAMA III'!R20,0) -> 0 | AB10: =IF('PROGRAMA IV'!A20='CALCULO POR AREAS'!$Y$2,'PROGRAMA IV'!Q20+'PROGRAMA IV'!R20,0) -> 0 | AC10: =IF('PROGRAMA I'!A19='CALCULO POR AREAS'!$AC$2,('PROGRAMA I'!P19+'PROGRAMA I'!Q19),0) -> 0 | AD10: =IF('PROGRAMA II'!A20='CALCULO POR AREAS'!$AC$2,'PROGRAMA II'!Q20+'PROGRAMA II'!R20,0) -> 0 | AE10: =IF('PROGRAMA III'!A20='CALCULO POR AREAS'!$AC$2,'PROGRAMA III'!Q20+'PROGRAMA III'!R20,0) -> 0 | AF10: =IF('PROGRAMA IV'!A20='CALCULO POR AREAS'!$AC$2,'PROGRAMA IV'!Q20+'PROGRAMA IV'!R20,0) -> 0 | AG10: =IF('PROGRAMA I'!A19='CALCULO POR AREAS'!$AG$2,('PROGRAMA I'!P19+'PROGRAMA I'!Q19),0) -> 0 | AH10: =IF('PROGRAMA II'!A20='CALCULO POR AREAS'!$AG$2,'PROGRAMA II'!Q20+'PROGRAMA II'!R20,0) -> 0 | AI10: =IF('PROGRAMA III'!A20='CALCULO POR AREAS'!$AG$2,'PROGRAMA III'!Q20+'PROGRAMA III'!R20,0) -> 0 | AJ10: =IF('PROGRAMA IV'!A20='CALCULO POR AREAS'!$AG$2,'PROGRAMA IV'!Q20+'PROGRAMA IV'!R20,0) -> 0 | AK10: =IF('PROGRAMA I'!A19='CALCULO POR AREAS'!$AK$2,('PROGRAMA I'!P19+'PROGRAMA I'!Q19),0) -> 0 | AL10: =IF('PROGRAMA II'!A20='CALCULO POR AREAS'!$AK$2,'PROGRAMA II'!Q20+'PROGRAMA II'!R20,0) -> 0 | AM10: =IF('PROGRAMA III'!A20='CALCULO POR AREAS'!$AK$2,'PROGRAMA III'!Q20+'PROGRAMA III'!R20,0) -> 0 | AN10: =IF('PROGRAMA IV'!A20='CALCULO POR AREAS'!$AK$2,'PROGRAMA IV'!Q20+'PROGRAMA IV'!R20,0) -> 0 | AO10: =IF('PROGRAMA I'!A19='CALCULO POR AREAS'!$AO$2,('PROGRAMA I'!P19+'PROGRAMA I'!Q19),0) -> 0 | AP10: =IF('PROGRAMA II'!A20='CALCULO POR AREAS'!$AO$2,'PROGRAMA II'!Q20+'PROGRAMA II'!R20,0) -> 0 | AQ10: =IF('PROGRAMA III'!A20='CALCULO POR AREAS'!$AO$2,'PROGRAMA III'!Q20+'PROGRAMA III'!R20,0) -> 0 | AR10: =IF('PROGRAMA IV'!A20='CALCULO POR AREAS'!$AO$2,'PROGRAMA IV'!Q20+'PROGRAMA IV'!R20,0) -> 0 | AS10: =IF('PROGRAMA I'!A19='CALCULO POR AREAS'!$AS$2,('PROGRAMA I'!P19+'PROGRAMA I'!Q19),0) -> 0 | AT10: =IF('PROGRAMA II'!A20='CALCULO POR AREAS'!$AS$2,'PROGRAMA II'!Q20+'PROGRAMA II'!R20,0) -> 0 | AU10: =IF('PROGRAMA III'!A20='CALCULO POR AREAS'!$AS$2,'PROGRAMA III'!Q20+'PROGRAMA III'!R20,0) -> 0 | AV10: =IF('PROGRAMA IV'!A20='CALCULO POR AREAS'!$AS$2,'PROGRAMA IV'!Q20+'PROGRAMA IV'!R20,0) -> 0 | AW10: =IF('PROGRAMA I'!A19='CALCULO POR AREAS'!$AW$2,('PROGRAMA I'!P19+'PROGRAMA I'!Q19),0) -> 0 | AX10: =IF('PROGRAMA II'!A20='CALCULO POR AREAS'!$AW$2,'PROGRAMA II'!Q20+'PROGRAMA II'!R20,0) -> 0 | AY10: =IF('PROGRAMA III'!A20='CALCULO POR AREAS'!$AW$2,'PROGRAMA III'!Q20+'PROGRAMA III'!R20,0) -> 0 | AZ10: =IF('PROGRAMA IV'!A20='CALCULO POR AREAS'!$AW$2,'PROGRAMA IV'!Q20+'PROGRAMA IV'!R20,0) -> 0 | BA10: =IF('PROGRAMA I'!A19='CALCULO POR AREAS'!$BA$2,('PROGRAMA I'!P19+'PROGRAMA I'!Q19),0) -> 0 | BB10: =IF('PROGRAMA II'!A20='CALCULO POR AREAS'!$BA$2,'PROGRAMA II'!Q20+'PROGRAMA II'!R20,0) -> 0 | BC10: =IF('PROGRAMA III'!A20='CALCULO POR AREAS'!$BA$2,'PROGRAMA III'!Q20+'PROGRAMA III'!R20,0) -> 0 | BD10: =IF('PROGRAMA IV'!A20='CALCULO POR AREAS'!$BA$2,'PROGRAMA IV'!Q20+'PROGRAMA IV'!R20,0) -> 0 | BE10: =IF('PROGRAMA I'!A19='CALCULO POR AREAS'!$BE$2,('PROGRAMA I'!P19+'PROGRAMA I'!Q19),0) -> 0 | BF10: =IF('PROGRAMA II'!A20='CALCULO POR AREAS'!$BE$2,'PROGRAMA II'!Q20+'PROGRAMA II'!R20,0) -> 0 | BG10: =IF('PROGRAMA III'!A20='CALCULO POR AREAS'!$BE$2,'PROGRAMA III'!Q20+'PROGRAMA III'!R20,0) -> 0 | BH10: =IF('PROGRAMA IV'!A20='CALCULO POR AREAS'!$BE$2,'PROGRAMA IV'!Q20+'PROGRAMA IV'!R20,0) -> 0 | BI10: =IF('PROGRAMA I'!A19='CALCULO POR AREAS'!$BI$2,('PROGRAMA I'!P19+'PROGRAMA I'!Q19),0) -> 0 | BJ10: =IF('PROGRAMA II'!A20='CALCULO POR AREAS'!$BI$2,'PROGRAMA II'!Q20+'PROGRAMA II'!R20,0) -> 0 | BK10: =IF('PROGRAMA III'!A20='CALCULO POR AREAS'!$BI$2,'PROGRAMA III'!Q20+'PROGRAMA III'!R20,0) -> 0 | BL10: =IF('PROGRAMA IV'!A20='CALCULO POR AREAS'!$BI$2,'PROGRAMA IV'!Q20+'PROGRAMA IV'!R20,0) -> 0 | BM10: =IF('PROGRAMA I'!A19='CALCULO POR AREAS'!$BM$2,('PROGRAMA I'!P19+'PROGRAMA I'!Q19),0) -> 0 | BN10: =IF('PROGRAMA II'!A20='CALCULO POR AREAS'!$BM$2,'PROGRAMA II'!Q20+'PROGRAMA II'!R20,0) -> 0 | BO10: =IF('PROGRAMA III'!A20='CALCULO POR AREAS'!$BM$2,'PROGRAMA III'!Q20+'PROGRAMA III'!R20,0) -> 0 | BP10: =IF('PROGRAMA IV'!A20='CALCULO POR AREAS'!$BM$2,'PROGRAMA IV'!Q20+'PROGRAMA IV'!R20,0) -> 0 | BQ10: =IF('PROGRAMA I'!A19='CALCULO POR AREAS'!$BQ$2,('PROGRAMA I'!P19+'PROGRAMA I'!Q19),0) -> 0 | BR10: =IF('PROGRAMA II'!A20='CALCULO POR AREAS'!$BQ$2,'PROGRAMA II'!Q20+'PROGRAMA II'!R20,0) -> 0 | BS10: =IF('PROGRAMA III'!A20='CALCULO POR AREAS'!$BQ$2,'PROGRAMA III'!Q20+'PROGRAMA III'!R20,0) -> 0 | BT10: =IF('PROGRAMA IV'!A20='CALCULO POR AREAS'!$BQ$2,'PROGRAMA IV'!Q20+'PROGRAMA IV'!R20,0) -> 0 | BU10: =IF('PROGRAMA I'!A19='CALCULO POR AREAS'!$BU$2,('PROGRAMA I'!P19+'PROGRAMA I'!Q19),0) -> 0 | BV10: =IF('PROGRAMA II'!A20='CALCULO POR AREAS'!$BU$2,'PROGRAMA II'!Q20+'PROGRAMA II'!R20,0) -> 0 | BW10: =IF('PROGRAMA III'!A20='CALCULO POR AREAS'!$BU$2,'PROGRAMA III'!Q20+'PROGRAMA III'!R20,0) -> 0 | BX10: =IF('PROGRAMA IV'!A20='CALCULO POR AREAS'!$BU$2,'PROGRAMA IV'!Q20+'PROGRAMA IV'!R20,0) -> 0 | BY10: =IF('PROGRAMA I'!A19='CALCULO POR AREAS'!$BY$2,('PROGRAMA I'!P19+'PROGRAMA I'!Q19),0) -> 0 | BZ10: =IF('PROGRAMA II'!A20='CALCULO POR AREAS'!$BY$2,'PROGRAMA II'!Q20+'PROGRAMA II'!R20,0) -> 0 | CA10: =IF('PROGRAMA III'!A20='CALCULO POR AREAS'!$BY$2,'PROGRAMA III'!Q20+'PROGRAMA III'!R20,0) -> 0 | CB10: =IF('PROGRAMA IV'!A20='CALCULO POR AREAS'!$BY$2,'PROGRAMA IV'!Q20+'PROGRAMA IV'!R20,0) -> 0
A11: =IF('PROGRAMA I'!A20='CALCULO POR AREAS'!$A$2,('PROGRAMA I'!P20+'PROGRAMA I'!Q20),0) -> 0 | B11: =IF('PROGRAMA II'!A21='CALCULO POR AREAS'!$A$2,'PROGRAMA II'!Q21+'PROGRAMA II'!R21,0) -> 0 | C11: =IF('PROGRAMA III'!A21='CALCULO POR AREAS'!$A$2,'PROGRAMA III'!Q21+'PROGRAMA III'!R21,0) -> 0 | D11: =IF('PROGRAMA IV'!A21='CALCULO POR AREAS'!$A$2,'PROGRAMA IV'!Q21+'PROGRAMA IV'!R21,0) -> 0 | E11: =IF('PROGRAMA I'!A20='CALCULO POR AREAS'!$E$2,('PROGRAMA I'!P20+'PROGRAMA I'!Q20),0) -> 0 | F11: =IF('PROGRAMA II'!A21='CALCULO POR AREAS'!$E$2,'PROGRAMA II'!Q21+'PROGRAMA II'!R21,0) -> 0 | G11: =IF('PROGRAMA III'!A21='CALCULO POR AREAS'!$E$2,'PROGRAMA III'!Q21+'PROGRAMA III'!R21,0) -> 0 | H11: =IF('PROGRAMA IV'!A21='CALCULO POR AREAS'!$E$2,'PROGRAMA IV'!Q21+'PROGRAMA IV'!R21,0) -> 0 | I11: =IF('PROGRAMA I'!A20='CALCULO POR AREAS'!$I$2,('PROGRAMA I'!P20+'PROGRAMA I'!Q20),0) -> 0 | J11: =IF('PROGRAMA II'!A21='CALCULO POR AREAS'!$I$2,'PROGRAMA II'!Q21+'PROGRAMA II'!R21,0) -> 0 | K11: =IF('PROGRAMA III'!A21='CALCULO POR AREAS'!$I$2,'PROGRAMA III'!Q21+'PROGRAMA III'!R21,0) -> 9717674.64 | L11: =IF('PROGRAMA IV'!A21='CALCULO POR AREAS'!$I$2,'PROGRAMA IV'!Q21+'PROGRAMA IV'!R21,0) -> 0 | M11: =IF('PROGRAMA I'!A20='CALCULO POR AREAS'!$M$2,('PROGRAMA I'!P20+'PROGRAMA I'!Q20),0) -> 0 | N11: =IF('PROGRAMA II'!A21='CALCULO POR AREAS'!$M$2,'PROGRAMA II'!Q21+'PROGRAMA II'!R21,0) -> 0 | O11: =IF('PROGRAMA III'!A21='CALCULO POR AREAS'!$M$2,'PROGRAMA III'!Q21+'PROGRAMA III'!R21,0) -> 0 | P11: =IF('PROGRAMA IV'!A21='CALCULO POR AREAS'!$M$2,'PROGRAMA IV'!Q21+'PROGRAMA IV'!R21,0) -> 0 | Q11: =IF('PROGRAMA I'!A20='CALCULO POR AREAS'!$Q$2,('PROGRAMA I'!P20+'PROGRAMA I'!Q20),0) -> 0 | R11: =IF('PROGRAMA II'!A21='CALCULO POR AREAS'!$Q$2,'PROGRAMA II'!Q21+'PROGRAMA II'!R21,0) -> 600000 | S11: =IF('PROGRAMA III'!A21='CALCULO POR AREAS'!$Q$2,'PROGRAMA III'!Q21+'PROGRAMA III'!R21,0) -> 0 | T11: =IF('PROGRAMA IV'!A21='CALCULO POR AREAS'!$Q$2,'PROGRAMA IV'!Q21+'PROGRAMA IV'!R21,0) -> 0 | U11: =IF('PROGRAMA I'!A20='CALCULO POR AREAS'!$U$2,('PROGRAMA I'!P20+'PROGRAMA I'!Q20),0) -> 0 | V11: =IF('PROGRAMA II'!A21='CALCULO POR AREAS'!$U$2,'PROGRAMA II'!Q21+'PROGRAMA II'!R21,0) -> 0 | W11: =IF('PROGRAMA III'!A21='CALCULO POR AREAS'!$U$2,'PROGRAMA III'!Q21+'PROGRAMA III'!R21,0) -> 0 | X11: =IF('PROGRAMA IV'!A21='CALCULO POR AREAS'!$U$2,'PROGRAMA IV'!Q21+'PROGRAMA IV'!R21,0) -> 0 | Y11: =IF('PROGRAMA I'!A20='CALCULO POR AREAS'!$Y$2,('PROGRAMA I'!P20+'PROGRAMA I'!Q20),0) -> 0 | Z11: =IF('PROGRAMA II'!A21='CALCULO POR AREAS'!$Y$2,'PROGRAMA II'!Q21+'PROGRAMA II'!R21,0) -> 0 | AA11: =IF('PROGRAMA III'!A21='CALCULO POR AREAS'!$Y$2,'PROGRAMA III'!Q21+'PROGRAMA III'!R21,0) -> 0 | AB11: =IF('PROGRAMA IV'!A21='CALCULO POR AREAS'!$Y$2,'PROGRAMA IV'!Q21+'PROGRAMA IV'!R21,0) -> 0 | AC11: =IF('PROGRAMA I'!A20='CALCULO POR AREAS'!$AC$2,('PROGRAMA I'!P20+'PROGRAMA I'!Q20),0) -> 0 | AD11: =IF('PROGRAMA II'!A21='CALCULO POR AREAS'!$AC$2,'PROGRAMA II'!Q21+'PROGRAMA II'!R21,0) -> 0 | AE11: =IF('PROGRAMA III'!A21='CALCULO POR AREAS'!$AC$2,'PROGRAMA III'!Q21+'PROGRAMA III'!R21,0) -> 0 | AF11: =IF('PROGRAMA IV'!A21='CALCULO POR AREAS'!$AC$2,'PROGRAMA IV'!Q21+'PROGRAMA IV'!R21,0) -> 0 | AG11: =IF('PROGRAMA I'!A20='CALCULO POR AREAS'!$AG$2,('PROGRAMA I'!P20+'PROGRAMA I'!Q20),0) -> 0 | AH11: =IF('PROGRAMA II'!A21='CALCULO POR AREAS'!$AG$2,'PROGRAMA II'!Q21+'PROGRAMA II'!R21,0) -> 0 | AI11: =IF('PROGRAMA III'!A21='CALCULO POR AREAS'!$AG$2,'PROGRAMA III'!Q21+'PROGRAMA III'!R21,0) -> 0 | AJ11: =IF('PROGRAMA IV'!A21='CALCULO POR AREAS'!$AG$2,'PROGRAMA IV'!Q21+'PROGRAMA IV'!R21,0) -> 0 | AK11: =IF('PROGRAMA I'!A20='CALCULO POR AREAS'!$AK$2,('PROGRAMA I'!P20+'PROGRAMA I'!Q20),0) -> 0 | AL11: =IF('PROGRAMA II'!A21='CALCULO POR AREAS'!$AK$2,'PROGRAMA II'!Q21+'PROGRAMA II'!R21,0) -> 0 | AM11: =IF('PROGRAMA III'!A21='CALCULO POR AREAS'!$AK$2,'PROGRAMA III'!Q21+'PROGRAMA III'!R21,0) -> 0 | AN11: =IF('PROGRAMA IV'!A21='CALCULO POR AREAS'!$AK$2,'PROGRAMA IV'!Q21+'PROGRAMA IV'!R21,0) -> 0 | AO11: =IF('PROGRAMA I'!A20='CALCULO POR AREAS'!$AO$2,('PROGRAMA I'!P20+'PROGRAMA I'!Q20),0) -> 0 | AP11: =IF('PROGRAMA II'!A21='CALCULO POR AREAS'!$AO$2,'PROGRAMA II'!Q21+'PROGRAMA II'!R21,0) -> 0 | AQ11: =IF('PROGRAMA III'!A21='CALCULO POR AREAS'!$AO$2,'PROGRAMA III'!Q21+'PROGRAMA III'!R21,0) -> 0 | AR11: =IF('PROGRAMA IV'!A21='CALCULO POR AREAS'!$AO$2,'PROGRAMA IV'!Q21+'PROGRAMA IV'!R21,0) -> 0 | AS11: =IF('PROGRAMA I'!A20='CALCULO POR AREAS'!$AS$2,('PROGRAMA I'!P20+'PROGRAMA I'!Q20),0) -> 0 | AT11: =IF('PROGRAMA II'!A21='CALCULO POR AREAS'!$AS$2,'PROGRAMA II'!Q21+'PROGRAMA II'!R21,0) -> 0 | AU11: =IF('PROGRAMA III'!A21='CALCULO POR AREAS'!$AS$2,'PROGRAMA III'!Q21+'PROGRAMA III'!R21,0) -> 0 | AV11: =IF('PROGRAMA IV'!A21='CALCULO POR AREAS'!$AS$2,'PROGRAMA IV'!Q21+'PROGRAMA IV'!R21,0) -> 0 | AW11: =IF('PROGRAMA I'!A20='CALCULO POR AREAS'!$AW$2,('PROGRAMA I'!P20+'PROGRAMA I'!Q20),0) -> 0 | AX11: =IF('PROGRAMA II'!A21='CALCULO POR AREAS'!$AW$2,'PROGRAMA II'!Q21+'PROGRAMA II'!R21,0) -> 0 | AY11: =IF('PROGRAMA III'!A21='CALCULO POR AREAS'!$AW$2,'PROGRAMA III'!Q21+'PROGRAMA III'!R21,0) -> 0 | AZ11: =IF('PROGRAMA IV'!A21='CALCULO POR AREAS'!$AW$2,'PROGRAMA IV'!Q21+'PROGRAMA IV'!R21,0) -> 0 | BA11: =IF('PROGRAMA I'!A20='CALCULO POR AREAS'!$BA$2,('PROGRAMA I'!P20+'PROGRAMA I'!Q20),0) -> 0 | BB11: =IF('PROGRAMA II'!A21='CALCULO POR AREAS'!$BA$2,'PROGRAMA II'!Q21+'PROGRAMA II'!R21,0) -> 0 | BC11: =IF('PROGRAMA III'!A21='CALCULO POR AREAS'!$BA$2,'PROGRAMA III'!Q21+'PROGRAMA III'!R21,0) -> 0 | BD11: =IF('PROGRAMA IV'!A21='CALCULO POR AREAS'!$BA$2,'PROGRAMA IV'!Q21+'PROGRAMA IV'!R21,0) -> 0 | BE11: =IF('PROGRAMA I'!A20='CALCULO POR AREAS'!$BE$2,('PROGRAMA I'!P20+'PROGRAMA I'!Q20),0) -> 0 | BF11: =IF('PROGRAMA II'!A21='CALCULO POR AREAS'!$BE$2,'PROGRAMA II'!Q21+'PROGRAMA II'!R21,0) -> 0 | BG11: =IF('PROGRAMA III'!A21='CALCULO POR AREAS'!$BE$2,'PROGRAMA III'!Q21+'PROGRAMA III'!R21,0) -> 0 | BH11: =IF('PROGRAMA IV'!A21='CALCULO POR AREAS'!$BE$2,'PROGRAMA IV'!Q21+'PROGRAMA IV'!R21,0) -> 0 | BI11: =IF('PROGRAMA I'!A20='CALCULO POR AREAS'!$BI$2,('PROGRAMA I'!P20+'PROGRAMA I'!Q20),0) -> 0 | BJ11: =IF('PROGRAMA II'!A21='CALCULO POR AREAS'!$BI$2,'PROGRAMA II'!Q21+'PROGRAMA II'!R21,0) -> 0 | BK11: =IF('PROGRAMA III'!A21='CALCULO POR AREAS'!$BI$2,'PROGRAMA III'!Q21+'PROGRAMA III'!R21,0) -> 0 | BL11: =IF('PROGRAMA IV'!A21='CALCULO POR AREAS'!$BI$2,'PROGRAMA IV'!Q21+'PROGRAMA IV'!R21,0) -> 0 | BM11: =IF('PROGRAMA I'!A20='CALCULO POR AREAS'!$BM$2,('PROGRAMA I'!P20+'PROGRAMA I'!Q20),0) -> 0 | BN11: =IF('PROGRAMA II'!A21='CALCULO POR AREAS'!$BM$2,'PROGRAMA II'!Q21+'PROGRAMA II'!R21,0) -> 0 | BO11: =IF('PROGRAMA III'!A21='CALCULO POR AREAS'!$BM$2,'PROGRAMA III'!Q21+'PROGRAMA III'!R21,0) -> 0 | BP11: =IF('PROGRAMA IV'!A21='CALCULO POR AREAS'!$BM$2,'PROGRAMA IV'!Q21+'PROGRAMA IV'!R21,0) -> 0 | BQ11: =IF('PROGRAMA I'!A20='CALCULO POR AREAS'!$BQ$2,('PROGRAMA I'!P20+'PROGRAMA I'!Q20),0) -> 0 | BR11: =IF('PROGRAMA II'!A21='CALCULO POR AREAS'!$BQ$2,'PROGRAMA II'!Q21+'PROGRAMA II'!R21,0) -> 0 | BS11: =IF('PROGRAMA III'!A21='CALCULO POR AREAS'!$BQ$2,'PROGRAMA III'!Q21+'PROGRAMA III'!R21,0) -> 0 | BT11: =IF('PROGRAMA IV'!A21='CALCULO POR AREAS'!$BQ$2,'PROGRAMA IV'!Q21+'PROGRAMA IV'!R21,0) -> 0 | BU11: =IF('PROGRAMA I'!A20='CALCULO POR AREAS'!$BU$2,('PROGRAMA I'!P20+'PROGRAMA I'!Q20),0) -> 0 | BV11: =IF('PROGRAMA II'!A21='CALCULO POR AREAS'!$BU$2,'PROGRAMA II'!Q21+'PROGRAMA II'!R21,0) -> 0 | BW11: =IF('PROGRAMA III'!A21='CALCULO POR AREAS'!$BU$2,'PROGRAMA III'!Q21+'PROGRAMA III'!R21,0) -> 0 | BX11: =IF('PROGRAMA IV'!A21='CALCULO POR AREAS'!$BU$2,'PROGRAMA IV'!Q21+'PROGRAMA IV'!R21,0) -> 0 | BY11: =IF('PROGRAMA I'!A20='CALCULO POR AREAS'!$BY$2,('PROGRAMA I'!P20+'PROGRAMA I'!Q20),0) -> 0 | BZ11: =IF('PROGRAMA II'!A21='CALCULO POR AREAS'!$BY$2,'PROGRAMA II'!Q21+'PROGRAMA II'!R21,0) -> 0 | CA11: =IF('PROGRAMA III'!A21='CALCULO POR AREAS'!$BY$2,'PROGRAMA III'!Q21+'PROGRAMA III'!R21,0) -> 0 | CB11: =IF('PROGRAMA IV'!A21='CALCULO POR AREAS'!$BY$2,'PROGRAMA IV'!Q21+'PROGRAMA IV'!R21,0) -> 0
A12: =IF('PROGRAMA I'!A21='CALCULO POR AREAS'!$A$2,('PROGRAMA I'!P21+'PROGRAMA I'!Q21),0) -> 0 | B12: =IF('PROGRAMA II'!A22='CALCULO POR AREAS'!$A$2,'PROGRAMA II'!#REF!+'PROGRAMA II'!#REF!,0) -> 0 | C12: =IF('PROGRAMA III'!A22='CALCULO POR AREAS'!$A$2,'PROGRAMA III'!Q22+'PROGRAMA III'!R22,0) -> 0 | D12: =IF('PROGRAMA IV'!A22='CALCULO POR AREAS'!$A$2,'PROGRAMA IV'!Q22+'PROGRAMA IV'!R22,0) -> 0 | E12: =IF('PROGRAMA I'!A21='CALCULO POR AREAS'!$E$2,('PROGRAMA I'!P21+'PROGRAMA I'!Q21),0) -> 0 | F12: =IF('PROGRAMA II'!A22='CALCULO POR AREAS'!$E$2,'PROGRAMA II'!#REF!+'PROGRAMA II'!#REF!,0) -> 0 | G12: =IF('PROGRAMA III'!A22='CALCULO POR AREAS'!$E$2,'PROGRAMA III'!Q22+'PROGRAMA III'!R22,0) -> 0 | H12: =IF('PROGRAMA IV'!A22='CALCULO POR AREAS'!$E$2,'PROGRAMA IV'!Q22+'PROGRAMA IV'!R22,0) -> 0 | I12: =IF('PROGRAMA I'!A21='CALCULO POR AREAS'!$I$2,('PROGRAMA I'!P21+'PROGRAMA I'!Q21),0) -> 0 | J12: =IF('PROGRAMA II'!A22='CALCULO POR AREAS'!$I$2,'PROGRAMA II'!#REF!+'PROGRAMA II'!#REF!,0) -> 0 | K12: =IF('PROGRAMA III'!A22='CALCULO POR AREAS'!$I$2,'PROGRAMA III'!Q22+'PROGRAMA III'!R22,0) -> 4997177.67 | L12: =IF('PROGRAMA IV'!A22='CALCULO POR AREAS'!$I$2,'PROGRAMA IV'!Q22+'PROGRAMA IV'!R22,0) -> 0 | M12: =IF('PROGRAMA I'!A21='CALCULO POR AREAS'!$M$2,('PROGRAMA I'!P21+'PROGRAMA I'!Q21),0) -> 0 | N12: =IF('PROGRAMA II'!A22='CALCULO POR AREAS'!$M$2,'PROGRAMA II'!#REF!+'PROGRAMA II'!#REF!,0) -> 0 | O12: =IF('PROGRAMA III'!A22='CALCULO POR AREAS'!$M$2,'PROGRAMA III'!Q22+'PROGRAMA III'!R22,0) -> 0 | P12: =IF('PROGRAMA IV'!A22='CALCULO POR AREAS'!$M$2,'PROGRAMA IV'!Q22+'PROGRAMA IV'!R22,0) -> 0 | Q12: =IF('PROGRAMA I'!A21='CALCULO POR AREAS'!$Q$2,('PROGRAMA I'!P21+'PROGRAMA I'!Q21),0) -> 0 | R12: =IF('PROGRAMA II'!A22='CALCULO POR AREAS'!$Q$2,'PROGRAMA II'!#REF!+'PROGRAMA II'!#REF!,0) ->  | S12: =IF('PROGRAMA III'!A22='CALCULO POR AREAS'!$Q$2,'PROGRAMA III'!Q22+'PROGRAMA III'!R22,0) -> 0 | T12: =IF('PROGRAMA IV'!A22='CALCULO POR AREAS'!$Q$2,'PROGRAMA IV'!Q22+'PROGRAMA IV'!R22,0) -> 0 | U12: =IF('PROGRAMA I'!A21='CALCULO POR AREAS'!$U$2,('PROGRAMA I'!P21+'PROGRAMA I'!Q21),0) -> 0 | V12: =IF('PROGRAMA II'!A22='CALCULO POR AREAS'!$U$2,'PROGRAMA II'!#REF!+'PROGRAMA II'!#REF!,0) -> 0 | W12: =IF('PROGRAMA III'!A22='CALCULO POR AREAS'!$U$2,'PROGRAMA III'!Q22+'PROGRAMA III'!R22,0) -> 0 | X12: =IF('PROGRAMA IV'!A22='CALCULO POR AREAS'!$U$2,'PROGRAMA IV'!Q22+'PROGRAMA IV'!R22,0) -> 0 | Y12: =IF('PROGRAMA I'!A21='CALCULO POR AREAS'!$Y$2,('PROGRAMA I'!P21+'PROGRAMA I'!Q21),0) -> 0 | Z12: =IF('PROGRAMA II'!A22='CALCULO POR AREAS'!$Y$2,'PROGRAMA II'!#REF!+'PROGRAMA II'!#REF!,0) -> 0 | AA12: =IF('PROGRAMA III'!A22='CALCULO POR AREAS'!$Y$2,'PROGRAMA III'!Q22+'PROGRAMA III'!R22,0) -> 0 | AB12: =IF('PROGRAMA IV'!A22='CALCULO POR AREAS'!$Y$2,'PROGRAMA IV'!Q22+'PROGRAMA IV'!R22,0) -> 0 | AC12: =IF('PROGRAMA I'!A21='CALCULO POR AREAS'!$AC$2,('PROGRAMA I'!P21+'PROGRAMA I'!Q21),0) -> 0 | AD12: =IF('PROGRAMA II'!A22='CALCULO POR AREAS'!$AC$2,'PROGRAMA II'!#REF!+'PROGRAMA II'!#REF!,0) -> 0 | AE12: =IF('PROGRAMA III'!A22='CALCULO POR AREAS'!$AC$2,'PROGRAMA III'!Q22+'PROGRAMA III'!R22,0) -> 0 | AF12: =IF('PROGRAMA IV'!A22='CALCULO POR AREAS'!$AC$2,'PROGRAMA IV'!Q22+'PROGRAMA IV'!R22,0) -> 0 | AG12: =IF('PROGRAMA I'!A21='CALCULO POR AREAS'!$AG$2,('PROGRAMA I'!P21+'PROGRAMA I'!Q21),0) -> 0 | AH12: =IF('PROGRAMA II'!A22='CALCULO POR AREAS'!$AG$2,'PROGRAMA II'!#REF!+'PROGRAMA II'!#REF!,0) -> 0 | AI12: =IF('PROGRAMA III'!A22='CALCULO POR AREAS'!$AG$2,'PROGRAMA III'!Q22+'PROGRAMA III'!R22,0) -> 0 | AJ12: =IF('PROGRAMA IV'!A22='CALCULO POR AREAS'!$AG$2,'PROGRAMA IV'!Q22+'PROGRAMA IV'!R22,0) -> 0 | AK12: =IF('PROGRAMA I'!A21='CALCULO POR AREAS'!$AK$2,('PROGRAMA I'!P21+'PROGRAMA I'!Q21),0) -> 0 | AL12: =IF('PROGRAMA II'!A22='CALCULO POR AREAS'!$AK$2,'PROGRAMA II'!#REF!+'PROGRAMA II'!#REF!,0) -> 0 | AM12: =IF('PROGRAMA III'!A22='CALCULO POR AREAS'!$AK$2,'PROGRAMA III'!Q22+'PROGRAMA III'!R22,0) -> 0 | AN12: =IF('PROGRAMA IV'!A22='CALCULO POR AREAS'!$AK$2,'PROGRAMA IV'!Q22+'PROGRAMA IV'!R22,0) -> 0 | AO12: =IF('PROGRAMA I'!A21='CALCULO POR AREAS'!$AO$2,('PROGRAMA I'!P21+'PROGRAMA I'!Q21),0) -> 0 | AP12: =IF('PROGRAMA II'!A22='CALCULO POR AREAS'!$AO$2,'PROGRAMA II'!#REF!+'PROGRAMA II'!#REF!,0) -> 0 | AQ12: =IF('PROGRAMA III'!A22='CALCULO POR AREAS'!$AO$2,'PROGRAMA III'!Q22+'PROGRAMA III'!R22,0) -> 0 | AR12: =IF('PROGRAMA IV'!A22='CALCULO POR AREAS'!$AO$2,'PROGRAMA IV'!Q22+'PROGRAMA IV'!R22,0) -> 0 | AS12: =IF('PROGRAMA I'!A21='CALCULO POR AREAS'!$AS$2,('PROGRAMA I'!P21+'PROGRAMA I'!Q21),0) -> 0 | AT12: =IF('PROGRAMA II'!A22='CALCULO POR AREAS'!$AS$2,'PROGRAMA II'!#REF!+'PROGRAMA II'!#REF!,0) -> 0 | AU12: =IF('PROGRAMA III'!A22='CALCULO POR AREAS'!$AS$2,'PROGRAMA III'!Q22+'PROGRAMA III'!R22,0) -> 0 | AV12: =IF('PROGRAMA IV'!A22='CALCULO POR AREAS'!$AS$2,'PROGRAMA IV'!Q22+'PROGRAMA IV'!R22,0) -> 0 | AW12: =IF('PROGRAMA I'!A21='CALCULO POR AREAS'!$AW$2,('PROGRAMA I'!P21+'PROGRAMA I'!Q21),0) -> 0 | AX12: =IF('PROGRAMA II'!A22='CALCULO POR AREAS'!$AW$2,'PROGRAMA II'!#REF!+'PROGRAMA II'!#REF!,0) -> 0 | AY12: =IF('PROGRAMA III'!A22='CALCULO POR AREAS'!$AW$2,'PROGRAMA III'!Q22+'PROGRAMA III'!R22,0) -> 0 | AZ12: =IF('PROGRAMA IV'!A22='CALCULO POR AREAS'!$AW$2,'PROGRAMA IV'!Q22+'PROGRAMA IV'!R22,0) -> 0 | BA12: =IF('PROGRAMA I'!A21='CALCULO POR AREAS'!$BA$2,('PROGRAMA I'!P21+'PROGRAMA I'!Q21),0) -> 0 | BB12: =IF('PROGRAMA II'!A22='CALCULO POR AREAS'!$BA$2,'PROGRAMA II'!#REF!+'PROGRAMA II'!#REF!,0) -> 0 | BC12: =IF('PROGRAMA III'!A22='CALCULO POR AREAS'!$BA$2,'PROGRAMA III'!Q22+'PROGRAMA III'!R22,0) -> 0 | BD12: =IF('PROGRAMA IV'!A22='CALCULO POR AREAS'!$BA$2,'PROGRAMA IV'!Q22+'PROGRAMA IV'!R22,0) -> 0 | BE12: =IF('PROGRAMA I'!A21='CALCULO POR AREAS'!$BE$2,('PROGRAMA I'!P21+'PROGRAMA I'!Q21),0) -> 0 | BF12: =IF('PROGRAMA II'!A22='CALCULO POR AREAS'!$BE$2,'PROGRAMA II'!#REF!+'PROGRAMA II'!#REF!,0) -> 0 | BG12: =IF('PROGRAMA III'!A22='CALCULO POR AREAS'!$BE$2,'PROGRAMA III'!Q22+'PROGRAMA III'!R22,0) -> 0 | BH12: =IF('PROGRAMA IV'!A22='CALCULO POR AREAS'!$BE$2,'PROGRAMA IV'!Q22+'PROGRAMA IV'!R22,0) -> 0 | BI12: =IF('PROGRAMA I'!A21='CALCULO POR AREAS'!$BI$2,('PROGRAMA I'!P21+'PROGRAMA I'!Q21),0) -> 0 | BJ12: =IF('PROGRAMA II'!A22='CALCULO POR AREAS'!$BI$2,'PROGRAMA II'!#REF!+'PROGRAMA II'!#REF!,0) -> 0 | BK12: =IF('PROGRAMA III'!A22='CALCULO POR AREAS'!$BI$2,'PROGRAMA III'!Q22+'PROGRAMA III'!R22,0) -> 0 | BL12: =IF('PROGRAMA IV'!A22='CALCULO POR AREAS'!$BI$2,'PROGRAMA IV'!Q22+'PROGRAMA IV'!R22,0) -> 0 | BM12: =IF('PROGRAMA I'!A21='CALCULO POR AREAS'!$BM$2,('PROGRAMA I'!P21+'PROGRAMA I'!Q21),0) -> 0 | BN12: =IF('PROGRAMA II'!A22='CALCULO POR AREAS'!$BM$2,'PROGRAMA II'!#REF!+'PROGRAMA II'!#REF!,0) -> 0 | BO12: =IF('PROGRAMA III'!A22='CALCULO POR AREAS'!$BM$2,'PROGRAMA III'!Q22+'PROGRAMA III'!R22,0) -> 0 | BP12: =IF('PROGRAMA IV'!A22='CALCULO POR AREAS'!$BM$2,'PROGRAMA IV'!Q22+'PROGRAMA IV'!R22,0) -> 0 | BQ12: =IF('PROGRAMA I'!A21='CALCULO POR AREAS'!$BQ$2,('PROGRAMA I'!P21+'PROGRAMA I'!Q21),0) -> 0 | BR12: =IF('PROGRAMA II'!A22='CALCULO POR AREAS'!$BQ$2,'PROGRAMA II'!#REF!+'PROGRAMA II'!#REF!,0) -> 0 | BS12: =IF('PROGRAMA III'!A22='CALCULO POR AREAS'!$BQ$2,'PROGRAMA III'!Q22+'PROGRAMA III'!R22,0) -> 0 | BT12: =IF('PROGRAMA IV'!A22='CALCULO POR AREAS'!$BQ$2,'PROGRAMA IV'!Q22+'PROGRAMA IV'!R22,0) -> 0 | BU12: =IF('PROGRAMA I'!A21='CALCULO POR AREAS'!$BU$2,('PROGRAMA I'!P21+'PROGRAMA I'!Q21),0) -> 0 | BV12: =IF('PROGRAMA II'!A22='CALCULO POR AREAS'!$BU$2,'PROGRAMA II'!#REF!+'PROGRAMA II'!#REF!,0) -> 0 | BW12: =IF('PROGRAMA III'!A22='CALCULO POR AREAS'!$BU$2,'PROGRAMA III'!Q22+'PROGRAMA III'!R22,0) -> 0 | BX12: =IF('PROGRAMA IV'!A22='CALCULO POR AREAS'!$BU$2,'PROGRAMA IV'!Q22+'PROGRAMA IV'!R22,0) -> 0 | BY12: =IF('PROGRAMA I'!A21='CALCULO POR AREAS'!$BY$2,('PROGRAMA I'!P21+'PROGRAMA I'!Q21),0) -> 0 | BZ12: =IF('PROGRAMA II'!A22='CALCULO POR AREAS'!$BY$2,'PROGRAMA II'!#REF!+'PROGRAMA II'!#REF!,0) -> 0 | CA12: =IF('PROGRAMA III'!A22='CALCULO POR AREAS'!$BY$2,'PROGRAMA III'!Q22+'PROGRAMA III'!R22,0) -> 0 | CB12: =IF('PROGRAMA IV'!A22='CALCULO POR AREAS'!$BY$2,'PROGRAMA IV'!Q22+'PROGRAMA IV'!R22,0) -> 0
A13: =IF('PROGRAMA I'!A22='CALCULO POR AREAS'!$A$2,('PROGRAMA I'!P22+'PROGRAMA I'!Q22),0) -> 0 | B13: =IF('PROGRAMA II'!A23='CALCULO POR AREAS'!$A$2,'PROGRAMA II'!Q22+'PROGRAMA II'!R22,0) -> 0 | C13: =IF('PROGRAMA III'!A23='CALCULO POR AREAS'!$A$2,'PROGRAMA III'!Q23+'PROGRAMA III'!R23,0) -> 0 | D13: =IF('PROGRAMA IV'!A23='CALCULO POR AREAS'!$A$2,'PROGRAMA IV'!Q23+'PROGRAMA IV'!R23,0) -> 0 | E13: =IF('PROGRAMA I'!A22='CALCULO POR AREAS'!$E$2,('PROGRAMA I'!P22+'PROGRAMA I'!Q22),0) -> 0 | F13: =IF('PROGRAMA II'!A23='CALCULO POR AREAS'!$E$2,'PROGRAMA II'!Q22+'PROGRAMA II'!R22,0) -> 100000 | G13: =IF('PROGRAMA III'!A23='CALCULO POR AREAS'!$E$2,'PROGRAMA III'!Q23+'PROGRAMA III'!R23,0) -> 0 | H13: =IF('PROGRAMA IV'!A23='CALCULO POR AREAS'!$E$2,'PROGRAMA IV'!Q23+'PROGRAMA IV'!R23,0) -> 0 | I13: =IF('PROGRAMA I'!A22='CALCULO POR AREAS'!$I$2,('PROGRAMA I'!P22+'PROGRAMA I'!Q22),0) -> 0 | J13: =IF('PROGRAMA II'!A23='CALCULO POR AREAS'!$I$2,'PROGRAMA II'!Q22+'PROGRAMA II'!R22,0) -> 0 | K13: =IF('PROGRAMA III'!A23='CALCULO POR AREAS'!$I$2,'PROGRAMA III'!Q23+'PROGRAMA III'!R23,0) -> 0 | L13: =IF('PROGRAMA IV'!A23='CALCULO POR AREAS'!$I$2,'PROGRAMA IV'!Q23+'PROGRAMA IV'!R23,0) -> 0 | M13: =IF('PROGRAMA I'!A22='CALCULO POR AREAS'!$M$2,('PROGRAMA I'!P22+'PROGRAMA I'!Q22),0) -> 0 | N13: =IF('PROGRAMA II'!A23='CALCULO POR AREAS'!$M$2,'PROGRAMA II'!Q22+'PROGRAMA II'!R22,0) -> 0 | O13: =IF('PROGRAMA III'!A23='CALCULO POR AREAS'!$M$2,'PROGRAMA III'!Q23+'PROGRAMA III'!R23,0) -> 0 | P13: =IF('PROGRAMA IV'!A23='CALCULO POR AREAS'!$M$2,'PROGRAMA IV'!Q23+'PROGRAMA IV'!R23,0) -> 0 | Q13: =IF('PROGRAMA I'!A22='CALCULO POR AREAS'!$Q$2,('PROGRAMA I'!P22+'PROGRAMA I'!Q22),0) -> 0 | R13: =IF('PROGRAMA II'!A23='CALCULO POR AREAS'!$Q$2,'PROGRAMA II'!Q22+'PROGRAMA II'!R22,0) -> 0 | S13: =IF('PROGRAMA III'!A23='CALCULO POR AREAS'!$Q$2,'PROGRAMA III'!Q23+'PROGRAMA III'!R23,0) -> 0 | T13: =IF('PROGRAMA IV'!A23='CALCULO POR AREAS'!$Q$2,'PROGRAMA IV'!Q23+'PROGRAMA IV'!R23,0) -> 0 | U13: =IF('PROGRAMA I'!A22='CALCULO POR AREAS'!$U$2,('PROGRAMA I'!P22+'PROGRAMA I'!Q22),0) -> 0 | V13: =IF('PROGRAMA II'!A23='CALCULO POR AREAS'!$U$2,'PROGRAMA II'!Q22+'PROGRAMA II'!R22,0) -> 0 | W13: =IF('PROGRAMA III'!A23='CALCULO POR AREAS'!$U$2,'PROGRAMA III'!Q23+'PROGRAMA III'!R23,0) -> 0 | X13: =IF('PROGRAMA IV'!A23='CALCULO POR AREAS'!$U$2,'PROGRAMA IV'!Q23+'PROGRAMA IV'!R23,0) -> 0 | Y13: =IF('PROGRAMA I'!A22='CALCULO POR AREAS'!$Y$2,('PROGRAMA I'!P22+'PROGRAMA I'!Q22),0) -> 0 | Z13: =IF('PROGRAMA II'!A23='CALCULO POR AREAS'!$Y$2,'PROGRAMA II'!Q22+'PROGRAMA II'!R22,0) -> 0 | AA13: =IF('PROGRAMA III'!A23='CALCULO POR AREAS'!$Y$2,'PROGRAMA III'!Q23+'PROGRAMA III'!R23,0) -> 0 | AB13: =IF('PROGRAMA IV'!A23='CALCULO POR AREAS'!$Y$2,'PROGRAMA IV'!Q23+'PROGRAMA IV'!R23,0) -> 0 | AC13: =IF('PROGRAMA I'!A22='CALCULO POR AREAS'!$AC$2,('PROGRAMA I'!P22+'PROGRAMA I'!Q22),0) -> 0 | AD13: =IF('PROGRAMA II'!A23='CALCULO POR AREAS'!$AC$2,'PROGRAMA II'!Q22+'PROGRAMA II'!R22,0) -> 0 | AE13: =IF('PROGRAMA III'!A23='CALCULO POR AREAS'!$AC$2,'PROGRAMA III'!Q23+'PROGRAMA III'!R23,0) -> 0 | AF13: =IF('PROGRAMA IV'!A23='CALCULO POR AREAS'!$AC$2,'PROGRAMA IV'!Q23+'PROGRAMA IV'!R23,0) -> 0 | AG13: =IF('PROGRAMA I'!A22='CALCULO POR AREAS'!$AG$2,('PROGRAMA I'!P22+'PROGRAMA I'!Q22),0) -> 0 | AH13: =IF('PROGRAMA II'!A23='CALCULO POR AREAS'!$AG$2,'PROGRAMA II'!Q22+'PROGRAMA II'!R22,0) -> 0 | AI13: =IF('PROGRAMA III'!A23='CALCULO POR AREAS'!$AG$2,'PROGRAMA III'!Q23+'PROGRAMA III'!R23,0) -> 0 | AJ13: =IF('PROGRAMA IV'!A23='CALCULO POR AREAS'!$AG$2,'PROGRAMA IV'!Q23+'PROGRAMA IV'!R23,0) -> 0 | AK13: =IF('PROGRAMA I'!A22='CALCULO POR AREAS'!$AK$2,('PROGRAMA I'!P22+'PROGRAMA I'!Q22),0) -> 0 | AL13: =IF('PROGRAMA II'!A23='CALCULO POR AREAS'!$AK$2,'PROGRAMA II'!Q22+'PROGRAMA II'!R22,0) -> 0 | AM13: =IF('PROGRAMA III'!A23='CALCULO POR AREAS'!$AK$2,'PROGRAMA III'!Q23+'PROGRAMA III'!R23,0) -> 0 | AN13: =IF('PROGRAMA IV'!A23='CALCULO POR AREAS'!$AK$2,'PROGRAMA IV'!Q23+'PROGRAMA IV'!R23,0) -> 0 | AO13: =IF('PROGRAMA I'!A22='CALCULO POR AREAS'!$AO$2,('PROGRAMA I'!P22+'PROGRAMA I'!Q22),0) -> 0 | AP13: =IF('PROGRAMA II'!A23='CALCULO POR AREAS'!$AO$2,'PROGRAMA II'!Q22+'PROGRAMA II'!R22,0) -> 0 | AQ13: =IF('PROGRAMA III'!A23='CALCULO POR AREAS'!$AO$2,'PROGRAMA III'!Q23+'PROGRAMA III'!R23,0) -> 0 | AR13: =IF('PROGRAMA IV'!A23='CALCULO POR AREAS'!$AO$2,'PROGRAMA IV'!Q23+'PROGRAMA IV'!R23,0) -> 0 | AS13: =IF('PROGRAMA I'!A22='CALCULO POR AREAS'!$AS$2,('PROGRAMA I'!P22+'PROGRAMA I'!Q22),0) -> 0 | AT13: =IF('PROGRAMA II'!A23='CALCULO POR AREAS'!$AS$2,'PROGRAMA II'!Q22+'PROGRAMA II'!R22,0) -> 0 | AU13: =IF('PROGRAMA III'!A23='CALCULO POR AREAS'!$AS$2,'PROGRAMA III'!Q23+'PROGRAMA III'!R23,0) -> 0 | AV13: =IF('PROGRAMA IV'!A23='CALCULO POR AREAS'!$AS$2,'PROGRAMA IV'!Q23+'PROGRAMA IV'!R23,0) -> 0 | AW13: =IF('PROGRAMA I'!A22='CALCULO POR AREAS'!$AW$2,('PROGRAMA I'!P22+'PROGRAMA I'!Q22),0) -> 0 | AX13: =IF('PROGRAMA II'!A23='CALCULO POR AREAS'!$AW$2,'PROGRAMA II'!Q22+'PROGRAMA II'!R22,0) -> 0 | AY13: =IF('PROGRAMA III'!A23='CALCULO POR AREAS'!$AW$2,'PROGRAMA III'!Q23+'PROGRAMA III'!R23,0) -> 0 | AZ13: =IF('PROGRAMA IV'!A23='CALCULO POR AREAS'!$AW$2,'PROGRAMA IV'!Q23+'PROGRAMA IV'!R23,0) -> 0 | BA13: =IF('PROGRAMA I'!A22='CALCULO POR AREAS'!$BA$2,('PROGRAMA I'!P22+'PROGRAMA I'!Q22),0) -> 0 | BB13: =IF('PROGRAMA II'!A23='CALCULO POR AREAS'!$BA$2,'PROGRAMA II'!Q22+'PROGRAMA II'!R22,0) -> 0 | BC13: =IF('PROGRAMA III'!A23='CALCULO POR AREAS'!$BA$2,'PROGRAMA III'!Q23+'PROGRAMA III'!R23,0) -> 0 | BD13: =IF('PROGRAMA IV'!A23='CALCULO POR AREAS'!$BA$2,'PROGRAMA IV'!Q23+'PROGRAMA IV'!R23,0) -> 0 | BE13: =IF('PROGRAMA I'!A22='CALCULO POR AREAS'!$BE$2,('PROGRAMA I'!P22+'PROGRAMA I'!Q22),0) -> 0 | BF13: =IF('PROGRAMA II'!A23='CALCULO POR AREAS'!$BE$2,'PROGRAMA II'!Q22+'PROGRAMA II'!R22,0) -> 0 | BG13: =IF('PROGRAMA III'!A23='CALCULO POR AREAS'!$BE$2,'PROGRAMA III'!Q23+'PROGRAMA III'!R23,0) -> 0 | BH13: =IF('PROGRAMA IV'!A23='CALCULO POR AREAS'!$BE$2,'PROGRAMA IV'!Q23+'PROGRAMA IV'!R23,0) -> 0 | BI13: =IF('PROGRAMA I'!A22='CALCULO POR AREAS'!$BI$2,('PROGRAMA I'!P22+'PROGRAMA I'!Q22),0) -> 0 | BJ13: =IF('PROGRAMA II'!A23='CALCULO POR AREAS'!$BI$2,'PROGRAMA II'!Q22+'PROGRAMA II'!R22,0) -> 0 | BK13: =IF('PROGRAMA III'!A23='CALCULO POR AREAS'!$BI$2,'PROGRAMA III'!Q23+'PROGRAMA III'!R23,0) -> 0 | BL13: =IF('PROGRAMA IV'!A23='CALCULO POR AREAS'!$BI$2,'PROGRAMA IV'!Q23+'PROGRAMA IV'!R23,0) -> 0 | BM13: =IF('PROGRAMA I'!A22='CALCULO POR AREAS'!$BM$2,('PROGRAMA I'!P22+'PROGRAMA I'!Q22),0) -> 0 | BN13: =IF('PROGRAMA II'!A23='CALCULO POR AREAS'!$BM$2,'PROGRAMA II'!Q22+'PROGRAMA II'!R22,0) -> 0 | BO13: =IF('PROGRAMA III'!A23='CALCULO POR AREAS'!$BM$2,'PROGRAMA III'!Q23+'PROGRAMA III'!R23,0) -> 0 | BP13: =IF('PROGRAMA IV'!A23='CALCULO POR AREAS'!$BM$2,'PROGRAMA IV'!Q23+'PROGRAMA IV'!R23,0) -> 0 | BQ13: =IF('PROGRAMA I'!A22='CALCULO POR AREAS'!$BQ$2,('PROGRAMA I'!P22+'PROGRAMA I'!Q22),0) -> 0 | BR13: =IF('PROGRAMA II'!A23='CALCULO POR AREAS'!$BQ$2,'PROGRAMA II'!Q22+'PROGRAMA II'!R22,0) -> 0 | BS13: =IF('PROGRAMA III'!A23='CALCULO POR AREAS'!$BQ$2,'PROGRAMA III'!Q23+'PROGRAMA III'!R23,0) -> 0 | BT13: =IF('PROGRAMA IV'!A23='CALCULO POR AREAS'!$BQ$2,'PROGRAMA IV'!Q23+'PROGRAMA IV'!R23,0) -> 0 | BU13: =IF('PROGRAMA I'!A22='CALCULO POR AREAS'!$BU$2,('PROGRAMA I'!P22+'PROGRAMA I'!Q22),0) -> 0 | BV13: =IF('PROGRAMA II'!A23='CALCULO POR AREAS'!$BU$2,'PROGRAMA II'!Q22+'PROGRAMA II'!R22,0) -> 0 | BW13: =IF('PROGRAMA III'!A23='CALCULO POR AREAS'!$BU$2,'PROGRAMA III'!Q23+'PROGRAMA III'!R23,0) -> 0 | BX13: =IF('PROGRAMA IV'!A23='CALCULO POR AREAS'!$BU$2,'PROGRAMA IV'!Q23+'PROGRAMA IV'!R23,0) -> 0 | BY13: =IF('PROGRAMA I'!A22='CALCULO POR AREAS'!$BY$2,('PROGRAMA I'!P22+'PROGRAMA I'!Q22),0) -> 0 | BZ13: =IF('PROGRAMA II'!A23='CALCULO POR AREAS'!$BY$2,'PROGRAMA II'!Q22+'PROGRAMA II'!R22,0) -> 0 | CA13: =IF('PROGRAMA III'!A23='CALCULO POR AREAS'!$BY$2,'PROGRAMA III'!Q23+'PROGRAMA III'!R23,0) -> 0 | CB13: =IF('PROGRAMA IV'!A23='CALCULO POR AREAS'!$BY$2,'PROGRAMA IV'!Q23+'PROGRAMA IV'!R23,0) -> 0
A14: =IF('PROGRAMA I'!A23='CALCULO POR AREAS'!$A$2,('PROGRAMA I'!P23+'PROGRAMA I'!Q23),0) -> 0 | B14: =IF('PROGRAMA II'!A24='CALCULO POR AREAS'!$A$2,'PROGRAMA II'!Q23+'PROGRAMA II'!R23,0) -> 0 | C14: =IF('PROGRAMA III'!A24='CALCULO POR AREAS'!$A$2,'PROGRAMA III'!Q24+'PROGRAMA III'!R24,0) -> 0 | D14: =IF('PROGRAMA IV'!A24='CALCULO POR AREAS'!$A$2,'PROGRAMA IV'!Q24+'PROGRAMA IV'!R24,0) -> 0 | E14: =IF('PROGRAMA I'!A23='CALCULO POR AREAS'!$E$2,('PROGRAMA I'!P23+'PROGRAMA I'!Q23),0) -> 0 | F14: =IF('PROGRAMA II'!A24='CALCULO POR AREAS'!$E$2,'PROGRAMA II'!Q23+'PROGRAMA II'!R23,0) -> 0 | G14: =IF('PROGRAMA III'!A24='CALCULO POR AREAS'!$E$2,'PROGRAMA III'!Q24+'PROGRAMA III'!R24,0) -> 0 | H14: =IF('PROGRAMA IV'!A24='CALCULO POR AREAS'!$E$2,'PROGRAMA IV'!Q24+'PROGRAMA IV'!R24,0) -> 0 | I14: =IF('PROGRAMA I'!A23='CALCULO POR AREAS'!$I$2,('PROGRAMA I'!P23+'PROGRAMA I'!Q23),0) -> 0 | J14: =IF('PROGRAMA II'!A24='CALCULO POR AREAS'!$I$2,'PROGRAMA II'!Q23+'PROGRAMA II'!R23,0) -> 0 | K14: =IF('PROGRAMA III'!A24='CALCULO POR AREAS'!$I$2,'PROGRAMA III'!Q24+'PROGRAMA III'!R24,0) -> 0 | L14: =IF('PROGRAMA IV'!A24='CALCULO POR AREAS'!$I$2,'PROGRAMA IV'!Q24+'PROGRAMA IV'!R24,0) -> 0 | M14: =IF('PROGRAMA I'!A23='CALCULO POR AREAS'!$M$2,('PROGRAMA I'!P23+'PROGRAMA I'!Q23),0) -> 0 | N14: =IF('PROGRAMA II'!A24='CALCULO POR AREAS'!$M$2,'PROGRAMA II'!Q23+'PROGRAMA II'!R23,0) -> 0 | O14: =IF('PROGRAMA III'!A24='CALCULO POR AREAS'!$M$2,'PROGRAMA III'!Q24+'PROGRAMA III'!R24,0) -> 0 | P14: =IF('PROGRAMA IV'!A24='CALCULO POR AREAS'!$M$2,'PROGRAMA IV'!Q24+'PROGRAMA IV'!R24,0) -> 0 | Q14: =IF('PROGRAMA I'!A23='CALCULO POR AREAS'!$Q$2,('PROGRAMA I'!P23+'PROGRAMA I'!Q23),0) -> 0 | R14: =IF('PROGRAMA II'!A24='CALCULO POR AREAS'!$Q$2,'PROGRAMA II'!Q23+'PROGRAMA II'!R23,0) -> 0 | S14: =IF('PROGRAMA III'!A24='CALCULO POR AREAS'!$Q$2,'PROGRAMA III'!Q24+'PROGRAMA III'!R24,0) -> 0 | T14: =IF('PROGRAMA IV'!A24='CALCULO POR AREAS'!$Q$2,'PROGRAMA IV'!Q24+'PROGRAMA IV'!R24,0) -> 0 | U14: =IF('PROGRAMA I'!A23='CALCULO POR AREAS'!$U$2,('PROGRAMA I'!P23+'PROGRAMA I'!Q23),0) -> 0 | V14: =IF('PROGRAMA II'!A24='CALCULO POR AREAS'!$U$2,'PROGRAMA II'!Q23+'PROGRAMA II'!R23,0) -> 0 | W14: =IF('PROGRAMA III'!A24='CALCULO POR AREAS'!$U$2,'PROGRAMA III'!Q24+'PROGRAMA III'!R24,0) -> 0 | X14: =IF('PROGRAMA IV'!A24='CALCULO POR AREAS'!$U$2,'PROGRAMA IV'!Q24+'PROGRAMA IV'!R24,0) -> 0 | Y14: =IF('PROGRAMA I'!A23='CALCULO POR AREAS'!$Y$2,('PROGRAMA I'!P23+'PROGRAMA I'!Q23),0) -> 0 | Z14: =IF('PROGRAMA II'!A24='CALCULO POR AREAS'!$Y$2,'PROGRAMA II'!Q23+'PROGRAMA II'!R23,0) -> 100000 | AA14: =IF('PROGRAMA III'!A24='CALCULO POR AREAS'!$Y$2,'PROGRAMA III'!Q24+'PROGRAMA III'!R24,0) -> 0 | AB14: =IF('PROGRAMA IV'!A24='CALCULO POR AREAS'!$Y$2,'PROGRAMA IV'!Q24+'PROGRAMA IV'!R24,0) -> 0 | AC14: =IF('PROGRAMA I'!A23='CALCULO POR AREAS'!$AC$2,('PROGRAMA I'!P23+'PROGRAMA I'!Q23),0) -> 0 | AD14: =IF('PROGRAMA II'!A24='CALCULO POR AREAS'!$AC$2,'PROGRAMA II'!Q23+'PROGRAMA II'!R23,0) -> 0 | AE14: =IF('PROGRAMA III'!A24='CALCULO POR AREAS'!$AC$2,'PROGRAMA III'!Q24+'PROGRAMA III'!R24,0) -> 0 | AF14: =IF('PROGRAMA IV'!A24='CALCULO POR AREAS'!$AC$2,'PROGRAMA IV'!Q24+'PROGRAMA IV'!R24,0) -> 0 | AG14: =IF('PROGRAMA I'!A23='CALCULO POR AREAS'!$AG$2,('PROGRAMA I'!P23+'PROGRAMA I'!Q23),0) -> 0 | AH14: =IF('PROGRAMA II'!A24='CALCULO POR AREAS'!$AG$2,'PROGRAMA II'!Q23+'PROGRAMA II'!R23,0) -> 0 | AI14: =IF('PROGRAMA III'!A24='CALCULO POR AREAS'!$AG$2,'PROGRAMA III'!Q24+'PROGRAMA III'!R24,0) -> 0 | AJ14: =IF('PROGRAMA IV'!A24='CALCULO POR AREAS'!$AG$2,'PROGRAMA IV'!Q24+'PROGRAMA IV'!R24,0) -> 0 | AK14: =IF('PROGRAMA I'!A23='CALCULO POR AREAS'!$AK$2,('PROGRAMA I'!P23+'PROGRAMA I'!Q23),0) -> 0 | AL14: =IF('PROGRAMA II'!A24='CALCULO POR AREAS'!$AK$2,'PROGRAMA II'!Q23+'PROGRAMA II'!R23,0) -> 0 | AM14: =IF('PROGRAMA III'!A24='CALCULO POR AREAS'!$AK$2,'PROGRAMA III'!Q24+'PROGRAMA III'!R24,0) -> 0 | AN14: =IF('PROGRAMA IV'!A24='CALCULO POR AREAS'!$AK$2,'PROGRAMA IV'!Q24+'PROGRAMA IV'!R24,0) -> 0 | AO14: =IF('PROGRAMA I'!A23='CALCULO POR AREAS'!$AO$2,('PROGRAMA I'!P23+'PROGRAMA I'!Q23),0) -> 0 | AP14: =IF('PROGRAMA II'!A24='CALCULO POR AREAS'!$AO$2,'PROGRAMA II'!Q23+'PROGRAMA II'!R23,0) -> 0 | AQ14: =IF('PROGRAMA III'!A24='CALCULO POR AREAS'!$AO$2,'PROGRAMA III'!Q24+'PROGRAMA III'!R24,0) -> 0 | AR14: =IF('PROGRAMA IV'!A24='CALCULO POR AREAS'!$AO$2,'PROGRAMA IV'!Q24+'PROGRAMA IV'!R24,0) -> 0 | AS14: =IF('PROGRAMA I'!A23='CALCULO POR AREAS'!$AS$2,('PROGRAMA I'!P23+'PROGRAMA I'!Q23),0) -> 0 | AT14: =IF('PROGRAMA II'!A24='CALCULO POR AREAS'!$AS$2,'PROGRAMA II'!Q23+'PROGRAMA II'!R23,0) -> 0 | AU14: =IF('PROGRAMA III'!A24='CALCULO POR AREAS'!$AS$2,'PROGRAMA III'!Q24+'PROGRAMA III'!R24,0) -> 0 | AV14: =IF('PROGRAMA IV'!A24='CALCULO POR AREAS'!$AS$2,'PROGRAMA IV'!Q24+'PROGRAMA IV'!R24,0) -> 0 | AW14: =IF('PROGRAMA I'!A23='CALCULO POR AREAS'!$AW$2,('PROGRAMA I'!P23+'PROGRAMA I'!Q23),0) -> 0 | AX14: =IF('PROGRAMA II'!A24='CALCULO POR AREAS'!$AW$2,'PROGRAMA II'!Q23+'PROGRAMA II'!R23,0) -> 0 | AY14: =IF('PROGRAMA III'!A24='CALCULO POR AREAS'!$AW$2,'PROGRAMA III'!Q24+'PROGRAMA III'!R24,0) -> 0 | AZ14: =IF('PROGRAMA IV'!A24='CALCULO POR AREAS'!$AW$2,'PROGRAMA IV'!Q24+'PROGRAMA IV'!R24,0) -> 0 | BA14: =IF('PROGRAMA I'!A23='CALCULO POR AREAS'!$BA$2,('PROGRAMA I'!P23+'PROGRAMA I'!Q23),0) -> 0 | BB14: =IF('PROGRAMA II'!A24='CALCULO POR AREAS'!$BA$2,'PROGRAMA II'!Q23+'PROGRAMA II'!R23,0) -> 0 | BC14: =IF('PROGRAMA III'!A24='CALCULO POR AREAS'!$BA$2,'PROGRAMA III'!Q24+'PROGRAMA III'!R24,0) -> 0 | BD14: =IF('PROGRAMA IV'!A24='CALCULO POR AREAS'!$BA$2,'PROGRAMA IV'!Q24+'PROGRAMA IV'!R24,0) -> 0 | BE14: =IF('PROGRAMA I'!A23='CALCULO POR AREAS'!$BE$2,('PROGRAMA I'!P23+'PROGRAMA I'!Q23),0) -> 0 | BF14: =IF('PROGRAMA II'!A24='CALCULO POR AREAS'!$BE$2,'PROGRAMA II'!Q23+'PROGRAMA II'!R23,0) -> 0 | BG14: =IF('PROGRAMA III'!A24='CALCULO POR AREAS'!$BE$2,'PROGRAMA III'!Q24+'PROGRAMA III'!R24,0) -> 0 | BH14: =IF('PROGRAMA IV'!A24='CALCULO POR AREAS'!$BE$2,'PROGRAMA IV'!Q24+'PROGRAMA IV'!R24,0) -> 0 | BI14: =IF('PROGRAMA I'!A23='CALCULO POR AREAS'!$BI$2,('PROGRAMA I'!P23+'PROGRAMA I'!Q23),0) -> 0 | BJ14: =IF('PROGRAMA II'!A24='CALCULO POR AREAS'!$BI$2,'PROGRAMA II'!Q23+'PROGRAMA II'!R23,0) -> 0 | BK14: =IF('PROGRAMA III'!A24='CALCULO POR AREAS'!$BI$2,'PROGRAMA III'!Q24+'PROGRAMA III'!R24,0) -> 0 | BL14: =IF('PROGRAMA IV'!A24='CALCULO POR AREAS'!$BI$2,'PROGRAMA IV'!Q24+'PROGRAMA IV'!R24,0) -> 0 | BM14: =IF('PROGRAMA I'!A23='CALCULO POR AREAS'!$BM$2,('PROGRAMA I'!P23+'PROGRAMA I'!Q23),0) -> 0 | BN14: =IF('PROGRAMA II'!A24='CALCULO POR AREAS'!$BM$2,'PROGRAMA II'!Q23+'PROGRAMA II'!R23,0) -> 0 | BO14: =IF('PROGRAMA III'!A24='CALCULO POR AREAS'!$BM$2,'PROGRAMA III'!Q24+'PROGRAMA III'!R24,0) -> 0 | BP14: =IF('PROGRAMA IV'!A24='CALCULO POR AREAS'!$BM$2,'PROGRAMA IV'!Q24+'PROGRAMA IV'!R24,0) -> 0 | BQ14: =IF('PROGRAMA I'!A23='CALCULO POR AREAS'!$BQ$2,('PROGRAMA I'!P23+'PROGRAMA I'!Q23),0) -> 0 | BR14: =IF('PROGRAMA II'!A24='CALCULO POR AREAS'!$BQ$2,'PROGRAMA II'!Q23+'PROGRAMA II'!R23,0) -> 0 | BS14: =IF('PROGRAMA III'!A24='CALCULO POR AREAS'!$BQ$2,'PROGRAMA III'!Q24+'PROGRAMA III'!R24,0) -> 0 | BT14: =IF('PROGRAMA IV'!A24='CALCULO POR AREAS'!$BQ$2,'PROGRAMA IV'!Q24+'PROGRAMA IV'!R24,0) -> 0 | BU14: =IF('PROGRAMA I'!A23='CALCULO POR AREAS'!$BU$2,('PROGRAMA I'!P23+'PROGRAMA I'!Q23),0) -> 0 | BV14: =IF('PROGRAMA II'!A24='CALCULO POR AREAS'!$BU$2,'PROGRAMA II'!Q23+'PROGRAMA II'!R23,0) -> 0 | BW14: =IF('PROGRAMA III'!A24='CALCULO POR AREAS'!$BU$2,'PROGRAMA III'!Q24+'PROGRAMA III'!R24,0) -> 0 | BX14: =IF('PROGRAMA IV'!A24='CALCULO POR AREAS'!$BU$2,'PROGRAMA IV'!Q24+'PROGRAMA IV'!R24,0) -> 0 | BY14: =IF('PROGRAMA I'!A23='CALCULO POR AREAS'!$BY$2,('PROGRAMA I'!P23+'PROGRAMA I'!Q23),0) -> 0 | BZ14: =IF('PROGRAMA II'!A24='CALCULO POR AREAS'!$BY$2,'PROGRAMA II'!Q23+'PROGRAMA II'!R23,0) -> 0 | CA14: =IF('PROGRAMA III'!A24='CALCULO POR AREAS'!$BY$2,'PROGRAMA III'!Q24+'PROGRAMA III'!R24,0) -> 0 | CB14: =IF('PROGRAMA IV'!A24='CALCULO POR AREAS'!$BY$2,'PROGRAMA IV'!Q24+'PROGRAMA IV'!R24,0) -> 0
A15: =IF('PROGRAMA I'!A24='CALCULO POR AREAS'!$A$2,('PROGRAMA I'!P24+'PROGRAMA I'!Q24),0) -> 0 | B15: =IF('PROGRAMA II'!A25='CALCULO POR AREAS'!$A$2,'PROGRAMA II'!Q24+'PROGRAMA II'!R24,0) -> 0 | C15: =IF('PROGRAMA III'!A25='CALCULO POR AREAS'!$A$2,'PROGRAMA III'!Q25+'PROGRAMA III'!R25,0) -> 0 | D15: =IF('PROGRAMA IV'!A25='CALCULO POR AREAS'!$A$2,'PROGRAMA IV'!Q25+'PROGRAMA IV'!R25,0) -> 0 | E15: =IF('PROGRAMA I'!A24='CALCULO POR AREAS'!$E$2,('PROGRAMA I'!P24+'PROGRAMA I'!Q24),0) -> 0 | F15: =IF('PROGRAMA II'!A25='CALCULO POR AREAS'!$E$2,'PROGRAMA II'!Q24+'PROGRAMA II'!R24,0) -> 0 | G15: =IF('PROGRAMA III'!A25='CALCULO POR AREAS'!$E$2,'PROGRAMA III'!Q25+'PROGRAMA III'!R25,0) -> 0 | H15: =IF('PROGRAMA IV'!A25='CALCULO POR AREAS'!$E$2,'PROGRAMA IV'!Q25+'PROGRAMA IV'!R25,0) -> 0 | I15: =IF('PROGRAMA I'!A24='CALCULO POR AREAS'!$I$2,('PROGRAMA I'!P24+'PROGRAMA I'!Q24),0) -> 0 | J15: =IF('PROGRAMA II'!A25='CALCULO POR AREAS'!$I$2,'PROGRAMA II'!Q24+'PROGRAMA II'!R24,0) -> 0 | K15: =IF('PROGRAMA III'!A25='CALCULO POR AREAS'!$I$2,'PROGRAMA III'!Q25+'PROGRAMA III'!R25,0) -> 0 | L15: =IF('PROGRAMA IV'!A25='CALCULO POR AREAS'!$I$2,'PROGRAMA IV'!Q25+'PROGRAMA IV'!R25,0) -> 0 | M15: =IF('PROGRAMA I'!A24='CALCULO POR AREAS'!$M$2,('PROGRAMA I'!P24+'PROGRAMA I'!Q24),0) -> 0 | N15: =IF('PROGRAMA II'!A25='CALCULO POR AREAS'!$M$2,'PROGRAMA II'!Q24+'PROGRAMA II'!R24,0) -> 0 | O15: =IF('PROGRAMA III'!A25='CALCULO POR AREAS'!$M$2,'PROGRAMA III'!Q25+'PROGRAMA III'!R25,0) -> 0 | P15: =IF('PROGRAMA IV'!A25='CALCULO POR AREAS'!$M$2,'PROGRAMA IV'!Q25+'PROGRAMA IV'!R25,0) -> 0 | Q15: =IF('PROGRAMA I'!A24='CALCULO POR AREAS'!$Q$2,('PROGRAMA I'!P24+'PROGRAMA I'!Q24),0) -> 0 | R15: =IF('PROGRAMA II'!A25='CALCULO POR AREAS'!$Q$2,'PROGRAMA II'!Q24+'PROGRAMA II'!R24,0) -> 0 | S15: =IF('PROGRAMA III'!A25='CALCULO POR AREAS'!$Q$2,'PROGRAMA III'!Q25+'PROGRAMA III'!R25,0) -> 0 | T15: =IF('PROGRAMA IV'!A25='CALCULO POR AREAS'!$Q$2,'PROGRAMA IV'!Q25+'PROGRAMA IV'!R25,0) -> 0 | U15: =IF('PROGRAMA I'!A24='CALCULO POR AREAS'!$U$2,('PROGRAMA I'!P24+'PROGRAMA I'!Q24),0) -> 0 | V15: =IF('PROGRAMA II'!A25='CALCULO POR AREAS'!$U$2,'PROGRAMA II'!Q24+'PROGRAMA II'!R24,0) -> 0 | W15: =IF('PROGRAMA III'!A25='CALCULO POR AREAS'!$U$2,'PROGRAMA III'!Q25+'PROGRAMA III'!R25,0) -> 0 | X15: =IF('PROGRAMA IV'!A25='CALCULO POR AREAS'!$U$2,'PROGRAMA IV'!Q25+'PROGRAMA IV'!R25,0) -> 0 | Y15: =IF('PROGRAMA I'!A24='CALCULO POR AREAS'!$Y$2,('PROGRAMA I'!P24+'PROGRAMA I'!Q24),0) -> 0 | Z15: =IF('PROGRAMA II'!A25='CALCULO POR AREAS'!$Y$2,'PROGRAMA II'!Q24+'PROGRAMA II'!R24,0) -> 30000 | AA15: =IF('PROGRAMA III'!A25='CALCULO POR AREAS'!$Y$2,'PROGRAMA III'!Q25+'PROGRAMA III'!R25,0) -> 0 | AB15: =IF('PROGRAMA IV'!A25='CALCULO POR AREAS'!$Y$2,'PROGRAMA IV'!Q25+'PROGRAMA IV'!R25,0) -> 0 | AC15: =IF('PROGRAMA I'!A24='CALCULO POR AREAS'!$AC$2,('PROGRAMA I'!P24+'PROGRAMA I'!Q24),0) -> 0 | AD15: =IF('PROGRAMA II'!A25='CALCULO POR AREAS'!$AC$2,'PROGRAMA II'!Q24+'PROGRAMA II'!R24,0) -> 0 | AE15: =IF('PROGRAMA III'!A25='CALCULO POR AREAS'!$AC$2,'PROGRAMA III'!Q25+'PROGRAMA III'!R25,0) -> 0 | AF15: =IF('PROGRAMA IV'!A25='CALCULO POR AREAS'!$AC$2,'PROGRAMA IV'!Q25+'PROGRAMA IV'!R25,0) -> 0 | AG15: =IF('PROGRAMA I'!A24='CALCULO POR AREAS'!$AG$2,('PROGRAMA I'!P24+'PROGRAMA I'!Q24),0) -> 0 | AH15: =IF('PROGRAMA II'!A25='CALCULO POR AREAS'!$AG$2,'PROGRAMA II'!Q24+'PROGRAMA II'!R24,0) -> 0 | AI15: =IF('PROGRAMA III'!A25='CALCULO POR AREAS'!$AG$2,'PROGRAMA III'!Q25+'PROGRAMA III'!R25,0) -> 0 | AJ15: =IF('PROGRAMA IV'!A25='CALCULO POR AREAS'!$AG$2,'PROGRAMA IV'!Q25+'PROGRAMA IV'!R25,0) -> 0 | AK15: =IF('PROGRAMA I'!A24='CALCULO POR AREAS'!$AK$2,('PROGRAMA I'!P24+'PROGRAMA I'!Q24),0) -> 0 | AL15: =IF('PROGRAMA II'!A25='CALCULO POR AREAS'!$AK$2,'PROGRAMA II'!Q24+'PROGRAMA II'!R24,0) -> 0 | AM15: =IF('PROGRAMA III'!A25='CALCULO POR AREAS'!$AK$2,'PROGRAMA III'!Q25+'PROGRAMA III'!R25,0) -> 0 | AN15: =IF('PROGRAMA IV'!A25='CALCULO POR AREAS'!$AK$2,'PROGRAMA IV'!Q25+'PROGRAMA IV'!R25,0) -> 0 | AO15: =IF('PROGRAMA I'!A24='CALCULO POR AREAS'!$AO$2,('PROGRAMA I'!P24+'PROGRAMA I'!Q24),0) -> 0 | AP15: =IF('PROGRAMA II'!A25='CALCULO POR AREAS'!$AO$2,'PROGRAMA II'!Q24+'PROGRAMA II'!R24,0) -> 0 | AQ15: =IF('PROGRAMA III'!A25='CALCULO POR AREAS'!$AO$2,'PROGRAMA III'!Q25+'PROGRAMA III'!R25,0) -> 0 | AR15: =IF('PROGRAMA IV'!A25='CALCULO POR AREAS'!$AO$2,'PROGRAMA IV'!Q25+'PROGRAMA IV'!R25,0) -> 0 | AS15: =IF('PROGRAMA I'!A24='CALCULO POR AREAS'!$AS$2,('PROGRAMA I'!P24+'PROGRAMA I'!Q24),0) -> 0 | AT15: =IF('PROGRAMA II'!A25='CALCULO POR AREAS'!$AS$2,'PROGRAMA II'!Q24+'PROGRAMA II'!R24,0) -> 0 | AU15: =IF('PROGRAMA III'!A25='CALCULO POR AREAS'!$AS$2,'PROGRAMA III'!Q25+'PROGRAMA III'!R25,0) -> 0 | AV15: =IF('PROGRAMA IV'!A25='CALCULO POR AREAS'!$AS$2,'PROGRAMA IV'!Q25+'PROGRAMA IV'!R25,0) -> 0 | AW15: =IF('PROGRAMA I'!A24='CALCULO POR AREAS'!$AW$2,('PROGRAMA I'!P24+'PROGRAMA I'!Q24),0) -> 0 | AX15: =IF('PROGRAMA II'!A25='CALCULO POR AREAS'!$AW$2,'PROGRAMA II'!Q24+'PROGRAMA II'!R24,0) -> 0 | AY15: =IF('PROGRAMA III'!A25='CALCULO POR AREAS'!$AW$2,'PROGRAMA III'!Q25+'PROGRAMA III'!R25,0) -> 0 | AZ15: =IF('PROGRAMA IV'!A25='CALCULO POR AREAS'!$AW$2,'PROGRAMA IV'!Q25+'PROGRAMA IV'!R25,0) -> 0 | BA15: =IF('PROGRAMA I'!A24='CALCULO POR AREAS'!$BA$2,('PROGRAMA I'!P24+'PROGRAMA I'!Q24),0) -> 0 | BB15: =IF('PROGRAMA II'!A25='CALCULO POR AREAS'!$BA$2,'PROGRAMA II'!Q24+'PROGRAMA II'!R24,0) -> 0 | BC15: =IF('PROGRAMA III'!A25='CALCULO POR AREAS'!$BA$2,'PROGRAMA III'!Q25+'PROGRAMA III'!R25,0) -> 0 | BD15: =IF('PROGRAMA IV'!A25='CALCULO POR AREAS'!$BA$2,'PROGRAMA IV'!Q25+'PROGRAMA IV'!R25,0) -> 0 | BE15: =IF('PROGRAMA I'!A24='CALCULO POR AREAS'!$BE$2,('PROGRAMA I'!P24+'PROGRAMA I'!Q24),0) -> 0 | BF15: =IF('PROGRAMA II'!A25='CALCULO POR AREAS'!$BE$2,'PROGRAMA II'!Q24+'PROGRAMA II'!R24,0) -> 0 | BG15: =IF('PROGRAMA III'!A25='CALCULO POR AREAS'!$BE$2,'PROGRAMA III'!Q25+'PROGRAMA III'!R25,0) -> 0 | BH15: =IF('PROGRAMA IV'!A25='CALCULO POR AREAS'!$BE$2,'PROGRAMA IV'!Q25+'PROGRAMA IV'!R25,0) -> 0 | BI15: =IF('PROGRAMA I'!A24='CALCULO POR AREAS'!$BI$2,('PROGRAMA I'!P24+'PROGRAMA I'!Q24),0) -> 0 | BJ15: =IF('PROGRAMA II'!A25='CALCULO POR AREAS'!$BI$2,'PROGRAMA II'!Q24+'PROGRAMA II'!R24,0) -> 0 | BK15: =IF('PROGRAMA III'!A25='CALCULO POR AREAS'!$BI$2,'PROGRAMA III'!Q25+'PROGRAMA III'!R25,0) -> 0 | BL15: =IF('PROGRAMA IV'!A25='CALCULO POR AREAS'!$BI$2,'PROGRAMA IV'!Q25+'PROGRAMA IV'!R25,0) -> 0 | BM15: =IF('PROGRAMA I'!A24='CALCULO POR AREAS'!$BM$2,('PROGRAMA I'!P24+'PROGRAMA I'!Q24),0) -> 0 | BN15: =IF('PROGRAMA II'!A25='CALCULO POR AREAS'!$BM$2,'PROGRAMA II'!Q24+'PROGRAMA II'!R24,0) -> 0 | BO15: =IF('PROGRAMA III'!A25='CALCULO POR AREAS'!$BM$2,'PROGRAMA III'!Q25+'PROGRAMA III'!R25,0) -> 0 | BP15: =IF('PROGRAMA IV'!A25='CALCULO POR AREAS'!$BM$2,'PROGRAMA IV'!Q25+'PROGRAMA IV'!R25,0) -> 0 | BQ15: =IF('PROGRAMA I'!A24='CALCULO POR AREAS'!$BQ$2,('PROGRAMA I'!P24+'PROGRAMA I'!Q24),0) -> 0 | BR15: =IF('PROGRAMA II'!A25='CALCULO POR AREAS'!$BQ$2,'PROGRAMA II'!Q24+'PROGRAMA II'!R24,0) -> 0 | BS15: =IF('PROGRAMA III'!A25='CALCULO POR AREAS'!$BQ$2,'PROGRAMA III'!Q25+'PROGRAMA III'!R25,0) -> 0 | BT15: =IF('PROGRAMA IV'!A25='CALCULO POR AREAS'!$BQ$2,'PROGRAMA IV'!Q25+'PROGRAMA IV'!R25,0) -> 0 | BU15: =IF('PROGRAMA I'!A24='CALCULO POR AREAS'!$BU$2,('PROGRAMA I'!P24+'PROGRAMA I'!Q24),0) -> 0 | BV15: =IF('PROGRAMA II'!A25='CALCULO POR AREAS'!$BU$2,'PROGRAMA II'!Q24+'PROGRAMA II'!R24,0) -> 0 | BW15: =IF('PROGRAMA III'!A25='CALCULO POR AREAS'!$BU$2,'PROGRAMA III'!Q25+'PROGRAMA III'!R25,0) -> 0 | BX15: =IF('PROGRAMA IV'!A25='CALCULO POR AREAS'!$BU$2,'PROGRAMA IV'!Q25+'PROGRAMA IV'!R25,0) -> 0 | BY15: =IF('PROGRAMA I'!A24='CALCULO POR AREAS'!$BY$2,('PROGRAMA I'!P24+'PROGRAMA I'!Q24),0) -> 0 | BZ15: =IF('PROGRAMA II'!A25='CALCULO POR AREAS'!$BY$2,'PROGRAMA II'!Q24+'PROGRAMA II'!R24,0) -> 0 | CA15: =IF('PROGRAMA III'!A25='CALCULO POR AREAS'!$BY$2,'PROGRAMA III'!Q25+'PROGRAMA III'!R25,0) -> 0 | CB15: =IF('PROGRAMA IV'!A25='CALCULO POR AREAS'!$BY$2,'PROGRAMA IV'!Q25+'PROGRAMA IV'!R25,0) -> 0
A16: =IF('PROGRAMA I'!A25='CALCULO POR AREAS'!$A$2,('PROGRAMA I'!P25+'PROGRAMA I'!Q25),0) -> 0 | B16: =IF('PROGRAMA II'!A26='CALCULO POR AREAS'!$A$2,'PROGRAMA II'!Q25+'PROGRAMA II'!R25,0) -> 0 | C16: =IF('PROGRAMA III'!A26='CALCULO POR AREAS'!$A$2,'PROGRAMA III'!Q26+'PROGRAMA III'!R26,0) -> 0 | D16: =IF('PROGRAMA IV'!A26='CALCULO POR AREAS'!$A$2,'PROGRAMA IV'!Q26+'PROGRAMA IV'!R26,0) -> 0 | E16: =IF('PROGRAMA I'!A25='CALCULO POR AREAS'!$E$2,('PROGRAMA I'!P25+'PROGRAMA I'!Q25),0) -> 0 | F16: =IF('PROGRAMA II'!A26='CALCULO POR AREAS'!$E$2,'PROGRAMA II'!Q25+'PROGRAMA II'!R25,0) -> 0 | G16: =IF('PROGRAMA III'!A26='CALCULO POR AREAS'!$E$2,'PROGRAMA III'!Q26+'PROGRAMA III'!R26,0) -> 0 | H16: =IF('PROGRAMA IV'!A26='CALCULO POR AREAS'!$E$2,'PROGRAMA IV'!Q26+'PROGRAMA IV'!R26,0) -> 0 | I16: =IF('PROGRAMA I'!A25='CALCULO POR AREAS'!$I$2,('PROGRAMA I'!P25+'PROGRAMA I'!Q25),0) -> 0 | J16: =IF('PROGRAMA II'!A26='CALCULO POR AREAS'!$I$2,'PROGRAMA II'!Q25+'PROGRAMA II'!R25,0) -> 0 | K16: =IF('PROGRAMA III'!A26='CALCULO POR AREAS'!$I$2,'PROGRAMA III'!Q26+'PROGRAMA III'!R26,0) -> 0 | L16: =IF('PROGRAMA IV'!A26='CALCULO POR AREAS'!$I$2,'PROGRAMA IV'!Q26+'PROGRAMA IV'!R26,0) -> 0 | M16: =IF('PROGRAMA I'!A25='CALCULO POR AREAS'!$M$2,('PROGRAMA I'!P25+'PROGRAMA I'!Q25),0) -> 0 | N16: =IF('PROGRAMA II'!A26='CALCULO POR AREAS'!$M$2,'PROGRAMA II'!Q25+'PROGRAMA II'!R25,0) -> 0 | O16: =IF('PROGRAMA III'!A26='CALCULO POR AREAS'!$M$2,'PROGRAMA III'!Q26+'PROGRAMA III'!R26,0) -> 0 | P16: =IF('PROGRAMA IV'!A26='CALCULO POR AREAS'!$M$2,'PROGRAMA IV'!Q26+'PROGRAMA IV'!R26,0) -> 0 | Q16: =IF('PROGRAMA I'!A25='CALCULO POR AREAS'!$Q$2,('PROGRAMA I'!P25+'PROGRAMA I'!Q25),0) -> 0 | R16: =IF('PROGRAMA II'!A26='CALCULO POR AREAS'!$Q$2,'PROGRAMA II'!Q25+'PROGRAMA II'!R25,0) -> 0 | S16: =IF('PROGRAMA III'!A26='CALCULO POR AREAS'!$Q$2,'PROGRAMA III'!Q26+'PROGRAMA III'!R26,0) -> 0 | T16: =IF('PROGRAMA IV'!A26='CALCULO POR AREAS'!$Q$2,'PROGRAMA IV'!Q26+'PROGRAMA IV'!R26,0) -> 0 | U16: =IF('PROGRAMA I'!A25='CALCULO POR AREAS'!$U$2,('PROGRAMA I'!P25+'PROGRAMA I'!Q25),0) -> 0 | V16: =IF('PROGRAMA II'!A26='CALCULO POR AREAS'!$U$2,'PROGRAMA II'!Q25+'PROGRAMA II'!R25,0) -> 0 | W16: =IF('PROGRAMA III'!A26='CALCULO POR AREAS'!$U$2,'PROGRAMA III'!Q26+'PROGRAMA III'!R26,0) -> 0 | X16: =IF('PROGRAMA IV'!A26='CALCULO POR AREAS'!$U$2,'PROGRAMA IV'!Q26+'PROGRAMA IV'!R26,0) -> 0 | Y16: =IF('PROGRAMA I'!A25='CALCULO POR AREAS'!$Y$2,('PROGRAMA I'!P25+'PROGRAMA I'!Q25),0) -> 0 | Z16: =IF('PROGRAMA II'!A26='CALCULO POR AREAS'!$Y$2,'PROGRAMA II'!Q25+'PROGRAMA II'!R25,0) -> 66666.66 | AA16: =IF('PROGRAMA III'!A26='CALCULO POR AREAS'!$Y$2,'PROGRAMA III'!Q26+'PROGRAMA III'!R26,0) -> 0 | AB16: =IF('PROGRAMA IV'!A26='CALCULO POR AREAS'!$Y$2,'PROGRAMA IV'!Q26+'PROGRAMA IV'!R26,0) -> 0 | AC16: =IF('PROGRAMA I'!A25='CALCULO POR AREAS'!$AC$2,('PROGRAMA I'!P25+'PROGRAMA I'!Q25),0) -> 0 | AD16: =IF('PROGRAMA II'!A26='CALCULO POR AREAS'!$AC$2,'PROGRAMA II'!Q25+'PROGRAMA II'!R25,0) -> 0 | AE16: =IF('PROGRAMA III'!A26='CALCULO POR AREAS'!$AC$2,'PROGRAMA III'!Q26+'PROGRAMA III'!R26,0) -> 0 | AF16: =IF('PROGRAMA IV'!A26='CALCULO POR AREAS'!$AC$2,'PROGRAMA IV'!Q26+'PROGRAMA IV'!R26,0) -> 0 | AG16: =IF('PROGRAMA I'!A25='CALCULO POR AREAS'!$AG$2,('PROGRAMA I'!P25+'PROGRAMA I'!Q25),0) -> 0 | AH16: =IF('PROGRAMA II'!A26='CALCULO POR AREAS'!$AG$2,'PROGRAMA II'!Q25+'PROGRAMA II'!R25,0) -> 0 | AI16: =IF('PROGRAMA III'!A26='CALCULO POR AREAS'!$AG$2,'PROGRAMA III'!Q26+'PROGRAMA III'!R26,0) -> 0 | AJ16: =IF('PROGRAMA IV'!A26='CALCULO POR AREAS'!$AG$2,'PROGRAMA IV'!Q26+'PROGRAMA IV'!R26,0) -> 0 | AK16: =IF('PROGRAMA I'!A25='CALCULO POR AREAS'!$AK$2,('PROGRAMA I'!P25+'PROGRAMA I'!Q25),0) -> 0 | AL16: =IF('PROGRAMA II'!A26='CALCULO POR AREAS'!$AK$2,'PROGRAMA II'!Q25+'PROGRAMA II'!R25,0) -> 0 | AM16: =IF('PROGRAMA III'!A26='CALCULO POR AREAS'!$AK$2,'PROGRAMA III'!Q26+'PROGRAMA III'!R26,0) -> 0 | AN16: =IF('PROGRAMA IV'!A26='CALCULO POR AREAS'!$AK$2,'PROGRAMA IV'!Q26+'PROGRAMA IV'!R26,0) -> 0 | AO16: =IF('PROGRAMA I'!A25='CALCULO POR AREAS'!$AO$2,('PROGRAMA I'!P25+'PROGRAMA I'!Q25),0) -> 0 | AP16: =IF('PROGRAMA II'!A26='CALCULO POR AREAS'!$AO$2,'PROGRAMA II'!Q25+'PROGRAMA II'!R25,0) -> 0 | AQ16: =IF('PROGRAMA III'!A26='CALCULO POR AREAS'!$AO$2,'PROGRAMA III'!Q26+'PROGRAMA III'!R26,0) -> 0 | AR16: =IF('PROGRAMA IV'!A26='CALCULO POR AREAS'!$AO$2,'PROGRAMA IV'!Q26+'PROGRAMA IV'!R26,0) -> 0 | AS16: =IF('PROGRAMA I'!A25='CALCULO POR AREAS'!$AS$2,('PROGRAMA I'!P25+'PROGRAMA I'!Q25),0) -> 0 | AT16: =IF('PROGRAMA II'!A26='CALCULO POR AREAS'!$AS$2,'PROGRAMA II'!Q25+'PROGRAMA II'!R25,0) -> 0 | AU16: =IF('PROGRAMA III'!A26='CALCULO POR AREAS'!$AS$2,'PROGRAMA III'!Q26+'PROGRAMA III'!R26,0) -> 0 | AV16: =IF('PROGRAMA IV'!A26='CALCULO POR AREAS'!$AS$2,'PROGRAMA IV'!Q26+'PROGRAMA IV'!R26,0) -> 0 | AW16: =IF('PROGRAMA I'!A25='CALCULO POR AREAS'!$AW$2,('PROGRAMA I'!P25+'PROGRAMA I'!Q25),0) -> 0 | AX16: =IF('PROGRAMA II'!A26='CALCULO POR AREAS'!$AW$2,'PROGRAMA II'!Q25+'PROGRAMA II'!R25,0) -> 0 | AY16: =IF('PROGRAMA III'!A26='CALCULO POR AREAS'!$AW$2,'PROGRAMA III'!Q26+'PROGRAMA III'!R26,0) -> 0 | AZ16: =IF('PROGRAMA IV'!A26='CALCULO POR AREAS'!$AW$2,'PROGRAMA IV'!Q26+'PROGRAMA IV'!R26,0) -> 0 | BA16: =IF('PROGRAMA I'!A25='CALCULO POR AREAS'!$BA$2,('PROGRAMA I'!P25+'PROGRAMA I'!Q25),0) -> 0 | BB16: =IF('PROGRAMA II'!A26='CALCULO POR AREAS'!$BA$2,'PROGRAMA II'!Q25+'PROGRAMA II'!R25,0) -> 0 | BC16: =IF('PROGRAMA III'!A26='CALCULO POR AREAS'!$BA$2,'PROGRAMA III'!Q26+'PROGRAMA III'!R26,0) -> 0 | BD16: =IF('PROGRAMA IV'!A26='CALCULO POR AREAS'!$BA$2,'PROGRAMA IV'!Q26+'PROGRAMA IV'!R26,0) -> 0 | BE16: =IF('PROGRAMA I'!A25='CALCULO POR AREAS'!$BE$2,('PROGRAMA I'!P25+'PROGRAMA I'!Q25),0) -> 0 | BF16: =IF('PROGRAMA II'!A26='CALCULO POR AREAS'!$BE$2,'PROGRAMA II'!Q25+'PROGRAMA II'!R25,0) -> 0 | BG16: =IF('PROGRAMA III'!A26='CALCULO POR AREAS'!$BE$2,'PROGRAMA III'!Q26+'PROGRAMA III'!R26,0) -> 0 | BH16: =IF('PROGRAMA IV'!A26='CALCULO POR AREAS'!$BE$2,'PROGRAMA IV'!Q26+'PROGRAMA IV'!R26,0) -> 0 | BI16: =IF('PROGRAMA I'!A25='CALCULO POR AREAS'!$BI$2,('PROGRAMA I'!P25+'PROGRAMA I'!Q25),0) -> 0 | BJ16: =IF('PROGRAMA II'!A26='CALCULO POR AREAS'!$BI$2,'PROGRAMA II'!Q25+'PROGRAMA II'!R25,0) -> 0 | BK16: =IF('PROGRAMA III'!A26='CALCULO POR AREAS'!$BI$2,'PROGRAMA III'!Q26+'PROGRAMA III'!R26,0) -> 0 | BL16: =IF('PROGRAMA IV'!A26='CALCULO POR AREAS'!$BI$2,'PROGRAMA IV'!Q26+'PROGRAMA IV'!R26,0) -> 0 | BM16: =IF('PROGRAMA I'!A25='CALCULO POR AREAS'!$BM$2,('PROGRAMA I'!P25+'PROGRAMA I'!Q25),0) -> 0 | BN16: =IF('PROGRAMA II'!A26='CALCULO POR AREAS'!$BM$2,'PROGRAMA II'!Q25+'PROGRAMA II'!R25,0) -> 0 | BO16: =IF('PROGRAMA III'!A26='CALCULO POR AREAS'!$BM$2,'PROGRAMA III'!Q26+'PROGRAMA III'!R26,0) -> 0 | BP16: =IF('PROGRAMA IV'!A26='CALCULO POR AREAS'!$BM$2,'PROGRAMA IV'!Q26+'PROGRAMA IV'!R26,0) -> 0 | BQ16: =IF('PROGRAMA I'!A25='CALCULO POR AREAS'!$BQ$2,('PROGRAMA I'!P25+'PROGRAMA I'!Q25),0) -> 0 | BR16: =IF('PROGRAMA II'!A26='CALCULO POR AREAS'!$BQ$2,'PROGRAMA II'!Q25+'PROGRAMA II'!R25,0) -> 0 | BS16: =IF('PROGRAMA III'!A26='CALCULO POR AREAS'!$BQ$2,'PROGRAMA III'!Q26+'PROGRAMA III'!R26,0) -> 0 | BT16: =IF('PROGRAMA IV'!A26='CALCULO POR AREAS'!$BQ$2,'PROGRAMA IV'!Q26+'PROGRAMA IV'!R26,0) -> 0 | BU16: =IF('PROGRAMA I'!A25='CALCULO POR AREAS'!$BU$2,('PROGRAMA I'!P25+'PROGRAMA I'!Q25),0) -> 0 | BV16: =IF('PROGRAMA II'!A26='CALCULO POR AREAS'!$BU$2,'PROGRAMA II'!Q25+'PROGRAMA II'!R25,0) -> 0 | BW16: =IF('PROGRAMA III'!A26='CALCULO POR AREAS'!$BU$2,'PROGRAMA III'!Q26+'PROGRAMA III'!R26,0) -> 0 | BX16: =IF('PROGRAMA IV'!A26='CALCULO POR AREAS'!$BU$2,'PROGRAMA IV'!Q26+'PROGRAMA IV'!R26,0) -> 0 | BY16: =IF('PROGRAMA I'!A25='CALCULO POR AREAS'!$BY$2,('PROGRAMA I'!P25+'PROGRAMA I'!Q25),0) -> 0 | BZ16: =IF('PROGRAMA II'!A26='CALCULO POR AREAS'!$BY$2,'PROGRAMA II'!Q25+'PROGRAMA II'!R25,0) -> 0 | CA16: =IF('PROGRAMA III'!A26='CALCULO POR AREAS'!$BY$2,'PROGRAMA III'!Q26+'PROGRAMA III'!R26,0) -> 0 | CB16: =IF('PROGRAMA IV'!A26='CALCULO POR AREAS'!$BY$2,'PROGRAMA IV'!Q26+'PROGRAMA IV'!R26,0) -> 0
A17: =IF('PROGRAMA I'!A26='CALCULO POR AREAS'!$A$2,('PROGRAMA I'!P26+'PROGRAMA I'!Q26),0) -> 0 | B17: =IF('PROGRAMA II'!A27='CALCULO POR AREAS'!$A$2,'PROGRAMA II'!Q26+'PROGRAMA II'!R26,0) -> 0 | C17: =IF('PROGRAMA III'!A27='CALCULO POR AREAS'!$A$2,'PROGRAMA III'!Q27+'PROGRAMA III'!R27,0) -> 0 | D17: =IF('PROGRAMA IV'!A27='CALCULO POR AREAS'!$A$2,'PROGRAMA IV'!Q27+'PROGRAMA IV'!R27,0) -> 0 | E17: =IF('PROGRAMA I'!A26='CALCULO POR AREAS'!$E$2,('PROGRAMA I'!P26+'PROGRAMA I'!Q26),0) -> 0 | F17: =IF('PROGRAMA II'!A27='CALCULO POR AREAS'!$E$2,'PROGRAMA II'!Q26+'PROGRAMA II'!R26,0) -> 0 | G17: =IF('PROGRAMA III'!A27='CALCULO POR AREAS'!$E$2,'PROGRAMA III'!Q27+'PROGRAMA III'!R27,0) -> 0 | H17: =IF('PROGRAMA IV'!A27='CALCULO POR AREAS'!$E$2,'PROGRAMA IV'!Q27+'PROGRAMA IV'!R27,0) -> 0 | I17: =IF('PROGRAMA I'!A26='CALCULO POR AREAS'!$I$2,('PROGRAMA I'!P26+'PROGRAMA I'!Q26),0) -> 0 | J17: =IF('PROGRAMA II'!A27='CALCULO POR AREAS'!$I$2,'PROGRAMA II'!Q26+'PROGRAMA II'!R26,0) -> 0 | K17: =IF('PROGRAMA III'!A27='CALCULO POR AREAS'!$I$2,'PROGRAMA III'!Q27+'PROGRAMA III'!R27,0) -> 0 | L17: =IF('PROGRAMA IV'!A27='CALCULO POR AREAS'!$I$2,'PROGRAMA IV'!Q27+'PROGRAMA IV'!R27,0) -> 0 | M17: =IF('PROGRAMA I'!A26='CALCULO POR AREAS'!$M$2,('PROGRAMA I'!P26+'PROGRAMA I'!Q26),0) -> 0 | N17: =IF('PROGRAMA II'!A27='CALCULO POR AREAS'!$M$2,'PROGRAMA II'!Q26+'PROGRAMA II'!R26,0) -> 0 | O17: =IF('PROGRAMA III'!A27='CALCULO POR AREAS'!$M$2,'PROGRAMA III'!Q27+'PROGRAMA III'!R27,0) -> 0 | P17: =IF('PROGRAMA IV'!A27='CALCULO POR AREAS'!$M$2,'PROGRAMA IV'!Q27+'PROGRAMA IV'!R27,0) -> 0 | Q17: =IF('PROGRAMA I'!A26='CALCULO POR AREAS'!$Q$2,('PROGRAMA I'!P26+'PROGRAMA I'!Q26),0) -> 0 | R17: =IF('PROGRAMA II'!A27='CALCULO POR AREAS'!$Q$2,'PROGRAMA II'!Q26+'PROGRAMA II'!R26,0) -> 0 | S17: =IF('PROGRAMA III'!A27='CALCULO POR AREAS'!$Q$2,'PROGRAMA III'!Q27+'PROGRAMA III'!R27,0) -> 0 | T17: =IF('PROGRAMA IV'!A27='CALCULO POR AREAS'!$Q$2,'PROGRAMA IV'!Q27+'PROGRAMA IV'!R27,0) -> 0 | U17: =IF('PROGRAMA I'!A26='CALCULO POR AREAS'!$U$2,('PROGRAMA I'!P26+'PROGRAMA I'!Q26),0) -> 0 | V17: =IF('PROGRAMA II'!A27='CALCULO POR AREAS'!$U$2,'PROGRAMA II'!Q26+'PROGRAMA II'!R26,0) -> 0 | W17: =IF('PROGRAMA III'!A27='CALCULO POR AREAS'!$U$2,'PROGRAMA III'!Q27+'PROGRAMA III'!R27,0) -> 0 | X17: =IF('PROGRAMA IV'!A27='CALCULO POR AREAS'!$U$2,'PROGRAMA IV'!Q27+'PROGRAMA IV'!R27,0) -> 0 | Y17: =IF('PROGRAMA I'!A26='CALCULO POR AREAS'!$Y$2,('PROGRAMA I'!P26+'PROGRAMA I'!Q26),0) -> 0 | Z17: =IF('PROGRAMA II'!A27='CALCULO POR AREAS'!$Y$2,'PROGRAMA II'!Q26+'PROGRAMA II'!R26,0) -> 66666.66 | AA17: =IF('PROGRAMA III'!A27='CALCULO POR AREAS'!$Y$2,'PROGRAMA III'!Q27+'PROGRAMA III'!R27,0) -> 0 | AB17: =IF('PROGRAMA IV'!A27='CALCULO POR AREAS'!$Y$2,'PROGRAMA IV'!Q27+'PROGRAMA IV'!R27,0) -> 0 | AC17: =IF('PROGRAMA I'!A26='CALCULO POR AREAS'!$AC$2,('PROGRAMA I'!P26+'PROGRAMA I'!Q26),0) -> 0 | AD17: =IF('PROGRAMA II'!A27='CALCULO POR AREAS'!$AC$2,'PROGRAMA II'!Q26+'PROGRAMA II'!R26,0) -> 0 | AE17: =IF('PROGRAMA III'!A27='CALCULO POR AREAS'!$AC$2,'PROGRAMA III'!Q27+'PROGRAMA III'!R27,0) -> 0 | AF17: =IF('PROGRAMA IV'!A27='CALCULO POR AREAS'!$AC$2,'PROGRAMA IV'!Q27+'PROGRAMA IV'!R27,0) -> 0 | AG17: =IF('PROGRAMA I'!A26='CALCULO POR AREAS'!$AG$2,('PROGRAMA I'!P26+'PROGRAMA I'!Q26),0) -> 0 | AH17: =IF('PROGRAMA II'!A27='CALCULO POR AREAS'!$AG$2,'PROGRAMA II'!Q26+'PROGRAMA II'!R26,0) -> 0 | AI17: =IF('PROGRAMA III'!A27='CALCULO POR AREAS'!$AG$2,'PROGRAMA III'!Q27+'PROGRAMA III'!R27,0) -> 0 | AJ17: =IF('PROGRAMA IV'!A27='CALCULO POR AREAS'!$AG$2,'PROGRAMA IV'!Q27+'PROGRAMA IV'!R27,0) -> 0 | AK17: =IF('PROGRAMA I'!A26='CALCULO POR AREAS'!$AK$2,('PROGRAMA I'!P26+'PROGRAMA I'!Q26),0) -> 0 | AL17: =IF('PROGRAMA II'!A27='CALCULO POR AREAS'!$AK$2,'PROGRAMA II'!Q26+'PROGRAMA II'!R26,0) -> 0 | AM17: =IF('PROGRAMA III'!A27='CALCULO POR AREAS'!$AK$2,'PROGRAMA III'!Q27+'PROGRAMA III'!R27,0) -> 0 | AN17: =IF('PROGRAMA IV'!A27='CALCULO POR AREAS'!$AK$2,'PROGRAMA IV'!Q27+'PROGRAMA IV'!R27,0) -> 0 | AO17: =IF('PROGRAMA I'!A26='CALCULO POR AREAS'!$AO$2,('PROGRAMA I'!P26+'PROGRAMA I'!Q26),0) -> 0 | AP17: =IF('PROGRAMA II'!A27='CALCULO POR AREAS'!$AO$2,'PROGRAMA II'!Q26+'PROGRAMA II'!R26,0) -> 0 | AQ17: =IF('PROGRAMA III'!A27='CALCULO POR AREAS'!$AO$2,'PROGRAMA III'!Q27+'PROGRAMA III'!R27,0) -> 0 | AR17: =IF('PROGRAMA IV'!A27='CALCULO POR AREAS'!$AO$2,'PROGRAMA IV'!Q27+'PROGRAMA IV'!R27,0) -> 0 | AS17: =IF('PROGRAMA I'!A26='CALCULO POR AREAS'!$AS$2,('PROGRAMA I'!P26+'PROGRAMA I'!Q26),0) -> 0 | AT17: =IF('PROGRAMA II'!A27='CALCULO POR AREAS'!$AS$2,'PROGRAMA II'!Q26+'PROGRAMA II'!R26,0) -> 0 | AU17: =IF('PROGRAMA III'!A27='CALCULO POR AREAS'!$AS$2,'PROGRAMA III'!Q27+'PROGRAMA III'!R27,0) -> 0 | AV17: =IF('PROGRAMA IV'!A27='CALCULO POR AREAS'!$AS$2,'PROGRAMA IV'!Q27+'PROGRAMA IV'!R27,0) -> 0 | AW17: =IF('PROGRAMA I'!A26='CALCULO POR AREAS'!$AW$2,('PROGRAMA I'!P26+'PROGRAMA I'!Q26),0) -> 0 | AX17: =IF('PROGRAMA II'!A27='CALCULO POR AREAS'!$AW$2,'PROGRAMA II'!Q26+'PROGRAMA II'!R26,0) -> 0 | AY17: =IF('PROGRAMA III'!A27='CALCULO POR AREAS'!$AW$2,'PROGRAMA III'!Q27+'PROGRAMA III'!R27,0) -> 0 | AZ17: =IF('PROGRAMA IV'!A27='CALCULO POR AREAS'!$AW$2,'PROGRAMA IV'!Q27+'PROGRAMA IV'!R27,0) -> 0 | BA17: =IF('PROGRAMA I'!A26='CALCULO POR AREAS'!$BA$2,('PROGRAMA I'!P26+'PROGRAMA I'!Q26),0) -> 0 | BB17: =IF('PROGRAMA II'!A27='CALCULO POR AREAS'!$BA$2,'PROGRAMA II'!Q26+'PROGRAMA II'!R26,0) -> 0 | BC17: =IF('PROGRAMA III'!A27='CALCULO POR AREAS'!$BA$2,'PROGRAMA III'!Q27+'PROGRAMA III'!R27,0) -> 0 | BD17: =IF('PROGRAMA IV'!A27='CALCULO POR AREAS'!$BA$2,'PROGRAMA IV'!Q27+'PROGRAMA IV'!R27,0) -> 0 | BE17: =IF('PROGRAMA I'!A26='CALCULO POR AREAS'!$BE$2,('PROGRAMA I'!P26+'PROGRAMA I'!Q26),0) -> 0 | BF17: =IF('PROGRAMA II'!A27='CALCULO POR AREAS'!$BE$2,'PROGRAMA II'!Q26+'PROGRAMA II'!R26,0) -> 0 | BG17: =IF('PROGRAMA III'!A27='CALCULO POR AREAS'!$BE$2,'PROGRAMA III'!Q27+'PROGRAMA III'!R27,0) -> 0 | BH17: =IF('PROGRAMA IV'!A27='CALCULO POR AREAS'!$BE$2,'PROGRAMA IV'!Q27+'PROGRAMA IV'!R27,0) -> 0 | BI17: =IF('PROGRAMA I'!A26='CALCULO POR AREAS'!$BI$2,('PROGRAMA I'!P26+'PROGRAMA I'!Q26),0) -> 0 | BJ17: =IF('PROGRAMA II'!A27='CALCULO POR AREAS'!$BI$2,'PROGRAMA II'!Q26+'PROGRAMA II'!R26,0) -> 0 | BK17: =IF('PROGRAMA III'!A27='CALCULO POR AREAS'!$BI$2,'PROGRAMA III'!Q27+'PROGRAMA III'!R27,0) -> 0 | BL17: =IF('PROGRAMA IV'!A27='CALCULO POR AREAS'!$BI$2,'PROGRAMA IV'!Q27+'PROGRAMA IV'!R27,0) -> 0 | BM17: =IF('PROGRAMA I'!A26='CALCULO POR AREAS'!$BM$2,('PROGRAMA I'!P26+'PROGRAMA I'!Q26),0) -> 0 | BN17: =IF('PROGRAMA II'!A27='CALCULO POR AREAS'!$BM$2,'PROGRAMA II'!Q26+'PROGRAMA II'!R26,0) -> 0 | BO17: =IF('PROGRAMA III'!A27='CALCULO POR AREAS'!$BM$2,'PROGRAMA III'!Q27+'PROGRAMA III'!R27,0) -> 0 | BP17: =IF('PROGRAMA IV'!A27='CALCULO POR AREAS'!$BM$2,'PROGRAMA IV'!Q27+'PROGRAMA IV'!R27,0) -> 0 | BQ17: =IF('PROGRAMA I'!A26='CALCULO POR AREAS'!$BQ$2,('PROGRAMA I'!P26+'PROGRAMA I'!Q26),0) -> 0 | BR17: =IF('PROGRAMA II'!A27='CALCULO POR AREAS'!$BQ$2,'PROGRAMA II'!Q26+'PROGRAMA II'!R26,0) -> 0 | BS17: =IF('PROGRAMA III'!A27='CALCULO POR AREAS'!$BQ$2,'PROGRAMA III'!Q27+'PROGRAMA III'!R27,0) -> 0 | BT17: =IF('PROGRAMA IV'!A27='CALCULO POR AREAS'!$BQ$2,'PROGRAMA IV'!Q27+'PROGRAMA IV'!R27,0) -> 0 | BU17: =IF('PROGRAMA I'!A26='CALCULO POR AREAS'!$BU$2,('PROGRAMA I'!P26+'PROGRAMA I'!Q26),0) -> 0 | BV17: =IF('PROGRAMA II'!A27='CALCULO POR AREAS'!$BU$2,'PROGRAMA II'!Q26+'PROGRAMA II'!R26,0) -> 0 | BW17: =IF('PROGRAMA III'!A27='CALCULO POR AREAS'!$BU$2,'PROGRAMA III'!Q27+'PROGRAMA III'!R27,0) -> 0 | BX17: =IF('PROGRAMA IV'!A27='CALCULO POR AREAS'!$BU$2,'PROGRAMA IV'!Q27+'PROGRAMA IV'!R27,0) -> 0 | BY17: =IF('PROGRAMA I'!A26='CALCULO POR AREAS'!$BY$2,('PROGRAMA I'!P26+'PROGRAMA I'!Q26),0) -> 0 | BZ17: =IF('PROGRAMA II'!A27='CALCULO POR AREAS'!$BY$2,'PROGRAMA II'!Q26+'PROGRAMA II'!R26,0) -> 0 | CA17: =IF('PROGRAMA III'!A27='CALCULO POR AREAS'!$BY$2,'PROGRAMA III'!Q27+'PROGRAMA III'!R27,0) -> 0 | CB17: =IF('PROGRAMA IV'!A27='CALCULO POR AREAS'!$BY$2,'PROGRAMA IV'!Q27+'PROGRAMA IV'!R27,0) -> 0
A18: =IF('PROGRAMA I'!A27='CALCULO POR AREAS'!$A$2,('PROGRAMA I'!P27+'PROGRAMA I'!Q27),0) -> 0 | B18: =IF('PROGRAMA II'!A28='CALCULO POR AREAS'!$A$2,'PROGRAMA II'!Q27+'PROGRAMA II'!R27,0) -> 0 | C18: =IF('PROGRAMA III'!A28='CALCULO POR AREAS'!$A$2,'PROGRAMA III'!Q28+'PROGRAMA III'!R28,0) -> 0 | D18: =IF('PROGRAMA IV'!A28='CALCULO POR AREAS'!$A$2,'PROGRAMA IV'!Q28+'PROGRAMA IV'!R28,0) -> 0 | E18: =IF('PROGRAMA I'!A27='CALCULO POR AREAS'!$E$2,('PROGRAMA I'!P27+'PROGRAMA I'!Q27),0) -> 0 | F18: =IF('PROGRAMA II'!A28='CALCULO POR AREAS'!$E$2,'PROGRAMA II'!Q27+'PROGRAMA II'!R27,0) -> 0 | G18: =IF('PROGRAMA III'!A28='CALCULO POR AREAS'!$E$2,'PROGRAMA III'!Q28+'PROGRAMA III'!R28,0) -> 0 | H18: =IF('PROGRAMA IV'!A28='CALCULO POR AREAS'!$E$2,'PROGRAMA IV'!Q28+'PROGRAMA IV'!R28,0) -> 0 | I18: =IF('PROGRAMA I'!A27='CALCULO POR AREAS'!$I$2,('PROGRAMA I'!P27+'PROGRAMA I'!Q27),0) -> 0 | J18: =IF('PROGRAMA II'!A28='CALCULO POR AREAS'!$I$2,'PROGRAMA II'!Q27+'PROGRAMA II'!R27,0) -> 0 | K18: =IF('PROGRAMA III'!A28='CALCULO POR AREAS'!$I$2,'PROGRAMA III'!Q28+'PROGRAMA III'!R28,0) -> 0 | L18: =IF('PROGRAMA IV'!A28='CALCULO POR AREAS'!$I$2,'PROGRAMA IV'!Q28+'PROGRAMA IV'!R28,0) -> 0 | M18: =IF('PROGRAMA I'!A27='CALCULO POR AREAS'!$M$2,('PROGRAMA I'!P27+'PROGRAMA I'!Q27),0) -> 0 | N18: =IF('PROGRAMA II'!A28='CALCULO POR AREAS'!$M$2,'PROGRAMA II'!Q27+'PROGRAMA II'!R27,0) -> 0 | O18: =IF('PROGRAMA III'!A28='CALCULO POR AREAS'!$M$2,'PROGRAMA III'!Q28+'PROGRAMA III'!R28,0) -> 0 | P18: =IF('PROGRAMA IV'!A28='CALCULO POR AREAS'!$M$2,'PROGRAMA IV'!Q28+'PROGRAMA IV'!R28,0) -> 0 | Q18: =IF('PROGRAMA I'!A27='CALCULO POR AREAS'!$Q$2,('PROGRAMA I'!P27+'PROGRAMA I'!Q27),0) -> 0 | R18: =IF('PROGRAMA II'!A28='CALCULO POR AREAS'!$Q$2,'PROGRAMA II'!Q27+'PROGRAMA II'!R27,0) -> 66666.66 | S18: =IF('PROGRAMA III'!A28='CALCULO POR AREAS'!$Q$2,'PROGRAMA III'!Q28+'PROGRAMA III'!R28,0) -> 0 | T18: =IF('PROGRAMA IV'!A28='CALCULO POR AREAS'!$Q$2,'PROGRAMA IV'!Q28+'PROGRAMA IV'!R28,0) -> 0 | U18: =IF('PROGRAMA I'!A27='CALCULO POR AREAS'!$U$2,('PROGRAMA I'!P27+'PROGRAMA I'!Q27),0) -> 0 | V18: =IF('PROGRAMA II'!A28='CALCULO POR AREAS'!$U$2,'PROGRAMA II'!Q27+'PROGRAMA II'!R27,0) -> 0 | W18: =IF('PROGRAMA III'!A28='CALCULO POR AREAS'!$U$2,'PROGRAMA III'!Q28+'PROGRAMA III'!R28,0) -> 0 | X18: =IF('PROGRAMA IV'!A28='CALCULO POR AREAS'!$U$2,'PROGRAMA IV'!Q28+'PROGRAMA IV'!R28,0) -> 0 | Y18: =IF('PROGRAMA I'!A27='CALCULO POR AREAS'!$Y$2,('PROGRAMA I'!P27+'PROGRAMA I'!Q27),0) -> 0 | Z18: =IF('PROGRAMA II'!A28='CALCULO POR AREAS'!$Y$2,'PROGRAMA II'!Q27+'PROGRAMA II'!R27,0) -> 0 | AA18: =IF('PROGRAMA III'!A28='CALCULO POR AREAS'!$Y$2,'PROGRAMA III'!Q28+'PROGRAMA III'!R28,0) -> 0 | AB18: =IF('PROGRAMA IV'!A28='CALCULO POR AREAS'!$Y$2,'PROGRAMA IV'!Q28+'PROGRAMA IV'!R28,0) -> 0 | AC18: =IF('PROGRAMA I'!A27='CALCULO POR AREAS'!$AC$2,('PROGRAMA I'!P27+'PROGRAMA I'!Q27),0) -> 0 | AD18: =IF('PROGRAMA II'!A28='CALCULO POR AREAS'!$AC$2,'PROGRAMA II'!Q27+'PROGRAMA II'!R27,0) -> 0 | AE18: =IF('PROGRAMA III'!A28='CALCULO POR AREAS'!$AC$2,'PROGRAMA III'!Q28+'PROGRAMA III'!R28,0) -> 0 | AF18: =IF('PROGRAMA IV'!A28='CALCULO POR AREAS'!$AC$2,'PROGRAMA IV'!Q28+'PROGRAMA IV'!R28,0) -> 0 | AG18: =IF('PROGRAMA I'!A27='CALCULO POR AREAS'!$AG$2,('PROGRAMA I'!P27+'PROGRAMA I'!Q27),0) -> 0 | AH18: =IF('PROGRAMA II'!A28='CALCULO POR AREAS'!$AG$2,'PROGRAMA II'!Q27+'PROGRAMA II'!R27,0) -> 0 | AI18: =IF('PROGRAMA III'!A28='CALCULO POR AREAS'!$AG$2,'PROGRAMA III'!Q28+'PROGRAMA III'!R28,0) -> 0 | AJ18: =IF('PROGRAMA IV'!A28='CALCULO POR AREAS'!$AG$2,'PROGRAMA IV'!Q28+'PROGRAMA IV'!R28,0) -> 0 | AK18: =IF('PROGRAMA I'!A27='CALCULO POR AREAS'!$AK$2,('PROGRAMA I'!P27+'PROGRAMA I'!Q27),0) -> 0 | AL18: =IF('PROGRAMA II'!A28='CALCULO POR AREAS'!$AK$2,'PROGRAMA II'!Q27+'PROGRAMA II'!R27,0) -> 0 | AM18: =IF('PROGRAMA III'!A28='CALCULO POR AREAS'!$AK$2,'PROGRAMA III'!Q28+'PROGRAMA III'!R28,0) -> 0 | AN18: =IF('PROGRAMA IV'!A28='CALCULO POR AREAS'!$AK$2,'PROGRAMA IV'!Q28+'PROGRAMA IV'!R28,0) -> 0 | AO18: =IF('PROGRAMA I'!A27='CALCULO POR AREAS'!$AO$2,('PROGRAMA I'!P27+'PROGRAMA I'!Q27),0) -> 0 | AP18: =IF('PROGRAMA II'!A28='CALCULO POR AREAS'!$AO$2,'PROGRAMA II'!Q27+'PROGRAMA II'!R27,0) -> 0 | AQ18: =IF('PROGRAMA III'!A28='CALCULO POR AREAS'!$AO$2,'PROGRAMA III'!Q28+'PROGRAMA III'!R28,0) -> 0 | AR18: =IF('PROGRAMA IV'!A28='CALCULO POR AREAS'!$AO$2,'PROGRAMA IV'!Q28+'PROGRAMA IV'!R28,0) -> 0 | AS18: =IF('PROGRAMA I'!A27='CALCULO POR AREAS'!$AS$2,('PROGRAMA I'!P27+'PROGRAMA I'!Q27),0) -> 0 | AT18: =IF('PROGRAMA II'!A28='CALCULO POR AREAS'!$AS$2,'PROGRAMA II'!Q27+'PROGRAMA II'!R27,0) -> 0 | AU18: =IF('PROGRAMA III'!A28='CALCULO POR AREAS'!$AS$2,'PROGRAMA III'!Q28+'PROGRAMA III'!R28,0) -> 0 | AV18: =IF('PROGRAMA IV'!A28='CALCULO POR AREAS'!$AS$2,'PROGRAMA IV'!Q28+'PROGRAMA IV'!R28,0) -> 0 | AW18: =IF('PROGRAMA I'!A27='CALCULO POR AREAS'!$AW$2,('PROGRAMA I'!P27+'PROGRAMA I'!Q27),0) -> 0 | AX18: =IF('PROGRAMA II'!A28='CALCULO POR AREAS'!$AW$2,'PROGRAMA II'!Q27+'PROGRAMA II'!R27,0) -> 0 | AY18: =IF('PROGRAMA III'!A28='CALCULO POR AREAS'!$AW$2,'PROGRAMA III'!Q28+'PROGRAMA III'!R28,0) -> 0 | AZ18: =IF('PROGRAMA IV'!A28='CALCULO POR AREAS'!$AW$2,'PROGRAMA IV'!Q28+'PROGRAMA IV'!R28,0) -> 0 | BA18: =IF('PROGRAMA I'!A27='CALCULO POR AREAS'!$BA$2,('PROGRAMA I'!P27+'PROGRAMA I'!Q27),0) -> 0 | BB18: =IF('PROGRAMA II'!A28='CALCULO POR AREAS'!$BA$2,'PROGRAMA II'!Q27+'PROGRAMA II'!R27,0) -> 0 | BC18: =IF('PROGRAMA III'!A28='CALCULO POR AREAS'!$BA$2,'PROGRAMA III'!Q28+'PROGRAMA III'!R28,0) -> 0 | BD18: =IF('PROGRAMA IV'!A28='CALCULO POR AREAS'!$BA$2,'PROGRAMA IV'!Q28+'PROGRAMA IV'!R28,0) -> 0 | BE18: =IF('PROGRAMA I'!A27='CALCULO POR AREAS'!$BE$2,('PROGRAMA I'!P27+'PROGRAMA I'!Q27),0) -> 0 | BF18: =IF('PROGRAMA II'!A28='CALCULO POR AREAS'!$BE$2,'PROGRAMA II'!Q27+'PROGRAMA II'!R27,0) -> 0 | BG18: =IF('PROGRAMA III'!A28='CALCULO POR AREAS'!$BE$2,'PROGRAMA III'!Q28+'PROGRAMA III'!R28,0) -> 0 | BH18: =IF('PROGRAMA IV'!A28='CALCULO POR AREAS'!$BE$2,'PROGRAMA IV'!Q28+'PROGRAMA IV'!R28,0) -> 0 | BI18: =IF('PROGRAMA I'!A27='CALCULO POR AREAS'!$BI$2,('PROGRAMA I'!P27+'PROGRAMA I'!Q27),0) -> 0 | BJ18: =IF('PROGRAMA II'!A28='CALCULO POR AREAS'!$BI$2,'PROGRAMA II'!Q27+'PROGRAMA II'!R27,0) -> 0 | BK18: =IF('PROGRAMA III'!A28='CALCULO POR AREAS'!$BI$2,'PROGRAMA III'!Q28+'PROGRAMA III'!R28,0) -> 0 | BL18: =IF('PROGRAMA IV'!A28='CALCULO POR AREAS'!$BI$2,'PROGRAMA IV'!Q28+'PROGRAMA IV'!R28,0) -> 0 | BM18: =IF('PROGRAMA I'!A27='CALCULO POR AREAS'!$BM$2,('PROGRAMA I'!P27+'PROGRAMA I'!Q27),0) -> 0 | BN18: =IF('PROGRAMA II'!A28='CALCULO POR AREAS'!$BM$2,'PROGRAMA II'!Q27+'PROGRAMA II'!R27,0) -> 0 | BO18: =IF('PROGRAMA III'!A28='CALCULO POR AREAS'!$BM$2,'PROGRAMA III'!Q28+'PROGRAMA III'!R28,0) -> 0 | BP18: =IF('PROGRAMA IV'!A28='CALCULO POR AREAS'!$BM$2,'PROGRAMA IV'!Q28+'PROGRAMA IV'!R28,0) -> 0 | BQ18: =IF('PROGRAMA I'!A27='CALCULO POR AREAS'!$BQ$2,('PROGRAMA I'!P27+'PROGRAMA I'!Q27),0) -> 0 | BR18: =IF('PROGRAMA II'!A28='CALCULO POR AREAS'!$BQ$2,'PROGRAMA II'!Q27+'PROGRAMA II'!R27,0) -> 0 | BS18: =IF('PROGRAMA III'!A28='CALCULO POR AREAS'!$BQ$2,'PROGRAMA III'!Q28+'PROGRAMA III'!R28,0) -> 0 | BT18: =IF('PROGRAMA IV'!A28='CALCULO POR AREAS'!$BQ$2,'PROGRAMA IV'!Q28+'PROGRAMA IV'!R28,0) -> 0 | BU18: =IF('PROGRAMA I'!A27='CALCULO POR AREAS'!$BU$2,('PROGRAMA I'!P27+'PROGRAMA I'!Q27),0) -> 0 | BV18: =IF('PROGRAMA II'!A28='CALCULO POR AREAS'!$BU$2,'PROGRAMA II'!Q27+'PROGRAMA II'!R27,0) -> 0 | BW18: =IF('PROGRAMA III'!A28='CALCULO POR AREAS'!$BU$2,'PROGRAMA III'!Q28+'PROGRAMA III'!R28,0) -> 0 | BX18: =IF('PROGRAMA IV'!A28='CALCULO POR AREAS'!$BU$2,'PROGRAMA IV'!Q28+'PROGRAMA IV'!R28,0) -> 0 | BY18: =IF('PROGRAMA I'!A27='CALCULO POR AREAS'!$BY$2,('PROGRAMA I'!P27+'PROGRAMA I'!Q27),0) -> 0 | BZ18: =IF('PROGRAMA II'!A28='CALCULO POR AREAS'!$BY$2,'PROGRAMA II'!Q27+'PROGRAMA II'!R27,0) -> 0 | CA18: =IF('PROGRAMA III'!A28='CALCULO POR AREAS'!$BY$2,'PROGRAMA III'!Q28+'PROGRAMA III'!R28,0) -> 0 | CB18: =IF('PROGRAMA IV'!A28='CALCULO POR AREAS'!$BY$2,'PROGRAMA IV'!Q28+'PROGRAMA IV'!R28,0) -> 0
A19: =IF('PROGRAMA I'!A28='CALCULO POR AREAS'!$A$2,('PROGRAMA I'!P28+'PROGRAMA I'!Q28),0) -> 0 | B19: =IF('PROGRAMA II'!A29='CALCULO POR AREAS'!$A$2,'PROGRAMA II'!Q28+'PROGRAMA II'!R28,0) -> 0 | C19: =IF('PROGRAMA III'!A29='CALCULO POR AREAS'!$A$2,'PROGRAMA III'!Q29+'PROGRAMA III'!R29,0) -> 0 | D19: =IF('PROGRAMA IV'!A29='CALCULO POR AREAS'!$A$2,'PROGRAMA IV'!Q29+'PROGRAMA IV'!R29,0) -> 0 | E19: =IF('PROGRAMA I'!A28='CALCULO POR AREAS'!$E$2,('PROGRAMA I'!P28+'PROGRAMA I'!Q28),0) -> 0 | F19: =IF('PROGRAMA II'!A29='CALCULO POR AREAS'!$E$2,'PROGRAMA II'!Q28+'PROGRAMA II'!R28,0) -> 0 | G19: =IF('PROGRAMA III'!A29='CALCULO POR AREAS'!$E$2,'PROGRAMA III'!Q29+'PROGRAMA III'!R29,0) -> 0 | H19: =IF('PROGRAMA IV'!A29='CALCULO POR AREAS'!$E$2,'PROGRAMA IV'!Q29+'PROGRAMA IV'!R29,0) -> 0 | I19: =IF('PROGRAMA I'!A28='CALCULO POR AREAS'!$I$2,('PROGRAMA I'!P28+'PROGRAMA I'!Q28),0) -> 0 | J19: =IF('PROGRAMA II'!A29='CALCULO POR AREAS'!$I$2,'PROGRAMA II'!Q28+'PROGRAMA II'!R28,0) -> 0 | K19: =IF('PROGRAMA III'!A29='CALCULO POR AREAS'!$I$2,'PROGRAMA III'!Q29+'PROGRAMA III'!R29,0) -> 0 | L19: =IF('PROGRAMA IV'!A29='CALCULO POR AREAS'!$I$2,'PROGRAMA IV'!Q29+'PROGRAMA IV'!R29,0) -> 0 | M19: =IF('PROGRAMA I'!A28='CALCULO POR AREAS'!$M$2,('PROGRAMA I'!P28+'PROGRAMA I'!Q28),0) -> 0 | N19: =IF('PROGRAMA II'!A29='CALCULO POR AREAS'!$M$2,'PROGRAMA II'!Q28+'PROGRAMA II'!R28,0) -> 200000 | O19: =IF('PROGRAMA III'!A29='CALCULO POR AREAS'!$M$2,'PROGRAMA III'!Q29+'PROGRAMA III'!R29,0) -> 0 | P19: =IF('PROGRAMA IV'!A29='CALCULO POR AREAS'!$M$2,'PROGRAMA IV'!Q29+'PROGRAMA IV'!R29,0) -> 0 | Q19: =IF('PROGRAMA I'!A28='CALCULO POR AREAS'!$Q$2,('PROGRAMA I'!P28+'PROGRAMA I'!Q28),0) -> 0 | R19: =IF('PROGRAMA II'!A29='CALCULO POR AREAS'!$Q$2,'PROGRAMA II'!Q28+'PROGRAMA II'!R28,0) -> 0 | S19: =IF('PROGRAMA III'!A29='CALCULO POR AREAS'!$Q$2,'PROGRAMA III'!Q29+'PROGRAMA III'!R29,0) -> 0 | T19: =IF('PROGRAMA IV'!A29='CALCULO POR AREAS'!$Q$2,'PROGRAMA IV'!Q29+'PROGRAMA IV'!R29,0) -> 0 | U19: =IF('PROGRAMA I'!A28='CALCULO POR AREAS'!$U$2,('PROGRAMA I'!P28+'PROGRAMA I'!Q28),0) -> 0 | V19: =IF('PROGRAMA II'!A29='CALCULO POR AREAS'!$U$2,'PROGRAMA II'!Q28+'PROGRAMA II'!R28,0) -> 0 | W19: =IF('PROGRAMA III'!A29='CALCULO POR AREAS'!$U$2,'PROGRAMA III'!Q29+'PROGRAMA III'!R29,0) -> 0 | X19: =IF('PROGRAMA IV'!A29='CALCULO POR AREAS'!$U$2,'PROGRAMA IV'!Q29+'PROGRAMA IV'!R29,0) -> 0 | Y19: =IF('PROGRAMA I'!A28='CALCULO POR AREAS'!$Y$2,('PROGRAMA I'!P28+'PROGRAMA I'!Q28),0) -> 0 | Z19: =IF('PROGRAMA II'!A29='CALCULO POR AREAS'!$Y$2,'PROGRAMA II'!Q28+'PROGRAMA II'!R28,0) -> 0 | AA19: =IF('PROGRAMA III'!A29='CALCULO POR AREAS'!$Y$2,'PROGRAMA III'!Q29+'PROGRAMA III'!R29,0) -> 0 | AB19: =IF('PROGRAMA IV'!A29='CALCULO POR AREAS'!$Y$2,'PROGRAMA IV'!Q29+'PROGRAMA IV'!R29,0) -> 0 | AC19: =IF('PROGRAMA I'!A28='CALCULO POR AREAS'!$AC$2,('PROGRAMA I'!P28+'PROGRAMA I'!Q28),0) -> 0 | AD19: =IF('PROGRAMA II'!A29='CALCULO POR AREAS'!$AC$2,'PROGRAMA II'!Q28+'PROGRAMA II'!R28,0) -> 0 | AE19: =IF('PROGRAMA III'!A29='CALCULO POR AREAS'!$AC$2,'PROGRAMA III'!Q29+'PROGRAMA III'!R29,0) -> 0 | AF19: =IF('PROGRAMA IV'!A29='CALCULO POR AREAS'!$AC$2,'PROGRAMA IV'!Q29+'PROGRAMA IV'!R29,0) -> 0 | AG19: =IF('PROGRAMA I'!A28='CALCULO POR AREAS'!$AG$2,('PROGRAMA I'!P28+'PROGRAMA I'!Q28),0) -> 0 | AH19: =IF('PROGRAMA II'!A29='CALCULO POR AREAS'!$AG$2,'PROGRAMA II'!Q28+'PROGRAMA II'!R28,0) -> 0 | AI19: =IF('PROGRAMA III'!A29='CALCULO POR AREAS'!$AG$2,'PROGRAMA III'!Q29+'PROGRAMA III'!R29,0) -> 0 | AJ19: =IF('PROGRAMA IV'!A29='CALCULO POR AREAS'!$AG$2,'PROGRAMA IV'!Q29+'PROGRAMA IV'!R29,0) -> 0 | AK19: =IF('PROGRAMA I'!A28='CALCULO POR AREAS'!$AK$2,('PROGRAMA I'!P28+'PROGRAMA I'!Q28),0) -> 0 | AL19: =IF('PROGRAMA II'!A29='CALCULO POR AREAS'!$AK$2,'PROGRAMA II'!Q28+'PROGRAMA II'!R28,0) -> 0 | AM19: =IF('PROGRAMA III'!A29='CALCULO POR AREAS'!$AK$2,'PROGRAMA III'!Q29+'PROGRAMA III'!R29,0) -> 0 | AN19: =IF('PROGRAMA IV'!A29='CALCULO POR AREAS'!$AK$2,'PROGRAMA IV'!Q29+'PROGRAMA IV'!R29,0) -> 0 | AO19: =IF('PROGRAMA I'!A28='CALCULO POR AREAS'!$AO$2,('PROGRAMA I'!P28+'PROGRAMA I'!Q28),0) -> 0 | AP19: =IF('PROGRAMA II'!A29='CALCULO POR AREAS'!$AO$2,'PROGRAMA II'!Q28+'PROGRAMA II'!R28,0) -> 0 | AQ19: =IF('PROGRAMA III'!A29='CALCULO POR AREAS'!$AO$2,'PROGRAMA III'!Q29+'PROGRAMA III'!R29,0) -> 0 | AR19: =IF('PROGRAMA IV'!A29='CALCULO POR AREAS'!$AO$2,'PROGRAMA IV'!Q29+'PROGRAMA IV'!R29,0) -> 0 | AS19: =IF('PROGRAMA I'!A28='CALCULO POR AREAS'!$AS$2,('PROGRAMA I'!P28+'PROGRAMA I'!Q28),0) -> 0 | AT19: =IF('PROGRAMA II'!A29='CALCULO POR AREAS'!$AS$2,'PROGRAMA II'!Q28+'PROGRAMA II'!R28,0) -> 0 | AU19: =IF('PROGRAMA III'!A29='CALCULO POR AREAS'!$AS$2,'PROGRAMA III'!Q29+'PROGRAMA III'!R29,0) -> 0 | AV19: =IF('PROGRAMA IV'!A29='CALCULO POR AREAS'!$AS$2,'PROGRAMA IV'!Q29+'PROGRAMA IV'!R29,0) -> 0 | AW19: =IF('PROGRAMA I'!A28='CALCULO POR AREAS'!$AW$2,('PROGRAMA I'!P28+'PROGRAMA I'!Q28),0) -> 0 | AX19: =IF('PROGRAMA II'!A29='CALCULO POR AREAS'!$AW$2,'PROGRAMA II'!Q28+'PROGRAMA II'!R28,0) -> 0 | AY19: =IF('PROGRAMA III'!A29='CALCULO POR AREAS'!$AW$2,'PROGRAMA III'!Q29+'PROGRAMA III'!R29,0) -> 0 | AZ19: =IF('PROGRAMA IV'!A29='CALCULO POR AREAS'!$AW$2,'PROGRAMA IV'!Q29+'PROGRAMA IV'!R29,0) -> 0 | BA19: =IF('PROGRAMA I'!A28='CALCULO POR AREAS'!$BA$2,('PROGRAMA I'!P28+'PROGRAMA I'!Q28),0) -> 0 | BB19: =IF('PROGRAMA II'!A29='CALCULO POR AREAS'!$BA$2,'PROGRAMA II'!Q28+'PROGRAMA II'!R28,0) -> 0 | BC19: =IF('PROGRAMA III'!A29='CALCULO POR AREAS'!$BA$2,'PROGRAMA III'!Q29+'PROGRAMA III'!R29,0) -> 0 | BD19: =IF('PROGRAMA IV'!A29='CALCULO POR AREAS'!$BA$2,'PROGRAMA IV'!Q29+'PROGRAMA IV'!R29,0) -> 0 | BE19: =IF('PROGRAMA I'!A28='CALCULO POR AREAS'!$BE$2,('PROGRAMA I'!P28+'PROGRAMA I'!Q28),0) -> 0 | BF19: =IF('PROGRAMA II'!A29='CALCULO POR AREAS'!$BE$2,'PROGRAMA II'!Q28+'PROGRAMA II'!R28,0) -> 0 | BG19: =IF('PROGRAMA III'!A29='CALCULO POR AREAS'!$BE$2,'PROGRAMA III'!Q29+'PROGRAMA III'!R29,0) -> 0 | BH19: =IF('PROGRAMA IV'!A29='CALCULO POR AREAS'!$BE$2,'PROGRAMA IV'!Q29+'PROGRAMA IV'!R29,0) -> 0 | BI19: =IF('PROGRAMA I'!A28='CALCULO POR AREAS'!$BI$2,('PROGRAMA I'!P28+'PROGRAMA I'!Q28),0) -> 0 | BJ19: =IF('PROGRAMA II'!A29='CALCULO POR AREAS'!$BI$2,'PROGRAMA II'!Q28+'PROGRAMA II'!R28,0) -> 0 | BK19: =IF('PROGRAMA III'!A29='CALCULO POR AREAS'!$BI$2,'PROGRAMA III'!Q29+'PROGRAMA III'!R29,0) -> 0 | BL19: =IF('PROGRAMA IV'!A29='CALCULO POR AREAS'!$BI$2,'PROGRAMA IV'!Q29+'PROGRAMA IV'!R29,0) -> 0 | BM19: =IF('PROGRAMA I'!A28='CALCULO POR AREAS'!$BM$2,('PROGRAMA I'!P28+'PROGRAMA I'!Q28),0) -> 0 | BN19: =IF('PROGRAMA II'!A29='CALCULO POR AREAS'!$BM$2,'PROGRAMA II'!Q28+'PROGRAMA II'!R28,0) -> 0 | BO19: =IF('PROGRAMA III'!A29='CALCULO POR AREAS'!$BM$2,'PROGRAMA III'!Q29+'PROGRAMA III'!R29,0) -> 0 | BP19: =IF('PROGRAMA IV'!A29='CALCULO POR AREAS'!$BM$2,'PROGRAMA IV'!Q29+'PROGRAMA IV'!R29,0) -> 0 | BQ19: =IF('PROGRAMA I'!A28='CALCULO POR AREAS'!$BQ$2,('PROGRAMA I'!P28+'PROGRAMA I'!Q28),0) -> 0 | BR19: =IF('PROGRAMA II'!A29='CALCULO POR AREAS'!$BQ$2,'PROGRAMA II'!Q28+'PROGRAMA II'!R28,0) -> 0 | BS19: =IF('PROGRAMA III'!A29='CALCULO POR AREAS'!$BQ$2,'PROGRAMA III'!Q29+'PROGRAMA III'!R29,0) -> 0 | BT19: =IF('PROGRAMA IV'!A29='CALCULO POR AREAS'!$BQ$2,'PROGRAMA IV'!Q29+'PROGRAMA IV'!R29,0) -> 0 | BU19: =IF('PROGRAMA I'!A28='CALCULO POR AREAS'!$BU$2,('PROGRAMA I'!P28+'PROGRAMA I'!Q28),0) -> 0 | BV19: =IF('PROGRAMA II'!A29='CALCULO POR AREAS'!$BU$2,'PROGRAMA II'!Q28+'PROGRAMA II'!R28,0) -> 0 | BW19: =IF('PROGRAMA III'!A29='CALCULO POR AREAS'!$BU$2,'PROGRAMA III'!Q29+'PROGRAMA III'!R29,0) -> 0 | BX19: =IF('PROGRAMA IV'!A29='CALCULO POR AREAS'!$BU$2,'PROGRAMA IV'!Q29+'PROGRAMA IV'!R29,0) -> 0 | BY19: =IF('PROGRAMA I'!A28='CALCULO POR AREAS'!$BY$2,('PROGRAMA I'!P28+'PROGRAMA I'!Q28),0) -> 0 | BZ19: =IF('PROGRAMA II'!A29='CALCULO POR AREAS'!$BY$2,'PROGRAMA II'!Q28+'PROGRAMA II'!R28,0) -> 0 | CA19: =IF('PROGRAMA III'!A29='CALCULO POR AREAS'!$BY$2,'PROGRAMA III'!Q29+'PROGRAMA III'!R29,0) -> 0 | CB19: =IF('PROGRAMA IV'!A29='CALCULO POR AREAS'!$BY$2,'PROGRAMA IV'!Q29+'PROGRAMA IV'!R29,0) -> 0
A20: =IF('PROGRAMA I'!A29='CALCULO POR AREAS'!$A$2,('PROGRAMA I'!P29+'PROGRAMA I'!Q29),0) -> 0 | B20: =IF('PROGRAMA II'!A30='CALCULO POR AREAS'!$A$2,'PROGRAMA II'!Q29+'PROGRAMA II'!R29,0) -> 0 | C20: =IF('PROGRAMA III'!A30='CALCULO POR AREAS'!$A$2,'PROGRAMA III'!Q30+'PROGRAMA III'!R30,0) -> 0 | D20: =IF('PROGRAMA IV'!A30='CALCULO POR AREAS'!$A$2,'PROGRAMA IV'!Q30+'PROGRAMA IV'!R30,0) -> 0 | E20: =IF('PROGRAMA I'!A29='CALCULO POR AREAS'!$E$2,('PROGRAMA I'!P29+'PROGRAMA I'!Q29),0) -> 0 | F20: =IF('PROGRAMA II'!A30='CALCULO POR AREAS'!$E$2,'PROGRAMA II'!Q29+'PROGRAMA II'!R29,0) -> 0 | G20: =IF('PROGRAMA III'!A30='CALCULO POR AREAS'!$E$2,'PROGRAMA III'!Q30+'PROGRAMA III'!R30,0) -> 0 | H20: =IF('PROGRAMA IV'!A30='CALCULO POR AREAS'!$E$2,'PROGRAMA IV'!Q30+'PROGRAMA IV'!R30,0) -> 0 | I20: =IF('PROGRAMA I'!A29='CALCULO POR AREAS'!$I$2,('PROGRAMA I'!P29+'PROGRAMA I'!Q29),0) -> 0 | J20: =IF('PROGRAMA II'!A30='CALCULO POR AREAS'!$I$2,'PROGRAMA II'!Q29+'PROGRAMA II'!R29,0) -> 0 | K20: =IF('PROGRAMA III'!A30='CALCULO POR AREAS'!$I$2,'PROGRAMA III'!Q30+'PROGRAMA III'!R30,0) -> 0 | L20: =IF('PROGRAMA IV'!A30='CALCULO POR AREAS'!$I$2,'PROGRAMA IV'!Q30+'PROGRAMA IV'!R30,0) -> 0 | M20: =IF('PROGRAMA I'!A29='CALCULO POR AREAS'!$M$2,('PROGRAMA I'!P29+'PROGRAMA I'!Q29),0) -> 0 | N20: =IF('PROGRAMA II'!A30='CALCULO POR AREAS'!$M$2,'PROGRAMA II'!Q29+'PROGRAMA II'!R29,0) -> 800000 | O20: =IF('PROGRAMA III'!A30='CALCULO POR AREAS'!$M$2,'PROGRAMA III'!Q30+'PROGRAMA III'!R30,0) -> 0 | P20: =IF('PROGRAMA IV'!A30='CALCULO POR AREAS'!$M$2,'PROGRAMA IV'!Q30+'PROGRAMA IV'!R30,0) -> 0 | Q20: =IF('PROGRAMA I'!A29='CALCULO POR AREAS'!$Q$2,('PROGRAMA I'!P29+'PROGRAMA I'!Q29),0) -> 0 | R20: =IF('PROGRAMA II'!A30='CALCULO POR AREAS'!$Q$2,'PROGRAMA II'!Q29+'PROGRAMA II'!R29,0) -> 0 | S20: =IF('PROGRAMA III'!A30='CALCULO POR AREAS'!$Q$2,'PROGRAMA III'!Q30+'PROGRAMA III'!R30,0) -> 0 | T20: =IF('PROGRAMA IV'!A30='CALCULO POR AREAS'!$Q$2,'PROGRAMA IV'!Q30+'PROGRAMA IV'!R30,0) -> 0 | U20: =IF('PROGRAMA I'!A29='CALCULO POR AREAS'!$U$2,('PROGRAMA I'!P29+'PROGRAMA I'!Q29),0) -> 0 | V20: =IF('PROGRAMA II'!A30='CALCULO POR AREAS'!$U$2,'PROGRAMA II'!Q29+'PROGRAMA II'!R29,0) -> 0 | W20: =IF('PROGRAMA III'!A30='CALCULO POR AREAS'!$U$2,'PROGRAMA III'!Q30+'PROGRAMA III'!R30,0) -> 0 | X20: =IF('PROGRAMA IV'!A30='CALCULO POR AREAS'!$U$2,'PROGRAMA IV'!Q30+'PROGRAMA IV'!R30,0) -> 0 | Y20: =IF('PROGRAMA I'!A29='CALCULO POR AREAS'!$Y$2,('PROGRAMA I'!P29+'PROGRAMA I'!Q29),0) -> 0 | Z20: =IF('PROGRAMA II'!A30='CALCULO POR AREAS'!$Y$2,'PROGRAMA II'!Q29+'PROGRAMA II'!R29,0) -> 0 | AA20: =IF('PROGRAMA III'!A30='CALCULO POR AREAS'!$Y$2,'PROGRAMA III'!Q30+'PROGRAMA III'!R30,0) -> 0 | AB20: =IF('PROGRAMA IV'!A30='CALCULO POR AREAS'!$Y$2,'PROGRAMA IV'!Q30+'PROGRAMA IV'!R30,0) -> 0 | AC20: =IF('PROGRAMA I'!A29='CALCULO POR AREAS'!$AC$2,('PROGRAMA I'!P29+'PROGRAMA I'!Q29),0) -> 0 | AD20: =IF('PROGRAMA II'!A30='CALCULO POR AREAS'!$AC$2,'PROGRAMA II'!Q29+'PROGRAMA II'!R29,0) -> 0 | AE20: =IF('PROGRAMA III'!A30='CALCULO POR AREAS'!$AC$2,'PROGRAMA III'!Q30+'PROGRAMA III'!R30,0) -> 0 | AF20: =IF('PROGRAMA IV'!A30='CALCULO POR AREAS'!$AC$2,'PROGRAMA IV'!Q30+'PROGRAMA IV'!R30,0) -> 0 | AG20: =IF('PROGRAMA I'!A29='CALCULO POR AREAS'!$AG$2,('PROGRAMA I'!P29+'PROGRAMA I'!Q29),0) -> 0 | AH20: =IF('PROGRAMA II'!A30='CALCULO POR AREAS'!$AG$2,'PROGRAMA II'!Q29+'PROGRAMA II'!R29,0) -> 0 | AI20: =IF('PROGRAMA III'!A30='CALCULO POR AREAS'!$AG$2,'PROGRAMA III'!Q30+'PROGRAMA III'!R30,0) -> 0 | AJ20: =IF('PROGRAMA IV'!A30='CALCULO POR AREAS'!$AG$2,'PROGRAMA IV'!Q30+'PROGRAMA IV'!R30,0) -> 0 | AK20: =IF('PROGRAMA I'!A29='CALCULO POR AREAS'!$AK$2,('PROGRAMA I'!P29+'PROGRAMA I'!Q29),0) -> 0 | AL20: =IF('PROGRAMA II'!A30='CALCULO POR AREAS'!$AK$2,'PROGRAMA II'!Q29+'PROGRAMA II'!R29,0) -> 0 | AM20: =IF('PROGRAMA III'!A30='CALCULO POR AREAS'!$AK$2,'PROGRAMA III'!Q30+'PROGRAMA III'!R30,0) -> 0 | AN20: =IF('PROGRAMA IV'!A30='CALCULO POR AREAS'!$AK$2,'PROGRAMA IV'!Q30+'PROGRAMA IV'!R30,0) -> 0 | AO20: =IF('PROGRAMA I'!A29='CALCULO POR AREAS'!$AO$2,('PROGRAMA I'!P29+'PROGRAMA I'!Q29),0) -> 0 | AP20: =IF('PROGRAMA II'!A30='CALCULO POR AREAS'!$AO$2,'PROGRAMA II'!Q29+'PROGRAMA II'!R29,0) -> 0 | AQ20: =IF('PROGRAMA III'!A30='CALCULO POR AREAS'!$AO$2,'PROGRAMA III'!Q30+'PROGRAMA III'!R30,0) -> 0 | AR20: =IF('PROGRAMA IV'!A30='CALCULO POR AREAS'!$AO$2,'PROGRAMA IV'!Q30+'PROGRAMA IV'!R30,0) -> 0 | AS20: =IF('PROGRAMA I'!A29='CALCULO POR AREAS'!$AS$2,('PROGRAMA I'!P29+'PROGRAMA I'!Q29),0) -> 0 | AT20: =IF('PROGRAMA II'!A30='CALCULO POR AREAS'!$AS$2,'PROGRAMA II'!Q29+'PROGRAMA II'!R29,0) -> 0 | AU20: =IF('PROGRAMA III'!A30='CALCULO POR AREAS'!$AS$2,'PROGRAMA III'!Q30+'PROGRAMA III'!R30,0) -> 0 | AV20: =IF('PROGRAMA IV'!A30='CALCULO POR AREAS'!$AS$2,'PROGRAMA IV'!Q30+'PROGRAMA IV'!R30,0) -> 0 | AW20: =IF('PROGRAMA I'!A29='CALCULO POR AREAS'!$AW$2,('PROGRAMA I'!P29+'PROGRAMA I'!Q29),0) -> 0 | AX20: =IF('PROGRAMA II'!A30='CALCULO POR AREAS'!$AW$2,'PROGRAMA II'!Q29+'PROGRAMA II'!R29,0) -> 0 | AY20: =IF('PROGRAMA III'!A30='CALCULO POR AREAS'!$AW$2,'PROGRAMA III'!Q30+'PROGRAMA III'!R30,0) -> 0 | AZ20: =IF('PROGRAMA IV'!A30='CALCULO POR AREAS'!$AW$2,'PROGRAMA IV'!Q30+'PROGRAMA IV'!R30,0) -> 0 | BA20: =IF('PROGRAMA I'!A29='CALCULO POR AREAS'!$BA$2,('PROGRAMA I'!P29+'PROGRAMA I'!Q29),0) -> 0 | BB20: =IF('PROGRAMA II'!A30='CALCULO POR AREAS'!$BA$2,'PROGRAMA II'!Q29+'PROGRAMA II'!R29,0) -> 0 | BC20: =IF('PROGRAMA III'!A30='CALCULO POR AREAS'!$BA$2,'PROGRAMA III'!Q30+'PROGRAMA III'!R30,0) -> 0 | BD20: =IF('PROGRAMA IV'!A30='CALCULO POR AREAS'!$BA$2,'PROGRAMA IV'!Q30+'PROGRAMA IV'!R30,0) -> 0 | BE20: =IF('PROGRAMA I'!A29='CALCULO POR AREAS'!$BE$2,('PROGRAMA I'!P29+'PROGRAMA I'!Q29),0) -> 0 | BF20: =IF('PROGRAMA II'!A30='CALCULO POR AREAS'!$BE$2,'PROGRAMA II'!Q29+'PROGRAMA II'!R29,0) -> 0 | BG20: =IF('PROGRAMA III'!A30='CALCULO POR AREAS'!$BE$2,'PROGRAMA III'!Q30+'PROGRAMA III'!R30,0) -> 0 | BH20: =IF('PROGRAMA IV'!A30='CALCULO POR AREAS'!$BE$2,'PROGRAMA IV'!Q30+'PROGRAMA IV'!R30,0) -> 0 | BI20: =IF('PROGRAMA I'!A29='CALCULO POR AREAS'!$BI$2,('PROGRAMA I'!P29+'PROGRAMA I'!Q29),0) -> 0 | BJ20: =IF('PROGRAMA II'!A30='CALCULO POR AREAS'!$BI$2,'PROGRAMA II'!Q29+'PROGRAMA II'!R29,0) -> 0 | BK20: =IF('PROGRAMA III'!A30='CALCULO POR AREAS'!$BI$2,'PROGRAMA III'!Q30+'PROGRAMA III'!R30,0) -> 0 | BL20: =IF('PROGRAMA IV'!A30='CALCULO POR AREAS'!$BI$2,'PROGRAMA IV'!Q30+'PROGRAMA IV'!R30,0) -> 0 | BM20: =IF('PROGRAMA I'!A29='CALCULO POR AREAS'!$BM$2,('PROGRAMA I'!P29+'PROGRAMA I'!Q29),0) -> 0 | BN20: =IF('PROGRAMA II'!A30='CALCULO POR AREAS'!$BM$2,'PROGRAMA II'!Q29+'PROGRAMA II'!R29,0) -> 0 | BO20: =IF('PROGRAMA III'!A30='CALCULO POR AREAS'!$BM$2,'PROGRAMA III'!Q30+'PROGRAMA III'!R30,0) -> 0 | BP20: =IF('PROGRAMA IV'!A30='CALCULO POR AREAS'!$BM$2,'PROGRAMA IV'!Q30+'PROGRAMA IV'!R30,0) -> 0 | BQ20: =IF('PROGRAMA I'!A29='CALCULO POR AREAS'!$BQ$2,('PROGRAMA I'!P29+'PROGRAMA I'!Q29),0) -> 0 | BR20: =IF('PROGRAMA II'!A30='CALCULO POR AREAS'!$BQ$2,'PROGRAMA II'!Q29+'PROGRAMA II'!R29,0) -> 0 | BS20: =IF('PROGRAMA III'!A30='CALCULO POR AREAS'!$BQ$2,'PROGRAMA III'!Q30+'PROGRAMA III'!R30,0) -> 0 | BT20: =IF('PROGRAMA IV'!A30='CALCULO POR AREAS'!$BQ$2,'PROGRAMA IV'!Q30+'PROGRAMA IV'!R30,0) -> 0 | BU20: =IF('PROGRAMA I'!A29='CALCULO POR AREAS'!$BU$2,('PROGRAMA I'!P29+'PROGRAMA I'!Q29),0) -> 0 | BV20: =IF('PROGRAMA II'!A30='CALCULO POR AREAS'!$BU$2,'PROGRAMA II'!Q29+'PROGRAMA II'!R29,0) -> 0 | BW20: =IF('PROGRAMA III'!A30='CALCULO POR AREAS'!$BU$2,'PROGRAMA III'!Q30+'PROGRAMA III'!R30,0) -> 0 | BX20: =IF('PROGRAMA IV'!A30='CALCULO POR AREAS'!$BU$2,'PROGRAMA IV'!Q30+'PROGRAMA IV'!R30,0) -> 0 | BY20: =IF('PROGRAMA I'!A29='CALCULO POR AREAS'!$BY$2,('PROGRAMA I'!P29+'PROGRAMA I'!Q29),0) -> 0 | BZ20: =IF('PROGRAMA II'!A30='CALCULO POR AREAS'!$BY$2,'PROGRAMA II'!Q29+'PROGRAMA II'!R29,0) -> 0 | CA20: =IF('PROGRAMA III'!A30='CALCULO POR AREAS'!$BY$2,'PROGRAMA III'!Q30+'PROGRAMA III'!R30,0) -> 0 | CB20: =IF('PROGRAMA IV'!A30='CALCULO POR AREAS'!$BY$2,'PROGRAMA IV'!Q30+'PROGRAMA IV'!R30,0) -> 0
A21: =IF('PROGRAMA I'!A30='CALCULO POR AREAS'!$A$2,('PROGRAMA I'!P30+'PROGRAMA I'!Q30),0) -> 0 | B21: =IF('PROGRAMA II'!A31='CALCULO POR AREAS'!$A$2,'PROGRAMA II'!Q30+'PROGRAMA II'!R30,0) -> 1250000 | C21: =IF('PROGRAMA III'!A31='CALCULO POR AREAS'!$A$2,'PROGRAMA III'!Q31+'PROGRAMA III'!R31,0) -> 0 | D21: =IF('PROGRAMA IV'!A31='CALCULO POR AREAS'!$A$2,'PROGRAMA IV'!Q31+'PROGRAMA IV'!R31,0) -> 0 | E21: =IF('PROGRAMA I'!A30='CALCULO POR AREAS'!$E$2,('PROGRAMA I'!P30+'PROGRAMA I'!Q30),0) -> 0 | F21: =IF('PROGRAMA II'!A31='CALCULO POR AREAS'!$E$2,'PROGRAMA II'!Q30+'PROGRAMA II'!R30,0) -> 0 | G21: =IF('PROGRAMA III'!A31='CALCULO POR AREAS'!$E$2,'PROGRAMA III'!Q31+'PROGRAMA III'!R31,0) -> 0 | H21: =IF('PROGRAMA IV'!A31='CALCULO POR AREAS'!$E$2,'PROGRAMA IV'!Q31+'PROGRAMA IV'!R31,0) -> 0 | I21: =IF('PROGRAMA I'!A30='CALCULO POR AREAS'!$I$2,('PROGRAMA I'!P30+'PROGRAMA I'!Q30),0) -> 0 | J21: =IF('PROGRAMA II'!A31='CALCULO POR AREAS'!$I$2,'PROGRAMA II'!Q30+'PROGRAMA II'!R30,0) -> 0 | K21: =IF('PROGRAMA III'!A31='CALCULO POR AREAS'!$I$2,'PROGRAMA III'!Q31+'PROGRAMA III'!R31,0) -> 0 | L21: =IF('PROGRAMA IV'!A31='CALCULO POR AREAS'!$I$2,'PROGRAMA IV'!Q31+'PROGRAMA IV'!R31,0) -> 0 | M21: =IF('PROGRAMA I'!A30='CALCULO POR AREAS'!$M$2,('PROGRAMA I'!P30+'PROGRAMA I'!Q30),0) -> 0 | N21: =IF('PROGRAMA II'!A31='CALCULO POR AREAS'!$M$2,'PROGRAMA II'!Q30+'PROGRAMA II'!R30,0) -> 0 | O21: =IF('PROGRAMA III'!A31='CALCULO POR AREAS'!$M$2,'PROGRAMA III'!Q31+'PROGRAMA III'!R31,0) -> 0 | P21: =IF('PROGRAMA IV'!A31='CALCULO POR AREAS'!$M$2,'PROGRAMA IV'!Q31+'PROGRAMA IV'!R31,0) -> 0 | Q21: =IF('PROGRAMA I'!A30='CALCULO POR AREAS'!$Q$2,('PROGRAMA I'!P30+'PROGRAMA I'!Q30),0) -> 0 | R21: =IF('PROGRAMA II'!A31='CALCULO POR AREAS'!$Q$2,'PROGRAMA II'!Q30+'PROGRAMA II'!R30,0) -> 0 | S21: =IF('PROGRAMA III'!A31='CALCULO POR AREAS'!$Q$2,'PROGRAMA III'!Q31+'PROGRAMA III'!R31,0) -> 0 | T21: =IF('PROGRAMA IV'!A31='CALCULO POR AREAS'!$Q$2,'PROGRAMA IV'!Q31+'PROGRAMA IV'!R31,0) -> 0 | U21: =IF('PROGRAMA I'!A30='CALCULO POR AREAS'!$U$2,('PROGRAMA I'!P30+'PROGRAMA I'!Q30),0) -> 0 | V21: =IF('PROGRAMA II'!A31='CALCULO POR AREAS'!$U$2,'PROGRAMA II'!Q30+'PROGRAMA II'!R30,0) -> 0 | W21: =IF('PROGRAMA III'!A31='CALCULO POR AREAS'!$U$2,'PROGRAMA III'!Q31+'PROGRAMA III'!R31,0) -> 0 | X21: =IF('PROGRAMA IV'!A31='CALCULO POR AREAS'!$U$2,'PROGRAMA IV'!Q31+'PROGRAMA IV'!R31,0) -> 0 | Y21: =IF('PROGRAMA I'!A30='CALCULO POR AREAS'!$Y$2,('PROGRAMA I'!P30+'PROGRAMA I'!Q30),0) -> 0 | Z21: =IF('PROGRAMA II'!A31='CALCULO POR AREAS'!$Y$2,'PROGRAMA II'!Q30+'PROGRAMA II'!R30,0) -> 0 | AA21: =IF('PROGRAMA III'!A31='CALCULO POR AREAS'!$Y$2,'PROGRAMA III'!Q31+'PROGRAMA III'!R31,0) -> 0 | AB21: =IF('PROGRAMA IV'!A31='CALCULO POR AREAS'!$Y$2,'PROGRAMA IV'!Q31+'PROGRAMA IV'!R31,0) -> 0 | AC21: =IF('PROGRAMA I'!A30='CALCULO POR AREAS'!$AC$2,('PROGRAMA I'!P30+'PROGRAMA I'!Q30),0) -> 0 | AD21: =IF('PROGRAMA II'!A31='CALCULO POR AREAS'!$AC$2,'PROGRAMA II'!Q30+'PROGRAMA II'!R30,0) -> 0 | AE21: =IF('PROGRAMA III'!A31='CALCULO POR AREAS'!$AC$2,'PROGRAMA III'!Q31+'PROGRAMA III'!R31,0) -> 0 | AF21: =IF('PROGRAMA IV'!A31='CALCULO POR AREAS'!$AC$2,'PROGRAMA IV'!Q31+'PROGRAMA IV'!R31,0) -> 0 | AG21: =IF('PROGRAMA I'!A30='CALCULO POR AREAS'!$AG$2,('PROGRAMA I'!P30+'PROGRAMA I'!Q30),0) -> 0 | AH21: =IF('PROGRAMA II'!A31='CALCULO POR AREAS'!$AG$2,'PROGRAMA II'!Q30+'PROGRAMA II'!R30,0) -> 0 | AI21: =IF('PROGRAMA III'!A31='CALCULO POR AREAS'!$AG$2,'PROGRAMA III'!Q31+'PROGRAMA III'!R31,0) -> 0 | AJ21: =IF('PROGRAMA IV'!A31='CALCULO POR AREAS'!$AG$2,'PROGRAMA IV'!Q31+'PROGRAMA IV'!R31,0) -> 0 | AK21: =IF('PROGRAMA I'!A30='CALCULO POR AREAS'!$AK$2,('PROGRAMA I'!P30+'PROGRAMA I'!Q30),0) -> 0 | AL21: =IF('PROGRAMA II'!A31='CALCULO POR AREAS'!$AK$2,'PROGRAMA II'!Q30+'PROGRAMA II'!R30,0) -> 0 | AM21: =IF('PROGRAMA III'!A31='CALCULO POR AREAS'!$AK$2,'PROGRAMA III'!Q31+'PROGRAMA III'!R31,0) -> 0 | AN21: =IF('PROGRAMA IV'!A31='CALCULO POR AREAS'!$AK$2,'PROGRAMA IV'!Q31+'PROGRAMA IV'!R31,0) -> 0 | AO21: =IF('PROGRAMA I'!A30='CALCULO POR AREAS'!$AO$2,('PROGRAMA I'!P30+'PROGRAMA I'!Q30),0) -> 0 | AP21: =IF('PROGRAMA II'!A31='CALCULO POR AREAS'!$AO$2,'PROGRAMA II'!Q30+'PROGRAMA II'!R30,0) -> 0 | AQ21: =IF('PROGRAMA III'!A31='CALCULO POR AREAS'!$AO$2,'PROGRAMA III'!Q31+'PROGRAMA III'!R31,0) -> 0 | AR21: =IF('PROGRAMA IV'!A31='CALCULO POR AREAS'!$AO$2,'PROGRAMA IV'!Q31+'PROGRAMA IV'!R31,0) -> 0 | AS21: =IF('PROGRAMA I'!A30='CALCULO POR AREAS'!$AS$2,('PROGRAMA I'!P30+'PROGRAMA I'!Q30),0) -> 0 | AT21: =IF('PROGRAMA II'!A31='CALCULO POR AREAS'!$AS$2,'PROGRAMA II'!Q30+'PROGRAMA II'!R30,0) -> 0 | AU21: =IF('PROGRAMA III'!A31='CALCULO POR AREAS'!$AS$2,'PROGRAMA III'!Q31+'PROGRAMA III'!R31,0) -> 0 | AV21: =IF('PROGRAMA IV'!A31='CALCULO POR AREAS'!$AS$2,'PROGRAMA IV'!Q31+'PROGRAMA IV'!R31,0) -> 0 | AW21: =IF('PROGRAMA I'!A30='CALCULO POR AREAS'!$AW$2,('PROGRAMA I'!P30+'PROGRAMA I'!Q30),0) -> 0 | AX21: =IF('PROGRAMA II'!A31='CALCULO POR AREAS'!$AW$2,'PROGRAMA II'!Q30+'PROGRAMA II'!R30,0) -> 0 | AY21: =IF('PROGRAMA III'!A31='CALCULO POR AREAS'!$AW$2,'PROGRAMA III'!Q31+'PROGRAMA III'!R31,0) -> 0 | AZ21: =IF('PROGRAMA IV'!A31='CALCULO POR AREAS'!$AW$2,'PROGRAMA IV'!Q31+'PROGRAMA IV'!R31,0) -> 0 | BA21: =IF('PROGRAMA I'!A30='CALCULO POR AREAS'!$BA$2,('PROGRAMA I'!P30+'PROGRAMA I'!Q30),0) -> 0 | BB21: =IF('PROGRAMA II'!A31='CALCULO POR AREAS'!$BA$2,'PROGRAMA II'!Q30+'PROGRAMA II'!R30,0) -> 0 | BC21: =IF('PROGRAMA III'!A31='CALCULO POR AREAS'!$BA$2,'PROGRAMA III'!Q31+'PROGRAMA III'!R31,0) -> 0 | BD21: =IF('PROGRAMA IV'!A31='CALCULO POR AREAS'!$BA$2,'PROGRAMA IV'!Q31+'PROGRAMA IV'!R31,0) -> 0 | BE21: =IF('PROGRAMA I'!A30='CALCULO POR AREAS'!$BE$2,('PROGRAMA I'!P30+'PROGRAMA I'!Q30),0) -> 0 | BF21: =IF('PROGRAMA II'!A31='CALCULO POR AREAS'!$BE$2,'PROGRAMA II'!Q30+'PROGRAMA II'!R30,0) -> 0 | BG21: =IF('PROGRAMA III'!A31='CALCULO POR AREAS'!$BE$2,'PROGRAMA III'!Q31+'PROGRAMA III'!R31,0) -> 0 | BH21: =IF('PROGRAMA IV'!A31='CALCULO POR AREAS'!$BE$2,'PROGRAMA IV'!Q31+'PROGRAMA IV'!R31,0) -> 0 | BI21: =IF('PROGRAMA I'!A30='CALCULO POR AREAS'!$BI$2,('PROGRAMA I'!P30+'PROGRAMA I'!Q30),0) -> 0 | BJ21: =IF('PROGRAMA II'!A31='CALCULO POR AREAS'!$BI$2,'PROGRAMA II'!Q30+'PROGRAMA II'!R30,0) -> 0 | BK21: =IF('PROGRAMA III'!A31='CALCULO POR AREAS'!$BI$2,'PROGRAMA III'!Q31+'PROGRAMA III'!R31,0) -> 0 | BL21: =IF('PROGRAMA IV'!A31='CALCULO POR AREAS'!$BI$2,'PROGRAMA IV'!Q31+'PROGRAMA IV'!R31,0) -> 0 | BM21: =IF('PROGRAMA I'!A30='CALCULO POR AREAS'!$BM$2,('PROGRAMA I'!P30+'PROGRAMA I'!Q30),0) -> 0 | BN21: =IF('PROGRAMA II'!A31='CALCULO POR AREAS'!$BM$2,'PROGRAMA II'!Q30+'PROGRAMA II'!R30,0) -> 0 | BO21: =IF('PROGRAMA III'!A31='CALCULO POR AREAS'!$BM$2,'PROGRAMA III'!Q31+'PROGRAMA III'!R31,0) -> 0 | BP21: =IF('PROGRAMA IV'!A31='CALCULO POR AREAS'!$BM$2,'PROGRAMA IV'!Q31+'PROGRAMA IV'!R31,0) -> 0 | BQ21: =IF('PROGRAMA I'!A30='CALCULO POR AREAS'!$BQ$2,('PROGRAMA I'!P30+'PROGRAMA I'!Q30),0) -> 0 | BR21: =IF('PROGRAMA II'!A31='CALCULO POR AREAS'!$BQ$2,'PROGRAMA II'!Q30+'PROGRAMA II'!R30,0) -> 0 | BS21: =IF('PROGRAMA III'!A31='CALCULO POR AREAS'!$BQ$2,'PROGRAMA III'!Q31+'PROGRAMA III'!R31,0) -> 0 | BT21: =IF('PROGRAMA IV'!A31='CALCULO POR AREAS'!$BQ$2,'PROGRAMA IV'!Q31+'PROGRAMA IV'!R31,0) -> 0 | BU21: =IF('PROGRAMA I'!A30='CALCULO POR AREAS'!$BU$2,('PROGRAMA I'!P30+'PROGRAMA I'!Q30),0) -> 0 | BV21: =IF('PROGRAMA II'!A31='CALCULO POR AREAS'!$BU$2,'PROGRAMA II'!Q30+'PROGRAMA II'!R30,0) -> 0 | BW21: =IF('PROGRAMA III'!A31='CALCULO POR AREAS'!$BU$2,'PROGRAMA III'!Q31+'PROGRAMA III'!R31,0) -> 0 | BX21: =IF('PROGRAMA IV'!A31='CALCULO POR AREAS'!$BU$2,'PROGRAMA IV'!Q31+'PROGRAMA IV'!R31,0) -> 0 | BY21: =IF('PROGRAMA I'!A30='CALCULO POR AREAS'!$BY$2,('PROGRAMA I'!P30+'PROGRAMA I'!Q30),0) -> 0 | BZ21: =IF('PROGRAMA II'!A31='CALCULO POR AREAS'!$BY$2,'PROGRAMA II'!Q30+'PROGRAMA II'!R30,0) -> 0 | CA21: =IF('PROGRAMA III'!A31='CALCULO POR AREAS'!$BY$2,'PROGRAMA III'!Q31+'PROGRAMA III'!R31,0) -> 0 | CB21: =IF('PROGRAMA IV'!A31='CALCULO POR AREAS'!$BY$2,'PROGRAMA IV'!Q31+'PROGRAMA IV'!R31,0) -> 0
A22: =IF('PROGRAMA I'!A31='CALCULO POR AREAS'!$A$2,('PROGRAMA I'!P31+'PROGRAMA I'!Q31),0) -> 0 | B22: =IF('PROGRAMA II'!A32='CALCULO POR AREAS'!$A$2,'PROGRAMA II'!Q31+'PROGRAMA II'!R31,0) -> 2500000 | C22: =IF('PROGRAMA III'!A32='CALCULO POR AREAS'!$A$2,'PROGRAMA III'!Q32+'PROGRAMA III'!R32,0) -> 0 | D22: =IF('PROGRAMA IV'!A32='CALCULO POR AREAS'!$A$2,'PROGRAMA IV'!Q32+'PROGRAMA IV'!R32,0) -> 0 | E22: =IF('PROGRAMA I'!A31='CALCULO POR AREAS'!$E$2,('PROGRAMA I'!P31+'PROGRAMA I'!Q31),0) -> 0 | F22: =IF('PROGRAMA II'!A32='CALCULO POR AREAS'!$E$2,'PROGRAMA II'!Q31+'PROGRAMA II'!R31,0) -> 0 | G22: =IF('PROGRAMA III'!A32='CALCULO POR AREAS'!$E$2,'PROGRAMA III'!Q32+'PROGRAMA III'!R32,0) -> 0 | H22: =IF('PROGRAMA IV'!A32='CALCULO POR AREAS'!$E$2,'PROGRAMA IV'!Q32+'PROGRAMA IV'!R32,0) -> 0 | I22: =IF('PROGRAMA I'!A31='CALCULO POR AREAS'!$I$2,('PROGRAMA I'!P31+'PROGRAMA I'!Q31),0) -> 0 | J22: =IF('PROGRAMA II'!A32='CALCULO POR AREAS'!$I$2,'PROGRAMA II'!Q31+'PROGRAMA II'!R31,0) -> 0 | K22: =IF('PROGRAMA III'!A32='CALCULO POR AREAS'!$I$2,'PROGRAMA III'!Q32+'PROGRAMA III'!R32,0) -> 0 | L22: =IF('PROGRAMA IV'!A32='CALCULO POR AREAS'!$I$2,'PROGRAMA IV'!Q32+'PROGRAMA IV'!R32,0) -> 0 | M22: =IF('PROGRAMA I'!A31='CALCULO POR AREAS'!$M$2,('PROGRAMA I'!P31+'PROGRAMA I'!Q31),0) -> 0 | N22: =IF('PROGRAMA II'!A32='CALCULO POR AREAS'!$M$2,'PROGRAMA II'!Q31+'PROGRAMA II'!R31,0) -> 0 | O22: =IF('PROGRAMA III'!A32='CALCULO POR AREAS'!$M$2,'PROGRAMA III'!Q32+'PROGRAMA III'!R32,0) -> 0 | P22: =IF('PROGRAMA IV'!A32='CALCULO POR AREAS'!$M$2,'PROGRAMA IV'!Q32+'PROGRAMA IV'!R32,0) -> 0 | Q22: =IF('PROGRAMA I'!A31='CALCULO POR AREAS'!$Q$2,('PROGRAMA I'!P31+'PROGRAMA I'!Q31),0) -> 0 | R22: =IF('PROGRAMA II'!A32='CALCULO POR AREAS'!$Q$2,'PROGRAMA II'!Q31+'PROGRAMA II'!R31,0) -> 0 | S22: =IF('PROGRAMA III'!A32='CALCULO POR AREAS'!$Q$2,'PROGRAMA III'!Q32+'PROGRAMA III'!R32,0) -> 0 | T22: =IF('PROGRAMA IV'!A32='CALCULO POR AREAS'!$Q$2,'PROGRAMA IV'!Q32+'PROGRAMA IV'!R32,0) -> 0 | U22: =IF('PROGRAMA I'!A31='CALCULO POR AREAS'!$U$2,('PROGRAMA I'!P31+'PROGRAMA I'!Q31),0) -> 0 | V22: =IF('PROGRAMA II'!A32='CALCULO POR AREAS'!$U$2,'PROGRAMA II'!Q31+'PROGRAMA II'!R31,0) -> 0 | W22: =IF('PROGRAMA III'!A32='CALCULO POR AREAS'!$U$2,'PROGRAMA III'!Q32+'PROGRAMA III'!R32,0) -> 0 | X22: =IF('PROGRAMA IV'!A32='CALCULO POR AREAS'!$U$2,'PROGRAMA IV'!Q32+'PROGRAMA IV'!R32,0) -> 0 | Y22: =IF('PROGRAMA I'!A31='CALCULO POR AREAS'!$Y$2,('PROGRAMA I'!P31+'PROGRAMA I'!Q31),0) -> 0 | Z22: =IF('PROGRAMA II'!A32='CALCULO POR AREAS'!$Y$2,'PROGRAMA II'!Q31+'PROGRAMA II'!R31,0) -> 0 | AA22: =IF('PROGRAMA III'!A32='CALCULO POR AREAS'!$Y$2,'PROGRAMA III'!Q32+'PROGRAMA III'!R32,0) -> 0 | AB22: =IF('PROGRAMA IV'!A32='CALCULO POR AREAS'!$Y$2,'PROGRAMA IV'!Q32+'PROGRAMA IV'!R32,0) -> 0 | AC22: =IF('PROGRAMA I'!A31='CALCULO POR AREAS'!$AC$2,('PROGRAMA I'!P31+'PROGRAMA I'!Q31),0) -> 0 | AD22: =IF('PROGRAMA II'!A32='CALCULO POR AREAS'!$AC$2,'PROGRAMA II'!Q31+'PROGRAMA II'!R31,0) -> 0 | AE22: =IF('PROGRAMA III'!A32='CALCULO POR AREAS'!$AC$2,'PROGRAMA III'!Q32+'PROGRAMA III'!R32,0) -> 0 | AF22: =IF('PROGRAMA IV'!A32='CALCULO POR AREAS'!$AC$2,'PROGRAMA IV'!Q32+'PROGRAMA IV'!R32,0) -> 0 | AG22: =IF('PROGRAMA I'!A31='CALCULO POR AREAS'!$AG$2,('PROGRAMA I'!P31+'PROGRAMA I'!Q31),0) -> 0 | AH22: =IF('PROGRAMA II'!A32='CALCULO POR AREAS'!$AG$2,'PROGRAMA II'!Q31+'PROGRAMA II'!R31,0) -> 0 | AI22: =IF('PROGRAMA III'!A32='CALCULO POR AREAS'!$AG$2,'PROGRAMA III'!Q32+'PROGRAMA III'!R32,0) -> 0 | AJ22: =IF('PROGRAMA IV'!A32='CALCULO POR AREAS'!$AG$2,'PROGRAMA IV'!Q32+'PROGRAMA IV'!R32,0) -> 0 | AK22: =IF('PROGRAMA I'!A31='CALCULO POR AREAS'!$AK$2,('PROGRAMA I'!P31+'PROGRAMA I'!Q31),0) -> 0 | AL22: =IF('PROGRAMA II'!A32='CALCULO POR AREAS'!$AK$2,'PROGRAMA II'!Q31+'PROGRAMA II'!R31,0) -> 0 | AM22: =IF('PROGRAMA III'!A32='CALCULO POR AREAS'!$AK$2,'PROGRAMA III'!Q32+'PROGRAMA III'!R32,0) -> 0 | AN22: =IF('PROGRAMA IV'!A32='CALCULO POR AREAS'!$AK$2,'PROGRAMA IV'!Q32+'PROGRAMA IV'!R32,0) -> 0 | AO22: =IF('PROGRAMA I'!A31='CALCULO POR AREAS'!$AO$2,('PROGRAMA I'!P31+'PROGRAMA I'!Q31),0) -> 0 | AP22: =IF('PROGRAMA II'!A32='CALCULO POR AREAS'!$AO$2,'PROGRAMA II'!Q31+'PROGRAMA II'!R31,0) -> 0 | AQ22: =IF('PROGRAMA III'!A32='CALCULO POR AREAS'!$AO$2,'PROGRAMA III'!Q32+'PROGRAMA III'!R32,0) -> 0 | AR22: =IF('PROGRAMA IV'!A32='CALCULO POR AREAS'!$AO$2,'PROGRAMA IV'!Q32+'PROGRAMA IV'!R32,0) -> 0 | AS22: =IF('PROGRAMA I'!A31='CALCULO POR AREAS'!$AS$2,('PROGRAMA I'!P31+'PROGRAMA I'!Q31),0) -> 0 | AT22: =IF('PROGRAMA II'!A32='CALCULO POR AREAS'!$AS$2,'PROGRAMA II'!Q31+'PROGRAMA II'!R31,0) -> 0 | AU22: =IF('PROGRAMA III'!A32='CALCULO POR AREAS'!$AS$2,'PROGRAMA III'!Q32+'PROGRAMA III'!R32,0) -> 0 | AV22: =IF('PROGRAMA IV'!A32='CALCULO POR AREAS'!$AS$2,'PROGRAMA IV'!Q32+'PROGRAMA IV'!R32,0) -> 0 | AW22: =IF('PROGRAMA I'!A31='CALCULO POR AREAS'!$AW$2,('PROGRAMA I'!P31+'PROGRAMA I'!Q31),0) -> 0 | AX22: =IF('PROGRAMA II'!A32='CALCULO POR AREAS'!$AW$2,'PROGRAMA II'!Q31+'PROGRAMA II'!R31,0) -> 0 | AY22: =IF('PROGRAMA III'!A32='CALCULO POR AREAS'!$AW$2,'PROGRAMA III'!Q32+'PROGRAMA III'!R32,0) -> 0 | AZ22: =IF('PROGRAMA IV'!A32='CALCULO POR AREAS'!$AW$2,'PROGRAMA IV'!Q32+'PROGRAMA IV'!R32,0) -> 0 | BA22: =IF('PROGRAMA I'!A31='CALCULO POR AREAS'!$BA$2,('PROGRAMA I'!P31+'PROGRAMA I'!Q31),0) -> 0 | BB22: =IF('PROGRAMA II'!A32='CALCULO POR AREAS'!$BA$2,'PROGRAMA II'!Q31+'PROGRAMA II'!R31,0) -> 0 | BC22: =IF('PROGRAMA III'!A32='CALCULO POR AREAS'!$BA$2,'PROGRAMA III'!Q32+'PROGRAMA III'!R32,0) -> 0 | BD22: =IF('PROGRAMA IV'!A32='CALCULO POR AREAS'!$BA$2,'PROGRAMA IV'!Q32+'PROGRAMA IV'!R32,0) -> 0 | BE22: =IF('PROGRAMA I'!A31='CALCULO POR AREAS'!$BE$2,('PROGRAMA I'!P31+'PROGRAMA I'!Q31),0) -> 0 | BF22: =IF('PROGRAMA II'!A32='CALCULO POR AREAS'!$BE$2,'PROGRAMA II'!Q31+'PROGRAMA II'!R31,0) -> 0 | BG22: =IF('PROGRAMA III'!A32='CALCULO POR AREAS'!$BE$2,'PROGRAMA III'!Q32+'PROGRAMA III'!R32,0) -> 0 | BH22: =IF('PROGRAMA IV'!A32='CALCULO POR AREAS'!$BE$2,'PROGRAMA IV'!Q32+'PROGRAMA IV'!R32,0) -> 0 | BI22: =IF('PROGRAMA I'!A31='CALCULO POR AREAS'!$BI$2,('PROGRAMA I'!P31+'PROGRAMA I'!Q31),0) -> 0 | BJ22: =IF('PROGRAMA II'!A32='CALCULO POR AREAS'!$BI$2,'PROGRAMA II'!Q31+'PROGRAMA II'!R31,0) -> 0 | BK22: =IF('PROGRAMA III'!A32='CALCULO POR AREAS'!$BI$2,'PROGRAMA III'!Q32+'PROGRAMA III'!R32,0) -> 0 | BL22: =IF('PROGRAMA IV'!A32='CALCULO POR AREAS'!$BI$2,'PROGRAMA IV'!Q32+'PROGRAMA IV'!R32,0) -> 0 | BM22: =IF('PROGRAMA I'!A31='CALCULO POR AREAS'!$BM$2,('PROGRAMA I'!P31+'PROGRAMA I'!Q31),0) -> 0 | BN22: =IF('PROGRAMA II'!A32='CALCULO POR AREAS'!$BM$2,'PROGRAMA II'!Q31+'PROGRAMA II'!R31,0) -> 0 | BO22: =IF('PROGRAMA III'!A32='CALCULO POR AREAS'!$BM$2,'PROGRAMA III'!Q32+'PROGRAMA III'!R32,0) -> 0 | BP22: =IF('PROGRAMA IV'!A32='CALCULO POR AREAS'!$BM$2,'PROGRAMA IV'!Q32+'PROGRAMA IV'!R32,0) -> 0 | BQ22: =IF('PROGRAMA I'!A31='CALCULO POR AREAS'!$BQ$2,('PROGRAMA I'!P31+'PROGRAMA I'!Q31),0) -> 0 | BR22: =IF('PROGRAMA II'!A32='CALCULO POR AREAS'!$BQ$2,'PROGRAMA II'!Q31+'PROGRAMA II'!R31,0) -> 0 | BS22: =IF('PROGRAMA III'!A32='CALCULO POR AREAS'!$BQ$2,'PROGRAMA III'!Q32+'PROGRAMA III'!R32,0) -> 0 | BT22: =IF('PROGRAMA IV'!A32='CALCULO POR AREAS'!$BQ$2,'PROGRAMA IV'!Q32+'PROGRAMA IV'!R32,0) -> 0 | BU22: =IF('PROGRAMA I'!A31='CALCULO POR AREAS'!$BU$2,('PROGRAMA I'!P31+'PROGRAMA I'!Q31),0) -> 0 | BV22: =IF('PROGRAMA II'!A32='CALCULO POR AREAS'!$BU$2,'PROGRAMA II'!Q31+'PROGRAMA II'!R31,0) -> 0 | BW22: =IF('PROGRAMA III'!A32='CALCULO POR AREAS'!$BU$2,'PROGRAMA III'!Q32+'PROGRAMA III'!R32,0) -> 0 | BX22: =IF('PROGRAMA IV'!A32='CALCULO POR AREAS'!$BU$2,'PROGRAMA IV'!Q32+'PROGRAMA IV'!R32,0) -> 0 | BY22: =IF('PROGRAMA I'!A31='CALCULO POR AREAS'!$BY$2,('PROGRAMA I'!P31+'PROGRAMA I'!Q31),0) -> 0 | BZ22: =IF('PROGRAMA II'!A32='CALCULO POR AREAS'!$BY$2,'PROGRAMA II'!Q31+'PROGRAMA II'!R31,0) -> 0 | CA22: =IF('PROGRAMA III'!A32='CALCULO POR AREAS'!$BY$2,'PROGRAMA III'!Q32+'PROGRAMA III'!R32,0) -> 0 | CB22: =IF('PROGRAMA IV'!A32='CALCULO POR AREAS'!$BY$2,'PROGRAMA IV'!Q32+'PROGRAMA IV'!R32,0) -> 0
A23: =IF('PROGRAMA I'!A32='CALCULO POR AREAS'!$A$2,('PROGRAMA I'!P32+'PROGRAMA I'!Q32),0) -> 0 | B23: =IF('PROGRAMA II'!A33='CALCULO POR AREAS'!$A$2,'PROGRAMA II'!Q32+'PROGRAMA II'!R32,0) -> 4000000 | C23: =IF('PROGRAMA III'!A33='CALCULO POR AREAS'!$A$2,'PROGRAMA III'!Q33+'PROGRAMA III'!R33,0) -> 0 | D23: =IF('PROGRAMA IV'!A33='CALCULO POR AREAS'!$A$2,'PROGRAMA IV'!Q33+'PROGRAMA IV'!R33,0) -> 0 | E23: =IF('PROGRAMA I'!A32='CALCULO POR AREAS'!$E$2,('PROGRAMA I'!P32+'PROGRAMA I'!Q32),0) -> 0 | F23: =IF('PROGRAMA II'!A33='CALCULO POR AREAS'!$E$2,'PROGRAMA II'!Q32+'PROGRAMA II'!R32,0) -> 0 | G23: =IF('PROGRAMA III'!A33='CALCULO POR AREAS'!$E$2,'PROGRAMA III'!Q33+'PROGRAMA III'!R33,0) -> 0 | H23: =IF('PROGRAMA IV'!A33='CALCULO POR AREAS'!$E$2,'PROGRAMA IV'!Q33+'PROGRAMA IV'!R33,0) -> 0 | I23: =IF('PROGRAMA I'!A32='CALCULO POR AREAS'!$I$2,('PROGRAMA I'!P32+'PROGRAMA I'!Q32),0) -> 0 | J23: =IF('PROGRAMA II'!A33='CALCULO POR AREAS'!$I$2,'PROGRAMA II'!Q32+'PROGRAMA II'!R32,0) -> 0 | K23: =IF('PROGRAMA III'!A33='CALCULO POR AREAS'!$I$2,'PROGRAMA III'!Q33+'PROGRAMA III'!R33,0) -> 0 | L23: =IF('PROGRAMA IV'!A33='CALCULO POR AREAS'!$I$2,'PROGRAMA IV'!Q33+'PROGRAMA IV'!R33,0) -> 0 | M23: =IF('PROGRAMA I'!A32='CALCULO POR AREAS'!$M$2,('PROGRAMA I'!P32+'PROGRAMA I'!Q32),0) -> 0 | N23: =IF('PROGRAMA II'!A33='CALCULO POR AREAS'!$M$2,'PROGRAMA II'!Q32+'PROGRAMA II'!R32,0) -> 0 | O23: =IF('PROGRAMA III'!A33='CALCULO POR AREAS'!$M$2,'PROGRAMA III'!Q33+'PROGRAMA III'!R33,0) -> 0 | P23: =IF('PROGRAMA IV'!A33='CALCULO POR AREAS'!$M$2,'PROGRAMA IV'!Q33+'PROGRAMA IV'!R33,0) -> 0 | Q23: =IF('PROGRAMA I'!A32='CALCULO POR AREAS'!$Q$2,('PROGRAMA I'!P32+'PROGRAMA I'!Q32),0) -> 0 | R23: =IF('PROGRAMA II'!A33='CALCULO POR AREAS'!$Q$2,'PROGRAMA II'!Q32+'PROGRAMA II'!R32,0) -> 0 | S23: =IF('PROGRAMA III'!A33='CALCULO POR AREAS'!$Q$2,'PROGRAMA III'!Q33+'PROGRAMA III'!R33,0) -> 0 | T23: =IF('PROGRAMA IV'!A33='CALCULO POR AREAS'!$Q$2,'PROGRAMA IV'!Q33+'PROGRAMA IV'!R33,0) -> 0 | U23: =IF('PROGRAMA I'!A32='CALCULO POR AREAS'!$U$2,('PROGRAMA I'!P32+'PROGRAMA I'!Q32),0) -> 0 | V23: =IF('PROGRAMA II'!A33='CALCULO POR AREAS'!$U$2,'PROGRAMA II'!Q32+'PROGRAMA II'!R32,0) -> 0 | W23: =IF('PROGRAMA III'!A33='CALCULO POR AREAS'!$U$2,'PROGRAMA III'!Q33+'PROGRAMA III'!R33,0) -> 0 | X23: =IF('PROGRAMA IV'!A33='CALCULO POR AREAS'!$U$2,'PROGRAMA IV'!Q33+'PROGRAMA IV'!R33,0) -> 0 | Y23: =IF('PROGRAMA I'!A32='CALCULO POR AREAS'!$Y$2,('PROGRAMA I'!P32+'PROGRAMA I'!Q32),0) -> 0 | Z23: =IF('PROGRAMA II'!A33='CALCULO POR AREAS'!$Y$2,'PROGRAMA II'!Q32+'PROGRAMA II'!R32,0) -> 0 | AA23: =IF('PROGRAMA III'!A33='CALCULO POR AREAS'!$Y$2,'PROGRAMA III'!Q33+'PROGRAMA III'!R33,0) -> 0 | AB23: =IF('PROGRAMA IV'!A33='CALCULO POR AREAS'!$Y$2,'PROGRAMA IV'!Q33+'PROGRAMA IV'!R33,0) -> 0 | AC23: =IF('PROGRAMA I'!A32='CALCULO POR AREAS'!$AC$2,('PROGRAMA I'!P32+'PROGRAMA I'!Q32),0) -> 0 | AD23: =IF('PROGRAMA II'!A33='CALCULO POR AREAS'!$AC$2,'PROGRAMA II'!Q32+'PROGRAMA II'!R32,0) -> 0 | AE23: =IF('PROGRAMA III'!A33='CALCULO POR AREAS'!$AC$2,'PROGRAMA III'!Q33+'PROGRAMA III'!R33,0) -> 0 | AF23: =IF('PROGRAMA IV'!A33='CALCULO POR AREAS'!$AC$2,'PROGRAMA IV'!Q33+'PROGRAMA IV'!R33,0) -> 0 | AG23: =IF('PROGRAMA I'!A32='CALCULO POR AREAS'!$AG$2,('PROGRAMA I'!P32+'PROGRAMA I'!Q32),0) -> 0 | AH23: =IF('PROGRAMA II'!A33='CALCULO POR AREAS'!$AG$2,'PROGRAMA II'!Q32+'PROGRAMA II'!R32,0) -> 0 | AI23: =IF('PROGRAMA III'!A33='CALCULO POR AREAS'!$AG$2,'PROGRAMA III'!Q33+'PROGRAMA III'!R33,0) -> 0 | AJ23: =IF('PROGRAMA IV'!A33='CALCULO POR AREAS'!$AG$2,'PROGRAMA IV'!Q33+'PROGRAMA IV'!R33,0) -> 0 | AK23: =IF('PROGRAMA I'!A32='CALCULO POR AREAS'!$AK$2,('PROGRAMA I'!P32+'PROGRAMA I'!Q32),0) -> 0 | AL23: =IF('PROGRAMA II'!A33='CALCULO POR AREAS'!$AK$2,'PROGRAMA II'!Q32+'PROGRAMA II'!R32,0) -> 0 | AM23: =IF('PROGRAMA III'!A33='CALCULO POR AREAS'!$AK$2,'PROGRAMA III'!Q33+'PROGRAMA III'!R33,0) -> 0 | AN23: =IF('PROGRAMA IV'!A33='CALCULO POR AREAS'!$AK$2,'PROGRAMA IV'!Q33+'PROGRAMA IV'!R33,0) -> 0 | AO23: =IF('PROGRAMA I'!A32='CALCULO POR AREAS'!$AO$2,('PROGRAMA I'!P32+'PROGRAMA I'!Q32),0) -> 0 | AP23: =IF('PROGRAMA II'!A33='CALCULO POR AREAS'!$AO$2,'PROGRAMA II'!Q32+'PROGRAMA II'!R32,0) -> 0 | AQ23: =IF('PROGRAMA III'!A33='CALCULO POR AREAS'!$AO$2,'PROGRAMA III'!Q33+'PROGRAMA III'!R33,0) -> 0 | AR23: =IF('PROGRAMA IV'!A33='CALCULO POR AREAS'!$AO$2,'PROGRAMA IV'!Q33+'PROGRAMA IV'!R33,0) -> 0 | AS23: =IF('PROGRAMA I'!A32='CALCULO POR AREAS'!$AS$2,('PROGRAMA I'!P32+'PROGRAMA I'!Q32),0) -> 0 | AT23: =IF('PROGRAMA II'!A33='CALCULO POR AREAS'!$AS$2,'PROGRAMA II'!Q32+'PROGRAMA II'!R32,0) -> 0 | AU23: =IF('PROGRAMA III'!A33='CALCULO POR AREAS'!$AS$2,'PROGRAMA III'!Q33+'PROGRAMA III'!R33,0) -> 0 | AV23: =IF('PROGRAMA IV'!A33='CALCULO POR AREAS'!$AS$2,'PROGRAMA IV'!Q33+'PROGRAMA IV'!R33,0) -> 0 | AW23: =IF('PROGRAMA I'!A32='CALCULO POR AREAS'!$AW$2,('PROGRAMA I'!P32+'PROGRAMA I'!Q32),0) -> 0 | AX23: =IF('PROGRAMA II'!A33='CALCULO POR AREAS'!$AW$2,'PROGRAMA II'!Q32+'PROGRAMA II'!R32,0) -> 0 | AY23: =IF('PROGRAMA III'!A33='CALCULO POR AREAS'!$AW$2,'PROGRAMA III'!Q33+'PROGRAMA III'!R33,0) -> 0 | AZ23: =IF('PROGRAMA IV'!A33='CALCULO POR AREAS'!$AW$2,'PROGRAMA IV'!Q33+'PROGRAMA IV'!R33,0) -> 0 | BA23: =IF('PROGRAMA I'!A32='CALCULO POR AREAS'!$BA$2,('PROGRAMA I'!P32+'PROGRAMA I'!Q32),0) -> 0 | BB23: =IF('PROGRAMA II'!A33='CALCULO POR AREAS'!$BA$2,'PROGRAMA II'!Q32+'PROGRAMA II'!R32,0) -> 0 | BC23: =IF('PROGRAMA III'!A33='CALCULO POR AREAS'!$BA$2,'PROGRAMA III'!Q33+'PROGRAMA III'!R33,0) -> 0 | BD23: =IF('PROGRAMA IV'!A33='CALCULO POR AREAS'!$BA$2,'PROGRAMA IV'!Q33+'PROGRAMA IV'!R33,0) -> 0 | BE23: =IF('PROGRAMA I'!A32='CALCULO POR AREAS'!$BE$2,('PROGRAMA I'!P32+'PROGRAMA I'!Q32),0) -> 0 | BF23: =IF('PROGRAMA II'!A33='CALCULO POR AREAS'!$BE$2,'PROGRAMA II'!Q32+'PROGRAMA II'!R32,0) -> 0 | BG23: =IF('PROGRAMA III'!A33='CALCULO POR AREAS'!$BE$2,'PROGRAMA III'!Q33+'PROGRAMA III'!R33,0) -> 0 | BH23: =IF('PROGRAMA IV'!A33='CALCULO POR AREAS'!$BE$2,'PROGRAMA IV'!Q33+'PROGRAMA IV'!R33,0) -> 0 | BI23: =IF('PROGRAMA I'!A32='CALCULO POR AREAS'!$BI$2,('PROGRAMA I'!P32+'PROGRAMA I'!Q32),0) -> 0 | BJ23: =IF('PROGRAMA II'!A33='CALCULO POR AREAS'!$BI$2,'PROGRAMA II'!Q32+'PROGRAMA II'!R32,0) -> 0 | BK23: =IF('PROGRAMA III'!A33='CALCULO POR AREAS'!$BI$2,'PROGRAMA III'!Q33+'PROGRAMA III'!R33,0) -> 0 | BL23: =IF('PROGRAMA IV'!A33='CALCULO POR AREAS'!$BI$2,'PROGRAMA IV'!Q33+'PROGRAMA IV'!R33,0) -> 0 | BM23: =IF('PROGRAMA I'!A32='CALCULO POR AREAS'!$BM$2,('PROGRAMA I'!P32+'PROGRAMA I'!Q32),0) -> 0 | BN23: =IF('PROGRAMA II'!A33='CALCULO POR AREAS'!$BM$2,'PROGRAMA II'!Q32+'PROGRAMA II'!R32,0) -> 0 | BO23: =IF('PROGRAMA III'!A33='CALCULO POR AREAS'!$BM$2,'PROGRAMA III'!Q33+'PROGRAMA III'!R33,0) -> 0 | BP23: =IF('PROGRAMA IV'!A33='CALCULO POR AREAS'!$BM$2,'PROGRAMA IV'!Q33+'PROGRAMA IV'!R33,0) -> 0 | BQ23: =IF('PROGRAMA I'!A32='CALCULO POR AREAS'!$BQ$2,('PROGRAMA I'!P32+'PROGRAMA I'!Q32),0) -> 0 | BR23: =IF('PROGRAMA II'!A33='CALCULO POR AREAS'!$BQ$2,'PROGRAMA II'!Q32+'PROGRAMA II'!R32,0) -> 0 | BS23: =IF('PROGRAMA III'!A33='CALCULO POR AREAS'!$BQ$2,'PROGRAMA III'!Q33+'PROGRAMA III'!R33,0) -> 0 | BT23: =IF('PROGRAMA IV'!A33='CALCULO POR AREAS'!$BQ$2,'PROGRAMA IV'!Q33+'PROGRAMA IV'!R33,0) -> 0 | BU23: =IF('PROGRAMA I'!A32='CALCULO POR AREAS'!$BU$2,('PROGRAMA I'!P32+'PROGRAMA I'!Q32),0) -> 0 | BV23: =IF('PROGRAMA II'!A33='CALCULO POR AREAS'!$BU$2,'PROGRAMA II'!Q32+'PROGRAMA II'!R32,0) -> 0 | BW23: =IF('PROGRAMA III'!A33='CALCULO POR AREAS'!$BU$2,'PROGRAMA III'!Q33+'PROGRAMA III'!R33,0) -> 0 | BX23: =IF('PROGRAMA IV'!A33='CALCULO POR AREAS'!$BU$2,'PROGRAMA IV'!Q33+'PROGRAMA IV'!R33,0) -> 0 | BY23: =IF('PROGRAMA I'!A32='CALCULO POR AREAS'!$BY$2,('PROGRAMA I'!P32+'PROGRAMA I'!Q32),0) -> 0 | BZ23: =IF('PROGRAMA II'!A33='CALCULO POR AREAS'!$BY$2,'PROGRAMA II'!Q32+'PROGRAMA II'!R32,0) -> 0 | CA23: =IF('PROGRAMA III'!A33='CALCULO POR AREAS'!$BY$2,'PROGRAMA III'!Q33+'PROGRAMA III'!R33,0) -> 0 | CB23: =IF('PROGRAMA IV'!A33='CALCULO POR AREAS'!$BY$2,'PROGRAMA IV'!Q33+'PROGRAMA IV'!R33,0) -> 0
A24: =IF('PROGRAMA I'!A33='CALCULO POR AREAS'!$A$2,('PROGRAMA I'!P33+'PROGRAMA I'!Q33),0) -> 0 | B24: =IF('PROGRAMA II'!A34='CALCULO POR AREAS'!$A$2,'PROGRAMA II'!Q33+'PROGRAMA II'!R33,0) -> 8000000 | C24: =IF('PROGRAMA III'!A34='CALCULO POR AREAS'!$A$2,'PROGRAMA III'!Q34+'PROGRAMA III'!R34,0) -> 0 | D24: =IF('PROGRAMA IV'!A34='CALCULO POR AREAS'!$A$2,'PROGRAMA IV'!Q34+'PROGRAMA IV'!R34,0) -> 0 | E24: =IF('PROGRAMA I'!A33='CALCULO POR AREAS'!$E$2,('PROGRAMA I'!P33+'PROGRAMA I'!Q33),0) -> 0 | F24: =IF('PROGRAMA II'!A34='CALCULO POR AREAS'!$E$2,'PROGRAMA II'!Q33+'PROGRAMA II'!R33,0) -> 0 | G24: =IF('PROGRAMA III'!A34='CALCULO POR AREAS'!$E$2,'PROGRAMA III'!Q34+'PROGRAMA III'!R34,0) -> 0 | H24: =IF('PROGRAMA IV'!A34='CALCULO POR AREAS'!$E$2,'PROGRAMA IV'!Q34+'PROGRAMA IV'!R34,0) -> 0 | I24: =IF('PROGRAMA I'!A33='CALCULO POR AREAS'!$I$2,('PROGRAMA I'!P33+'PROGRAMA I'!Q33),0) -> 0 | J24: =IF('PROGRAMA II'!A34='CALCULO POR AREAS'!$I$2,'PROGRAMA II'!Q33+'PROGRAMA II'!R33,0) -> 0 | K24: =IF('PROGRAMA III'!A34='CALCULO POR AREAS'!$I$2,'PROGRAMA III'!Q34+'PROGRAMA III'!R34,0) -> 0 | L24: =IF('PROGRAMA IV'!A34='CALCULO POR AREAS'!$I$2,'PROGRAMA IV'!Q34+'PROGRAMA IV'!R34,0) -> 0 | M24: =IF('PROGRAMA I'!A33='CALCULO POR AREAS'!$M$2,('PROGRAMA I'!P33+'PROGRAMA I'!Q33),0) -> 0 | N24: =IF('PROGRAMA II'!A34='CALCULO POR AREAS'!$M$2,'PROGRAMA II'!Q33+'PROGRAMA II'!R33,0) -> 0 | O24: =IF('PROGRAMA III'!A34='CALCULO POR AREAS'!$M$2,'PROGRAMA III'!Q34+'PROGRAMA III'!R34,0) -> 0 | P24: =IF('PROGRAMA IV'!A34='CALCULO POR AREAS'!$M$2,'PROGRAMA IV'!Q34+'PROGRAMA IV'!R34,0) -> 0 | Q24: =IF('PROGRAMA I'!A33='CALCULO POR AREAS'!$Q$2,('PROGRAMA I'!P33+'PROGRAMA I'!Q33),0) -> 0 | R24: =IF('PROGRAMA II'!A34='CALCULO POR AREAS'!$Q$2,'PROGRAMA II'!Q33+'PROGRAMA II'!R33,0) -> 0 | S24: =IF('PROGRAMA III'!A34='CALCULO POR AREAS'!$Q$2,'PROGRAMA III'!Q34+'PROGRAMA III'!R34,0) -> 0 | T24: =IF('PROGRAMA IV'!A34='CALCULO POR AREAS'!$Q$2,'PROGRAMA IV'!Q34+'PROGRAMA IV'!R34,0) -> 0 | U24: =IF('PROGRAMA I'!A33='CALCULO POR AREAS'!$U$2,('PROGRAMA I'!P33+'PROGRAMA I'!Q33),0) -> 0 | V24: =IF('PROGRAMA II'!A34='CALCULO POR AREAS'!$U$2,'PROGRAMA II'!Q33+'PROGRAMA II'!R33,0) -> 0 | W24: =IF('PROGRAMA III'!A34='CALCULO POR AREAS'!$U$2,'PROGRAMA III'!Q34+'PROGRAMA III'!R34,0) -> 0 | X24: =IF('PROGRAMA IV'!A34='CALCULO POR AREAS'!$U$2,'PROGRAMA IV'!Q34+'PROGRAMA IV'!R34,0) -> 0 | Y24: =IF('PROGRAMA I'!A33='CALCULO POR AREAS'!$Y$2,('PROGRAMA I'!P33+'PROGRAMA I'!Q33),0) -> 0 | Z24: =IF('PROGRAMA II'!A34='CALCULO POR AREAS'!$Y$2,'PROGRAMA II'!Q33+'PROGRAMA II'!R33,0) -> 0 | AA24: =IF('PROGRAMA III'!A34='CALCULO POR AREAS'!$Y$2,'PROGRAMA III'!Q34+'PROGRAMA III'!R34,0) -> 0 | AB24: =IF('PROGRAMA IV'!A34='CALCULO POR AREAS'!$Y$2,'PROGRAMA IV'!Q34+'PROGRAMA IV'!R34,0) -> 0 | AC24: =IF('PROGRAMA I'!A33='CALCULO POR AREAS'!$AC$2,('PROGRAMA I'!P33+'PROGRAMA I'!Q33),0) -> 0 | AD24: =IF('PROGRAMA II'!A34='CALCULO POR AREAS'!$AC$2,'PROGRAMA II'!Q33+'PROGRAMA II'!R33,0) -> 0 | AE24: =IF('PROGRAMA III'!A34='CALCULO POR AREAS'!$AC$2,'PROGRAMA III'!Q34+'PROGRAMA III'!R34,0) -> 0 | AF24: =IF('PROGRAMA IV'!A34='CALCULO POR AREAS'!$AC$2,'PROGRAMA IV'!Q34+'PROGRAMA IV'!R34,0) -> 0 | AG24: =IF('PROGRAMA I'!A33='CALCULO POR AREAS'!$AG$2,('PROGRAMA I'!P33+'PROGRAMA I'!Q33),0) -> 0 | AH24: =IF('PROGRAMA II'!A34='CALCULO POR AREAS'!$AG$2,'PROGRAMA II'!Q33+'PROGRAMA II'!R33,0) -> 0 | AI24: =IF('PROGRAMA III'!A34='CALCULO POR AREAS'!$AG$2,'PROGRAMA III'!Q34+'PROGRAMA III'!R34,0) -> 0 | AJ24: =IF('PROGRAMA IV'!A34='CALCULO POR AREAS'!$AG$2,'PROGRAMA IV'!Q34+'PROGRAMA IV'!R34,0) -> 0 | AK24: =IF('PROGRAMA I'!A33='CALCULO POR AREAS'!$AK$2,('PROGRAMA I'!P33+'PROGRAMA I'!Q33),0) -> 0 | AL24: =IF('PROGRAMA II'!A34='CALCULO POR AREAS'!$AK$2,'PROGRAMA II'!Q33+'PROGRAMA II'!R33,0) -> 0 | AM24: =IF('PROGRAMA III'!A34='CALCULO POR AREAS'!$AK$2,'PROGRAMA III'!Q34+'PROGRAMA III'!R34,0) -> 0 | AN24: =IF('PROGRAMA IV'!A34='CALCULO POR AREAS'!$AK$2,'PROGRAMA IV'!Q34+'PROGRAMA IV'!R34,0) -> 0 | AO24: =IF('PROGRAMA I'!A33='CALCULO POR AREAS'!$AO$2,('PROGRAMA I'!P33+'PROGRAMA I'!Q33),0) -> 0 | AP24: =IF('PROGRAMA II'!A34='CALCULO POR AREAS'!$AO$2,'PROGRAMA II'!Q33+'PROGRAMA II'!R33,0) -> 0 | AQ24: =IF('PROGRAMA III'!A34='CALCULO POR AREAS'!$AO$2,'PROGRAMA III'!Q34+'PROGRAMA III'!R34,0) -> 0 | AR24: =IF('PROGRAMA IV'!A34='CALCULO POR AREAS'!$AO$2,'PROGRAMA IV'!Q34+'PROGRAMA IV'!R34,0) -> 0 | AS24: =IF('PROGRAMA I'!A33='CALCULO POR AREAS'!$AS$2,('PROGRAMA I'!P33+'PROGRAMA I'!Q33),0) -> 0 | AT24: =IF('PROGRAMA II'!A34='CALCULO POR AREAS'!$AS$2,'PROGRAMA II'!Q33+'PROGRAMA II'!R33,0) -> 0 | AU24: =IF('PROGRAMA III'!A34='CALCULO POR AREAS'!$AS$2,'PROGRAMA III'!Q34+'PROGRAMA III'!R34,0) -> 0 | AV24: =IF('PROGRAMA IV'!A34='CALCULO POR AREAS'!$AS$2,'PROGRAMA IV'!Q34+'PROGRAMA IV'!R34,0) -> 0 | AW24: =IF('PROGRAMA I'!A33='CALCULO POR AREAS'!$AW$2,('PROGRAMA I'!P33+'PROGRAMA I'!Q33),0) -> 0 | AX24: =IF('PROGRAMA II'!A34='CALCULO POR AREAS'!$AW$2,'PROGRAMA II'!Q33+'PROGRAMA II'!R33,0) -> 0 | AY24: =IF('PROGRAMA III'!A34='CALCULO POR AREAS'!$AW$2,'PROGRAMA III'!Q34+'PROGRAMA III'!R34,0) -> 0 | AZ24: =IF('PROGRAMA IV'!A34='CALCULO POR AREAS'!$AW$2,'PROGRAMA IV'!Q34+'PROGRAMA IV'!R34,0) -> 0 | BA24: =IF('PROGRAMA I'!A33='CALCULO POR AREAS'!$BA$2,('PROGRAMA I'!P33+'PROGRAMA I'!Q33),0) -> 0 | BB24: =IF('PROGRAMA II'!A34='CALCULO POR AREAS'!$BA$2,'PROGRAMA II'!Q33+'PROGRAMA II'!R33,0) -> 0 | BC24: =IF('PROGRAMA III'!A34='CALCULO POR AREAS'!$BA$2,'PROGRAMA III'!Q34+'PROGRAMA III'!R34,0) -> 0 | BD24: =IF('PROGRAMA IV'!A34='CALCULO POR AREAS'!$BA$2,'PROGRAMA IV'!Q34+'PROGRAMA IV'!R34,0) -> 0 | BE24: =IF('PROGRAMA I'!A33='CALCULO POR AREAS'!$BE$2,('PROGRAMA I'!P33+'PROGRAMA I'!Q33),0) -> 0 | BF24: =IF('PROGRAMA II'!A34='CALCULO POR AREAS'!$BE$2,'PROGRAMA II'!Q33+'PROGRAMA II'!R33,0) -> 0 | BG24: =IF('PROGRAMA III'!A34='CALCULO POR AREAS'!$BE$2,'PROGRAMA III'!Q34+'PROGRAMA III'!R34,0) -> 0 | BH24: =IF('PROGRAMA IV'!A34='CALCULO POR AREAS'!$BE$2,'PROGRAMA IV'!Q34+'PROGRAMA IV'!R34,0) -> 0 | BI24: =IF('PROGRAMA I'!A33='CALCULO POR AREAS'!$BI$2,('PROGRAMA I'!P33+'PROGRAMA I'!Q33),0) -> 0 | BJ24: =IF('PROGRAMA II'!A34='CALCULO POR AREAS'!$BI$2,'PROGRAMA II'!Q33+'PROGRAMA II'!R33,0) -> 0 | BK24: =IF('PROGRAMA III'!A34='CALCULO POR AREAS'!$BI$2,'PROGRAMA III'!Q34+'PROGRAMA III'!R34,0) -> 0 | BL24: =IF('PROGRAMA IV'!A34='CALCULO POR AREAS'!$BI$2,'PROGRAMA IV'!Q34+'PROGRAMA IV'!R34,0) -> 0 | BM24: =IF('PROGRAMA I'!A33='CALCULO POR AREAS'!$BM$2,('PROGRAMA I'!P33+'PROGRAMA I'!Q33),0) -> 0 | BN24: =IF('PROGRAMA II'!A34='CALCULO POR AREAS'!$BM$2,'PROGRAMA II'!Q33+'PROGRAMA II'!R33,0) -> 0 | BO24: =IF('PROGRAMA III'!A34='CALCULO POR AREAS'!$BM$2,'PROGRAMA III'!Q34+'PROGRAMA III'!R34,0) -> 0 | BP24: =IF('PROGRAMA IV'!A34='CALCULO POR AREAS'!$BM$2,'PROGRAMA IV'!Q34+'PROGRAMA IV'!R34,0) -> 0 | BQ24: =IF('PROGRAMA I'!A33='CALCULO POR AREAS'!$BQ$2,('PROGRAMA I'!P33+'PROGRAMA I'!Q33),0) -> 0 | BR24: =IF('PROGRAMA II'!A34='CALCULO POR AREAS'!$BQ$2,'PROGRAMA II'!Q33+'PROGRAMA II'!R33,0) -> 0 | BS24: =IF('PROGRAMA III'!A34='CALCULO POR AREAS'!$BQ$2,'PROGRAMA III'!Q34+'PROGRAMA III'!R34,0) -> 0 | BT24: =IF('PROGRAMA IV'!A34='CALCULO POR AREAS'!$BQ$2,'PROGRAMA IV'!Q34+'PROGRAMA IV'!R34,0) -> 0 | BU24: =IF('PROGRAMA I'!A33='CALCULO POR AREAS'!$BU$2,('PROGRAMA I'!P33+'PROGRAMA I'!Q33),0) -> 0 | BV24: =IF('PROGRAMA II'!A34='CALCULO POR AREAS'!$BU$2,'PROGRAMA II'!Q33+'PROGRAMA II'!R33,0) -> 0 | BW24: =IF('PROGRAMA III'!A34='CALCULO POR AREAS'!$BU$2,'PROGRAMA III'!Q34+'PROGRAMA III'!R34,0) -> 0 | BX24: =IF('PROGRAMA IV'!A34='CALCULO POR AREAS'!$BU$2,'PROGRAMA IV'!Q34+'PROGRAMA IV'!R34,0) -> 0 | BY24: =IF('PROGRAMA I'!A33='CALCULO POR AREAS'!$BY$2,('PROGRAMA I'!P33+'PROGRAMA I'!Q33),0) -> 0 | BZ24: =IF('PROGRAMA II'!A34='CALCULO POR AREAS'!$BY$2,'PROGRAMA II'!Q33+'PROGRAMA II'!R33,0) -> 0 | CA24: =IF('PROGRAMA III'!A34='CALCULO POR AREAS'!$BY$2,'PROGRAMA III'!Q34+'PROGRAMA III'!R34,0) -> 0 | CB24: =IF('PROGRAMA IV'!A34='CALCULO POR AREAS'!$BY$2,'PROGRAMA IV'!Q34+'PROGRAMA IV'!R34,0) -> 0
A25: =IF('PROGRAMA I'!A34='CALCULO POR AREAS'!$A$2,('PROGRAMA I'!P34+'PROGRAMA I'!Q34),0) -> 0 | B25: =IF('PROGRAMA II'!A35='CALCULO POR AREAS'!$A$2,'PROGRAMA II'!Q34+'PROGRAMA II'!R34,0) -> 0 | C25: =IF('PROGRAMA III'!A35='CALCULO POR AREAS'!$A$2,'PROGRAMA III'!Q35+'PROGRAMA III'!R35,0) -> 0 | D25: =IF('PROGRAMA IV'!A35='CALCULO POR AREAS'!$A$2,'PROGRAMA IV'!Q35+'PROGRAMA IV'!R35,0) -> 0 | E25: =IF('PROGRAMA I'!A34='CALCULO POR AREAS'!$E$2,('PROGRAMA I'!P34+'PROGRAMA I'!Q34),0) -> 0 | F25: =IF('PROGRAMA II'!A35='CALCULO POR AREAS'!$E$2,'PROGRAMA II'!Q34+'PROGRAMA II'!R34,0) -> 0 | G25: =IF('PROGRAMA III'!A35='CALCULO POR AREAS'!$E$2,'PROGRAMA III'!Q35+'PROGRAMA III'!R35,0) -> 0 | H25: =IF('PROGRAMA IV'!A35='CALCULO POR AREAS'!$E$2,'PROGRAMA IV'!Q35+'PROGRAMA IV'!R35,0) -> 0 | I25: =IF('PROGRAMA I'!A34='CALCULO POR AREAS'!$I$2,('PROGRAMA I'!P34+'PROGRAMA I'!Q34),0) -> 0 | J25: =IF('PROGRAMA II'!A35='CALCULO POR AREAS'!$I$2,'PROGRAMA II'!Q34+'PROGRAMA II'!R34,0) -> 0 | K25: =IF('PROGRAMA III'!A35='CALCULO POR AREAS'!$I$2,'PROGRAMA III'!Q35+'PROGRAMA III'!R35,0) -> 0 | L25: =IF('PROGRAMA IV'!A35='CALCULO POR AREAS'!$I$2,'PROGRAMA IV'!Q35+'PROGRAMA IV'!R35,0) -> 0 | M25: =IF('PROGRAMA I'!A34='CALCULO POR AREAS'!$M$2,('PROGRAMA I'!P34+'PROGRAMA I'!Q34),0) -> 0 | N25: =IF('PROGRAMA II'!A35='CALCULO POR AREAS'!$M$2,'PROGRAMA II'!Q34+'PROGRAMA II'!R34,0) -> 965580 | O25: =IF('PROGRAMA III'!A35='CALCULO POR AREAS'!$M$2,'PROGRAMA III'!Q35+'PROGRAMA III'!R35,0) -> 0 | P25: =IF('PROGRAMA IV'!A35='CALCULO POR AREAS'!$M$2,'PROGRAMA IV'!Q35+'PROGRAMA IV'!R35,0) -> 0 | Q25: =IF('PROGRAMA I'!A34='CALCULO POR AREAS'!$Q$2,('PROGRAMA I'!P34+'PROGRAMA I'!Q34),0) -> 0 | R25: =IF('PROGRAMA II'!A35='CALCULO POR AREAS'!$Q$2,'PROGRAMA II'!Q34+'PROGRAMA II'!R34,0) -> 0 | S25: =IF('PROGRAMA III'!A35='CALCULO POR AREAS'!$Q$2,'PROGRAMA III'!Q35+'PROGRAMA III'!R35,0) -> 0 | T25: =IF('PROGRAMA IV'!A35='CALCULO POR AREAS'!$Q$2,'PROGRAMA IV'!Q35+'PROGRAMA IV'!R35,0) -> 0 | U25: =IF('PROGRAMA I'!A34='CALCULO POR AREAS'!$U$2,('PROGRAMA I'!P34+'PROGRAMA I'!Q34),0) -> 0 | V25: =IF('PROGRAMA II'!A35='CALCULO POR AREAS'!$U$2,'PROGRAMA II'!Q34+'PROGRAMA II'!R34,0) -> 0 | W25: =IF('PROGRAMA III'!A35='CALCULO POR AREAS'!$U$2,'PROGRAMA III'!Q35+'PROGRAMA III'!R35,0) -> 0 | X25: =IF('PROGRAMA IV'!A35='CALCULO POR AREAS'!$U$2,'PROGRAMA IV'!Q35+'PROGRAMA IV'!R35,0) -> 0 | Y25: =IF('PROGRAMA I'!A34='CALCULO POR AREAS'!$Y$2,('PROGRAMA I'!P34+'PROGRAMA I'!Q34),0) -> 0 | Z25: =IF('PROGRAMA II'!A35='CALCULO POR AREAS'!$Y$2,'PROGRAMA II'!Q34+'PROGRAMA II'!R34,0) -> 0 | AA25: =IF('PROGRAMA III'!A35='CALCULO POR AREAS'!$Y$2,'PROGRAMA III'!Q35+'PROGRAMA III'!R35,0) -> 0 | AB25: =IF('PROGRAMA IV'!A35='CALCULO POR AREAS'!$Y$2,'PROGRAMA IV'!Q35+'PROGRAMA IV'!R35,0) -> 0 | AC25: =IF('PROGRAMA I'!A34='CALCULO POR AREAS'!$AC$2,('PROGRAMA I'!P34+'PROGRAMA I'!Q34),0) -> 0 | AD25: =IF('PROGRAMA II'!A35='CALCULO POR AREAS'!$AC$2,'PROGRAMA II'!Q34+'PROGRAMA II'!R34,0) -> 0 | AE25: =IF('PROGRAMA III'!A35='CALCULO POR AREAS'!$AC$2,'PROGRAMA III'!Q35+'PROGRAMA III'!R35,0) -> 0 | AF25: =IF('PROGRAMA IV'!A35='CALCULO POR AREAS'!$AC$2,'PROGRAMA IV'!Q35+'PROGRAMA IV'!R35,0) -> 0 | AG25: =IF('PROGRAMA I'!A34='CALCULO POR AREAS'!$AG$2,('PROGRAMA I'!P34+'PROGRAMA I'!Q34),0) -> 0 | AH25: =IF('PROGRAMA II'!A35='CALCULO POR AREAS'!$AG$2,'PROGRAMA II'!Q34+'PROGRAMA II'!R34,0) -> 0 | AI25: =IF('PROGRAMA III'!A35='CALCULO POR AREAS'!$AG$2,'PROGRAMA III'!Q35+'PROGRAMA III'!R35,0) -> 0 | AJ25: =IF('PROGRAMA IV'!A35='CALCULO POR AREAS'!$AG$2,'PROGRAMA IV'!Q35+'PROGRAMA IV'!R35,0) -> 0 | AK25: =IF('PROGRAMA I'!A34='CALCULO POR AREAS'!$AK$2,('PROGRAMA I'!P34+'PROGRAMA I'!Q34),0) -> 0 | AL25: =IF('PROGRAMA II'!A35='CALCULO POR AREAS'!$AK$2,'PROGRAMA II'!Q34+'PROGRAMA II'!R34,0) -> 0 | AM25: =IF('PROGRAMA III'!A35='CALCULO POR AREAS'!$AK$2,'PROGRAMA III'!Q35+'PROGRAMA III'!R35,0) -> 0 | AN25: =IF('PROGRAMA IV'!A35='CALCULO POR AREAS'!$AK$2,'PROGRAMA IV'!Q35+'PROGRAMA IV'!R35,0) -> 0 | AO25: =IF('PROGRAMA I'!A34='CALCULO POR AREAS'!$AO$2,('PROGRAMA I'!P34+'PROGRAMA I'!Q34),0) -> 0 | AP25: =IF('PROGRAMA II'!A35='CALCULO POR AREAS'!$AO$2,'PROGRAMA II'!Q34+'PROGRAMA II'!R34,0) -> 0 | AQ25: =IF('PROGRAMA III'!A35='CALCULO POR AREAS'!$AO$2,'PROGRAMA III'!Q35+'PROGRAMA III'!R35,0) -> 0 | AR25: =IF('PROGRAMA IV'!A35='CALCULO POR AREAS'!$AO$2,'PROGRAMA IV'!Q35+'PROGRAMA IV'!R35,0) -> 0 | AS25: =IF('PROGRAMA I'!A34='CALCULO POR AREAS'!$AS$2,('PROGRAMA I'!P34+'PROGRAMA I'!Q34),0) -> 0 | AT25: =IF('PROGRAMA II'!A35='CALCULO POR AREAS'!$AS$2,'PROGRAMA II'!Q34+'PROGRAMA II'!R34,0) -> 0 | AU25: =IF('PROGRAMA III'!A35='CALCULO POR AREAS'!$AS$2,'PROGRAMA III'!Q35+'PROGRAMA III'!R35,0) -> 0 | AV25: =IF('PROGRAMA IV'!A35='CALCULO POR AREAS'!$AS$2,'PROGRAMA IV'!Q35+'PROGRAMA IV'!R35,0) -> 0 | AW25: =IF('PROGRAMA I'!A34='CALCULO POR AREAS'!$AW$2,('PROGRAMA I'!P34+'PROGRAMA I'!Q34),0) -> 0 | AX25: =IF('PROGRAMA II'!A35='CALCULO POR AREAS'!$AW$2,'PROGRAMA II'!Q34+'PROGRAMA II'!R34,0) -> 0 | AY25: =IF('PROGRAMA III'!A35='CALCULO POR AREAS'!$AW$2,'PROGRAMA III'!Q35+'PROGRAMA III'!R35,0) -> 0 | AZ25: =IF('PROGRAMA IV'!A35='CALCULO POR AREAS'!$AW$2,'PROGRAMA IV'!Q35+'PROGRAMA IV'!R35,0) -> 0 | BA25: =IF('PROGRAMA I'!A34='CALCULO POR AREAS'!$BA$2,('PROGRAMA I'!P34+'PROGRAMA I'!Q34),0) -> 0 | BB25: =IF('PROGRAMA II'!A35='CALCULO POR AREAS'!$BA$2,'PROGRAMA II'!Q34+'PROGRAMA II'!R34,0) -> 0 | BC25: =IF('PROGRAMA III'!A35='CALCULO POR AREAS'!$BA$2,'PROGRAMA III'!Q35+'PROGRAMA III'!R35,0) -> 0 | BD25: =IF('PROGRAMA IV'!A35='CALCULO POR AREAS'!$BA$2,'PROGRAMA IV'!Q35+'PROGRAMA IV'!R35,0) -> 0 | BE25: =IF('PROGRAMA I'!A34='CALCULO POR AREAS'!$BE$2,('PROGRAMA I'!P34+'PROGRAMA I'!Q34),0) -> 0 | BF25: =IF('PROGRAMA II'!A35='CALCULO POR AREAS'!$BE$2,'PROGRAMA II'!Q34+'PROGRAMA II'!R34,0) -> 0 | BG25: =IF('PROGRAMA III'!A35='CALCULO POR AREAS'!$BE$2,'PROGRAMA III'!Q35+'PROGRAMA III'!R35,0) -> 0 | BH25: =IF('PROGRAMA IV'!A35='CALCULO POR AREAS'!$BE$2,'PROGRAMA IV'!Q35+'PROGRAMA IV'!R35,0) -> 0 | BI25: =IF('PROGRAMA I'!A34='CALCULO POR AREAS'!$BI$2,('PROGRAMA I'!P34+'PROGRAMA I'!Q34),0) -> 0 | BJ25: =IF('PROGRAMA II'!A35='CALCULO POR AREAS'!$BI$2,'PROGRAMA II'!Q34+'PROGRAMA II'!R34,0) -> 0 | BK25: =IF('PROGRAMA III'!A35='CALCULO POR AREAS'!$BI$2,'PROGRAMA III'!Q35+'PROGRAMA III'!R35,0) -> 0 | BL25: =IF('PROGRAMA IV'!A35='CALCULO POR AREAS'!$BI$2,'PROGRAMA IV'!Q35+'PROGRAMA IV'!R35,0) -> 0 | BM25: =IF('PROGRAMA I'!A34='CALCULO POR AREAS'!$BM$2,('PROGRAMA I'!P34+'PROGRAMA I'!Q34),0) -> 0 | BN25: =IF('PROGRAMA II'!A35='CALCULO POR AREAS'!$BM$2,'PROGRAMA II'!Q34+'PROGRAMA II'!R34,0) -> 0 | BO25: =IF('PROGRAMA III'!A35='CALCULO POR AREAS'!$BM$2,'PROGRAMA III'!Q35+'PROGRAMA III'!R35,0) -> 0 | BP25: =IF('PROGRAMA IV'!A35='CALCULO POR AREAS'!$BM$2,'PROGRAMA IV'!Q35+'PROGRAMA IV'!R35,0) -> 0 | BQ25: =IF('PROGRAMA I'!A34='CALCULO POR AREAS'!$BQ$2,('PROGRAMA I'!P34+'PROGRAMA I'!Q34),0) -> 0 | BR25: =IF('PROGRAMA II'!A35='CALCULO POR AREAS'!$BQ$2,'PROGRAMA II'!Q34+'PROGRAMA II'!R34,0) -> 0 | BS25: =IF('PROGRAMA III'!A35='CALCULO POR AREAS'!$BQ$2,'PROGRAMA III'!Q35+'PROGRAMA III'!R35,0) -> 0 | BT25: =IF('PROGRAMA IV'!A35='CALCULO POR AREAS'!$BQ$2,'PROGRAMA IV'!Q35+'PROGRAMA IV'!R35,0) -> 0 | BU25: =IF('PROGRAMA I'!A34='CALCULO POR AREAS'!$BU$2,('PROGRAMA I'!P34+'PROGRAMA I'!Q34),0) -> 0 | BV25: =IF('PROGRAMA II'!A35='CALCULO POR AREAS'!$BU$2,'PROGRAMA II'!Q34+'PROGRAMA II'!R34,0) -> 0 | BW25: =IF('PROGRAMA III'!A35='CALCULO POR AREAS'!$BU$2,'PROGRAMA III'!Q35+'PROGRAMA III'!R35,0) -> 0 | BX25: =IF('PROGRAMA IV'!A35='CALCULO POR AREAS'!$BU$2,'PROGRAMA IV'!Q35+'PROGRAMA IV'!R35,0) -> 0 | BY25: =IF('PROGRAMA I'!A34='CALCULO POR AREAS'!$BY$2,('PROGRAMA I'!P34+'PROGRAMA I'!Q34),0) -> 0 | BZ25: =IF('PROGRAMA II'!A35='CALCULO POR AREAS'!$BY$2,'PROGRAMA II'!Q34+'PROGRAMA II'!R34,0) -> 0 | CA25: =IF('PROGRAMA III'!A35='CALCULO POR AREAS'!$BY$2,'PROGRAMA III'!Q35+'PROGRAMA III'!R35,0) -> 0 | CB25: =IF('PROGRAMA IV'!A35='CALCULO POR AREAS'!$BY$2,'PROGRAMA IV'!Q35+'PROGRAMA IV'!R35,0) -> 0
A26: =IF('PROGRAMA I'!A35='CALCULO POR AREAS'!$A$2,('PROGRAMA I'!P35+'PROGRAMA I'!Q35),0) -> 0 | B26: =IF('PROGRAMA II'!A36='CALCULO POR AREAS'!$A$2,'PROGRAMA II'!Q36+'PROGRAMA II'!R36,0) -> 0 | C26: =IF('PROGRAMA III'!A36='CALCULO POR AREAS'!$A$2,'PROGRAMA III'!Q36+'PROGRAMA III'!R36,0) -> 0 | D26: =IF('PROGRAMA IV'!A36='CALCULO POR AREAS'!$A$2,'PROGRAMA IV'!Q36+'PROGRAMA IV'!R36,0) -> 0 | E26: =IF('PROGRAMA I'!A35='CALCULO POR AREAS'!$E$2,('PROGRAMA I'!P35+'PROGRAMA I'!Q35),0) -> 0 | F26: =IF('PROGRAMA II'!A36='CALCULO POR AREAS'!$E$2,'PROGRAMA II'!Q36+'PROGRAMA II'!R36,0) -> 0 | G26: =IF('PROGRAMA III'!A36='CALCULO POR AREAS'!$E$2,'PROGRAMA III'!Q36+'PROGRAMA III'!R36,0) -> 0 | H26: =IF('PROGRAMA IV'!A36='CALCULO POR AREAS'!$E$2,'PROGRAMA IV'!Q36+'PROGRAMA IV'!R36,0) -> 0 | I26: =IF('PROGRAMA I'!A35='CALCULO POR AREAS'!$I$2,('PROGRAMA I'!P35+'PROGRAMA I'!Q35),0) -> 0 | J26: =IF('PROGRAMA II'!A36='CALCULO POR AREAS'!$I$2,'PROGRAMA II'!Q36+'PROGRAMA II'!R36,0) -> 0 | K26: =IF('PROGRAMA III'!A36='CALCULO POR AREAS'!$I$2,'PROGRAMA III'!Q36+'PROGRAMA III'!R36,0) -> 0 | L26: =IF('PROGRAMA IV'!A36='CALCULO POR AREAS'!$I$2,'PROGRAMA IV'!Q36+'PROGRAMA IV'!R36,0) -> 0 | M26: =IF('PROGRAMA I'!A35='CALCULO POR AREAS'!$M$2,('PROGRAMA I'!P35+'PROGRAMA I'!Q35),0) -> 0 | N26: =IF('PROGRAMA II'!A36='CALCULO POR AREAS'!$M$2,'PROGRAMA II'!Q36+'PROGRAMA II'!R36,0) -> 0 | O26: =IF('PROGRAMA III'!A36='CALCULO POR AREAS'!$M$2,'PROGRAMA III'!Q36+'PROGRAMA III'!R36,0) -> 0 | P26: =IF('PROGRAMA IV'!A36='CALCULO POR AREAS'!$M$2,'PROGRAMA IV'!Q36+'PROGRAMA IV'!R36,0) -> 0 | Q26: =IF('PROGRAMA I'!A35='CALCULO POR AREAS'!$Q$2,('PROGRAMA I'!P35+'PROGRAMA I'!Q35),0) -> 0 | R26: =IF('PROGRAMA II'!A36='CALCULO POR AREAS'!$Q$2,'PROGRAMA II'!Q36+'PROGRAMA II'!R36,0) -> 0 | S26: =IF('PROGRAMA III'!A36='CALCULO POR AREAS'!$Q$2,'PROGRAMA III'!Q36+'PROGRAMA III'!R36,0) -> 0 | T26: =IF('PROGRAMA IV'!A36='CALCULO POR AREAS'!$Q$2,'PROGRAMA IV'!Q36+'PROGRAMA IV'!R36,0) -> 0 | U26: =IF('PROGRAMA I'!A35='CALCULO POR AREAS'!$U$2,('PROGRAMA I'!P35+'PROGRAMA I'!Q35),0) -> 0 | V26: =IF('PROGRAMA II'!A36='CALCULO POR AREAS'!$U$2,'PROGRAMA II'!Q36+'PROGRAMA II'!R36,0) -> 0 | W26: =IF('PROGRAMA III'!A36='CALCULO POR AREAS'!$U$2,'PROGRAMA III'!Q36+'PROGRAMA III'!R36,0) -> 0 | X26: =IF('PROGRAMA IV'!A36='CALCULO POR AREAS'!$U$2,'PROGRAMA IV'!Q36+'PROGRAMA IV'!R36,0) -> 0 | Y26: =IF('PROGRAMA I'!A35='CALCULO POR AREAS'!$Y$2,('PROGRAMA I'!P35+'PROGRAMA I'!Q35),0) -> 0 | Z26: =IF('PROGRAMA II'!A36='CALCULO POR AREAS'!$Y$2,'PROGRAMA II'!Q36+'PROGRAMA II'!R36,0) -> 0 | AA26: =IF('PROGRAMA III'!A36='CALCULO POR AREAS'!$Y$2,'PROGRAMA III'!Q36+'PROGRAMA III'!R36,0) -> 0 | AB26: =IF('PROGRAMA IV'!A36='CALCULO POR AREAS'!$Y$2,'PROGRAMA IV'!Q36+'PROGRAMA IV'!R36,0) -> 0 | AC26: =IF('PROGRAMA I'!A35='CALCULO POR AREAS'!$AC$2,('PROGRAMA I'!P35+'PROGRAMA I'!Q35),0) -> 0 | AD26: =IF('PROGRAMA II'!A36='CALCULO POR AREAS'!$AC$2,'PROGRAMA II'!Q36+'PROGRAMA II'!R36,0) -> 0 | AE26: =IF('PROGRAMA III'!A36='CALCULO POR AREAS'!$AC$2,'PROGRAMA III'!Q36+'PROGRAMA III'!R36,0) -> 0 | AF26: =IF('PROGRAMA IV'!A36='CALCULO POR AREAS'!$AC$2,'PROGRAMA IV'!Q36+'PROGRAMA IV'!R36,0) -> 0 | AG26: =IF('PROGRAMA I'!A35='CALCULO POR AREAS'!$AG$2,('PROGRAMA I'!P35+'PROGRAMA I'!Q35),0) -> 0 | AH26: =IF('PROGRAMA II'!A36='CALCULO POR AREAS'!$AG$2,'PROGRAMA II'!Q36+'PROGRAMA II'!R36,0) -> 0 | AI26: =IF('PROGRAMA III'!A36='CALCULO POR AREAS'!$AG$2,'PROGRAMA III'!Q36+'PROGRAMA III'!R36,0) -> 0 | AJ26: =IF('PROGRAMA IV'!A36='CALCULO POR AREAS'!$AG$2,'PROGRAMA IV'!Q36+'PROGRAMA IV'!R36,0) -> 0 | AK26: =IF('PROGRAMA I'!A35='CALCULO POR AREAS'!$AK$2,('PROGRAMA I'!P35+'PROGRAMA I'!Q35),0) -> 0 | AL26: =IF('PROGRAMA II'!A36='CALCULO POR AREAS'!$AK$2,'PROGRAMA II'!Q36+'PROGRAMA II'!R36,0) -> 0 | AM26: =IF('PROGRAMA III'!A36='CALCULO POR AREAS'!$AK$2,'PROGRAMA III'!Q36+'PROGRAMA III'!R36,0) -> 0 | AN26: =IF('PROGRAMA IV'!A36='CALCULO POR AREAS'!$AK$2,'PROGRAMA IV'!Q36+'PROGRAMA IV'!R36,0) -> 0 | AO26: =IF('PROGRAMA I'!A35='CALCULO POR AREAS'!$AO$2,('PROGRAMA I'!P35+'PROGRAMA I'!Q35),0) -> 0 | AP26: =IF('PROGRAMA II'!A36='CALCULO POR AREAS'!$AO$2,'PROGRAMA II'!Q36+'PROGRAMA II'!R36,0) -> 0 | AQ26: =IF('PROGRAMA III'!A36='CALCULO POR AREAS'!$AO$2,'PROGRAMA III'!Q36+'PROGRAMA III'!R36,0) -> 0 | AR26: =IF('PROGRAMA IV'!A36='CALCULO POR AREAS'!$AO$2,'PROGRAMA IV'!Q36+'PROGRAMA IV'!R36,0) -> 0 | AS26: =IF('PROGRAMA I'!A35='CALCULO POR AREAS'!$AS$2,('PROGRAMA I'!P35+'PROGRAMA I'!Q35),0) -> 0 | AT26: =IF('PROGRAMA II'!A36='CALCULO POR AREAS'!$AS$2,'PROGRAMA II'!Q36+'PROGRAMA II'!R36,0) -> 0 | AU26: =IF('PROGRAMA III'!A36='CALCULO POR AREAS'!$AS$2,'PROGRAMA III'!Q36+'PROGRAMA III'!R36,0) -> 0 | AV26: =IF('PROGRAMA IV'!A36='CALCULO POR AREAS'!$AS$2,'PROGRAMA IV'!Q36+'PROGRAMA IV'!R36,0) -> 0 | AW26: =IF('PROGRAMA I'!A35='CALCULO POR AREAS'!$AW$2,('PROGRAMA I'!P35+'PROGRAMA I'!Q35),0) -> 0 | AX26: =IF('PROGRAMA II'!A36='CALCULO POR AREAS'!$AW$2,'PROGRAMA II'!Q36+'PROGRAMA II'!R36,0) -> 0 | AY26: =IF('PROGRAMA III'!A36='CALCULO POR AREAS'!$AW$2,'PROGRAMA III'!Q36+'PROGRAMA III'!R36,0) -> 0 | AZ26: =IF('PROGRAMA IV'!A36='CALCULO POR AREAS'!$AW$2,'PROGRAMA IV'!Q36+'PROGRAMA IV'!R36,0) -> 0 | BA26: =IF('PROGRAMA I'!A35='CALCULO POR AREAS'!$BA$2,('PROGRAMA I'!P35+'PROGRAMA I'!Q35),0) -> 0 | BB26: =IF('PROGRAMA II'!A36='CALCULO POR AREAS'!$BA$2,'PROGRAMA II'!Q36+'PROGRAMA II'!R36,0) -> 0 | BC26: =IF('PROGRAMA III'!A36='CALCULO POR AREAS'!$BA$2,'PROGRAMA III'!Q36+'PROGRAMA III'!R36,0) -> 0 | BD26: =IF('PROGRAMA IV'!A36='CALCULO POR AREAS'!$BA$2,'PROGRAMA IV'!Q36+'PROGRAMA IV'!R36,0) -> 0 | BE26: =IF('PROGRAMA I'!A35='CALCULO POR AREAS'!$BE$2,('PROGRAMA I'!P35+'PROGRAMA I'!Q35),0) -> 0 | BF26: =IF('PROGRAMA II'!A36='CALCULO POR AREAS'!$BE$2,'PROGRAMA II'!Q36+'PROGRAMA II'!R36,0) -> 0 | BG26: =IF('PROGRAMA III'!A36='CALCULO POR AREAS'!$BE$2,'PROGRAMA III'!Q36+'PROGRAMA III'!R36,0) -> 0 | BH26: =IF('PROGRAMA IV'!A36='CALCULO POR AREAS'!$BE$2,'PROGRAMA IV'!Q36+'PROGRAMA IV'!R36,0) -> 0 | BI26: =IF('PROGRAMA I'!A35='CALCULO POR AREAS'!$BI$2,('PROGRAMA I'!P35+'PROGRAMA I'!Q35),0) -> 0 | BJ26: =IF('PROGRAMA II'!A36='CALCULO POR AREAS'!$BI$2,'PROGRAMA II'!Q36+'PROGRAMA II'!R36,0) -> 0 | BK26: =IF('PROGRAMA III'!A36='CALCULO POR AREAS'!$BI$2,'PROGRAMA III'!Q36+'PROGRAMA III'!R36,0) -> 0 | BL26: =IF('PROGRAMA IV'!A36='CALCULO POR AREAS'!$BI$2,'PROGRAMA IV'!Q36+'PROGRAMA IV'!R36,0) -> 0 | BM26: =IF('PROGRAMA I'!A35='CALCULO POR AREAS'!$BM$2,('PROGRAMA I'!P35+'PROGRAMA I'!Q35),0) -> 0 | BN26: =IF('PROGRAMA II'!A36='CALCULO POR AREAS'!$BM$2,'PROGRAMA II'!Q36+'PROGRAMA II'!R36,0) -> 0 | BO26: =IF('PROGRAMA III'!A36='CALCULO POR AREAS'!$BM$2,'PROGRAMA III'!Q36+'PROGRAMA III'!R36,0) -> 0 | BP26: =IF('PROGRAMA IV'!A36='CALCULO POR AREAS'!$BM$2,'PROGRAMA IV'!Q36+'PROGRAMA IV'!R36,0) -> 0 | BQ26: =IF('PROGRAMA I'!A35='CALCULO POR AREAS'!$BQ$2,('PROGRAMA I'!P35+'PROGRAMA I'!Q35),0) -> 0 | BR26: =IF('PROGRAMA II'!A36='CALCULO POR AREAS'!$BQ$2,'PROGRAMA II'!Q36+'PROGRAMA II'!R36,0) -> 0 | BS26: =IF('PROGRAMA III'!A36='CALCULO POR AREAS'!$BQ$2,'PROGRAMA III'!Q36+'PROGRAMA III'!R36,0) -> 0 | BT26: =IF('PROGRAMA IV'!A36='CALCULO POR AREAS'!$BQ$2,'PROGRAMA IV'!Q36+'PROGRAMA IV'!R36,0) -> 0 | BU26: =IF('PROGRAMA I'!A35='CALCULO POR AREAS'!$BU$2,('PROGRAMA I'!P35+'PROGRAMA I'!Q35),0) -> 0 | BV26: =IF('PROGRAMA II'!A36='CALCULO POR AREAS'!$BU$2,'PROGRAMA II'!Q36+'PROGRAMA II'!R36,0) -> 0 | BW26: =IF('PROGRAMA III'!A36='CALCULO POR AREAS'!$BU$2,'PROGRAMA III'!Q36+'PROGRAMA III'!R36,0) -> 0 | BX26: =IF('PROGRAMA IV'!A36='CALCULO POR AREAS'!$BU$2,'PROGRAMA IV'!Q36+'PROGRAMA IV'!R36,0) -> 0 | BY26: =IF('PROGRAMA I'!A35='CALCULO POR AREAS'!$BY$2,('PROGRAMA I'!P35+'PROGRAMA I'!Q35),0) -> 0 | BZ26: =IF('PROGRAMA II'!A36='CALCULO POR AREAS'!$BY$2,'PROGRAMA II'!Q36+'PROGRAMA II'!R36,0) -> 0 | CA26: =IF('PROGRAMA III'!A36='CALCULO POR AREAS'!$BY$2,'PROGRAMA III'!Q36+'PROGRAMA III'!R36,0) -> 0 | CB26: =IF('PROGRAMA IV'!A36='CALCULO POR AREAS'!$BY$2,'PROGRAMA IV'!Q36+'PROGRAMA IV'!R36,0) -> 0
A27: =IF('PROGRAMA I'!A36='CALCULO POR AREAS'!$A$2,('PROGRAMA I'!P36+'PROGRAMA I'!Q36),0) -> 0 | B27: =IF('PROGRAMA II'!A37='CALCULO POR AREAS'!$A$2,'PROGRAMA II'!Q37+'PROGRAMA II'!R37,0) -> 0 | C27: =IF('PROGRAMA III'!A37='CALCULO POR AREAS'!$A$2,'PROGRAMA III'!Q37+'PROGRAMA III'!R37,0) -> 0 | D27: =IF('PROGRAMA IV'!A37='CALCULO POR AREAS'!$A$2,'PROGRAMA IV'!Q37+'PROGRAMA IV'!R37,0) -> 0 | E27: =IF('PROGRAMA I'!A36='CALCULO POR AREAS'!$E$2,('PROGRAMA I'!P36+'PROGRAMA I'!Q36),0) -> 0 | F27: =IF('PROGRAMA II'!A37='CALCULO POR AREAS'!$E$2,'PROGRAMA II'!Q37+'PROGRAMA II'!R37,0) -> 0 | G27: =IF('PROGRAMA III'!A37='CALCULO POR AREAS'!$E$2,'PROGRAMA III'!Q37+'PROGRAMA III'!R37,0) -> 0 | H27: =IF('PROGRAMA IV'!A37='CALCULO POR AREAS'!$E$2,'PROGRAMA IV'!Q37+'PROGRAMA IV'!R37,0) -> 0 | I27: =IF('PROGRAMA I'!A36='CALCULO POR AREAS'!$I$2,('PROGRAMA I'!P36+'PROGRAMA I'!Q36),0) -> 0 | J27: =IF('PROGRAMA II'!A37='CALCULO POR AREAS'!$I$2,'PROGRAMA II'!Q37+'PROGRAMA II'!R37,0) -> 0 | K27: =IF('PROGRAMA III'!A37='CALCULO POR AREAS'!$I$2,'PROGRAMA III'!Q37+'PROGRAMA III'!R37,0) -> 0 | L27: =IF('PROGRAMA IV'!A37='CALCULO POR AREAS'!$I$2,'PROGRAMA IV'!Q37+'PROGRAMA IV'!R37,0) -> 0 | M27: =IF('PROGRAMA I'!A36='CALCULO POR AREAS'!$M$2,('PROGRAMA I'!P36+'PROGRAMA I'!Q36),0) -> 0 | N27: =IF('PROGRAMA II'!A37='CALCULO POR AREAS'!$M$2,'PROGRAMA II'!Q37+'PROGRAMA II'!R37,0) -> 0 | O27: =IF('PROGRAMA III'!A37='CALCULO POR AREAS'!$M$2,'PROGRAMA III'!Q37+'PROGRAMA III'!R37,0) -> 0 | P27: =IF('PROGRAMA IV'!A37='CALCULO POR AREAS'!$M$2,'PROGRAMA IV'!Q37+'PROGRAMA IV'!R37,0) -> 0 | Q27: =IF('PROGRAMA I'!A36='CALCULO POR AREAS'!$Q$2,('PROGRAMA I'!P36+'PROGRAMA I'!Q36),0) -> 0 | R27: =IF('PROGRAMA II'!A37='CALCULO POR AREAS'!$Q$2,'PROGRAMA II'!Q37+'PROGRAMA II'!R37,0) -> 0 | S27: =IF('PROGRAMA III'!A37='CALCULO POR AREAS'!$Q$2,'PROGRAMA III'!Q37+'PROGRAMA III'!R37,0) -> 0 | T27: =IF('PROGRAMA IV'!A37='CALCULO POR AREAS'!$Q$2,'PROGRAMA IV'!Q37+'PROGRAMA IV'!R37,0) -> 0 | U27: =IF('PROGRAMA I'!A36='CALCULO POR AREAS'!$U$2,('PROGRAMA I'!P36+'PROGRAMA I'!Q36),0) -> 0 | V27: =IF('PROGRAMA II'!A37='CALCULO POR AREAS'!$U$2,'PROGRAMA II'!Q37+'PROGRAMA II'!R37,0) -> 0 | W27: =IF('PROGRAMA III'!A37='CALCULO POR AREAS'!$U$2,'PROGRAMA III'!Q37+'PROGRAMA III'!R37,0) -> 0 | X27: =IF('PROGRAMA IV'!A37='CALCULO POR AREAS'!$U$2,'PROGRAMA IV'!Q37+'PROGRAMA IV'!R37,0) -> 0 | Y27: =IF('PROGRAMA I'!A36='CALCULO POR AREAS'!$Y$2,('PROGRAMA I'!P36+'PROGRAMA I'!Q36),0) -> 0 | Z27: =IF('PROGRAMA II'!A37='CALCULO POR AREAS'!$Y$2,'PROGRAMA II'!Q37+'PROGRAMA II'!R37,0) -> 0 | AA27: =IF('PROGRAMA III'!A37='CALCULO POR AREAS'!$Y$2,'PROGRAMA III'!Q37+'PROGRAMA III'!R37,0) -> 0 | AB27: =IF('PROGRAMA IV'!A37='CALCULO POR AREAS'!$Y$2,'PROGRAMA IV'!Q37+'PROGRAMA IV'!R37,0) -> 0 | AC27: =IF('PROGRAMA I'!A36='CALCULO POR AREAS'!$AC$2,('PROGRAMA I'!P36+'PROGRAMA I'!Q36),0) -> 0 | AD27: =IF('PROGRAMA II'!A37='CALCULO POR AREAS'!$AC$2,'PROGRAMA II'!Q37+'PROGRAMA II'!R37,0) -> 0 | AE27: =IF('PROGRAMA III'!A37='CALCULO POR AREAS'!$AC$2,'PROGRAMA III'!Q37+'PROGRAMA III'!R37,0) -> 0 | AF27: =IF('PROGRAMA IV'!A37='CALCULO POR AREAS'!$AC$2,'PROGRAMA IV'!Q37+'PROGRAMA IV'!R37,0) -> 0 | AG27: =IF('PROGRAMA I'!A36='CALCULO POR AREAS'!$AG$2,('PROGRAMA I'!P36+'PROGRAMA I'!Q36),0) -> 0 | AH27: =IF('PROGRAMA II'!A37='CALCULO POR AREAS'!$AG$2,'PROGRAMA II'!Q37+'PROGRAMA II'!R37,0) -> 0 | AI27: =IF('PROGRAMA III'!A37='CALCULO POR AREAS'!$AG$2,'PROGRAMA III'!Q37+'PROGRAMA III'!R37,0) -> 0 | AJ27: =IF('PROGRAMA IV'!A37='CALCULO POR AREAS'!$AG$2,'PROGRAMA IV'!Q37+'PROGRAMA IV'!R37,0) -> 0 | AK27: =IF('PROGRAMA I'!A36='CALCULO POR AREAS'!$AK$2,('PROGRAMA I'!P36+'PROGRAMA I'!Q36),0) -> 0 | AL27: =IF('PROGRAMA II'!A37='CALCULO POR AREAS'!$AK$2,'PROGRAMA II'!Q37+'PROGRAMA II'!R37,0) -> 0 | AM27: =IF('PROGRAMA III'!A37='CALCULO POR AREAS'!$AK$2,'PROGRAMA III'!Q37+'PROGRAMA III'!R37,0) -> 0 | AN27: =IF('PROGRAMA IV'!A37='CALCULO POR AREAS'!$AK$2,'PROGRAMA IV'!Q37+'PROGRAMA IV'!R37,0) -> 0 | AO27: =IF('PROGRAMA I'!A36='CALCULO POR AREAS'!$AO$2,('PROGRAMA I'!P36+'PROGRAMA I'!Q36),0) -> 0 | AP27: =IF('PROGRAMA II'!A37='CALCULO POR AREAS'!$AO$2,'PROGRAMA II'!Q37+'PROGRAMA II'!R37,0) -> 0 | AQ27: =IF('PROGRAMA III'!A37='CALCULO POR AREAS'!$AO$2,'PROGRAMA III'!Q37+'PROGRAMA III'!R37,0) -> 0 | AR27: =IF('PROGRAMA IV'!A37='CALCULO POR AREAS'!$AO$2,'PROGRAMA IV'!Q37+'PROGRAMA IV'!R37,0) -> 0 | AS27: =IF('PROGRAMA I'!A36='CALCULO POR AREAS'!$AS$2,('PROGRAMA I'!P36+'PROGRAMA I'!Q36),0) -> 0 | AT27: =IF('PROGRAMA II'!A37='CALCULO POR AREAS'!$AS$2,'PROGRAMA II'!Q37+'PROGRAMA II'!R37,0) -> 0 | AU27: =IF('PROGRAMA III'!A37='CALCULO POR AREAS'!$AS$2,'PROGRAMA III'!Q37+'PROGRAMA III'!R37,0) -> 0 | AV27: =IF('PROGRAMA IV'!A37='CALCULO POR AREAS'!$AS$2,'PROGRAMA IV'!Q37+'PROGRAMA IV'!R37,0) -> 0 | AW27: =IF('PROGRAMA I'!A36='CALCULO POR AREAS'!$AW$2,('PROGRAMA I'!P36+'PROGRAMA I'!Q36),0) -> 0 | AX27: =IF('PROGRAMA II'!A37='CALCULO POR AREAS'!$AW$2,'PROGRAMA II'!Q37+'PROGRAMA II'!R37,0) -> 0 | AY27: =IF('PROGRAMA III'!A37='CALCULO POR AREAS'!$AW$2,'PROGRAMA III'!Q37+'PROGRAMA III'!R37,0) -> 0 | AZ27: =IF('PROGRAMA IV'!A37='CALCULO POR AREAS'!$AW$2,'PROGRAMA IV'!Q37+'PROGRAMA IV'!R37,0) -> 0 | BA27: =IF('PROGRAMA I'!A36='CALCULO POR AREAS'!$BA$2,('PROGRAMA I'!P36+'PROGRAMA I'!Q36),0) -> 0 | BB27: =IF('PROGRAMA II'!A37='CALCULO POR AREAS'!$BA$2,'PROGRAMA II'!Q37+'PROGRAMA II'!R37,0) -> 0 | BC27: =IF('PROGRAMA III'!A37='CALCULO POR AREAS'!$BA$2,'PROGRAMA III'!Q37+'PROGRAMA III'!R37,0) -> 0 | BD27: =IF('PROGRAMA IV'!A37='CALCULO POR AREAS'!$BA$2,'PROGRAMA IV'!Q37+'PROGRAMA IV'!R37,0) -> 0 | BE27: =IF('PROGRAMA I'!A36='CALCULO POR AREAS'!$BE$2,('PROGRAMA I'!P36+'PROGRAMA I'!Q36),0) -> 0 | BF27: =IF('PROGRAMA II'!A37='CALCULO POR AREAS'!$BE$2,'PROGRAMA II'!Q37+'PROGRAMA II'!R37,0) -> 0 | BG27: =IF('PROGRAMA III'!A37='CALCULO POR AREAS'!$BE$2,'PROGRAMA III'!Q37+'PROGRAMA III'!R37,0) -> 0 | BH27: =IF('PROGRAMA IV'!A37='CALCULO POR AREAS'!$BE$2,'PROGRAMA IV'!Q37+'PROGRAMA IV'!R37,0) -> 0 | BI27: =IF('PROGRAMA I'!A36='CALCULO POR AREAS'!$BI$2,('PROGRAMA I'!P36+'PROGRAMA I'!Q36),0) -> 0 | BJ27: =IF('PROGRAMA II'!A37='CALCULO POR AREAS'!$BI$2,'PROGRAMA II'!Q37+'PROGRAMA II'!R37,0) -> 0 | BK27: =IF('PROGRAMA III'!A37='CALCULO POR AREAS'!$BI$2,'PROGRAMA III'!Q37+'PROGRAMA III'!R37,0) -> 0 | BL27: =IF('PROGRAMA IV'!A37='CALCULO POR AREAS'!$BI$2,'PROGRAMA IV'!Q37+'PROGRAMA IV'!R37,0) -> 0 | BM27: =IF('PROGRAMA I'!A36='CALCULO POR AREAS'!$BM$2,('PROGRAMA I'!P36+'PROGRAMA I'!Q36),0) -> 0 | BN27: =IF('PROGRAMA II'!A37='CALCULO POR AREAS'!$BM$2,'PROGRAMA II'!Q37+'PROGRAMA II'!R37,0) -> 0 | BO27: =IF('PROGRAMA III'!A37='CALCULO POR AREAS'!$BM$2,'PROGRAMA III'!Q37+'PROGRAMA III'!R37,0) -> 0 | BP27: =IF('PROGRAMA IV'!A37='CALCULO POR AREAS'!$BM$2,'PROGRAMA IV'!Q37+'PROGRAMA IV'!R37,0) -> 0 | BQ27: =IF('PROGRAMA I'!A36='CALCULO POR AREAS'!$BQ$2,('PROGRAMA I'!P36+'PROGRAMA I'!Q36),0) -> 0 | BR27: =IF('PROGRAMA II'!A37='CALCULO POR AREAS'!$BQ$2,'PROGRAMA II'!Q37+'PROGRAMA II'!R37,0) -> 0 | BS27: =IF('PROGRAMA III'!A37='CALCULO POR AREAS'!$BQ$2,'PROGRAMA III'!Q37+'PROGRAMA III'!R37,0) -> 0 | BT27: =IF('PROGRAMA IV'!A37='CALCULO POR AREAS'!$BQ$2,'PROGRAMA IV'!Q37+'PROGRAMA IV'!R37,0) -> 0 | BU27: =IF('PROGRAMA I'!A36='CALCULO POR AREAS'!$BU$2,('PROGRAMA I'!P36+'PROGRAMA I'!Q36),0) -> 0 | BV27: =IF('PROGRAMA II'!A37='CALCULO POR AREAS'!$BU$2,'PROGRAMA II'!Q37+'PROGRAMA II'!R37,0) -> 0 | BW27: =IF('PROGRAMA III'!A37='CALCULO POR AREAS'!$BU$2,'PROGRAMA III'!Q37+'PROGRAMA III'!R37,0) -> 0 | BX27: =IF('PROGRAMA IV'!A37='CALCULO POR AREAS'!$BU$2,'PROGRAMA IV'!Q37+'PROGRAMA IV'!R37,0) -> 0 | BY27: =IF('PROGRAMA I'!A36='CALCULO POR AREAS'!$BY$2,('PROGRAMA I'!P36+'PROGRAMA I'!Q36),0) -> 0 | BZ27: =IF('PROGRAMA II'!A37='CALCULO POR AREAS'!$BY$2,'PROGRAMA II'!Q37+'PROGRAMA II'!R37,0) -> 0 | CA27: =IF('PROGRAMA III'!A37='CALCULO POR AREAS'!$BY$2,'PROGRAMA III'!Q37+'PROGRAMA III'!R37,0) -> 0 | CB27: =IF('PROGRAMA IV'!A37='CALCULO POR AREAS'!$BY$2,'PROGRAMA IV'!Q37+'PROGRAMA IV'!R37,0) -> 0
A28: =IF('PROGRAMA I'!A37='CALCULO POR AREAS'!$A$2,('PROGRAMA I'!P37+'PROGRAMA I'!Q37),0) -> 0 | B28: =IF('PROGRAMA II'!A38='CALCULO POR AREAS'!$A$2,'PROGRAMA II'!Q38+'PROGRAMA II'!R38,0) -> 0 | C28: =IF('PROGRAMA III'!A38='CALCULO POR AREAS'!$A$2,'PROGRAMA III'!Q38+'PROGRAMA III'!R38,0) -> 0 | D28: =IF('PROGRAMA IV'!A38='CALCULO POR AREAS'!$A$2,'PROGRAMA IV'!Q38+'PROGRAMA IV'!R38,0) -> 0 | E28: =IF('PROGRAMA I'!A37='CALCULO POR AREAS'!$E$2,('PROGRAMA I'!P37+'PROGRAMA I'!Q37),0) -> 0 | F28: =IF('PROGRAMA II'!A38='CALCULO POR AREAS'!$E$2,'PROGRAMA II'!Q38+'PROGRAMA II'!R38,0) -> 0 | G28: =IF('PROGRAMA III'!A38='CALCULO POR AREAS'!$E$2,'PROGRAMA III'!Q38+'PROGRAMA III'!R38,0) -> 0 | H28: =IF('PROGRAMA IV'!A38='CALCULO POR AREAS'!$E$2,'PROGRAMA IV'!Q38+'PROGRAMA IV'!R38,0) -> 0 | I28: =IF('PROGRAMA I'!A37='CALCULO POR AREAS'!$I$2,('PROGRAMA I'!P37+'PROGRAMA I'!Q37),0) -> 0 | J28: =IF('PROGRAMA II'!A38='CALCULO POR AREAS'!$I$2,'PROGRAMA II'!Q38+'PROGRAMA II'!R38,0) -> 0 | K28: =IF('PROGRAMA III'!A38='CALCULO POR AREAS'!$I$2,'PROGRAMA III'!Q38+'PROGRAMA III'!R38,0) -> 0 | L28: =IF('PROGRAMA IV'!A38='CALCULO POR AREAS'!$I$2,'PROGRAMA IV'!Q38+'PROGRAMA IV'!R38,0) -> 0 | M28: =IF('PROGRAMA I'!A37='CALCULO POR AREAS'!$M$2,('PROGRAMA I'!P37+'PROGRAMA I'!Q37),0) -> 0 | N28: =IF('PROGRAMA II'!A38='CALCULO POR AREAS'!$M$2,'PROGRAMA II'!Q38+'PROGRAMA II'!R38,0) -> 0 | O28: =IF('PROGRAMA III'!A38='CALCULO POR AREAS'!$M$2,'PROGRAMA III'!Q38+'PROGRAMA III'!R38,0) -> 0 | P28: =IF('PROGRAMA IV'!A38='CALCULO POR AREAS'!$M$2,'PROGRAMA IV'!Q38+'PROGRAMA IV'!R38,0) -> 0 | Q28: =IF('PROGRAMA I'!A37='CALCULO POR AREAS'!$Q$2,('PROGRAMA I'!P37+'PROGRAMA I'!Q37),0) -> 0 | R28: =IF('PROGRAMA II'!A38='CALCULO POR AREAS'!$Q$2,'PROGRAMA II'!Q38+'PROGRAMA II'!R38,0) -> 0 | S28: =IF('PROGRAMA III'!A38='CALCULO POR AREAS'!$Q$2,'PROGRAMA III'!Q38+'PROGRAMA III'!R38,0) -> 0 | T28: =IF('PROGRAMA IV'!A38='CALCULO POR AREAS'!$Q$2,'PROGRAMA IV'!Q38+'PROGRAMA IV'!R38,0) -> 0 | U28: =IF('PROGRAMA I'!A37='CALCULO POR AREAS'!$U$2,('PROGRAMA I'!P37+'PROGRAMA I'!Q37),0) -> 0 | V28: =IF('PROGRAMA II'!A38='CALCULO POR AREAS'!$U$2,'PROGRAMA II'!Q38+'PROGRAMA II'!R38,0) -> 0 | W28: =IF('PROGRAMA III'!A38='CALCULO POR AREAS'!$U$2,'PROGRAMA III'!Q38+'PROGRAMA III'!R38,0) -> 0 | X28: =IF('PROGRAMA IV'!A38='CALCULO POR AREAS'!$U$2,'PROGRAMA IV'!Q38+'PROGRAMA IV'!R38,0) -> 0 | Y28: =IF('PROGRAMA I'!A37='CALCULO POR AREAS'!$Y$2,('PROGRAMA I'!P37+'PROGRAMA I'!Q37),0) -> 0 | Z28: =IF('PROGRAMA II'!A38='CALCULO POR AREAS'!$Y$2,'PROGRAMA II'!Q38+'PROGRAMA II'!R38,0) -> 0 | AA28: =IF('PROGRAMA III'!A38='CALCULO POR AREAS'!$Y$2,'PROGRAMA III'!Q38+'PROGRAMA III'!R38,0) -> 0 | AB28: =IF('PROGRAMA IV'!A38='CALCULO POR AREAS'!$Y$2,'PROGRAMA IV'!Q38+'PROGRAMA IV'!R38,0) -> 0 | AC28: =IF('PROGRAMA I'!A37='CALCULO POR AREAS'!$AC$2,('PROGRAMA I'!P37+'PROGRAMA I'!Q37),0) -> 0 | AD28: =IF('PROGRAMA II'!A38='CALCULO POR AREAS'!$AC$2,'PROGRAMA II'!Q38+'PROGRAMA II'!R38,0) -> 0 | AE28: =IF('PROGRAMA III'!A38='CALCULO POR AREAS'!$AC$2,'PROGRAMA III'!Q38+'PROGRAMA III'!R38,0) -> 0 | AF28: =IF('PROGRAMA IV'!A38='CALCULO POR AREAS'!$AC$2,'PROGRAMA IV'!Q38+'PROGRAMA IV'!R38,0) -> 0 | AG28: =IF('PROGRAMA I'!A37='CALCULO POR AREAS'!$AG$2,('PROGRAMA I'!P37+'PROGRAMA I'!Q37),0) -> 0 | AH28: =IF('PROGRAMA II'!A38='CALCULO POR AREAS'!$AG$2,'PROGRAMA II'!Q38+'PROGRAMA II'!R38,0) -> 0 | AI28: =IF('PROGRAMA III'!A38='CALCULO POR AREAS'!$AG$2,'PROGRAMA III'!Q38+'PROGRAMA III'!R38,0) -> 0 | AJ28: =IF('PROGRAMA IV'!A38='CALCULO POR AREAS'!$AG$2,'PROGRAMA IV'!Q38+'PROGRAMA IV'!R38,0) -> 0 | AK28: =IF('PROGRAMA I'!A37='CALCULO POR AREAS'!$AK$2,('PROGRAMA I'!P37+'PROGRAMA I'!Q37),0) -> 0 | AL28: =IF('PROGRAMA II'!A38='CALCULO POR AREAS'!$AK$2,'PROGRAMA II'!Q38+'PROGRAMA II'!R38,0) -> 0 | AM28: =IF('PROGRAMA III'!A38='CALCULO POR AREAS'!$AK$2,'PROGRAMA III'!Q38+'PROGRAMA III'!R38,0) -> 0 | AN28: =IF('PROGRAMA IV'!A38='CALCULO POR AREAS'!$AK$2,'PROGRAMA IV'!Q38+'PROGRAMA IV'!R38,0) -> 0 | AO28: =IF('PROGRAMA I'!A37='CALCULO POR AREAS'!$AO$2,('PROGRAMA I'!P37+'PROGRAMA I'!Q37),0) -> 0 | AP28: =IF('PROGRAMA II'!A38='CALCULO POR AREAS'!$AO$2,'PROGRAMA II'!Q38+'PROGRAMA II'!R38,0) -> 0 | AQ28: =IF('PROGRAMA III'!A38='CALCULO POR AREAS'!$AO$2,'PROGRAMA III'!Q38+'PROGRAMA III'!R38,0) -> 0 | AR28: =IF('PROGRAMA IV'!A38='CALCULO POR AREAS'!$AO$2,'PROGRAMA IV'!Q38+'PROGRAMA IV'!R38,0) -> 0 | AS28: =IF('PROGRAMA I'!A37='CALCULO POR AREAS'!$AS$2,('PROGRAMA I'!P37+'PROGRAMA I'!Q37),0) -> 0 | AT28: =IF('PROGRAMA II'!A38='CALCULO POR AREAS'!$AS$2,'PROGRAMA II'!Q38+'PROGRAMA II'!R38,0) -> 0 | AU28: =IF('PROGRAMA III'!A38='CALCULO POR AREAS'!$AS$2,'PROGRAMA III'!Q38+'PROGRAMA III'!R38,0) -> 0 | AV28: =IF('PROGRAMA IV'!A38='CALCULO POR AREAS'!$AS$2,'PROGRAMA IV'!Q38+'PROGRAMA IV'!R38,0) -> 0 | AW28: =IF('PROGRAMA I'!A37='CALCULO POR AREAS'!$AW$2,('PROGRAMA I'!P37+'PROGRAMA I'!Q37),0) -> 0 | AX28: =IF('PROGRAMA II'!A38='CALCULO POR AREAS'!$AW$2,'PROGRAMA II'!Q38+'PROGRAMA II'!R38,0) -> 0 | AY28: =IF('PROGRAMA III'!A38='CALCULO POR AREAS'!$AW$2,'PROGRAMA III'!Q38+'PROGRAMA III'!R38,0) -> 0 | AZ28: =IF('PROGRAMA IV'!A38='CALCULO POR AREAS'!$AW$2,'PROGRAMA IV'!Q38+'PROGRAMA IV'!R38,0) -> 0 | BA28: =IF('PROGRAMA I'!A37='CALCULO POR AREAS'!$BA$2,('PROGRAMA I'!P37+'PROGRAMA I'!Q37),0) -> 0 | BB28: =IF('PROGRAMA II'!A38='CALCULO POR AREAS'!$BA$2,'PROGRAMA II'!Q38+'PROGRAMA II'!R38,0) -> 0 | BC28: =IF('PROGRAMA III'!A38='CALCULO POR AREAS'!$BA$2,'PROGRAMA III'!Q38+'PROGRAMA III'!R38,0) -> 0 | BD28: =IF('PROGRAMA IV'!A38='CALCULO POR AREAS'!$BA$2,'PROGRAMA IV'!Q38+'PROGRAMA IV'!R38,0) -> 0 | BE28: =IF('PROGRAMA I'!A37='CALCULO POR AREAS'!$BE$2,('PROGRAMA I'!P37+'PROGRAMA I'!Q37),0) -> 0 | BF28: =IF('PROGRAMA II'!A38='CALCULO POR AREAS'!$BE$2,'PROGRAMA II'!Q38+'PROGRAMA II'!R38,0) -> 0 | BG28: =IF('PROGRAMA III'!A38='CALCULO POR AREAS'!$BE$2,'PROGRAMA III'!Q38+'PROGRAMA III'!R38,0) -> 0 | BH28: =IF('PROGRAMA IV'!A38='CALCULO POR AREAS'!$BE$2,'PROGRAMA IV'!Q38+'PROGRAMA IV'!R38,0) -> 0 | BI28: =IF('PROGRAMA I'!A37='CALCULO POR AREAS'!$BI$2,('PROGRAMA I'!P37+'PROGRAMA I'!Q37),0) -> 0 | BJ28: =IF('PROGRAMA II'!A38='CALCULO POR AREAS'!$BI$2,'PROGRAMA II'!Q38+'PROGRAMA II'!R38,0) -> 0 | BK28: =IF('PROGRAMA III'!A38='CALCULO POR AREAS'!$BI$2,'PROGRAMA III'!Q38+'PROGRAMA III'!R38,0) -> 0 | BL28: =IF('PROGRAMA IV'!A38='CALCULO POR AREAS'!$BI$2,'PROGRAMA IV'!Q38+'PROGRAMA IV'!R38,0) -> 0 | BM28: =IF('PROGRAMA I'!A37='CALCULO POR AREAS'!$BM$2,('PROGRAMA I'!P37+'PROGRAMA I'!Q37),0) -> 0 | BN28: =IF('PROGRAMA II'!A38='CALCULO POR AREAS'!$BM$2,'PROGRAMA II'!Q38+'PROGRAMA II'!R38,0) -> 0 | BO28: =IF('PROGRAMA III'!A38='CALCULO POR AREAS'!$BM$2,'PROGRAMA III'!Q38+'PROGRAMA III'!R38,0) -> 0 | BP28: =IF('PROGRAMA IV'!A38='CALCULO POR AREAS'!$BM$2,'PROGRAMA IV'!Q38+'PROGRAMA IV'!R38,0) -> 0 | BQ28: =IF('PROGRAMA I'!A37='CALCULO POR AREAS'!$BQ$2,('PROGRAMA I'!P37+'PROGRAMA I'!Q37),0) -> 0 | BR28: =IF('PROGRAMA II'!A38='CALCULO POR AREAS'!$BQ$2,'PROGRAMA II'!Q38+'PROGRAMA II'!R38,0) -> 0 | BS28: =IF('PROGRAMA III'!A38='CALCULO POR AREAS'!$BQ$2,'PROGRAMA III'!Q38+'PROGRAMA III'!R38,0) -> 0 | BT28: =IF('PROGRAMA IV'!A38='CALCULO POR AREAS'!$BQ$2,'PROGRAMA IV'!Q38+'PROGRAMA IV'!R38,0) -> 0 | BU28: =IF('PROGRAMA I'!A37='CALCULO POR AREAS'!$BU$2,('PROGRAMA I'!P37+'PROGRAMA I'!Q37),0) -> 0 | BV28: =IF('PROGRAMA II'!A38='CALCULO POR AREAS'!$BU$2,'PROGRAMA II'!Q38+'PROGRAMA II'!R38,0) -> 0 | BW28: =IF('PROGRAMA III'!A38='CALCULO POR AREAS'!$BU$2,'PROGRAMA III'!Q38+'PROGRAMA III'!R38,0) -> 0 | BX28: =IF('PROGRAMA IV'!A38='CALCULO POR AREAS'!$BU$2,'PROGRAMA IV'!Q38+'PROGRAMA IV'!R38,0) -> 0 | BY28: =IF('PROGRAMA I'!A37='CALCULO POR AREAS'!$BY$2,('PROGRAMA I'!P37+'PROGRAMA I'!Q37),0) -> 0 | BZ28: =IF('PROGRAMA II'!A38='CALCULO POR AREAS'!$BY$2,'PROGRAMA II'!Q38+'PROGRAMA II'!R38,0) -> 0 | CA28: =IF('PROGRAMA III'!A38='CALCULO POR AREAS'!$BY$2,'PROGRAMA III'!Q38+'PROGRAMA III'!R38,0) -> 0 | CB28: =IF('PROGRAMA IV'!A38='CALCULO POR AREAS'!$BY$2,'PROGRAMA IV'!Q38+'PROGRAMA IV'!R38,0) -> 0
A29: =IF('PROGRAMA I'!A38='CALCULO POR AREAS'!$A$2,('PROGRAMA I'!P38+'PROGRAMA I'!Q38),0) -> 0 | B29: =IF('PROGRAMA II'!A39='CALCULO POR AREAS'!$A$2,'PROGRAMA II'!Q39+'PROGRAMA II'!R39,0) -> 0 | C29: =IF('PROGRAMA III'!A39='CALCULO POR AREAS'!$A$2,'PROGRAMA III'!Q39+'PROGRAMA III'!R39,0) -> 0 | D29: =IF('PROGRAMA IV'!A39='CALCULO POR AREAS'!$A$2,'PROGRAMA IV'!Q39+'PROGRAMA IV'!R39,0) -> 0 | E29: =IF('PROGRAMA I'!A38='CALCULO POR AREAS'!$E$2,('PROGRAMA I'!P38+'PROGRAMA I'!Q38),0) -> 0 | F29: =IF('PROGRAMA II'!A39='CALCULO POR AREAS'!$E$2,'PROGRAMA II'!Q39+'PROGRAMA II'!R39,0) -> 0 | G29: =IF('PROGRAMA III'!A39='CALCULO POR AREAS'!$E$2,'PROGRAMA III'!Q39+'PROGRAMA III'!R39,0) -> 0 | H29: =IF('PROGRAMA IV'!A39='CALCULO POR AREAS'!$E$2,'PROGRAMA IV'!Q39+'PROGRAMA IV'!R39,0) -> 0 | I29: =IF('PROGRAMA I'!A38='CALCULO POR AREAS'!$I$2,('PROGRAMA I'!P38+'PROGRAMA I'!Q38),0) -> 0 | J29: =IF('PROGRAMA II'!A39='CALCULO POR AREAS'!$I$2,'PROGRAMA II'!Q39+'PROGRAMA II'!R39,0) -> 0 | K29: =IF('PROGRAMA III'!A39='CALCULO POR AREAS'!$I$2,'PROGRAMA III'!Q39+'PROGRAMA III'!R39,0) -> 0 | L29: =IF('PROGRAMA IV'!A39='CALCULO POR AREAS'!$I$2,'PROGRAMA IV'!Q39+'PROGRAMA IV'!R39,0) -> 0 | M29: =IF('PROGRAMA I'!A38='CALCULO POR AREAS'!$M$2,('PROGRAMA I'!P38+'PROGRAMA I'!Q38),0) -> 0 | N29: =IF('PROGRAMA II'!A39='CALCULO POR AREAS'!$M$2,'PROGRAMA II'!Q39+'PROGRAMA II'!R39,0) -> 0 | O29: =IF('PROGRAMA III'!A39='CALCULO POR AREAS'!$M$2,'PROGRAMA III'!Q39+'PROGRAMA III'!R39,0) -> 0 | P29: =IF('PROGRAMA IV'!A39='CALCULO POR AREAS'!$M$2,'PROGRAMA IV'!Q39+'PROGRAMA IV'!R39,0) -> 0 | Q29: =IF('PROGRAMA I'!A38='CALCULO POR AREAS'!$Q$2,('PROGRAMA I'!P38+'PROGRAMA I'!Q38),0) -> 0 | R29: =IF('PROGRAMA II'!A39='CALCULO POR AREAS'!$Q$2,'PROGRAMA II'!Q39+'PROGRAMA II'!R39,0) -> 0 | S29: =IF('PROGRAMA III'!A39='CALCULO POR AREAS'!$Q$2,'PROGRAMA III'!Q39+'PROGRAMA III'!R39,0) -> 0 | T29: =IF('PROGRAMA IV'!A39='CALCULO POR AREAS'!$Q$2,'PROGRAMA IV'!Q39+'PROGRAMA IV'!R39,0) -> 0 | U29: =IF('PROGRAMA I'!A38='CALCULO POR AREAS'!$U$2,('PROGRAMA I'!P38+'PROGRAMA I'!Q38),0) -> 0 | V29: =IF('PROGRAMA II'!A39='CALCULO POR AREAS'!$U$2,'PROGRAMA II'!Q39+'PROGRAMA II'!R39,0) -> 0 | W29: =IF('PROGRAMA III'!A39='CALCULO POR AREAS'!$U$2,'PROGRAMA III'!Q39+'PROGRAMA III'!R39,0) -> 0 | X29: =IF('PROGRAMA IV'!A39='CALCULO POR AREAS'!$U$2,'PROGRAMA IV'!Q39+'PROGRAMA IV'!R39,0) -> 0 | Y29: =IF('PROGRAMA I'!A38='CALCULO POR AREAS'!$Y$2,('PROGRAMA I'!P38+'PROGRAMA I'!Q38),0) -> 0 | Z29: =IF('PROGRAMA II'!A39='CALCULO POR AREAS'!$Y$2,'PROGRAMA II'!Q39+'PROGRAMA II'!R39,0) -> 0 | AA29: =IF('PROGRAMA III'!A39='CALCULO POR AREAS'!$Y$2,'PROGRAMA III'!Q39+'PROGRAMA III'!R39,0) -> 0 | AB29: =IF('PROGRAMA IV'!A39='CALCULO POR AREAS'!$Y$2,'PROGRAMA IV'!Q39+'PROGRAMA IV'!R39,0) -> 0 | AC29: =IF('PROGRAMA I'!A38='CALCULO POR AREAS'!$AC$2,('PROGRAMA I'!P38+'PROGRAMA I'!Q38),0) -> 0 | AD29: =IF('PROGRAMA II'!A39='CALCULO POR AREAS'!$AC$2,'PROGRAMA II'!Q39+'PROGRAMA II'!R39,0) -> 0 | AE29: =IF('PROGRAMA III'!A39='CALCULO POR AREAS'!$AC$2,'PROGRAMA III'!Q39+'PROGRAMA III'!R39,0) -> 0 | AF29: =IF('PROGRAMA IV'!A39='CALCULO POR AREAS'!$AC$2,'PROGRAMA IV'!Q39+'PROGRAMA IV'!R39,0) -> 0 | AG29: =IF('PROGRAMA I'!A38='CALCULO POR AREAS'!$AG$2,('PROGRAMA I'!P38+'PROGRAMA I'!Q38),0) -> 0 | AH29: =IF('PROGRAMA II'!A39='CALCULO POR AREAS'!$AG$2,'PROGRAMA II'!Q39+'PROGRAMA II'!R39,0) -> 0 | AI29: =IF('PROGRAMA III'!A39='CALCULO POR AREAS'!$AG$2,'PROGRAMA III'!Q39+'PROGRAMA III'!R39,0) -> 0 | AJ29: =IF('PROGRAMA IV'!A39='CALCULO POR AREAS'!$AG$2,'PROGRAMA IV'!Q39+'PROGRAMA IV'!R39,0) -> 0 | AK29: =IF('PROGRAMA I'!A38='CALCULO POR AREAS'!$AK$2,('PROGRAMA I'!P38+'PROGRAMA I'!Q38),0) -> 0 | AL29: =IF('PROGRAMA II'!A39='CALCULO POR AREAS'!$AK$2,'PROGRAMA II'!Q39+'PROGRAMA II'!R39,0) -> 0 | AM29: =IF('PROGRAMA III'!A39='CALCULO POR AREAS'!$AK$2,'PROGRAMA III'!Q39+'PROGRAMA III'!R39,0) -> 0 | AN29: =IF('PROGRAMA IV'!A39='CALCULO POR AREAS'!$AK$2,'PROGRAMA IV'!Q39+'PROGRAMA IV'!R39,0) -> 0 | AO29: =IF('PROGRAMA I'!A38='CALCULO POR AREAS'!$AO$2,('PROGRAMA I'!P38+'PROGRAMA I'!Q38),0) -> 0 | AP29: =IF('PROGRAMA II'!A39='CALCULO POR AREAS'!$AO$2,'PROGRAMA II'!Q39+'PROGRAMA II'!R39,0) -> 0 | AQ29: =IF('PROGRAMA III'!A39='CALCULO POR AREAS'!$AO$2,'PROGRAMA III'!Q39+'PROGRAMA III'!R39,0) -> 0 | AR29: =IF('PROGRAMA IV'!A39='CALCULO POR AREAS'!$AO$2,'PROGRAMA IV'!Q39+'PROGRAMA IV'!R39,0) -> 0 | AS29: =IF('PROGRAMA I'!A38='CALCULO POR AREAS'!$AS$2,('PROGRAMA I'!P38+'PROGRAMA I'!Q38),0) -> 0 | AT29: =IF('PROGRAMA II'!A39='CALCULO POR AREAS'!$AS$2,'PROGRAMA II'!Q39+'PROGRAMA II'!R39,0) -> 0 | AU29: =IF('PROGRAMA III'!A39='CALCULO POR AREAS'!$AS$2,'PROGRAMA III'!Q39+'PROGRAMA III'!R39,0) -> 0 | AV29: =IF('PROGRAMA IV'!A39='CALCULO POR AREAS'!$AS$2,'PROGRAMA IV'!Q39+'PROGRAMA IV'!R39,0) -> 0 | AW29: =IF('PROGRAMA I'!A38='CALCULO POR AREAS'!$AW$2,('PROGRAMA I'!P38+'PROGRAMA I'!Q38),0) -> 0 | AX29: =IF('PROGRAMA II'!A39='CALCULO POR AREAS'!$AW$2,'PROGRAMA II'!Q39+'PROGRAMA II'!R39,0) -> 0 | AY29: =IF('PROGRAMA III'!A39='CALCULO POR AREAS'!$AW$2,'PROGRAMA III'!Q39+'PROGRAMA III'!R39,0) -> 0 | AZ29: =IF('PROGRAMA IV'!A39='CALCULO POR AREAS'!$AW$2,'PROGRAMA IV'!Q39+'PROGRAMA IV'!R39,0) -> 0 | BA29: =IF('PROGRAMA I'!A38='CALCULO POR AREAS'!$BA$2,('PROGRAMA I'!P38+'PROGRAMA I'!Q38),0) -> 0 | BB29: =IF('PROGRAMA II'!A39='CALCULO POR AREAS'!$BA$2,'PROGRAMA II'!Q39+'PROGRAMA II'!R39,0) -> 0 | BC29: =IF('PROGRAMA III'!A39='CALCULO POR AREAS'!$BA$2,'PROGRAMA III'!Q39+'PROGRAMA III'!R39,0) -> 0 | BD29: =IF('PROGRAMA IV'!A39='CALCULO POR AREAS'!$BA$2,'PROGRAMA IV'!Q39+'PROGRAMA IV'!R39,0) -> 0 | BE29: =IF('PROGRAMA I'!A38='CALCULO POR AREAS'!$BE$2,('PROGRAMA I'!P38+'PROGRAMA I'!Q38),0) -> 0 | BF29: =IF('PROGRAMA II'!A39='CALCULO POR AREAS'!$BE$2,'PROGRAMA II'!Q39+'PROGRAMA II'!R39,0) -> 0 | BG29: =IF('PROGRAMA III'!A39='CALCULO POR AREAS'!$BE$2,'PROGRAMA III'!Q39+'PROGRAMA III'!R39,0) -> 0 | BH29: =IF('PROGRAMA IV'!A39='CALCULO POR AREAS'!$BE$2,'PROGRAMA IV'!Q39+'PROGRAMA IV'!R39,0) -> 0 | BI29: =IF('PROGRAMA I'!A38='CALCULO POR AREAS'!$BI$2,('PROGRAMA I'!P38+'PROGRAMA I'!Q38),0) -> 0 | BJ29: =IF('PROGRAMA II'!A39='CALCULO POR AREAS'!$BI$2,'PROGRAMA II'!Q39+'PROGRAMA II'!R39,0) -> 0 | BK29: =IF('PROGRAMA III'!A39='CALCULO POR AREAS'!$BI$2,'PROGRAMA III'!Q39+'PROGRAMA III'!R39,0) -> 0 | BL29: =IF('PROGRAMA IV'!A39='CALCULO POR AREAS'!$BI$2,'PROGRAMA IV'!Q39+'PROGRAMA IV'!R39,0) -> 0 | BM29: =IF('PROGRAMA I'!A38='CALCULO POR AREAS'!$BM$2,('PROGRAMA I'!P38+'PROGRAMA I'!Q38),0) -> 0 | BN29: =IF('PROGRAMA II'!A39='CALCULO POR AREAS'!$BM$2,'PROGRAMA II'!Q39+'PROGRAMA II'!R39,0) -> 0 | BO29: =IF('PROGRAMA III'!A39='CALCULO POR AREAS'!$BM$2,'PROGRAMA III'!Q39+'PROGRAMA III'!R39,0) -> 0 | BP29: =IF('PROGRAMA IV'!A39='CALCULO POR AREAS'!$BM$2,'PROGRAMA IV'!Q39+'PROGRAMA IV'!R39,0) -> 0 | BQ29: =IF('PROGRAMA I'!A38='CALCULO POR AREAS'!$BQ$2,('PROGRAMA I'!P38+'PROGRAMA I'!Q38),0) -> 0 | BR29: =IF('PROGRAMA II'!A39='CALCULO POR AREAS'!$BQ$2,'PROGRAMA II'!Q39+'PROGRAMA II'!R39,0) -> 0 | BS29: =IF('PROGRAMA III'!A39='CALCULO POR AREAS'!$BQ$2,'PROGRAMA III'!Q39+'PROGRAMA III'!R39,0) -> 0 | BT29: =IF('PROGRAMA IV'!A39='CALCULO POR AREAS'!$BQ$2,'PROGRAMA IV'!Q39+'PROGRAMA IV'!R39,0) -> 0 | BU29: =IF('PROGRAMA I'!A38='CALCULO POR AREAS'!$BU$2,('PROGRAMA I'!P38+'PROGRAMA I'!Q38),0) -> 0 | BV29: =IF('PROGRAMA II'!A39='CALCULO POR AREAS'!$BU$2,'PROGRAMA II'!Q39+'PROGRAMA II'!R39,0) -> 0 | BW29: =IF('PROGRAMA III'!A39='CALCULO POR AREAS'!$BU$2,'PROGRAMA III'!Q39+'PROGRAMA III'!R39,0) -> 0 | BX29: =IF('PROGRAMA IV'!A39='CALCULO POR AREAS'!$BU$2,'PROGRAMA IV'!Q39+'PROGRAMA IV'!R39,0) -> 0 | BY29: =IF('PROGRAMA I'!A38='CALCULO POR AREAS'!$BY$2,('PROGRAMA I'!P38+'PROGRAMA I'!Q38),0) -> 0 | BZ29: =IF('PROGRAMA II'!A39='CALCULO POR AREAS'!$BY$2,'PROGRAMA II'!Q39+'PROGRAMA II'!R39,0) -> 0 | CA29: =IF('PROGRAMA III'!A39='CALCULO POR AREAS'!$BY$2,'PROGRAMA III'!Q39+'PROGRAMA III'!R39,0) -> 0 | CB29: =IF('PROGRAMA IV'!A39='CALCULO POR AREAS'!$BY$2,'PROGRAMA IV'!Q39+'PROGRAMA IV'!R39,0) -> 0
